Workbook

Sheet AER Changes
A3: Issues | B3: Location | C3: Comment
A6: 1 | B6: DNSP Inputs General'!P6:P14 | C6: Introduced 2021 6 month period - Capex for inclusion in RAB
B7: DNSP Inputs General'!P20 | C7: Introduced 2021 6 month period - O & M
B8: DNSP Inputs General'!P41:P80 | C8: Introduced 2021 6 month period - Light volumes
A10: =A6+1 -> 2 | B10: DNSP Inputs General'!C30 | C10: Update for actual CPI
A12: =A10+1 -> 3 | B12: DNSP Inputs General'!D31:D35 | C12: Update for AER Draft Decision CPI Forecast
A14: =A12+1 -> 4 | B14: DNSP Inputs General'!B26:F26 | C14: Update for AER Draft Decision Real Pre Tax WACC
A16: =A14+1 -> 5 | B16: DNSP Inputs General'!Q84:U84 | C16: Update for AER Draft Decision Real Labour Escalator
A18: =A16+1 -> 6 | B18: DNSP Inputs General'!E57 | C18: Incorrect price
A20: =A18+1 -> 7 | B20: DNSP Inputs O & M'!D222:H222 | C20: Incorrect unit cost calculation
A22: =A20+1 -> 8 | B22: DNSP Inputs Capex'!C21:H21 | C22: Incorrect cell reference
B23: DNSP Inputs Capex'!C105:H105
A26: =A20+1 -> 8 | B26: O & M 2021-2025'!G234:BG234 | C26: Incorrect cell references
B27: O & M 2021-2025'!M232:BU232
B28: O & M 2021-2025'!G264:BG264
A31: =A26+1 -> 9 | B31: Capex 2021-2025'!I124:BI124 | C31: Incorrect cell reference
B32: Capex 2021-2025'!I137:BI137
B33: Capex 2021-2025'!I150:BI150
A36: =A31+1 -> 10 | B36: WACC!E4:I4 | C36: Corrected Labels
B37: WACC!A13:A18
A39: =A36+1 -> 11 | B39: WACC!C14:D14 | C39: Update for CPI to be applied to prices in 2021/22
A41: =A39+1 -> 12 | B41: Depn & WACC Post 2004 | C41: Amended unitisation code
A43: =A41+1 -> 13 | B43: Total RAB'!S6:T161 | C43: Introduced 2021 6 month period - RAB roll forward
A45: =A43+1 -> 14 | B45: RAB 2001 to 2004 | C45: Introduced 2021 6 month period
A47: =A45+1 -> 15 | B47: DNSP Inputs O & M'!E12:H13 | C47: Applied AER real labour escalation from 2022/23 onwards
A49: =A47+1 -> 16 | B49: DNSP Inputs O & M'!D133:H133 | C49: AER Draft Decision - No step change in pole testing/inspection costs
A51: =A49+1 -> 17 | B51: DNSP Inputs O & M'!D208:H208 | C51: AER Draft Decision V LED Luminaire cost

Sheet Instructions
A1: ='DNSP Inputs O & M'!$A$3 -> United Energy
A3: Instructions
A5: This model is to be used for the setting of Public Lighting Tariffs for the Regulatory Period 2021 to 2026 based on forecast inflation rates, Real Pre Tax WACC and Nominal vanilla WACC.
A7: Distributor data input fields are shaded | C7: and located in tabs "DNSP Inputs General" , "DNSP Inputs O & M" and "DNSP Inputs Capex"
A8: NOTE : All Distributor data input fields have been populated with the distributor's regulatory proposal data in this model.
A10: The 'PL Tariffs (smoothed)' sheet is new and is used to smooth PL tariffs. The 'solve prices' macro on this sheet needs to be run to calculate the Xo for light types.
A12: This model will also to be used for the annual Public Lighting Tariff Approvals in the Regulatory Period 2021 to 2026 based on actual inflation rates, Real Pre Tax WACC and Nominal Vanilla WACC
H70: =G70 -> 0 | I70: =H70 -> 0 | J70: =I70 -> 0 | K70: =J70 -> 0 | L70: =K70 -> 0

Sheet DNSP Inputs General
A1: ='DNSP Inputs O & M'!$A$3 -> United Energy
D2: 2009 | E2: 2010 | F2: 2011 | G2: 2012 | H2: 2013 | I2: 2014 | J2: 2015 | K2: 2016 | L2: 2017 | M2: 2018 | N2: 2019 | O2: 2020 | P2: HY2021 | Q2: 2021/22 | R2: 2022/23 | S2: 2023/24 | T2: 2024/25 | U2: 2025/26
A3: Capital Expenditure | D3: Nominal $ - Actual | P3: Real 2021 $ - Forecast
A4: (Net of customer contributions)
A6: Poles and Brackets | D6: 2055145.574 | E6: -55718.27702 | F6: 705275.3648 | G6: 101102.2593 | H6: 705275.3648 | I6: 330932.8015 | J6: 197636.0322 | K6: 442424.0823 | L6: 698078.5685 | M6: 614153.0414 | N6: 698078.5685 | O6: 782004.0957 | P6: =O6/2*(1+C$30) -> 395770.3655 | Q6: ='Capex 2021-2025'!B24 -> 1825934.172 | R6: ='Capex 2021-2025'!C24 -> 1826727.909 | S6: ='Capex 2021-2025'!D24 -> 1827775.083 | T6: ='Capex 2021-2025'!E24 -> 1829382.903 | U6: ='Capex 2021-2025'!F24 -> 1831520.05
A8: Existing Lights
A9: Luminaires | D9: 1519394.996 | E9: -110251.943 | F9: 1144988.395 | G9: 2027497.171 | H9: 1144988.395 | I9: 1047800.219 | J9: 1144685.648 | K9: 469264.9082 | L9: 491900.4315 | M9: 645591.8086 | N9: 480582.6698 | O9: 240291.3349 | P9: =O9/2*(1+C$30) -> 121610.8585 | Q9: ='Capex 2021-2025'!B13-'Capex 2021-2025'!B31-'Capex 2021-2025'!B37 -> -1042290.725 | R9: ='Capex 2021-2025'!C13-'Capex 2021-2025'!C31-'Capex 2021-2025'!C37 -> -9661.3894 | S9: ='Capex 2021-2025'!D13-'Capex 2021-2025'!D31-'Capex 2021-2025'!D37 -> -4296.083465 | T9: ='Capex 2021-2025'!E13-'Capex 2021-2025'!E31-'Capex 2021-2025'!E37 -> -1926.272408 | U9: ='Capex 2021-2025'!F13-'Capex 2021-2025'!F31-'Capex 2021-2025'!F37 -> -544.0155388
A11: Energy Efficient Lights
A12: Luminaires and Ballasts | D12: 0 | E12: =(E14-E6)*E16 -> 0 | F12: =(F14-F6)*F16 -> 0 | G12: =(G14-G6)*G16 -> 0 | H12: =(H14-H6)*H16 -> 0 | I12: 0 | J12: 0 | K12: 804494.0095 | L12: 544925 | M12: 554439.45 | N12: 714803.3616 | O12: 831529.0194 | P12: =O12/2*(1+C$30) -> 420834.8086 | Q12: ='Capex 2021-2025'!B19 -> 963215.6193 | R12: ='Capex 2021-2025'!C19 -> 987214.3036 | S12: ='Capex 2021-2025'!D19 -> 1010066.209 | T12: ='Capex 2021-2025'!E19 -> 1028737.829 | U12: ='Capex 2021-2025'!F19 -> 1038796.946
A14: Total Net Capex | D14: 3574540.57 | E14: -165970.22 | F14: 1850263.76 | G14: 2128599.43 | H14: 1850263.76 | I14: =SUM(I6:I12) -> 1378733.02 | J14: 1342321.68 | K14: 1716183 | L14: 1734904 | M14: 1814184.3 | N14: 1893464.6 | O14: 1853824.45 | P14: =SUM(P6,P9,P12) -> 938216.0326 | Q14: =SUM(Q6,Q9,Q12) -> 1746859.066 | R14: 2804280.823 | S14: 2833545.209 | T14: 2856194.46 | U14: 2869772.981
A15: Share poles and brackets
A16: Share EE lights
F17: 2011 | G17: 2012 | H17: 2013 | I17: 2014 | J17: 2015 | K17: 2016 | L17: 2017 | M17: 2018 | N17: 2019 | O17: 2020 | P17: =P2 -> HY2021 | Q17: 2021/22 | R17: 2022/23 | S17: 2023/24 | T17: 2024/25 | U17: 2025/26
A18: Operating and Maintenance Expenditure | F18: Nominal $ - Actual | P18: Real 2021 $ - Forecast
A20: Total O & M | F20: 2510763.394 | G20: 2895184.073 | H20: 2682204.391 | I20: 3493714.159 | J20: 2510413 | K20: 3701350 | L20: 2439808 | M20: 2750765.89 | N20: 2473490.408 | O20: 3025842.479 | P20: =O20/2*(1+C$30) -> 1531371.499 | Q20: ='Cashflow Summary'!K85 -> 3801929.5 | R20: ='Cashflow Summary'!L85 -> 3698707.977 | S20: ='Cashflow Summary'!M85 -> 3609817.587 | T20: ='Cashflow Summary'!N85 -> 3522666.266 | U20: ='Cashflow Summary'!O85 -> 3490031.191
A24: WACC
A25: Regulatory Period | B25: 2021/22 | C25: 2022/23 | D25: 2023/24 | E25: 2024/25 | F25: 2025/26 | I25: Updated/changed calculations are highlighted in green throughout the model, to reflect the change in practice to replace all lights with LED alternaties, to include all costs of pole replacement and to introduce a new light type
A26: Real Pre Tax WACC | B26: 0.02494267009 | C26: 0.02494267009 | D26: 0.02494267009 | E26: 0.02494267009 | F26: 0.02494267009
A29: CPI Index | B29: CPI Index | C29: Actual CPI | D29: F'cast CPI
A30: 1H2021 | C30: =116.2/114.8-1 -> 0.01219512195
A31: 2021/22 | D31: 0.02374308679
A32: 2022/23 | D32: 0.02374308679
A33: 2023/24 | D33: 0.02374308679
A34: 2024/25 | D34: 0.02374308679
A35: 2025/26 | D35: 0.02374308679
A38: Number Of Lights | E38: 2020 | F38: 2011 | G38: 2012 | H38: 2013 | I38: 2014 | J38: 2015 | K38: 2016 | L38: 2017 | M38: 2018 | N38: 2019 | O38: 2020 | P38: =P2 -> HY2021 | Q38: 2021/22 | R38: 2022/23 | S38: 2023/24 | T38: 2024/25 | U38: 2025/26
E39: Actual Prices | F39: Actual Volumes | P39: Forecast Volumes
A40: Existing Lights | B40: Reference Light | D40: Price Factor
A41: Mercury Vapour 80 watt | B41: =A$41 -> Mercury Vapour 80 watt | D41: 1 | E41: 62.71 | F41: 71495 | G41: 70284 | H41: 65619 | I41: 58146 | J41: 54948.75028 | K41: 37786 | L41: 26370 | M41: 16552 | N41: 7584 | O41: 4138 | P41: =O41 -> 4138 | Q41: 0 | R41: 0 | S41: 0 | T41: 0 | U41: 0
A42: Sodium High Pressure 150 watt | B42: =A$42 -> Sodium High Pressure 150 watt | D42: 1 | E42: 81.22 | F42: 23577 | G42: 23585 | H42: 23639 | I42: 23706 | J42: 23801.79922 | K42: 24020 | L42: 24019 | M42: 24048 | N42: 22605 | O42: 21703.32 | P42: =O42 -> 21703.32 | Q42: 20102.70015 | R42: 19097.56514 | S42: 18142.68689 | T42: 17235.55254 | U42: 16793.6153
A43: Sodium High Pressure 250 watt | B43: =A$43 -> Sodium High Pressure 250 watt | D43: 1 | E43: 83.06 | F43: 9738 | G43: 9809 | H43: 9877 | I43: 9900 | J43: 9940.007267 | K43: 10291 | L43: 10356 | M43: 10342 | N43: 10114 | O43: 9333.655 | P43: 9333.655 | Q43: 8645.297944 | R43: 8213.033047 | S43: 7802.381394 | T43: 7412.262325 | U43: 7222.204316
A44: Fluorescent 2x20 watt | B44: =A$41 -> Mercury Vapour 80 watt | D44: 1.29 | E44: 80.89 | F44: 60 | G44: 57 | H44: 56 | I44: 60 | J44: 62 | K44: 61 | L44: 48 | M44: 47 | N44: 43 | O44: 11.75 | P44: 11.75 | Q44: 4.40625 | R44: 2.203125 | S44: 1.1015625 | T44: 0.3671875 | U44: 0
A45: Fluorescent 3x20 watt | B45: =A$41 -> Mercury Vapour 80 watt | D45: 1.29 | E45: 80.89 | F45: 3 | G45: 3 | H45: 3 | I45: 3 | J45: 3 | K45: 3 | L45: 3 | M45: 3 | N45: 3 | O45: 0.75 | P45: 0.75 | Q45: 0 | R45: 0 | S45: 0 | T45: 0 | U45: 0
A46: Mercury Vapour 50 watt | B46: =A$41 -> Mercury Vapour 80 watt | D46: 1.48 | E46: 92.81 | F46: 42 | G46: 39 | H46: 42 | I46: 37 | J46: 33.83638253 | K46: 33 | L46: 30 | M46: 16 | N46: 12 | O46: 4 | P46: 4 | Q46: 1.5 | R46: 0.75 | S46: 0.25 | T46: 0 | U46: 0
A47: Mercury Vapour 125 watt | B47: =A$41 -> Mercury Vapour 80 watt | D47: 1.48 | E47: 92.81 | F47: 1178 | G47: 1175 | H47: 1166 | I47: 1114 | J47: 1015.637976 | K47: 903 | L47: 785 | M47: 604 | N47: 509 | O47: 151 | P47: 151 | Q47: 56.625 | R47: 28.3125 | S47: 14.15625 | T47: 7.078125 | U47: 4.71875
A48: Mercury Vapour 250 watt | B48: =A$43 -> Sodium High Pressure 250 watt | D48: 0.91 | E48: 75.58 | F48: 126 | G48: 126 | H48: 124 | I48: 122 | J48: 111.1777724 | K48: 120 | L48: 120 | M48: 113 | N48: 69 | O48: 28.25 | P48: 28.25 | Q48: 10.59375 | R48: 5.296875 | S48: 2.6484375 | T48: 1.32421875 | U48: 0.8828125
A49: Mercury Vapour 400 watt | B49: =A$43 -> Sodium High Pressure 250 watt | D49: 1.26 | E49: 104.65 | F49: 6 | G49: 6 | H49: 6 | I49: 6 | J49: 6 | K49: 6 | L49: 6 | M49: 6 | N49: 6 | O49: 1.5 | P49: 1.5 | Q49: 0.375 | R49: 0 | S49: 0 | T49: 0 | U49: 0
A50: Mercury Vapour 700 watt | B50: =A$43 -> Sodium High Pressure 250 watt | D50: 1.26 | E50: 104.65 | F50: 4 | G50: 4 | H50: 0 | I50: 4 | J50: 3.63925908 | K50: 3 | L50: 3 | M50: 3 | N50: 3 | O50: 0.75 | P50: 0.75 | Q50: 0 | R50: 0 | S50: 0 | T50: 0 | U50: 0
A51: Sodium High Pressure 70 watt | B51: =A$41 -> Mercury Vapour 80 watt | D51: 2.19 | E51: 137.33 | F51: 373 | G51: 366 | H51: 327 | I51: 333 | J51: 339.5797255 | K51: 316 | L51: 294 | M51: 278 | N51: 268 | O51: 69.5 | P51: 69.5 | Q51: 26.0625 | R51: 13.03125 | S51: 6.515625 | T51: 3.2578125 | U51: 2.171875
A52: Sodium High Pressure 100 watt | B52: =A$42 -> Sodium High Pressure 150 watt | D52: 1.1 | E52: 89.34 | F52: 799 | G52: 848 | H52: 873 | I52: 911 | J52: 917.3128494 | K52: 1027 | L52: 1034 | M52: 1033 | N52: 973 | O52: 258.25 | P52: 258.25 | Q52: 96.84375 | R52: 48.421875 | S52: 24.2109375 | T52: 12.10546875 | U52: 8.0703125
A53: Sodium High Pressure 400 watt | B53: =A$43 -> Sodium High Pressure 250 watt | D53: 1.26 | E53: 104.65 | F53: 346 | G53: 338 | H53: 335 | I53: 333 | J53: 334.3400766 | K53: 324 | L53: 318 | M53: 317 | N53: 301 | O53: 79.25 | P53: 79.25 | Q53: 29.71875 | R53: 14.859375 | S53: 7.4296875 | T53: 3.71484375 | U53: 2.4765625
A54: Metal Halide 70 watt | B54: =A$42 -> Sodium High Pressure 150 watt | D54: 1.35 | E54: 109.65 | F54: 9 | G54: 9 | H54: 9 | I54: 9 | J54: 9 | K54: 9 | L54: 9 | M54: 9 | N54: 9 | O54: 2.25 | P54: 2.25 | Q54: 0.84375 | R54: 0.28125 | S54: 0 | T54: 0 | U54: 0
A55: Metal Halide 100 watt | B55: =A$42 -> Sodium High Pressure 150 watt | D55: 1.35 | E55: 109.65 | F55: 97 | G55: 95 | H55: 95 | I55: 95 | J55: 95 | K55: 95 | L55: 95 | M55: 95 | N55: 95 | O55: 23.75 | P55: 23.75 | Q55: 8.90625 | R55: 4.453125 | S55: 2.2265625 | T55: 1.11328125 | U55: 0.7421875
A56: Metal Halide 150 watt | B56: =A$42 -> Sodium High Pressure 150 watt | D56: 1.35 | E56: 109.65 | F56: 15 | G56: 15 | H56: 15 | I56: 15 | J56: 15 | K56: 31 | L56: 43 | M56: 44 | N56: 34 | O56: 11 | P56: 11 | Q56: 4.125 | R56: 2.0625 | S56: 1.03125 | T56: 0.34375 | U56: 0
A57: Metal Halide 250 watt | B57: =A$43 -> Sodium High Pressure 250 watt | D57: 1.35 | E57: 112.13 | F57: 118 | G57: 118 | H57: 118 | I57: 118 | J57: 118 | K57: 125 | L57: 125 | M57: 125 | N57: 121 | O57: 31.25 | P57: 31.25 | Q57: 11.71875 | R57: 5.859375 | S57: 2.9296875 | T57: 1.46484375 | U57: 0.9765625
A58: Metal Halide 400 watt | B58: =A$43 -> Sodium High Pressure 250 watt | D58: 1.35 | E58: 112.13 | F58: 110 | G58: 110 | H58: 110 | I58: 110 | J58: 110 | K58: 118 | L58: 118 | M58: 118 | N58: 118 | O58: 29.5 | P58: 29.5 | Q58: 11.0625 | R58: 5.53125 | S58: 2.765625 | T58: 1.3828125 | U58: 0.921875
A65: Total Existing Lights | F65: =SUM(F41:F64) -> 108096 | G65: =SUM(G41:G64) -> 106987 | H65: 102414 | I65: 95022 | J65: 91864.08081 | K65: 75271 | L65: 63776 | M65: 53753 | N65: 42867 | O65: 35877.725 | P65: 35877.725 | Q65: 29010.77934 | R65: 27441.66069 | S65: 26010.3339 | T65: 24679.96721 | U65: 24036.78055
A67: Energy Efficient Lights | B67: Reference Light | D67: Price Factor
A68: T5 2X14W | B68: =A$68 -> T5 2X14W | D68: 1 | E68: 30.59 | F68: 9508 | G68: 10834 | H68: 14997 | I68: 21810 | J68: 25108.77536 | K68: 33001 | L68: 33025 | M68: 33161 | N68: 33121 | O68: 26860.41 | P68: =O68 -> 26860.41 | Q68: 22965.65055 | R68: 20669.08549 | S68: 18602.17695 | T68: 16741.95925 | U68: 15860.8035
A69: Twin 24w Fluorescent | B69: =A$68 -> T5 2X14W | D69: 1 | E69: 30.59 | F69: 47 | G69: 96 | H69: 101 | I69: 226 | J69: 237.1721275 | K69: 353 | L69: 352 | M69: 358 | N69: 356 | O69: 289.98 | P69: 289.98 | Q69: 247.9329 | R69: 223.13961 | S69: 200.825649 | T69: 180.7430841 | U69: 171.2302902
A70: 32W Compact Fluorescent | B70: T5 2X14W | D70: 1 | E70: 30.59 | F70: 182 | G70: 262 | H70: 857 | I70: 1502 | J70: 1576.250157 | K70: 1742 | L70: 1775 | M70: 1753 | N70: 1655 | O70: 1419.93 | P70: 1419.93 | Q70: 1214.04015 | R70: 1092.636135 | S70: 983.3725215 | T70: 885.0352694 | U70: 838.4544657
A71: 42w Compact Fluorescent | B71: T5 2X14W | D71: 1 | E71: 30.59 | F71: 182 | G71: 228 | H71: 244 | I71: 303 | J71: 317.9785603 | K71: 333 | L71: 344 | M71: 414 | N71: 743 | O71: 335.34 | P71: 335.34 | Q71: 286.7157 | R71: 258.04413 | S71: 232.239717 | T71: 209.0157453 | U71: 198.0149166
A72: Category P LED 18 Watt | B72: Category P LED 18 Watt | D72: 1 | E72: 20.54 | F72: 0 | G72: 0 | H72: 0 | I72: 0 | J72: 0 | K72: 9775 | L72: 21601 | M72: 28642.57584 | N72: 37520 | O72: 48314.63462 | P72: 48314.63462 | Q72: 58074.43651 | R72: 60658.11052 | S72: 63012.69845 | T72: 64755.68711 | U72: 65374.49883
A73: Category P LED 47 Watt | B73: Category P LED 18 Watt | D73: 1 | E73: =E72*D73 -> 20.54 | F73: 0 | G73: 0 | H73: 0 | I73: 0 | J73: 0 | K73: 0 | L73: 0 | M73: 0 | N73: 1777 | O73: 2288.249086 | P73: 2288.249086 | Q73: 2750.487038 | R73: 2872.853475 | S73: 2984.370073 | T73: 3066.920469 | U73: 3096.228263
A74: Category V LED L1 Standard Output | B74: Category V LED L1 Standard Output | D74: 1 | E74: 47.70898376 | F74: 0 | G74: 0 | H74: 0 | I74: 0 | J74: 0 | K74: 0 | L74: 0 | M74: 3274.424159 | N74: 3320 | O74: 5957.796871 | P74: 5957.796871 | Q74: 8951.752895 | R74: 10265.54645 | S74: 11487.19348 | T74: 12364.17706 | U74: 12650.48974
A75: Category V LED L2 Medium Output | B75: Category V LED L1 Standard Output | D75: =E75/E74 -> 1.256615683 | E75: 59.95185723 | F75: 0 | G75: 0 | H75: 0 | I75: 0 | J75: 0 | K75: 0 | L75: 0 | M75: 0 | N75: 258 | O75: 462.9854195 | P75: 462.9854195 | Q75: 695.6482672 | R75: 797.7442724 | S75: 892.6794936 | T75: 960.8306266 | U75: 983.0802264
A76: Category V L4 LED High Output | B76: Category V LED L1 Standard Output | D76: =E76/E74 -> 1.324350571 | E76: 63.18341986 | F76: 0 | G76: 0 | H76: 0 | I76: 0 | J76: 0 | K76: 0 | L76: 0 | M76: 0 | N76: 138 | O76: 247.6433639 | P76: 247.6433639 | Q76: 372.0909336 | R76: 426.7004248 | S76: 477.4797291 | T76: 513.9326607 | U76: 525.8336095
A78: Total Energy Efficient Lights | F78: =SUM(F68:F77) -> 9919 | G78: 11420 | H78: 16199 | I78: 23841 | J78: 27240.17621 | K78: 45204 | L78: =SUM(L68:L77) -> 57097 | M78: =SUM(M68:M77) -> 67603 | N78: =SUM(N68:N77) -> 78888 | O78: 86176.96936 | P78: =SUM(P68:P77) -> 86176.96936 | Q78: 95558.75494 | R78: 97263.86051 | S78: 98873.03606 | T78: 99678.30127 | U78: 99698.63384
A80: Total Number of Lights | F80: =SUM(F65,F78) -> 118015 | G80: =SUM(G65,G78) -> 118407 | H80: 118613 | I80: 118863 | J80: 119104.257 | K80: 120475 | L80: 120873 | M80: 121356 | N80: 121755 | O80: 122054.6944 | P80: =SUM(P65,P78) -> 122054.6944 | Q80: 124569.5343 | R80: 124705.5212 | S80: 124883.37 | T80: 124358.2685 | U80: 123735.4144
Q83: =Q2 -> 2021/22 | R83: =R2 -> 2022/23 | S83: =S2 -> 2023/24 | T83: 2024/25 | U83: 2025/26
P84: Real Labour Escalation | Q84: 0.007762137193 | R84: 0.004960893439 | S84: 0.006512577699 | T84: 0.009934640482 | U84: 0.01307542378

Sheet DNSP Inputs O & M
A1: Public Lighting Cost Build-up Model
A3: United Energy | C3: O & M Data Inputs
C5: Real 2021 $
A7: Input parameters | C7: 2020 | D7: 2021/22 | E7: 2022/23 | F7: 2023/24 | G7: 2024/25 | H7: 2025/26
A9: Inputs - all lamps
A11: Material premium for rural areas | C11: 0.05 | D11: 0.05 | E11: 0.05 | F11: 0.05 | G11: 0.05 | H11: 0.05
A12: Labour rate (per hour) | C12: 99.00995838 | D12: 105.6069058 | E12: =D12*(1+'DNSP Inputs General'!R$84) -> 106.1308104 | F12: =E12*(1+'DNSP Inputs General'!S$84) -> 106.8219956 | G12: =F12*(1+'DNSP Inputs General'!T$84) -> 107.8832337 | H12: =G12*(1+'DNSP Inputs General'!U$84) -> 109.2938527 | M12: 107.8349645 | N12: 110.1871038 | O12: 112.4135473 | P12: 114.4291808
A13: Labour rate for night patrols (per hour) | C13: 131.420798 | D13: 140.1772516 | E13: =D13*(1+'DNSP Inputs General'!R$84) -> 140.872656 | F13: =E13*(1+'DNSP Inputs General'!S$84) -> 141.7901001 | G13: =F13*(1+'DNSP Inputs General'!T$84) -> 143.1987338 | H13: =G13*(1+'DNSP Inputs General'!U$84) -> 145.0711179 | M13: 143.1346637 | N13: 146.2567741 | O13: 149.2120422 | P13: 151.8874919
A14: Elevated platform vehicle (per hour) - urban MV,urban T5 | C14: 44.34821053 | D14: 44.69329858 | E14: 44.69329858 | F14: 44.69329858 | G14: 44.69329858 | H14: 44.69329858
A15: Elevated platform vehicle (per hour) - rural MV, rural T5, S-HP | C15: 44.34821053 | D15: 44.69329858 | E15: 44.69329858 | F15: 44.69329858 | G15: 44.69329858 | H15: 44.69329858
A16: Patrol vehicle (per hour) | C16: 10.97184823 | D16: 11.0572238 | E16: 11.0572238 | F16: 11.0572238 | G16: 11.0572238 | H16: 11.0572238
A17: Crane truck rate (per hour) | D17: 160.0206222 | E17: 160.0206222 | F17: 160.0206222 | G17: 160.0206222 | H17: 160.0206222
A18: Tipper (per hour) | D18: 21.43057778 | E18: 21.43057778 | F18: 21.43057778 | G18: 21.43057778 | H18: 21.43057778
A19: Number of hours in a day | C19: 8 | D19: 8 | E19: 8 | F19: 8 | G19: 8 | H19: 8
A20: Indirect overheads | C20: 0.25 | D20: 0.25 | E20: 0.25 | F20: 0.25 | G20: 0.25 | H20: 0.25
A24: Inputs - MV80
A26: Depreciation period | B26: years | C26: 20 | D26: 20 | E26: 20 | F26: 20 | G26: 20 | H26: 20
A27: Lamps - bulk change | B27: years | C27: 4 | D27: 4 | E27: 4 | F27: 4 | G27: 4 | H27: 4
A28: PE cells - bulk change | B28: years | C28: 8 | D28: 8 | E28: 8 | F28: 8 | G28: 8 | H28: 8
A29: Proportion of lamps that fail between bulk change | C29: 0.196 | D29: 0.5324658987 | E29: 0.5324658987 | F29: 0.5324658987 | G29: 0.5324658987 | H29: 0.5324658987
A30: Unit cost - lamp | C30: 5.412167245 | D30: 5.454281104 | E30: 5.454281104 | F30: 5.454281104 | G30: 5.454281104 | H30: 5.454281104
A31: Unit cost - PE cell | C31: 21.84999687 | D31: 22.0200189 | E31: 22.0200189 | F31: 22.0200189 | G31: 22.0200189 | H31: 22.0200189
A32: Unit cost - luminaire | C32: 187.7678592 | D32: 189.2289429 | E32: 189.2289429 | F32: 189.2289429 | G32: 189.2289429 | H32: 189.2289429
A33: Unit cost - miscellaneous materials (bulk lamp) | C33: 1.184281673 | D33: 1.193496959 | E33: 1.193496959 | F33: 1.193496959 | G33: 1.193496959 | H33: 1.193496959
A34: Unit cost - miscellaneous materials (repair) | C34: 11.84281673 | D34: 11.93496959 | E34: 11.93496959 | F34: 11.93496959 | G34: 11.93496959 | H34: 11.93496959
A35: Number of men in crew | C35: 2 | D35: 2 | E35: 2 | F35: 2 | G35: 2 | H35: 2
A36: Number of bulk lamp changes in 1 day - urban | C36: 45.51107921 | D36: 86 | E36: 86 | F36: 86 | G36: 86 | H36: 86
A37: Number of bulk lamp changes in 1 day - rural | C37: 40.51107921 | D37: 72 | E37: 72 | F37: 72 | G37: 72 | H37: 72
A38: Number of repairs in 1 day - urban | C38: 32.94223268 | D38: 29 | E38: 29 | F38: 29 | G38: 29 | H38: 29
A39: Number of repairs in 1 day - rural | C39: 27.67636733 | D39: 24 | E39: 24 | F39: 24 | G39: 24 | H39: 24
A40: % of repairs - lamps | C40: 0.6 | D40: 0.6 | E40: 0.6 | F40: 0.6 | G40: 0.6 | H40: 0.6
A41: % of repairs - PE cells | C41: 0.5 | D41: 0.5 | E41: 0.5 | F41: 0.5 | G41: 0.5 | H41: 0.5
A42: % of repairs - luminaires | C42: 0.15 | D42: 0.15 | E42: 0.15 | F42: 0.15 | G42: 0.15 | H42: 0.15
A43: % of repairs - other | C43: 0.1 | D43: 0.1 | E43: 0.1 | F43: 0.1 | G43: 0.1 | H43: 0.1
A45: Other Maintenance and Repair costs
A46: Traffic control costs | C46: 0 | D46: 0 | E46: 0 | F46: 0 | G46: 0 | H46: 0
A47: Other costs : Describe……………………………………. | C47: 0 | D47: 0 | E47: 0 | F47: 0 | G47: 0 | H47: 0
C48: =SUM(C46:C47) -> 0 | D48: =SUM(D46:D47) -> 0 | E48: 0 | F48: 0 | G48: 0 | H48: 0
A49: Number of Lights | C49: 4138 | D49: 0 | E49: 0 | F49: 0 | G49: 0 | H49: 0
A50: Unit Cost | C50: 0 | D50: 0 | E50: 0 | F50: 0 | G50: 0 | H50: 0
A52: Location of selected public lighting assets within distributors' areas (%)
A53: Urban | C53: 0.92 | D53: 0.92 | E53: 0.92 | F53: 0.92 | G53: 0.92 | H53: 0.92
A54: Rural | C54: 0.08 | D54: 0.08 | E54: 0.08 | F54: 0.08 | G54: 0.08 | H54: 0.08
A58: Inputs - S-HP150
A60: Depreciation period | B60: years | C60: 20 | D60: 20 | E60: 20 | F60: 20 | G60: 20 | H60: 20
A61: Number of patrols per year | C61: 3 | D61: 3 | E61: 3 | F61: 3 | G61: 3 | H61: 3
A62: Lamps - frequency of replacement | B62: years | C62: 5 | D62: 5 | E62: 5 | F62: 5 | G62: 5 | H62: 5
A63: PE cells - frequency of replacement | B63: years | C63: 10 | D63: 10 | E63: 10 | F63: 10 | G63: 10 | H63: 10
A64: Unit cost - lamp | C64: 39.13658262 | D64: 39.44111728 | E64: 39.44111728 | F64: 39.44111728 | G64: 39.44111728 | H64: 39.44111728
A65: Unit cost - PE cell | C65: 21.25247001 | D65: 87.71 | E65: 87.71 | F65: 87.71 | G65: 87.71 | H65: 87.71
A66: Unit cost - miscellaneous materials | C66: 2.369919217 | D66: 2.38836034 | E66: 2.38836034 | F66: 2.38836034 | G66: 2.38836034 | H66: 2.38836034
A67: Number of men in crew - road patrols | C67: 2 | D67: 2 | E67: 2 | F67: 2 | G67: 2 | H67: 2
A68: Number of men in crew - repairs | C68: 2 | D68: 2 | E68: 2 | F68: 2 | G68: 2 | H68: 2
A69: Number of lamps patrolled in 1 day - urban | C69: 5985.818499 | D69: 3000 | E69: 3000 | F69: 3000 | G69: 3000 | H69: 3000
A70: Number of lamps patrolled in 1 day - rural | C70: 2670.478427 | D70: 2000 | E70: 2000 | F70: 2000 | G70: 2000 | H70: 2000
A71: Number of repairs in 1 day - urban | C71: 25.87392839 | D71: 19 | E71: 19 | F71: 19 | G71: 19 | H71: 19
A72: Number of repairs in 1 day - rural | C72: 24.99331559 | D72: 15 | E72: 15 | F72: 15 | G72: 15 | H72: 15
A74: Other Maintenance and Repair costs
A75: Traffic control costs | C75: 76802.93758 | D75: 65759.68639 | E75: 63238.63693 | F75: 60839.22358 | G75: 58476.82426 | H75: 57571.89751
A76: Other costs : Describe……………………………………. | C76: 0 | D76: 0 | E76: 0 | F76: 0 | G76: 0 | H76: 0
C77: =SUM(C75:C76) -> 76802.93758 | D77: =SUM(D75:D76) -> 65759.68639 | E77: =SUM(E75:E76) -> 63238.63693 | F77: =SUM(F75:F76) -> 60839.22358 | G77: =SUM(G75:G76) -> 58476.82426 | H77: =SUM(H75:H76) -> 57571.89751
A78: Number of Lights | C78: 21703.32 | D78: 20102.70015 | E78: 19097.56514 | F78: 18142.68689 | G78: 17235.55254 | H78: 16793.6153
A79: Unit Cost | C79: 3.164774406 | D79: 3.271186751 | E79: 3.311345528 | F79: 3.353374501 | G79: 3.392802414 | H79: 3.428201522
A81: Location of selected public lighting assets within distributors' areas (%)
A82: Urban | C82: 0.92 | D82: 0.92 | E82: 0.92 | F82: 0.92 | G82: 0.92 | H82: 0.92
A83: Rural | C83: 0.08 | D83: 0.08 | E83: 0.08 | F83: 0.08 | G83: 0.08 | H83: 0.08
A87: Inputs - S-HP250
A89: Depreciation period | B89: years | C89: 20 | D89: 20 | E89: 20 | F89: 20 | G89: 20 | H89: 20
A90: Number of patrols per year | C90: 3 | D90: 3 | E90: 3 | F90: 3 | G90: 3 | H90: 3
A91: Lamps - frequency of replacement | B91: years | C91: 5 | D91: 5 | E91: 5 | F91: 5 | G91: 5 | H91: 5
A92: PE cells - frequency of replacement | B92: years | C92: 10 | D92: 10 | E92: 10 | F92: 10 | G92: 10 | H92: 10
A93: Unit cost - lamp | C93: 39.33407589 | D93: 39.64014731 | E93: 39.64014731 | F93: 39.64014731 | G93: 39.64014731 | H93: 39.64014731
A94: Unit cost - PE cell | C94: 21.25247001 | D94: 87.71 | E94: 87.71 | F94: 87.71 | G94: 87.71 | H94: 87.71
A95: Unit cost - miscellaneous materials | C95: 2.369919217 | D95: 2.38836034 | E95: 2.38836034 | F95: 2.38836034 | G95: 2.38836034 | H95: 2.38836034
A96: Number of men in crew - road patrols | C96: 2 | D96: 2 | E96: 2 | F96: 2 | G96: 2 | H96: 2
A97: Number of men in crew - repairs | C97: 2 | D97: 2 | E97: 2 | F97: 2 | G97: 2 | H97: 2
A98: Number of lamps patrolled in 1 day - urban | C98: 5985.818499 | D98: 3000 | E98: 3000 | F98: 3000 | G98: 3000 | H98: 3000
A99: Number of lamps patrolled in 1 day - rural | C99: 2670.478427 | D99: 2000 | E99: 2000 | F99: 2000 | G99: 2000 | H99: 2000
A100: Number of repairs in 1 day - urban | C100: 25.87392839 | D100: 19 | E100: 19 | F100: 19 | G100: 19 | H100: 19
A101: Number of repairs in 1 day - rural | C101: 24.99331559 | D101: 15 | E101: 15 | F101: 15 | G101: 15 | H101: 15
A103: Other Maintenance and Repair costs
A104: Traffic control costs | C104: 32915.54468 | D104: 29022.28508 | E104: 27909.64875 | F104: 26850.69512 | G104: 25808.07722 | H104: 25408.69815
A105: Other costs : Describe……………………………………. | C105: 0 | D105: 0 | E105: 0 | F105: 0 | G105: 0 | H105: 0
C106: =SUM(C104:C105) -> 32915.54468 | D106: =SUM(D104:D105) -> 29022.28508 | E106: =SUM(E104:E105) -> 27909.64875 | F106: =SUM(F104:F105) -> 26850.69512 | G106: =SUM(G104:G105) -> 25808.07722 | H106: =SUM(H104:H105) -> 25408.69815
A107: Number of Lights | C107: 9333.655 | D107: 8645.297944 | E107: 8213.033047 | F107: 7802.381394 | G107: 7412.262325 | H107: 7222.204316
A108: Unit Cost | C108: 3.247798358 | D108: 3.3570023 | E108: 3.398214593 | F108: 3.441346144 | G108: 3.481808399 | H108: 3.518136159
A110: Location of selected public lighting assets within distributors' areas (%)
A111: Urban | C111: 0.92 | D111: 0.92 | E111: 0.92 | F111: 0.92 | G111: 0.92 | H111: 0.92
A112: Rural | C112: 0.08 | D112: 0.08 | E112: 0.08 | F112: 0.08 | G112: 0.08 | H112: 0.08
A116: Dedicated street lighting poles
A118: Period of inspection | B118: years | C118: 5 | D118: 5 | E118: 5 | F118: 5 | G118: 5 | H118: 5
A119: Pole inspection rate | B119: per day | C119: 75 | D119: 75 | E119: 75 | F119: 75 | G119: 75 | H119: 75
A120: Depreciation of dedicated street lighting pole & bracket | B120: years | C120: 35 | D120: 35 | E120: 35 | F120: 35 | G120: 35 | H120: 35
A121: Proportion of lights on dedicated poles | C121: 0.2370560408 | D121: 0.3 | E121: 0.3 | F121: 0.3 | G121: 0.3 | H121: 0.3
A125: Other direct costs
A126: Call centre
A127: Number of calls | C127: 2400 | D127: 805.11747 | E127: 764.8615965 | F127: 726.6185167 | G127: 690.2875909 | H127: 672.587909
A128: Average cost per call $ | C128: 12.44674369 | D128: 12.66743881 | E128: 12.82295083 | F128: 12.98570504 | G128: 13.13838684 | H128: 13.27546738
C129: =C127*C128 -> 29872.18486 | D129: =D127*D128 -> 10198.77629 | E129: 9807.782642 | F129: 9435.653738 | G129: 9069.265401 | H129: 8928.918845
A131: GIS and other | C131: 124467.4369 | D131: 126674.3881 | E131: 128229.5083 | F131: 129857.0504 | G131: 131383.8684 | H131: 132754.6738
A132: Complaints handling | C132: 37340.23107 | D132: 38002.31643 | E132: 38468.85248 | F132: 38957.11513 | G132: 39415.16053 | H132: 39826.40213
A133: Step change in pole testing/inspection | L133: 235823.2875 | M133: 241718.8697 | N133: 247761.8414 | O133: 253955.8875 | P133: 260304.7847
A137: ENERGY EFFICIENT LIGHTS
A139: Inputs - T5 (2 X 14W)
A141: Depreciation period | B141: years | C141: 20 | D141: 20 | E141: 20 | F141: 20 | G141: 20 | H141: 20
A142: Lamps - bulk change | B142: years | C142: 4 | D142: 4 | E142: 4 | F142: 4 | G142: 4 | H142: 4
A143: PE cells - bulk change | B143: years | C143: 8 | D143: 8 | E143: 8 | F143: 8 | G143: 8 | H143: 8
A144: Ballast unit life | B144: years | C144: 20 | D144: 20 | E144: 20 | F144: 20 | G144: 20 | H144: 20
A145: Proportion of luminaires that fail between bulk change | C145: 0.114 | D145: 0.37 | E145: 0.37 | F145: 0.37 | G145: 0.37 | H145: 0.37
A146: Unit cost - lamp | C146: 9.474253384 | D146: 9.547975675 | E146: 9.547975675 | F146: 9.547975675 | G146: 9.547975675 | H146: 9.547975675
A147: Unit cost - PE cell | C147: 15.98780258 | D147: 16.11220895 | E147: 16.11220895 | F147: 16.11220895 | G147: 16.11220895 | H147: 16.11220895
A148: Unit cost - luminaire | C148: 228.5663629 | D148: 205 | E148: 205 | F148: 205 | G148: 205 | H148: 205
A149: Unit cost - miscellaneous materials (bulk lamp) | C149: 1.184281673 | D149: 1.193496959 | E149: 1.193496959 | F149: 1.193496959 | G149: 1.193496959 | H149: 1.193496959
A150: Unit cost - miscellaneous materials (repair) | C150: 11.84281673 | D150: 11.93496959 | E150: 11.93496959 | F150: 11.93496959 | G150: 11.93496959 | H150: 11.93496959
A151: Number of men in crew | C151: 2 | D151: 2 | E151: 2 | F151: 2 | G151: 2 | H151: 2
A152: Number of bulk lamp changes in 1 day - urban | C152: 63.44014496 | D152: 86 | E152: 86 | F152: 86 | G152: 86 | H152: 86
A153: Number of bulk lamp changes in 1 day - rural | C153: 63.44014496 | D153: 72 | E153: 72 | F153: 72 | G153: 72 | H153: 72
A154: Number of repairs in 1 day - urban | C154: 49.27220097 | D154: 29 | E154: 29 | F154: 29 | G154: 29 | H154: 29
A155: Number of repairs in 1 day - rural | C155: 30.36377375 | D155: 24 | E155: 24 | F155: 24 | G155: 24 | H155: 24
A156: % of repairs - lamps | C156: 0.6 | D156: 0.6 | E156: 0.6 | F156: 0.6 | G156: 0.6 | H156: 0.6
A157: % of repairs - PE cells | C157: 0.5 | D157: 0.5 | E157: 0.5 | F157: 0.5 | G157: 0.5 | H157: 0.5
A158: % of repairs - luminaires | C158: 0.15 | D158: 0.15 | E158: 0.15 | F158: 0.15 | G158: 0.15 | H158: 0.15
A159: % of repairs - other | C159: 0.1 | D159: 0.1 | E159: 0.1 | F159: 0.1 | G159: 0.1 | H159: 0.1
A161: Other Maintenance and Repair costs
A162: Traffic control costs | C162: 0 | D162: 0 | E162: 0 | F162: 0 | G162: 0 | H162: 0
A163: Other costs : Describe……………………………………. | C163: 0 | D163: 0 | E163: 0 | F163: 0 | G163: 0 | H163: 0
C164: =SUM(C162:C163) -> 0 | D164: =SUM(D162:D163) -> 0 | E164: =SUM(E162:E163) -> 0 | F164: =SUM(F162:F163) -> 0 | G164: =SUM(G162:G163) -> 0 | H164: =SUM(H162:H163) -> 0
A165: Number of Lights | C165: 26860.41 | D165: 22965.65055 | E165: 20669.08549 | F165: 18602.17695 | G165: 16741.95925 | H165: 15860.8035
A166: Unit Cost | C166: 0 | D166: 0 | E166: 0 | F166: 0 | G166: 0 | H166: 0
A168: Location of selected public lighting assets within distributors' areas (%)
A169: Urban | C169: 0.92 | D169: 0.92 | E169: 0.92 | F169: 0.92 | G169: 0.92 | H169: 0.92
A170: Rural | C170: 0.08 | D170: 0.08 | E170: 0.08 | F170: 0.08 | G170: 0.08 | H170: 0.08
A173: Inputs - Category P LED Standard Output
A175: Depreciation period | B175: years | D175: 20 | E175: 20 | F175: 20 | G175: 20 | H175: 20
A176: PE cells - bulk change | B176: years | D176: 8 | E176: 8 | F176: 8 | G176: 8 | H176: 8
A177: Proportion of luminaires that fail between bulk change | D177: 0.1197969911 | E177: 0.1197969911 | F177: 0.1197969911 | G177: 0.1197969911 | H177: 0.1197969911
A178: Unit cost - PE cell | D178: 18.63704005 | E178: 18.63704005 | F178: 18.63704005 | G178: 18.63704005 | H178: 18.63704005
A179: Unit cost - luminaire | D179: 205 | E179: 205 | F179: 205 | G179: 205 | H179: 205
A180: Unit cost - miscellaneous materials (repair) | D180: 11.93496959 | E180: 11.93496959 | F180: 11.93496959 | G180: 11.93496959 | H180: 11.93496959
A181: Number of men in crew | D181: 2 | E181: 2 | F181: 2 | G181: 2 | H181: 2
A182: Number of bulk PE cells changes in 1 day - urban | D182: 73.92 | E182: 73.92 | F182: 73.92 | G182: 73.92 | H182: 73.92
A183: Number of bulk PE cells changes in 1 day - rural | D183: 61 | E183: 61 | F183: 61 | G183: 61 | H183: 61
A184: Number of repairs in 1 day - urban | D184: 24.96 | E184: 24.96 | F184: 24.96 | G184: 24.96 | H184: 24.96
A185: Number of repairs in 1 day - rural | D185: 20 | E185: 20 | F185: 20 | G185: 20 | H185: 20
A186: % of repairs - PE cells | D186: 0.5 | E186: 0.5 | F186: 0.5 | G186: 0.5 | H186: 0.5
A187: % of repairs - luminaires | D187: 0.15 | E187: 0.15 | F187: 0.15 | G187: 0.15 | H187: 0.15
A188: % of repairs - other | D188: 0.1 | E188: 0.1 | F188: 0.1 | G188: 0.1 | H188: 0.1
A190: Other Maintenance and Repair costs
A191: Traffic control costs | D191: 0 | E191: 0 | F191: 0 | G191: 0 | H191: 0
A192: Other costs : Describe……………………………………. | D192: 0 | E192: 0 | F192: 0 | G192: 0 | H192: 0
C193: =SUM(C191:C192) -> 0 | D193: 0 | E193: =SUM(E191:E192) -> 0 | F193: =SUM(F191:F192) -> 0 | G193: =SUM(G191:G192) -> 0 | H193: =SUM(H191:H192) -> 0
A194: Number of Lights | D194: 58074.43651 | E194: 60658.11052 | F194: 63012.69845 | G194: 64755.68711 | H194: 65374.49883
A195: Unit Cost | D195: 0 | E195: 0 | F195: 0 | G195: 0 | H195: 0
A197: Location of selected public lighting assets within distributors' areas (%)
A198: Urban | D198: 0.92 | E198: 0.92 | F198: 0.92 | G198: 0.92 | H198: 0.92
A199: Rural | D199: 0.08 | E199: 0.08 | F199: 0.08 | G199: 0.08 | H199: 0.08
A202: Inputs - Category V LED
A204: Depreciation period | B204: years | D204: 20 | E204: 20 | F204: 20 | G204: 20 | H204: 20
A205: Number of patrols per year | D205: 3 | E205: 3 | F205: 3 | G205: 3 | H205: 3
A206: PE cells - frequency of replacement | B206: years | D206: 10 | E206: 10 | F206: 10 | G206: 10 | H206: 10
A207: Unit cost - PE cell | D207: 87.71 | E207: 87.71 | F207: 87.71 | G207: 87.71 | H207: 87.71
A208: Unit cost - luminaire | D208: 402 | E208: 402 | F208: 402 | G208: 402 | H208: 402 | L208: 565 | M208: 565 | N208: 565 | O208: 565 | P208: 565
A209: Number of men in crew - road patrols | D209: 2 | E209: 2 | F209: 2 | G209: 2 | H209: 2
A210: Number of men in crew - repairs | D210: 2 | E210: 2 | F210: 2 | G210: 2 | H210: 2
A211: Number of lamps patrolled in 1 day - urban | D211: 3000 | E211: 3000 | F211: 3000 | G211: 3000 | H211: 3000
A212: Number of lamps patrolled in 1 day - rural | D212: 2000 | E212: 2000 | F212: 2000 | G212: 2000 | H212: 2000
A213: Number of repairs in 1 day - urban | D213: 19 | E213: 19 | F213: 19 | G213: 19 | H213: 19
A214: Number of repairs in 1 day - rural | D214: 15 | E214: 15 | F214: 15 | G214: 15 | H214: 15
A216: Other Maintenance and Repair costs
A217: Traffic control costs | D217: 29376.91701 | E217: 33688.38592 | F217: 37697.4581 | G217: 40575.45014 | H217: 41515.04085
A218: Other costs : Describe……………………………………. | D218: 0 | E218: 0 | F218: 0 | G218: 0 | H218: 0
C219: =SUM(C217:C218) -> 0 | D219: 29376.91701 | E219: =SUM(E217:E218) -> 33688.38592 | F219: =SUM(F217:F218) -> 37697.4581 | G219: =SUM(G217:G218) -> 40575.45014 | H219: =SUM(H217:H218) -> 41515.04085
A220: Number of Lights | D220: 8951.752895 | E220: 10265.54645 | F220: 11487.19348 | G220: 12364.17706 | H220: 12650.48974
A221: Unit Cost | D221: =D217/D220 -> 3.281694363 | E221: =E217/E220 -> 3.281694363 | F221: 3.281694363 | G221: 3.281694363 | H221: 3.281694363
A223: Location of selected public lighting assets within distributors' areas (%)
A224: Urban | D224: 0.92 | E224: 0.92 | F224: 0.92 | G224: 0.92 | H224: 0.92
A225: Rural | D225: 0.08 | E225: 0.08 | F225: 0.08 | G225: 0.08 | H225: 0.08

Sheet DNSP Inputs Capex
A1: Public Lighting Cost Build-up Model
A3: ='DNSP Inputs O & M'!$A$3 -> United Energy | C3: Capex Data Inputs
C5: Real 2021 $
A7: Input parameters | C7: 2020 | D7: 2021/22 | E7: 2022/23 | F7: 2023/24 | G7: 2024/25 | H7: 2025/26
A9: Inputs - all lamps
A11: Material premium for rural areas | C11: ='DNSP Inputs O & M'!C11 -> 0.05 | D11: ='DNSP Inputs O & M'!D11 -> 0.05 | E11: ='DNSP Inputs O & M'!E11 -> 0.05 | F11: ='DNSP Inputs O & M'!F11 -> 0.05 | G11: ='DNSP Inputs O & M'!G11 -> 0.05 | H11: ='DNSP Inputs O & M'!H11 -> 0.05
A12: Labour rate (per hour) | C12: ='DNSP Inputs O & M'!C12 -> 99.00995838 | D12: ='DNSP Inputs O & M'!D12 -> 105.6069058 | E12: ='DNSP Inputs O & M'!E12 -> 106.1308104 | F12: ='DNSP Inputs O & M'!F12 -> 106.8219956 | G12: ='DNSP Inputs O & M'!G12 -> 107.8832337 | H12: ='DNSP Inputs O & M'!H12 -> 109.2938527
A13: Elevated platform vehicle (per hour) - urban MV,urban T5 | C13: ='DNSP Inputs O & M'!C14 -> 44.34821053 | D13: ='DNSP Inputs O & M'!D14 -> 44.69329858 | E13: ='DNSP Inputs O & M'!E14 -> 44.69329858 | F13: ='DNSP Inputs O & M'!F14 -> 44.69329858 | G13: ='DNSP Inputs O & M'!G14 -> 44.69329858 | H13: ='DNSP Inputs O & M'!H14 -> 44.69329858
A14: Elevated platform vehicle (per hour) - rural MV, rural T5, S-HP | C14: ='DNSP Inputs O & M'!C15 -> 44.34821053 | D14: ='DNSP Inputs O & M'!D15 -> 44.69329858 | E14: ='DNSP Inputs O & M'!E15 -> 44.69329858 | F14: ='DNSP Inputs O & M'!F15 -> 44.69329858 | G14: ='DNSP Inputs O & M'!G15 -> 44.69329858 | H14: ='DNSP Inputs O & M'!H15 -> 44.69329858
A15: Number of hours in a day | C15: ='DNSP Inputs O & M'!C19 -> 8 | D15: ='DNSP Inputs O & M'!D19 -> 8 | E15: ='DNSP Inputs O & M'!E19 -> 8 | F15: ='DNSP Inputs O & M'!F19 -> 8 | G15: ='DNSP Inputs O & M'!G19 -> 8 | H15: ='DNSP Inputs O & M'!H19 -> 8
A19: Inputs - MV80
A21: Unit cost - luminaire | C21: ='DNSP Inputs O & M'!C32 -> 187.7678592 | D21: ='DNSP Inputs O & M'!D32 -> 189.2289429 | E21: ='DNSP Inputs O & M'!E32 -> 189.2289429 | F21: ='DNSP Inputs O & M'!F32 -> 189.2289429 | G21: ='DNSP Inputs O & M'!G32 -> 189.2289429 | H21: ='DNSP Inputs O & M'!H32 -> 189.2289429
A22: Unit cost - miscellaneous materials (bulk lamp) | C22: ='DNSP Inputs O & M'!C33 -> 1.184281673 | D22: ='DNSP Inputs O & M'!D33 -> 1.193496959 | E22: ='DNSP Inputs O & M'!E33 -> 1.193496959 | F22: ='DNSP Inputs O & M'!F33 -> 1.193496959 | G22: ='DNSP Inputs O & M'!G33 -> 1.193496959 | H22: ='DNSP Inputs O & M'!H33 -> 1.193496959
A23: Number of men in crew | C23: 2 | D23: 2 | E23: 2 | F23: 2 | G23: 2 | H23: 2
A24: Number of luminaires replaced per day - urban | C24: 10 | D24: 0 | E24: 0 | F24: 0 | G24: 0 | H24: 0
A25: Number of luminaires replaced per day - rural | C25: 8 | D25: 0 | E25: 0 | F25: 0 | G25: 0 | H25: 0
A27: Other Capex unit costs Describe :……………………… | C27: 0 | D27: 0 | E27: 0 | F27: 0 | G27: 0 | H27: 0
A29: Forecast Quantities to be replaced
A30: Number of luminaires replaced per year - urban | C30: 1293.52 | D30: 0 | E30: 0 | F30: 0 | G30: 0 | H30: 0
A31: Number of luminaires replaced per year - rural | C31: 112.48 | D31: 0 | E31: 0 | F31: 0 | G31: 0 | H31: 0
A33: MV80 Lights replaced with T5 Energy Efficient Lights
A34: Number of Lights MV80 replaced with T5 per year | C34: 3000 | D34: 0 | E34: 0 | F34: 0 | G34: 0 | H34: 0
A36: MV80 Lights replaced with Cat P LED Energy Efficient Lights
A37: Number of Lights MV80 replaced with Cat P LED per year - urban | D37: 1.851496179 | E37: 0.9257480897 | F37: 0.4602617045 | G37: 0.2236816372 | H37: 0.1440052584
A38: Number of Lights MV80 replaced with Cat P LED per year - rural | D38: 0.1609996678 | E38: 0.08049983388 | F38: 0.04002275692 | G38: 0.01945057715 | H38: 0.01252219638
A40: MV80 Lights replaced with Cat P LED Energy Efficient Lights BY COUNCILS
A41: Number of Lights MV80 replaced with Cat P LED per year - urban | D41: =('DNSP Inputs General'!O$41+'DNSP Inputs General'!O$44+'DNSP Inputs General'!O$45+'DNSP Inputs General'!O$46+'DNSP Inputs General'!O$47+'DNSP Inputs General'!O$51-'DNSP Inputs General'!Q$41-'DNSP Inputs General'!Q$44-'DNSP Inputs General'!Q$45-'DNSP Inputs General'!Q$46-'DNSP Inputs General'!Q$47-'DNSP Inputs General'!Q$51)*'DNSP Inputs O & M'!D169-'DNSP Inputs Capex'!D37 -> 3941.642254 | E41: =('DNSP Inputs General'!Q$41+'DNSP Inputs General'!Q$44+'DNSP Inputs General'!Q$45+'DNSP Inputs General'!Q$46+'DNSP Inputs General'!Q$47+'DNSP Inputs General'!Q$51-'DNSP Inputs General'!R$41-'DNSP Inputs General'!R$44-'DNSP Inputs General'!R$45-'DNSP Inputs General'!R$46-'DNSP Inputs General'!R$47-'DNSP Inputs General'!R$51)*'DNSP Inputs O & M'!E169-'DNSP Inputs Capex'!E37 -> 39.82737691 | F41: =('DNSP Inputs General'!R$41+'DNSP Inputs General'!R$44+'DNSP Inputs General'!R$45+'DNSP Inputs General'!R$46+'DNSP Inputs General'!R$47+'DNSP Inputs General'!R$51-'DNSP Inputs General'!S$41-'DNSP Inputs General'!S$44-'DNSP Inputs General'!S$45-'DNSP Inputs General'!S$46-'DNSP Inputs General'!S$47-'DNSP Inputs General'!S$51)*'DNSP Inputs O & M'!F169-'DNSP Inputs Capex'!F37 -> 20.0313008 | G41: =('DNSP Inputs General'!S$41+'DNSP Inputs General'!S$44+'DNSP Inputs General'!S$45+'DNSP Inputs General'!S$46+'DNSP Inputs General'!S$47+'DNSP Inputs General'!S$51-'DNSP Inputs General'!T$41-'DNSP Inputs General'!T$44-'DNSP Inputs General'!T$45-'DNSP Inputs General'!T$46-'DNSP Inputs General'!T$47-'DNSP Inputs General'!T$51)*'DNSP Inputs O & M'!G169-'DNSP Inputs Capex'!G37 -> 10.19100586 | H41: =('DNSP Inputs General'!T$41+'DNSP Inputs General'!T$44+'DNSP Inputs General'!T$45+'DNSP Inputs General'!T$46+'DNSP Inputs General'!T$47+'DNSP Inputs General'!T$51-'DNSP Inputs General'!U$41-'DNSP Inputs General'!U$44-'DNSP Inputs General'!U$45-'DNSP Inputs General'!U$46-'DNSP Inputs General'!U$47-'DNSP Inputs General'!U$51)*'DNSP Inputs O & M'!H169-'DNSP Inputs Capex'!H37 -> 3.363494742
A42: Number of Lights MV80 replaced with Cat P LED per year - rural | D42: =('DNSP Inputs General'!O$41+'DNSP Inputs General'!O$44+'DNSP Inputs General'!O$45+'DNSP Inputs General'!O$46+'DNSP Inputs General'!O$47+'DNSP Inputs General'!O$51-'DNSP Inputs General'!Q$41-'DNSP Inputs General'!Q$44-'DNSP Inputs General'!Q$45-'DNSP Inputs General'!Q$46-'DNSP Inputs General'!Q$47-'DNSP Inputs General'!Q$51)*'DNSP Inputs O & M'!D170-'DNSP Inputs Capex'!D38 -> 342.7515003 | E42: =('DNSP Inputs General'!Q$41+'DNSP Inputs General'!Q$44+'DNSP Inputs General'!Q$45+'DNSP Inputs General'!Q$46+'DNSP Inputs General'!Q$47+'DNSP Inputs General'!Q$51-'DNSP Inputs General'!R$41-'DNSP Inputs General'!R$44-'DNSP Inputs General'!R$45-'DNSP Inputs General'!R$46-'DNSP Inputs General'!R$47-'DNSP Inputs General'!R$51)*'DNSP Inputs O & M'!E170-'DNSP Inputs Capex'!E38 -> 3.463250166 | F42: =('DNSP Inputs General'!R$41+'DNSP Inputs General'!R$44+'DNSP Inputs General'!R$45+'DNSP Inputs General'!R$46+'DNSP Inputs General'!R$47+'DNSP Inputs General'!R$51-'DNSP Inputs General'!S$41-'DNSP Inputs General'!S$44-'DNSP Inputs General'!S$45-'DNSP Inputs General'!S$46-'DNSP Inputs General'!S$47-'DNSP Inputs General'!S$51)*'DNSP Inputs O & M'!F170-'DNSP Inputs Capex'!F38 -> 1.741852243 | G42: =('DNSP Inputs General'!S$41+'DNSP Inputs General'!S$44+'DNSP Inputs General'!S$45+'DNSP Inputs General'!S$46+'DNSP Inputs General'!S$47+'DNSP Inputs General'!S$51-'DNSP Inputs General'!T$41-'DNSP Inputs General'!T$44-'DNSP Inputs General'!T$45-'DNSP Inputs General'!T$46-'DNSP Inputs General'!T$47-'DNSP Inputs General'!T$51)*'DNSP Inputs O & M'!G170-'DNSP Inputs Capex'!G38 -> 0.8861744229 | H42: =('DNSP Inputs General'!T$41+'DNSP Inputs General'!T$44+'DNSP Inputs General'!T$45+'DNSP Inputs General'!T$46+'DNSP Inputs General'!T$47+'DNSP Inputs General'!T$51-'DNSP Inputs General'!U$41-'DNSP Inputs General'!U$44-'DNSP Inputs General'!U$45-'DNSP Inputs General'!U$46-'DNSP Inputs General'!U$47-'DNSP Inputs General'!U$51)*'DNSP Inputs O & M'!H170-'DNSP Inputs Capex'!H38 -> 0.2924778036
A44: Inputs - S-HP150
A46: Unit cost - luminaire | C46: 222.2186131 | D46: =C46 -> 222.2186131 | E46: =D46 -> 222.2186131 | F46: 222.2186131 | G46: 222.2186131 | H46: 222.2186131
A47: Unit cost - miscellaneous materials | C47: 2.369919217 | D47: ='DNSP Inputs O & M'!D66 -> 2.38836034 | E47: ='DNSP Inputs O & M'!E66 -> 2.38836034 | F47: ='DNSP Inputs O & M'!F66 -> 2.38836034 | G47: ='DNSP Inputs O & M'!G66 -> 2.38836034 | H47: ='DNSP Inputs O & M'!H66 -> 2.38836034
A48: Number of men in crew | C48: 2 | D48: 2 | E48: 2 | F48: 2 | G48: 2 | H48: 2
A49: Number of luminaires replaced per day - urban | C49: 10 | D49: 0 | E49: 0 | F49: 0 | G49: 0 | H49: 0
A50: Number of luminaires replaced per day - rural | C50: 8 | D50: 0 | E50: 0 | F50: 0 | G50: 0 | H50: 0
A52: Other Capex unit costs Describe :……………………… | C52: 167.8692778 | D52: 0 | E52: 0 | F52: 0 | G52: 0 | H52: 0
A54: Forecast Quantities to be replaced
A55: Number of luminaires replaced per year - urban | C55: 744.648 | D55: 0 | E55: 0 | F55: 0 | G55: 0 | H55: 0
A56: Number of luminaires replaced per year - rural | C56: 64.752 | D56: 0 | E56: 0 | F56: 0 | G56: 0 | H56: 0
A58: HPS150 Lights replaced with Cat V LED Energy Efficient Lights
A59: Number of Lights HPS150 replaced with Cat V LED per year - urban | D59: 343.6598103 | E59: 325.6273524 | F59: 308.9211316 | G59: 293.2619975 | H59: 285.6676141
A60: Number of Lights HPS150 replaced with Cat V LED per year - rural | D60: 29.88346177 | E60: 28.31542195 | F60: 26.86270709 | G60: 25.50104326 | H60: 24.84066209
A62: Inputs - S-HP250
A64: Unit cost - luminaire | C64: 225.5346018 | D64: =C64 -> 225.5346018 | E64: =D64 -> 225.5346018 | F64: 225.5346018 | G64: 225.5346018 | H64: 225.5346018
A65: Unit cost - miscellaneous materials | C65: 2.369919217 | D65: ='DNSP Inputs O & M'!D95 -> 2.38836034 | E65: ='DNSP Inputs O & M'!E95 -> 2.38836034 | F65: ='DNSP Inputs O & M'!F95 -> 2.38836034 | G65: ='DNSP Inputs O & M'!G95 -> 2.38836034 | H65: ='DNSP Inputs O & M'!H95 -> 2.38836034
A66: Number of men in crew | C66: 2 | D66: ='DNSP Inputs O & M'!D97 -> 2 | E66: ='DNSP Inputs O & M'!E97 -> 2 | F66: ='DNSP Inputs O & M'!F97 -> 2 | G66: ='DNSP Inputs O & M'!G97 -> 2 | H66: ='DNSP Inputs O & M'!H97 -> 2
A67: Number of luminaires replaced per day - urban | C67: 10 | D67: 0 | E67: 0 | F67: 0 | G67: 0 | H67: 0
A68: Number of luminaires replaced per day - rural | C68: 8 | D68: 0 | E68: 0 | F68: 0 | G68: 0 | H68: 0
A70: Other Capex unit costs Describe :……………………… | C70: 167.8692778 | D70: 0 | E70: 0 | F70: 0 | G70: 0 | H70: 0
A72: Forecast Quantities to be replaced
A73: Number of luminaires replaced per year - urban | C73: 304.152 | D73: 0 | E73: 0 | F73: 0 | G73: 0 | H73: 0
A74: Number of luminaires replaced per year - rural | C74: 26.448 | D74: 0 | E74: 0 | F74: 0 | G74: 0 | H74: 0
A76: HPS150 Lights replaced with Cat V LED Energy Efficient Lights
A77: Number of Lights HPS150 replaced with Cat V LED per year - urban | D77: 133.8115832 | E77: 126.6792797 | F77: 120.1271905 | G77: 114.0117683 | H77: 111.0511033
A78: Number of Lights HPS150 replaced with Cat V LED per year - rural | D78: 11.63578984 | E78: 11.01558954 | F78: 10.44584265 | G78: 9.914066813 | H78: 9.656617679
A80: Dedicated street lighting poles
A82: Cost of pole & bracket | C82: 1042.325581 | D82: 2589.131491 | E82: 2589.131491 | F82: 2589.131491 | G82: 2589.131491 | H82: 2589.131491
A83: Number of poles & brackets replaced per day | C83: 4 | D83: 3.84 | E83: 3.84 | F83: 3.84 | G83: 3.84 | H83: 3.84
A84: Cost of bracket on non-dedicated poles | C84: 554.0783354 | D84: 52.91420603 | E84: 52.91420603 | F84: 52.91420603 | G84: 52.91420603 | H84: 52.91420603
A85: Number of brackets replaced per day | C85: 15 | D85: 15 | E85: 15 | F85: 15 | G85: 15 | H85: 15
A87: Other poles & brackets Capex unit costs Describe :………………… | C87: 521.1627907 | D87: 0 | E87: 0 | F87: 0 | G87: 0 | H87: 0
A88: Other poles & brackets Capex - reinforecements and unearthed conductive poles | D88: 808231.8 | E88: 808231.8 | F88: 808231.8 | G88: 808231.8 | H88: 808231.8
A90: Forecast Quantities to be replaced
A91: Number of poles & brackets replaced per year - urban | C91: 360.08 | D91: 224.8145455 | E91: 224.8145455 | F91: 224.8145455 | G91: 224.8145455 | H91: 224.8145455
A92: Number of poles & brackets replaced per year - rural | C92: 32.92 | D92: 43.98545455 | E92: 43.98545455 | F92: 43.98545455 | G92: 43.98545455 | H92: 43.98545455
A94: Brackets on non-dedicated poles :
A95: Number of brackets replaced per year - urban | C95: 500.1159992 | D95: 312.2454761 | E95: 312.2454761 | F95: 312.2454761 | G95: 312.2454761 | H95: 312.2454761
A96: Number of brackets replaced per year - rural | C96: 43.48834776 | D96: 58.10615867 | E96: 58.10615867 | F96: 58.10615867 | G96: 58.10615867 | H96: 58.10615867
A98: Luminaire Replacements - Other Light types (excluding T5s)
A99: Number of luminaires replaced per year | C99: 0 | D99: 0 | E99: 0 | F99: 0 | G99: 0 | H99: 0
A100: Forecast Capex | C100: 55629.78686 | D100: 0 | E100: 0 | F100: 0 | G100: 0 | H100: 0
A103: Inputs - T5 (2 X 14W)
A105: Unit cost - luminaire | C105: ='DNSP Inputs O & M'!C148 -> 228.5663629 | D105: ='DNSP Inputs O & M'!D148 -> 205 | E105: ='DNSP Inputs O & M'!E148 -> 205 | F105: ='DNSP Inputs O & M'!F148 -> 205 | G105: ='DNSP Inputs O & M'!G148 -> 205 | H105: ='DNSP Inputs O & M'!H148 -> 205
A106: Unit cost - miscellaneous materials (bulk lamp) | C106: ='DNSP Inputs O & M'!C149 -> 1.184281673 | D106: ='DNSP Inputs O & M'!D149 -> 1.193496959 | E106: ='DNSP Inputs O & M'!E149 -> 1.193496959 | F106: ='DNSP Inputs O & M'!F149 -> 1.193496959 | G106: ='DNSP Inputs O & M'!G149 -> 1.193496959 | H106: ='DNSP Inputs O & M'!H149 -> 1.193496959
A107: Number of men in crew | C107: 2 | D107: 2 | E107: 2 | F107: 2 | G107: 2 | H107: 2
A108: Number of luminaires replaced per day - urban | C108: 0 | D108: 0 | E108: 0 | F108: 0 | G108: 0 | H108: 0
A109: Number of luminaires replaced per day - rural | C109: 0 | D109: 0 | E109: 0 | F109: 0 | G109: 0 | H109: 0
A111: Other Capex unit costs Describe :……………………… | C111: 0 | D111: 0 | E111: 0 | F111: 0 | G111: 0 | H111: 0
A113: Forecast Quantities to be replaced
A114: Number of luminaires replaced per year - urban | C114: 0 | D114: 0 | E114: 0 | F114: 0 | G114: 0 | H114: 0
A115: Number of luminaires replaced per year - rural | C115: 0 | D115: 0 | E115: 0 | F115: 0 | G115: 0 | H115: 0
A117: T5 Lights replaced with Cat P LED Energy Efficient Lights
A118: Number of Lights T5 replaced with Cat P LED per year - urban | D118: 438.0335101 | E118: 394.2301591 | F118: 354.8071432 | G118: 319.3264289 | H118: 302.5197747
A119: Number of Lights T5 replaced with Cat P LED per year - rural | D119: 38.08987045 | E119: 34.2808834 | F119: 30.85279506 | G119: 27.76751556 | H119: 26.30606737
A122: Inputs - Category P LED
A124: Unit cost - luminaire | C124: ='DNSP Inputs O & M'!C179 -> 0 | D124: ='DNSP Inputs O & M'!D179 -> 205 | E124: ='DNSP Inputs O & M'!E179 -> 205 | F124: ='DNSP Inputs O & M'!F179 -> 205 | G124: ='DNSP Inputs O & M'!G179 -> 205 | H124: ='DNSP Inputs O & M'!H179 -> 205
A125: Number of men in crew | C125: 2 | D125: 2 | E125: 2 | F125: 2 | G125: 2 | H125: 2
A126: Number of luminaires replaced per day - urban | D126: 10 | E126: 10 | F126: 10 | G126: 10 | H126: 10
A127: Number of luminaires replaced per day - rural | D127: 8 | E127: 8 | F127: 8 | G127: 8 | H127: 8
A129: Other Capex unit costs Describe :……………………… | D129: 0 | E129: 0 | F129: 0 | G129: 0 | H129: 0
A131: Forecast Quantities to be replaced
A132: Number of luminaires replaced per year - urban | D132: 615.5482263 | E132: 642.9333556 | F132: 667.8903334 | G132: 686.3647887 | H132: 692.9237582
A133: Number of luminaires replaced per year - rural | D133: 53.52593272 | E133: 55.90724832 | F133: 58.0774203 | G133: 59.68389467 | H133: 60.25423985
A135: Forecast Quantities to replace other light types
A136: Number of luminaires replaced per year - urban | D136: 603.751805 | E136: 603.751805 | F136: 603.751805 | G136: 603.751805 | H136: 603.751805
A137: Number of luminaires replaced per year - rural | D137: 52.50015695 | E137: 52.50015695 | F137: 52.50015695 | G137: 52.50015695 | H137: 52.50015695
A139: Inputs - Category V LED
A141: Unit cost - luminaire | C141: ='DNSP Inputs O & M'!C208 -> 0 | D141: ='DNSP Inputs O & M'!D208 -> 402 | E141: ='DNSP Inputs O & M'!E208 -> 402 | F141: ='DNSP Inputs O & M'!F208 -> 402 | G141: ='DNSP Inputs O & M'!G208 -> 402 | H141: ='DNSP Inputs O & M'!H208 -> 402
A142: Number of men in crew | C142: 2 | D142: 2 | E142: 2 | F142: 2 | G142: 2 | H142: 2
A143: Number of luminaires replaced per day - urban | D143: 10 | E143: 10 | F143: 10 | G143: 10 | H143: 10
A144: Number of luminaires replaced per day - rural | D144: 8 | E144: 8 | F144: 8 | G144: 8 | H144: 8
A146: Other Capex unit costs Describe :……………………… | D146: 0 | E146: 0 | F146: 0 | G146: 0 | H146: 0
A148: Forecast Quantities to be replaced
A149: Number of luminaires replaced per year - urban | D149: 101.39726 | E149: 116.2787104 | F149: 130.1164094 | G149: 140.0500763 | H149: 143.2931641
A150: Number of luminaires replaced per year - rural | D150: 8.817153045 | E150: 10.11119221 | F150: 11.31447038 | G150: 12.1782675 | H150: 12.46027514
A152: Forecast Quantities to replace other light types
A153: Number of luminaires replaced per year - urban | D153: 520.0430285 | E153: 520.0430285 | F153: 520.0430285 | G153: 520.0430285 | H153: 520.0430285
A154: Number of luminaires replaced per year - rural | D154: 45.22113291 | E154: 45.22113291 | F154: 45.22113291 | G154: 45.22113291 | H154: 45.22113291
A157: New lights total
A158: Cat P | C158: =C136+C137 -> 0 | D158: =D136+D137 -> 656.2519619 | E158: 656.2519619 | F158: 656.2519619 | G158: 656.2519619 | H158: 656.2519619
A159: Cat V | C159: =C154+C153 -> 0 | D159: =D154+D153 -> 565.2641614 | E159: 565.2641614 | F159: 565.2641614 | G159: 565.2641614 | H159: 565.2641614
A162: Total replacements
A163: Urban | C163: =C37+C59+C77+C118+C132+C149 -> 0 | D163: 1634.301886 | E163: 1606.674605 | F163: 1582.32247 | G163: 1553.238741 | H163: 1535.59942
A164: Rural | C164: 0 | D164: 142.1132075 | E164: 139.7108353 | F164: 137.5932582 | G164: 135.0642384 | H164: 133.5303843

Sheet PL Tariffs
A1: ='DNSP Inputs O & M'!$A$3 -> United Energy | E1: Global Check | F1: =IF(SUM('Total RAB'!F1,'Depn & WACC Post 2004'!F1,'Cashflow Summary'!F1)<1,"Ok","Error") -> Ok
V2: Average
A3: Public Lighting Tariffs (unsmoothed) | C3: Nominal Prices | J3: Nominal Price Movement | P3: Real Price Movement (Implied X Factor) | V3: Nubmer | W3: % of | Y3: Draft Decision | AE3: Difference
C4: Actual | V4: of Lights | W4: Total Lights
A5: ='DNSP Inputs General'!A$40 -> Existing Lights | C5: 1H2021 | D5: ='DNSP Inputs General'!Q$2 -> 2021/22 | E5: ='DNSP Inputs General'!R$2 -> 2022/23 | F5: ='DNSP Inputs General'!S$2 -> 2023/24 | G5: ='DNSP Inputs General'!T$2 -> 2024/25 | H5: ='DNSP Inputs General'!U$2 -> 2025/26 | J5: =D5 -> 2021/22 | K5: =E5 -> 2022/23 | L5: =F5 -> 2023/24 | M5: =G5 -> 2024/25 | N5: =H5 -> 2025/26 | P5: =J5 -> 2021/22 | Q5: =K5 -> 2022/23 | R5: 2023/24 | S5: 2024/25 | T5: 2025/26 | V5: 2022-26 | W5: 2022-26 | Y5: 2021/22 | Z5: 2022/23 | AA5: 2023/24 | AB5: 2024/25 | AC5: 2025/26 | AE5: =Y5 -> 2021/22 | AF5: =Z5 -> 2022/23 | AG5: 2023/24 | AH5: 2024/25 | AI5: 2025/26
A6: ='DNSP Inputs General'!A41 -> Mercury Vapour 80 watt | C6: =IF('DNSP Inputs General'!E41="","",'DNSP Inputs General'!E41) -> 62.71 | D6: ='Charges Summary'!D$31 -> 95.25729964 | E6: ='Charges Summary'!E$31 -> 91.77144507 | F6: ='Charges Summary'!F$31 -> 83.16046647 | G6: ='Charges Summary'!G$31 -> 85.89234222 | H6: ='Charges Summary'!H$31 -> 87.75290075 | J6: =IF(C6="","",D6/C6-1) -> 0.5190129108 | K6: =IF(D6="","",E6/D6-1) -> -0.03659409393 | L6: -0.09383069641 | M6: 0.0328506545 | N6: 0.02166151813 | P6: =IF(C6="","",(D6/'Charges Summary'!D$4)/(C6/'Charges Summary'!C$4)-1) -> 0.4837833148 | Q6: =IF(D6="","",(E6/'Charges Summary'!E$4)/(D6/'Charges Summary'!D$4)-1) -> -0.05893781507 | R6: =IF(E6="","",(F6/'Charges Summary'!F$4)/(E6/'Charges Summary'!E$4)-1) -> -0.1148469618 | S6: =IF(F6="","",(G6/'Charges Summary'!G$4)/(F6/'Charges Summary'!F$4)-1) -> 0.008896341113 | T6: =IF(G6="","",(H6/'Charges Summary'!H$4)/(G6/'Charges Summary'!G$4)-1) -> -0.002033292033 | V6: =SUM('DNSP Inputs General'!Q41:U41)/5 -> 0 | W6: =V6/V$41 -> 0 | Y6: 95.25729964 | Z6: 91.62891351 | AA6: 82.8715756 | AB6: 85.46712993 | AC6: 87.2459428 | AE6: =D6-Y6 -> 0 | AF6: 0.1425315589 | AG6: 0.288890867 | AH6: 0.425212291 | AI6: 0.5069579466
A7: ='DNSP Inputs General'!A42 -> Sodium High Pressure 150 watt | C7: =IF('DNSP Inputs General'!E42="","",'DNSP Inputs General'!E42) -> 81.22 | D7: ='Charges Summary'!D$55 -> 131.6372472 | E7: ='Charges Summary'!E$55 -> 129.2887083 | F7: ='Charges Summary'!F$55 -> 128.8654524 | G7: ='Charges Summary'!G$55 -> 132.8954156 | H7: ='Charges Summary'!H$55 -> 135.9823329 | J7: =IF(C7="","",D7/C7-1) -> 0.6207491648 | K7: -0.01784099066 | L7: -0.003273726349 | M7: 0.03127264189 | N7: 0.02322817032 | P7: =IF(C7="","",(D7/'Charges Summary'!D$4)/(C7/'Charges Summary'!C$4)-1) -> 0.5831600581 | Q7: =IF(D7="","",(E7/'Charges Summary'!E$4)/(D7/'Charges Summary'!D$4)-1) -> -0.04061964177 | R7: =IF(E7="","",(F7/'Charges Summary'!F$4)/(E7/'Charges Summary'!E$4)-1) -> -0.02639022767 | S7: =IF(F7="","",(G7/'Charges Summary'!G$4)/(F7/'Charges Summary'!F$4)-1) -> 0.007354926443 | T7: =IF(G7="","",(H7/'Charges Summary'!H$4)/(G7/'Charges Summary'!G$4)-1) -> -0.000502974304 | V7: =SUM('DNSP Inputs General'!Q42:U42)/5 -> 18274.424 | W7: =V7/V$41 -> 0.1468409971 | Y7: 131.6372472 | Z7: 128.9926709 | AA7: 128.2662481 | AB7: 132.014733 | AC7: 134.9342996 | AE7: 0 | AF7: 0.2960373211 | AG7: 0.5992043358 | AH7: 0.8806826088 | AI7: 1.048033314
A8: ='DNSP Inputs General'!A43 -> Sodium High Pressure 250 watt | C8: =IF('DNSP Inputs General'!E43="","",'DNSP Inputs General'!E43) -> 83.06 | D8: ='Charges Summary'!D$78 -> 134.3980788 | E8: ='Charges Summary'!E$78 -> 131.7811357 | F8: ='Charges Summary'!F$78 -> 129.6661412 | G8: ='Charges Summary'!G$78 -> 133.7107075 | H8: ='Charges Summary'!H$78 -> 136.7947316 | J8: 0.618084262 | K8: -0.01947158107 | L8: -0.01604929658 | M8: 0.03119215417 | N8: 0.02306490022 | P8: =IF(C8="","",(D8/'Charges Summary'!D$4)/(C8/'Charges Summary'!C$4)-1) -> 0.5805569609 | Q8: =IF(D8="","",(E8/'Charges Summary'!E$4)/(D8/'Charges Summary'!D$4)-1) -> -0.04221241483 | R8: =IF(E8="","",(F8/'Charges Summary'!F$4)/(E8/'Charges Summary'!E$4)-1) -> -0.03886950143 | S8: =IF(F8="","",(G8/'Charges Summary'!G$4)/(F8/'Charges Summary'!F$4)-1) -> 0.007276305428 | T8: =IF(G8="","",(H8/'Charges Summary'!H$4)/(G8/'Charges Summary'!G$4)-1) -> -0.00066245778 | V8: =SUM('DNSP Inputs General'!Q43:U43)/5 -> 7859.035805 | W8: 0.06314993312 | Y8: 134.3980788 | Z8: 131.4850984 | AA8: 129.0669369 | AB8: 132.8300248 | AC8: 135.7466983 | AE8: 0 | AF8: 0.2960373211 | AG8: 0.5992043358 | AH8: 0.8806826088 | AI8: 1.048033314
A9: ='DNSP Inputs General'!A44 -> Fluorescent 2x20 watt | C9: =IF('DNSP Inputs General'!E44="","",'DNSP Inputs General'!E44) -> 80.89 | D9: =IF(SUM('DNSP Inputs General'!$O44:$U44)=0,"",IF('DNSP Inputs General'!$B44='DNSP Inputs General'!$A$41,D$6,IF('DNSP Inputs General'!$B44='DNSP Inputs General'!$A$42,D$7,D$8))*'DNSP Inputs General'!$D44) -> 122.8819165 | E9: =IF(SUM('DNSP Inputs General'!$O44:$U44)=0,"",IF('DNSP Inputs General'!$B44='DNSP Inputs General'!$A$41,E$6,IF('DNSP Inputs General'!$B44='DNSP Inputs General'!$A$42,E$7,E$8))*'DNSP Inputs General'!$D44) -> 118.3851641 | F9: =IF(SUM('DNSP Inputs General'!$O44:$U44)=0,"",IF('DNSP Inputs General'!$B44='DNSP Inputs General'!$A$41,F$6,IF('DNSP Inputs General'!$B44='DNSP Inputs General'!$A$42,F$7,F$8))*'DNSP Inputs General'!$D44) -> 107.2770017 | G9: =IF(SUM('DNSP Inputs General'!$O44:$U44)=0,"",IF('DNSP Inputs General'!$B44='DNSP Inputs General'!$A$41,G$6,IF('DNSP Inputs General'!$B44='DNSP Inputs General'!$A$42,G$7,G$8))*'DNSP Inputs General'!$D44) -> 110.8011215 | H9: =IF(SUM('DNSP Inputs General'!$O44:$U44)=0,"",IF('DNSP Inputs General'!$B44='DNSP Inputs General'!$A$41,H$6,IF('DNSP Inputs General'!$B44='DNSP Inputs General'!$A$42,H$7,H$8))*'DNSP Inputs General'!$D44) -> 113.201242 | J9: 0.5191237055 | K9: -0.03659409393 | L9: -0.09383069641 | M9: 0.0328506545 | N9: 0.02166151813 | P9: =IF(C9="","",(D9/'Charges Summary'!D$4)/(C9/'Charges Summary'!C$4)-1) -> 0.4838915398 | Q9: =IF(D9="","",(E9/'Charges Summary'!E$4)/(D9/'Charges Summary'!D$4)-1) -> -0.05893781507 | R9: =IF(E9="","",(F9/'Charges Summary'!F$4)/(E9/'Charges Summary'!E$4)-1) -> -0.1148469618 | S9: =IF(F9="","",(G9/'Charges Summary'!G$4)/(F9/'Charges Summary'!F$4)-1) -> 0.008896341113 | T9: =IF(G9="","",(H9/'Charges Summary'!H$4)/(G9/'Charges Summary'!G$4)-1) -> -0.002033292033 | V9: =SUM('DNSP Inputs General'!Q44:U44)/5 -> 1.615625 | W9: =V9/V$41 -> 1.298207735e-05 | Y9: 122.8819165 | Z9: 118.2012984 | AA9: 106.9043325 | AB9: 110.2525976 | AC9: 112.5472662 | AE9: =D9-Y9 -> 0 | AF9: =E9-Z9 -> 0.183865711 | AG9: =F9-AA9 -> 0.3726692185 | AH9: =G9-AB9 -> 0.5485238554 | AI9: =H9-AC9 -> 0.6539757511
A10: ='DNSP Inputs General'!A45 -> Fluorescent 3x20 watt | C10: =IF('DNSP Inputs General'!E45="","",'DNSP Inputs General'!E45) -> 80.89 | D10: =IF(SUM('DNSP Inputs General'!$O45:$U45)=0,"",IF('DNSP Inputs General'!$B45='DNSP Inputs General'!$A$41,D$6,IF('DNSP Inputs General'!$B45='DNSP Inputs General'!$A$42,D$7,D$8))*'DNSP Inputs General'!$D45) -> 122.8819165 | E10: =IF(SUM('DNSP Inputs General'!$O45:$U45)=0,"",IF('DNSP Inputs General'!$B45='DNSP Inputs General'!$A$41,E$6,IF('DNSP Inputs General'!$B45='DNSP Inputs General'!$A$42,E$7,E$8))*'DNSP Inputs General'!$D45) -> 118.3851641 | F10: =IF(SUM('DNSP Inputs General'!$O45:$U45)=0,"",IF('DNSP Inputs General'!$B45='DNSP Inputs General'!$A$41,F$6,IF('DNSP Inputs General'!$B45='DNSP Inputs General'!$A$42,F$7,F$8))*'DNSP Inputs General'!$D45) -> 107.2770017 | G10: =IF(SUM('DNSP Inputs General'!$O45:$U45)=0,"",IF('DNSP Inputs General'!$B45='DNSP Inputs General'!$A$41,G$6,IF('DNSP Inputs General'!$B45='DNSP Inputs General'!$A$42,G$7,G$8))*'DNSP Inputs General'!$D45) -> 110.8011215 | H10: =IF(SUM('DNSP Inputs General'!$O45:$U45)=0,"",IF('DNSP Inputs General'!$B45='DNSP Inputs General'!$A$41,H$6,IF('DNSP Inputs General'!$B45='DNSP Inputs General'!$A$42,H$7,H$8))*'DNSP Inputs General'!$D45) -> 113.201242 | J10: 0.5191237055 | K10: -0.03659409393 | L10: -0.09383069641 | M10: 0.0328506545 | N10: 0.02166151813 | P10: =IF(C10="","",(D10/'Charges Summary'!D$4)/(C10/'Charges Summary'!C$4)-1) -> 0.4838915398 | Q10: =IF(D10="","",(E10/'Charges Summary'!E$4)/(D10/'Charges Summary'!D$4)-1) -> -0.05893781507 | R10: =IF(E10="","",(F10/'Charges Summary'!F$4)/(E10/'Charges Summary'!E$4)-1) -> -0.1148469618 | S10: =IF(F10="","",(G10/'Charges Summary'!G$4)/(F10/'Charges Summary'!F$4)-1) -> 0.008896341113 | T10: =IF(G10="","",(H10/'Charges Summary'!H$4)/(G10/'Charges Summary'!G$4)-1) -> -0.002033292033 | V10: =SUM('DNSP Inputs General'!Q45:U45)/5 -> 0 | W10: 0 | Y10: 122.8819165 | Z10: 118.2012984 | AA10: 106.9043325 | AB10: 110.2525976 | AC10: 112.5472662 | AE10: 0 | AF10: 0.183865711 | AG10: 0.3726692185 | AH10: 0.5485238554 | AI10: 0.6539757511
A11: ='DNSP Inputs General'!A46 -> Mercury Vapour 50 watt | C11: =IF('DNSP Inputs General'!E46="","",'DNSP Inputs General'!E46) -> 92.81 | D11: =IF(SUM('DNSP Inputs General'!$O46:$U46)=0,"",IF('DNSP Inputs General'!$B46='DNSP Inputs General'!$A$41,D$6,IF('DNSP Inputs General'!$B46='DNSP Inputs General'!$A$42,D$7,D$8))*'DNSP Inputs General'!$D46) -> 140.9808035 | E11: =IF(SUM('DNSP Inputs General'!$O46:$U46)=0,"",IF('DNSP Inputs General'!$B46='DNSP Inputs General'!$A$41,E$6,IF('DNSP Inputs General'!$B46='DNSP Inputs General'!$A$42,E$7,E$8))*'DNSP Inputs General'!$D46) -> 135.8217387 | F11: =IF(SUM('DNSP Inputs General'!$O46:$U46)=0,"",IF('DNSP Inputs General'!$B46='DNSP Inputs General'!$A$41,F$6,IF('DNSP Inputs General'!$B46='DNSP Inputs General'!$A$42,F$7,F$8))*'DNSP Inputs General'!$D46) -> 123.0774904 | G11: =IF(SUM('DNSP Inputs General'!$O46:$U46)=0,"",IF('DNSP Inputs General'!$B46='DNSP Inputs General'!$A$41,G$6,IF('DNSP Inputs General'!$B46='DNSP Inputs General'!$A$42,G$7,G$8))*'DNSP Inputs General'!$D46) -> 127.1206665 | H11: =IF(SUM('DNSP Inputs General'!$O46:$U46)=0,"",IF('DNSP Inputs General'!$B46='DNSP Inputs General'!$A$41,H$6,IF('DNSP Inputs General'!$B46='DNSP Inputs General'!$A$42,H$7,H$8))*'DNSP Inputs General'!$D46) -> 129.8742931 | J11: 0.5190260044 | K11: -0.03659409393 | L11: -0.09383069641 | M11: 0.0328506545 | N11: 0.02166151813 | P11: =IF(C11="","",(D11/'Charges Summary'!D$4)/(C11/'Charges Summary'!C$4)-1) -> 0.4837961047 | Q11: =IF(D11="","",(E11/'Charges Summary'!E$4)/(D11/'Charges Summary'!D$4)-1) -> -0.05893781507 | R11: =IF(E11="","",(F11/'Charges Summary'!F$4)/(E11/'Charges Summary'!E$4)-1) -> -0.1148469618 | S11: =IF(F11="","",(G11/'Charges Summary'!G$4)/(F11/'Charges Summary'!F$4)-1) -> 0.008896341113 | T11: =IF(G11="","",(H11/'Charges Summary'!H$4)/(G11/'Charges Summary'!G$4)-1) -> -0.002033292033 | V11: =SUM('DNSP Inputs General'!Q46:U46)/5 -> 0.5 | W11: 4.017664169e-06 | Y11: 140.9808035 | Z11: 135.610792 | AA11: 122.6499319 | AB11: 126.4913523 | AC11: 129.1239953 | AE11: 0 | AF11: 0.2109467072 | AG11: 0.4275584832 | AH11: 0.6293141907 | AI11: 0.7502977609
A12: ='DNSP Inputs General'!A47 -> Mercury Vapour 125 watt | C12: =IF('DNSP Inputs General'!E47="","",'DNSP Inputs General'!E47) -> 92.81 | D12: =IF(SUM('DNSP Inputs General'!$O47:$U47)=0,"",IF('DNSP Inputs General'!$B47='DNSP Inputs General'!$A$41,D$6,IF('DNSP Inputs General'!$B47='DNSP Inputs General'!$A$42,D$7,D$8))*'DNSP Inputs General'!$D47) -> 140.9808035 | E12: =IF(SUM('DNSP Inputs General'!$O47:$U47)=0,"",IF('DNSP Inputs General'!$B47='DNSP Inputs General'!$A$41,E$6,IF('DNSP Inputs General'!$B47='DNSP Inputs General'!$A$42,E$7,E$8))*'DNSP Inputs General'!$D47) -> 135.8217387 | F12: =IF(SUM('DNSP Inputs General'!$O47:$U47)=0,"",IF('DNSP Inputs General'!$B47='DNSP Inputs General'!$A$41,F$6,IF('DNSP Inputs General'!$B47='DNSP Inputs General'!$A$42,F$7,F$8))*'DNSP Inputs General'!$D47) -> 123.0774904 | G12: =IF(SUM('DNSP Inputs General'!$O47:$U47)=0,"",IF('DNSP Inputs General'!$B47='DNSP Inputs General'!$A$41,G$6,IF('DNSP Inputs General'!$B47='DNSP Inputs General'!$A$42,G$7,G$8))*'DNSP Inputs General'!$D47) -> 127.1206665 | H12: =IF(SUM('DNSP Inputs General'!$O47:$U47)=0,"",IF('DNSP Inputs General'!$B47='DNSP Inputs General'!$A$41,H$6,IF('DNSP Inputs General'!$B47='DNSP Inputs General'!$A$42,H$7,H$8))*'DNSP Inputs General'!$D47) -> 129.8742931 | J12: 0.5190260044 | K12: -0.03659409393 | L12: -0.09383069641 | M12: 0.0328506545 | N12: 0.02166151813 | P12: =IF(C12="","",(D12/'Charges Summary'!D$4)/(C12/'Charges Summary'!C$4)-1) -> 0.4837961047 | Q12: =IF(D12="","",(E12/'Charges Summary'!E$4)/(D12/'Charges Summary'!D$4)-1) -> -0.05893781507 | R12: =IF(E12="","",(F12/'Charges Summary'!F$4)/(E12/'Charges Summary'!E$4)-1) -> -0.1148469618 | S12: =IF(F12="","",(G12/'Charges Summary'!G$4)/(F12/'Charges Summary'!F$4)-1) -> 0.008896341113 | T12: =IF(G12="","",(H12/'Charges Summary'!H$4)/(G12/'Charges Summary'!G$4)-1) -> -0.002033292033 | V12: =SUM('DNSP Inputs General'!Q47:U47)/5 -> 22.178125 | W12: =V12/V$41 -> 0.0001782085163 | Y12: 140.9808035 | Z12: 135.610792 | AA12: 122.6499319 | AB12: 126.4913523 | AC12: 129.1239953 | AE12: 0 | AF12: 0.2109467072 | AG12: 0.4275584832 | AH12: 0.6293141907 | AI12: 0.7502977609
A13: ='DNSP Inputs General'!A48 -> Mercury Vapour 250 watt | C13: =IF('DNSP Inputs General'!E48="","",'DNSP Inputs General'!E48) -> 75.58 | D13: =IF(SUM('DNSP Inputs General'!$O48:$U48)=0,"",IF('DNSP Inputs General'!$B48='DNSP Inputs General'!$A$41,D$6,IF('DNSP Inputs General'!$B48='DNSP Inputs General'!$A$42,D$7,D$8))*'DNSP Inputs General'!$D48) -> 122.3022517 | E13: =IF(SUM('DNSP Inputs General'!$O48:$U48)=0,"",IF('DNSP Inputs General'!$B48='DNSP Inputs General'!$A$41,E$6,IF('DNSP Inputs General'!$B48='DNSP Inputs General'!$A$42,E$7,E$8))*'DNSP Inputs General'!$D48) -> 119.9208335 | F13: =IF(SUM('DNSP Inputs General'!$O48:$U48)=0,"",IF('DNSP Inputs General'!$B48='DNSP Inputs General'!$A$41,F$6,IF('DNSP Inputs General'!$B48='DNSP Inputs General'!$A$42,F$7,F$8))*'DNSP Inputs General'!$D48) -> 117.9961885 | G13: =IF(SUM('DNSP Inputs General'!$O48:$U48)=0,"",IF('DNSP Inputs General'!$B48='DNSP Inputs General'!$A$41,G$6,IF('DNSP Inputs General'!$B48='DNSP Inputs General'!$A$42,G$7,G$8))*'DNSP Inputs General'!$D48) -> 121.6767438 | H13: =IF(SUM('DNSP Inputs General'!$O48:$U48)=0,"",IF('DNSP Inputs General'!$B48='DNSP Inputs General'!$A$41,H$6,IF('DNSP Inputs General'!$B48='DNSP Inputs General'!$A$42,H$7,H$8))*'DNSP Inputs General'!$D48) -> 124.4832057 | J13: 0.618182743 | K13: -0.01947158107 | L13: -0.01604929658 | M13: 0.03119215417 | N13: 0.02306490022 | P13: =IF(C13="","",(D13/'Charges Summary'!D$4)/(C13/'Charges Summary'!C$4)-1) -> 0.5806531578 | Q13: =IF(D13="","",(E13/'Charges Summary'!E$4)/(D13/'Charges Summary'!D$4)-1) -> -0.04221241483 | R13: =IF(E13="","",(F13/'Charges Summary'!F$4)/(E13/'Charges Summary'!E$4)-1) -> -0.03886950143 | S13: =IF(F13="","",(G13/'Charges Summary'!G$4)/(F13/'Charges Summary'!F$4)-1) -> 0.007276305428 | T13: =IF(G13="","",(H13/'Charges Summary'!H$4)/(G13/'Charges Summary'!G$4)-1) -> -0.00066245778 | V13: =SUM('DNSP Inputs General'!Q48:U48)/5 -> 4.14921875 | W13: 3.334033501e-05 | Y13: 122.3022517 | Z13: 119.6514395 | AA13: 117.4509125 | AB13: 120.8753226 | AC13: 123.5294954 | AE13: 0 | AF13: 0.2693939622 | AG13: 0.5452759456 | AH13: 0.801421174 | AI13: 0.9537103161
A14: ='DNSP Inputs General'!A49 -> Mercury Vapour 400 watt | C14: =IF('DNSP Inputs General'!E49="","",'DNSP Inputs General'!E49) -> 104.65 | D14: =IF(SUM('DNSP Inputs General'!$O49:$U49)=0,"",IF('DNSP Inputs General'!$B49='DNSP Inputs General'!$A$41,D$6,IF('DNSP Inputs General'!$B49='DNSP Inputs General'!$A$42,D$7,D$8))*'DNSP Inputs General'!$D49) -> 169.3415793 | E14: =IF(SUM('DNSP Inputs General'!$O49:$U49)=0,"",IF('DNSP Inputs General'!$B49='DNSP Inputs General'!$A$41,E$6,IF('DNSP Inputs General'!$B49='DNSP Inputs General'!$A$42,E$7,E$8))*'DNSP Inputs General'!$D49) -> 166.044231 | F14: =IF(SUM('DNSP Inputs General'!$O49:$U49)=0,"",IF('DNSP Inputs General'!$B49='DNSP Inputs General'!$A$41,F$6,IF('DNSP Inputs General'!$B49='DNSP Inputs General'!$A$42,F$7,F$8))*'DNSP Inputs General'!$D49) -> 163.3793379 | G14: =IF(SUM('DNSP Inputs General'!$O49:$U49)=0,"",IF('DNSP Inputs General'!$B49='DNSP Inputs General'!$A$41,G$6,IF('DNSP Inputs General'!$B49='DNSP Inputs General'!$A$42,G$7,G$8))*'DNSP Inputs General'!$D49) -> 168.4754914 | H14: =IF(SUM('DNSP Inputs General'!$O49:$U49)=0,"",IF('DNSP Inputs General'!$B49='DNSP Inputs General'!$A$41,H$6,IF('DNSP Inputs General'!$B49='DNSP Inputs General'!$A$42,H$7,H$8))*'DNSP Inputs General'!$D49) -> 172.3613618 | J14: 0.6181708485 | K14: -0.01947158107 | L14: -0.01604929658 | M14: 0.03119215417 | N14: 0.02306490022 | P14: =IF(C14="","",(D14/'Charges Summary'!D$4)/(C14/'Charges Summary'!C$4)-1) -> 0.5806415392 | Q14: =IF(D14="","",(E14/'Charges Summary'!E$4)/(D14/'Charges Summary'!D$4)-1) -> -0.04221241483 | R14: =IF(E14="","",(F14/'Charges Summary'!F$4)/(E14/'Charges Summary'!E$4)-1) -> -0.03886950143 | S14: =IF(F14="","",(G14/'Charges Summary'!G$4)/(F14/'Charges Summary'!F$4)-1) -> 0.007276305428 | T14: =IF(G14="","",(H14/'Charges Summary'!H$4)/(G14/'Charges Summary'!G$4)-1) -> -0.00066245778 | V14: =SUM('DNSP Inputs General'!Q49:U49)/5 -> 0.075 | W14: 6.026496254e-07 | Y14: 169.3415793 | Z14: 165.671224 | AA14: 162.6243404 | AB14: 167.3658313 | AC14: 171.0408398 | AE14: 0 | AF14: 0.3730070246 | AG14: 0.7549974632 | AH14: 1.109660087 | AI14: 1.320521976
A15: ='DNSP Inputs General'!A50 -> Mercury Vapour 700 watt | C15: =IF('DNSP Inputs General'!E50="","",'DNSP Inputs General'!E50) -> 104.65 | D15: =IF(SUM('DNSP Inputs General'!$O50:$U50)=0,"",IF('DNSP Inputs General'!$B50='DNSP Inputs General'!$A$41,D$6,IF('DNSP Inputs General'!$B50='DNSP Inputs General'!$A$42,D$7,D$8))*'DNSP Inputs General'!$D50) -> 169.3415793 | E15: =IF(SUM('DNSP Inputs General'!$O50:$U50)=0,"",IF('DNSP Inputs General'!$B50='DNSP Inputs General'!$A$41,E$6,IF('DNSP Inputs General'!$B50='DNSP Inputs General'!$A$42,E$7,E$8))*'DNSP Inputs General'!$D50) -> 166.044231 | F15: =IF(SUM('DNSP Inputs General'!$O50:$U50)=0,"",IF('DNSP Inputs General'!$B50='DNSP Inputs General'!$A$41,F$6,IF('DNSP Inputs General'!$B50='DNSP Inputs General'!$A$42,F$7,F$8))*'DNSP Inputs General'!$D50) -> 163.3793379 | G15: =IF(SUM('DNSP Inputs General'!$O50:$U50)=0,"",IF('DNSP Inputs General'!$B50='DNSP Inputs General'!$A$41,G$6,IF('DNSP Inputs General'!$B50='DNSP Inputs General'!$A$42,G$7,G$8))*'DNSP Inputs General'!$D50) -> 168.4754914 | H15: =IF(SUM('DNSP Inputs General'!$O50:$U50)=0,"",IF('DNSP Inputs General'!$B50='DNSP Inputs General'!$A$41,H$6,IF('DNSP Inputs General'!$B50='DNSP Inputs General'!$A$42,H$7,H$8))*'DNSP Inputs General'!$D50) -> 172.3613618 | J15: 0.6181708485 | K15: -0.01947158107 | L15: -0.01604929658 | M15: 0.03119215417 | N15: 0.02306490022 | P15: =IF(C15="","",(D15/'Charges Summary'!D$4)/(C15/'Charges Summary'!C$4)-1) -> 0.5806415392 | Q15: =IF(D15="","",(E15/'Charges Summary'!E$4)/(D15/'Charges Summary'!D$4)-1) -> -0.04221241483 | R15: =IF(E15="","",(F15/'Charges Summary'!F$4)/(E15/'Charges Summary'!E$4)-1) -> -0.03886950143 | S15: =IF(F15="","",(G15/'Charges Summary'!G$4)/(F15/'Charges Summary'!F$4)-1) -> 0.007276305428 | T15: =IF(G15="","",(H15/'Charges Summary'!H$4)/(G15/'Charges Summary'!G$4)-1) -> -0.00066245778 | V15: =SUM('DNSP Inputs General'!Q50:U50)/5 -> 0 | W15: 0 | Y15: 169.3415793 | Z15: 165.671224 | AA15: 162.6243404 | AB15: 167.3658313 | AC15: 171.0408398 | AE15: 0 | AF15: 0.3730070246 | AG15: 0.7549974632 | AH15: 1.109660087 | AI15: 1.320521976
A16: ='DNSP Inputs General'!A51 -> Sodium High Pressure 70 watt | C16: =IF('DNSP Inputs General'!E51="","",'DNSP Inputs General'!E51) -> 137.33 | D16: =IF(SUM('DNSP Inputs General'!$O51:$U51)=0,"",IF('DNSP Inputs General'!$B51='DNSP Inputs General'!$A$41,D$6,IF('DNSP Inputs General'!$B51='DNSP Inputs General'!$A$42,D$7,D$8))*'DNSP Inputs General'!$D51) -> 208.6134862 | E16: =IF(SUM('DNSP Inputs General'!$O51:$U51)=0,"",IF('DNSP Inputs General'!$B51='DNSP Inputs General'!$A$41,E$6,IF('DNSP Inputs General'!$B51='DNSP Inputs General'!$A$42,E$7,E$8))*'DNSP Inputs General'!$D51) -> 200.9794647 | F16: =IF(SUM('DNSP Inputs General'!$O51:$U51)=0,"",IF('DNSP Inputs General'!$B51='DNSP Inputs General'!$A$41,F$6,IF('DNSP Inputs General'!$B51='DNSP Inputs General'!$A$42,F$7,F$8))*'DNSP Inputs General'!$D51) -> 182.1214216 | G16: =IF(SUM('DNSP Inputs General'!$O51:$U51)=0,"",IF('DNSP Inputs General'!$B51='DNSP Inputs General'!$A$41,G$6,IF('DNSP Inputs General'!$B51='DNSP Inputs General'!$A$42,G$7,G$8))*'DNSP Inputs General'!$D51) -> 188.1042295 | H16: =IF(SUM('DNSP Inputs General'!$O51:$U51)=0,"",IF('DNSP Inputs General'!$B51='DNSP Inputs General'!$A$41,H$6,IF('DNSP Inputs General'!$B51='DNSP Inputs General'!$A$42,H$7,H$8))*'DNSP Inputs General'!$D51) -> 192.1788526 | J16: 0.5190671099 | K16: -0.03659409393 | L16: -0.09383069641 | M16: 0.0328506545 | N16: 0.02166151813 | P16: =IF(C16="","",(D16/'Charges Summary'!D$4)/(C16/'Charges Summary'!C$4)-1) -> 0.4838362569 | Q16: =IF(D16="","",(E16/'Charges Summary'!E$4)/(D16/'Charges Summary'!D$4)-1) -> -0.05893781507 | R16: =IF(E16="","",(F16/'Charges Summary'!F$4)/(E16/'Charges Summary'!E$4)-1) -> -0.1148469618 | S16: =IF(F16="","",(G16/'Charges Summary'!G$4)/(F16/'Charges Summary'!F$4)-1) -> 0.008896341113 | T16: =IF(G16="","",(H16/'Charges Summary'!H$4)/(G16/'Charges Summary'!G$4)-1) -> -0.002033292033 | V16: =SUM('DNSP Inputs General'!Q51:U51)/5 -> 10.2078125 | W16: 8.202312506e-05 | Y16: 208.6134862 | Z16: 200.6673206 | AA16: 181.4887506 | AB16: 187.1730145 | AC16: 191.0686147 | AE16: 0 | AF16: 0.312144114 | AG16: 0.6326709988 | AH16: 0.9312149173 | AI16: 1.110237903
A17: ='DNSP Inputs General'!A52 -> Sodium High Pressure 100 watt | C17: =IF('DNSP Inputs General'!E52="","",'DNSP Inputs General'!E52) -> 89.34 | D17: =IF(SUM('DNSP Inputs General'!$O52:$U52)=0,"",IF('DNSP Inputs General'!$B52='DNSP Inputs General'!$A$41,D$6,IF('DNSP Inputs General'!$B52='DNSP Inputs General'!$A$42,D$7,D$8))*'DNSP Inputs General'!$D52) -> 144.8009719 | E17: =IF(SUM('DNSP Inputs General'!$O52:$U52)=0,"",IF('DNSP Inputs General'!$B52='DNSP Inputs General'!$A$41,E$6,IF('DNSP Inputs General'!$B52='DNSP Inputs General'!$A$42,E$7,E$8))*'DNSP Inputs General'!$D52) -> 142.2175791 | F17: =IF(SUM('DNSP Inputs General'!$O52:$U52)=0,"",IF('DNSP Inputs General'!$B52='DNSP Inputs General'!$A$41,F$6,IF('DNSP Inputs General'!$B52='DNSP Inputs General'!$A$42,F$7,F$8))*'DNSP Inputs General'!$D52) -> 141.7519977 | G17: =IF(SUM('DNSP Inputs General'!$O52:$U52)=0,"",IF('DNSP Inputs General'!$B52='DNSP Inputs General'!$A$41,G$6,IF('DNSP Inputs General'!$B52='DNSP Inputs General'!$A$42,G$7,G$8))*'DNSP Inputs General'!$D52) -> 146.1849571 | H17: =IF(SUM('DNSP Inputs General'!$O52:$U52)=0,"",IF('DNSP Inputs General'!$B52='DNSP Inputs General'!$A$41,H$6,IF('DNSP Inputs General'!$B52='DNSP Inputs General'!$A$42,H$7,H$8))*'DNSP Inputs General'!$D52) -> 149.5805662 | J17: 0.6207854475 | K17: -0.01784099066 | L17: -0.003273726349 | M17: 0.03127264189 | N17: 0.02322817032 | P17: =IF(C17="","",(D17/'Charges Summary'!D$4)/(C17/'Charges Summary'!C$4)-1) -> 0.5831954994 | Q17: =IF(D17="","",(E17/'Charges Summary'!E$4)/(D17/'Charges Summary'!D$4)-1) -> -0.04061964177 | R17: =IF(E17="","",(F17/'Charges Summary'!F$4)/(E17/'Charges Summary'!E$4)-1) -> -0.02639022767 | S17: =IF(F17="","",(G17/'Charges Summary'!G$4)/(F17/'Charges Summary'!F$4)-1) -> 0.007354926443 | T17: =IF(G17="","",(H17/'Charges Summary'!H$4)/(G17/'Charges Summary'!G$4)-1) -> -0.000502974304 | V17: =SUM('DNSP Inputs General'!Q52:U52)/5 -> 37.93046875 | W17: 0.0003047837705 | Y17: 144.8009719 | Z17: 141.891938 | AA17: 141.0928729 | AB17: 145.2162062 | AC17: 148.4277296 | AE17: 0 | AF17: 0.3256410532 | AG17: 0.6591247694 | AH17: 0.9687508697 | AI17: 1.152836646
A18: ='DNSP Inputs General'!A53 -> Sodium High Pressure 400 watt | C18: =IF('DNSP Inputs General'!E53="","",'DNSP Inputs General'!E53) -> 104.65 | D18: =IF(SUM('DNSP Inputs General'!$O53:$U53)=0,"",IF('DNSP Inputs General'!$B53='DNSP Inputs General'!$A$41,D$6,IF('DNSP Inputs General'!$B53='DNSP Inputs General'!$A$42,D$7,D$8))*'DNSP Inputs General'!$D53) -> 169.3415793 | E18: =IF(SUM('DNSP Inputs General'!$O53:$U53)=0,"",IF('DNSP Inputs General'!$B53='DNSP Inputs General'!$A$41,E$6,IF('DNSP Inputs General'!$B53='DNSP Inputs General'!$A$42,E$7,E$8))*'DNSP Inputs General'!$D53) -> 166.044231 | F18: =IF(SUM('DNSP Inputs General'!$O53:$U53)=0,"",IF('DNSP Inputs General'!$B53='DNSP Inputs General'!$A$41,F$6,IF('DNSP Inputs General'!$B53='DNSP Inputs General'!$A$42,F$7,F$8))*'DNSP Inputs General'!$D53) -> 163.3793379 | G18: =IF(SUM('DNSP Inputs General'!$O53:$U53)=0,"",IF('DNSP Inputs General'!$B53='DNSP Inputs General'!$A$41,G$6,IF('DNSP Inputs General'!$B53='DNSP Inputs General'!$A$42,G$7,G$8))*'DNSP Inputs General'!$D53) -> 168.4754914 | H18: =IF(SUM('DNSP Inputs General'!$O53:$U53)=0,"",IF('DNSP Inputs General'!$B53='DNSP Inputs General'!$A$41,H$6,IF('DNSP Inputs General'!$B53='DNSP Inputs General'!$A$42,H$7,H$8))*'DNSP Inputs General'!$D53) -> 172.3613618 | J18: 0.6181708485 | K18: -0.01947158107 | L18: -0.01604929658 | M18: 0.03119215417 | N18: 0.02306490022 | P18: =IF(C18="","",(D18/'Charges Summary'!D$4)/(C18/'Charges Summary'!C$4)-1) -> 0.5806415392 | Q18: =IF(D18="","",(E18/'Charges Summary'!E$4)/(D18/'Charges Summary'!D$4)-1) -> -0.04221241483 | R18: =IF(E18="","",(F18/'Charges Summary'!F$4)/(E18/'Charges Summary'!E$4)-1) -> -0.03886950143 | S18: =IF(F18="","",(G18/'Charges Summary'!G$4)/(F18/'Charges Summary'!F$4)-1) -> 0.007276305428 | T18: =IF(G18="","",(H18/'Charges Summary'!H$4)/(G18/'Charges Summary'!G$4)-1) -> -0.00066245778 | V18: =SUM('DNSP Inputs General'!Q53:U53)/5 -> 11.63984375 | W18: 9.352996635e-05 | Y18: 169.3415793 | Z18: 165.671224 | AA18: 162.6243404 | AB18: 167.3658313 | AC18: 171.0408398 | AE18: 0 | AF18: 0.3730070246 | AG18: 0.7549974632 | AH18: 1.109660087 | AI18: 1.320521976
A19: ='DNSP Inputs General'!A54 -> Metal Halide 70 watt | C19: =IF('DNSP Inputs General'!E54="","",'DNSP Inputs General'!E54) -> 109.65 | D19: =IF(SUM('DNSP Inputs General'!$O54:$U54)=0,"",IF('DNSP Inputs General'!$B54='DNSP Inputs General'!$A$41,D$6,IF('DNSP Inputs General'!$B54='DNSP Inputs General'!$A$42,D$7,D$8))*'DNSP Inputs General'!$D54) -> 177.7102837 | E19: =IF(SUM('DNSP Inputs General'!$O54:$U54)=0,"",IF('DNSP Inputs General'!$B54='DNSP Inputs General'!$A$41,E$6,IF('DNSP Inputs General'!$B54='DNSP Inputs General'!$A$42,E$7,E$8))*'DNSP Inputs General'!$D54) -> 174.5397562 | F19: =IF(SUM('DNSP Inputs General'!$O54:$U54)=0,"",IF('DNSP Inputs General'!$B54='DNSP Inputs General'!$A$41,F$6,IF('DNSP Inputs General'!$B54='DNSP Inputs General'!$A$42,F$7,F$8))*'DNSP Inputs General'!$D54) -> 173.9683608 | G19: =IF(SUM('DNSP Inputs General'!$O54:$U54)=0,"",IF('DNSP Inputs General'!$B54='DNSP Inputs General'!$A$41,G$6,IF('DNSP Inputs General'!$B54='DNSP Inputs General'!$A$42,G$7,G$8))*'DNSP Inputs General'!$D54) -> 179.408811 | H19: =IF(SUM('DNSP Inputs General'!$O54:$U54)=0,"",IF('DNSP Inputs General'!$B54='DNSP Inputs General'!$A$41,H$6,IF('DNSP Inputs General'!$B54='DNSP Inputs General'!$A$42,H$7,H$8))*'DNSP Inputs General'!$D54) -> 183.5761494 | J19: 0.6207048215 | K19: -0.01784099066 | L19: -0.003273726349 | M19: 0.03127264189 | N19: 0.02322817032 | P19: =IF(C19="","",(D19/'Charges Summary'!D$4)/(C19/'Charges Summary'!C$4)-1) -> 0.5831167432 | Q19: =IF(D19="","",(E19/'Charges Summary'!E$4)/(D19/'Charges Summary'!D$4)-1) -> -0.04061964177 | R19: =IF(E19="","",(F19/'Charges Summary'!F$4)/(E19/'Charges Summary'!E$4)-1) -> -0.02639022767 | S19: =IF(F19="","",(G19/'Charges Summary'!G$4)/(F19/'Charges Summary'!F$4)-1) -> 0.007354926443 | T19: =IF(G19="","",(H19/'Charges Summary'!H$4)/(G19/'Charges Summary'!G$4)-1) -> -0.000502974304 | V19: =SUM('DNSP Inputs General'!Q54:U54)/5 -> 0.225 | W19: 1.807948876e-06 | Y19: 177.7102837 | Z19: 174.1401058 | AA19: 173.1594349 | AB19: 178.2198895 | AC19: 182.1613045 | AE19: 0 | AF19: 0.3996503835 | AG19: 0.8089258534 | AH19: 1.188921522 | AI19: 1.414844974
A20: ='DNSP Inputs General'!A55 -> Metal Halide 100 watt | C20: =IF('DNSP Inputs General'!E55="","",'DNSP Inputs General'!E55) -> 109.65 | D20: =IF(SUM('DNSP Inputs General'!$O55:$U55)=0,"",IF('DNSP Inputs General'!$B55='DNSP Inputs General'!$A$41,D$6,IF('DNSP Inputs General'!$B55='DNSP Inputs General'!$A$42,D$7,D$8))*'DNSP Inputs General'!$D55) -> 177.7102837 | E20: =IF(SUM('DNSP Inputs General'!$O55:$U55)=0,"",IF('DNSP Inputs General'!$B55='DNSP Inputs General'!$A$41,E$6,IF('DNSP Inputs General'!$B55='DNSP Inputs General'!$A$42,E$7,E$8))*'DNSP Inputs General'!$D55) -> 174.5397562 | F20: =IF(SUM('DNSP Inputs General'!$O55:$U55)=0,"",IF('DNSP Inputs General'!$B55='DNSP Inputs General'!$A$41,F$6,IF('DNSP Inputs General'!$B55='DNSP Inputs General'!$A$42,F$7,F$8))*'DNSP Inputs General'!$D55) -> 173.9683608 | G20: =IF(SUM('DNSP Inputs General'!$O55:$U55)=0,"",IF('DNSP Inputs General'!$B55='DNSP Inputs General'!$A$41,G$6,IF('DNSP Inputs General'!$B55='DNSP Inputs General'!$A$42,G$7,G$8))*'DNSP Inputs General'!$D55) -> 179.408811 | H20: =IF(SUM('DNSP Inputs General'!$O55:$U55)=0,"",IF('DNSP Inputs General'!$B55='DNSP Inputs General'!$A$41,H$6,IF('DNSP Inputs General'!$B55='DNSP Inputs General'!$A$42,H$7,H$8))*'DNSP Inputs General'!$D55) -> 183.5761494 | J20: 0.6207048215 | K20: -0.01784099066 | L20: -0.003273726349 | M20: 0.03127264189 | N20: 0.02322817032 | P20: =IF(C20="","",(D20/'Charges Summary'!D$4)/(C20/'Charges Summary'!C$4)-1) -> 0.5831167432 | Q20: =IF(D20="","",(E20/'Charges Summary'!E$4)/(D20/'Charges Summary'!D$4)-1) -> -0.04061964177 | R20: =IF(E20="","",(F20/'Charges Summary'!F$4)/(E20/'Charges Summary'!E$4)-1) -> -0.02639022767 | S20: =IF(F20="","",(G20/'Charges Summary'!G$4)/(F20/'Charges Summary'!F$4)-1) -> 0.007354926443 | T20: =IF(G20="","",(H20/'Charges Summary'!H$4)/(G20/'Charges Summary'!G$4)-1) -> -0.000502974304 | V20: =SUM('DNSP Inputs General'!Q55:U55)/5 -> 3.48828125 | W20: 2.802948518e-05 | Y20: 177.7102837 | Z20: 174.1401058 | AA20: 173.1594349 | AB20: 178.2198895 | AC20: 182.1613045 | AE20: 0 | AF20: 0.3996503835 | AG20: 0.8089258534 | AH20: 1.188921522 | AI20: 1.414844974
A21: ='DNSP Inputs General'!A56 -> Metal Halide 150 watt | C21: =IF('DNSP Inputs General'!E56="","",'DNSP Inputs General'!E56) -> 109.65 | D21: =IF(SUM('DNSP Inputs General'!$O56:$U56)=0,"",IF('DNSP Inputs General'!$B56='DNSP Inputs General'!$A$41,D$6,IF('DNSP Inputs General'!$B56='DNSP Inputs General'!$A$42,D$7,D$8))*'DNSP Inputs General'!$D56) -> 177.7102837 | E21: =IF(SUM('DNSP Inputs General'!$O56:$U56)=0,"",IF('DNSP Inputs General'!$B56='DNSP Inputs General'!$A$41,E$6,IF('DNSP Inputs General'!$B56='DNSP Inputs General'!$A$42,E$7,E$8))*'DNSP Inputs General'!$D56) -> 174.5397562 | F21: =IF(SUM('DNSP Inputs General'!$O56:$U56)=0,"",IF('DNSP Inputs General'!$B56='DNSP Inputs General'!$A$41,F$6,IF('DNSP Inputs General'!$B56='DNSP Inputs General'!$A$42,F$7,F$8))*'DNSP Inputs General'!$D56) -> 173.9683608 | G21: =IF(SUM('DNSP Inputs General'!$O56:$U56)=0,"",IF('DNSP Inputs General'!$B56='DNSP Inputs General'!$A$41,G$6,IF('DNSP Inputs General'!$B56='DNSP Inputs General'!$A$42,G$7,G$8))*'DNSP Inputs General'!$D56) -> 179.408811 | H21: =IF(SUM('DNSP Inputs General'!$O56:$U56)=0,"",IF('DNSP Inputs General'!$B56='DNSP Inputs General'!$A$41,H$6,IF('DNSP Inputs General'!$B56='DNSP Inputs General'!$A$42,H$7,H$8))*'DNSP Inputs General'!$D56) -> 183.5761494 | J21: 0.6207048215 | K21: -0.01784099066 | L21: -0.003273726349 | M21: 0.03127264189 | N21: 0.02322817032 | P21: =IF(C21="","",(D21/'Charges Summary'!D$4)/(C21/'Charges Summary'!C$4)-1) -> 0.5831167432 | Q21: =IF(D21="","",(E21/'Charges Summary'!E$4)/(D21/'Charges Summary'!D$4)-1) -> -0.04061964177 | R21: =IF(E21="","",(F21/'Charges Summary'!F$4)/(E21/'Charges Summary'!E$4)-1) -> -0.02639022767 | S21: =IF(F21="","",(G21/'Charges Summary'!G$4)/(F21/'Charges Summary'!F$4)-1) -> 0.007354926443 | T21: =IF(G21="","",(H21/'Charges Summary'!H$4)/(G21/'Charges Summary'!G$4)-1) -> -0.000502974304 | V21: =SUM('DNSP Inputs General'!Q56:U56)/5 -> 1.5125 | W21: 1.215343411e-05 | Y21: 177.7102837 | Z21: 174.1401058 | AA21: 173.1594349 | AB21: 178.2198895 | AC21: 182.1613045 | AE21: 0 | AF21: 0.3996503835 | AG21: 0.8089258534 | AH21: 1.188921522 | AI21: 1.414844974
A22: ='DNSP Inputs General'!A57 -> Metal Halide 250 watt | C22: =IF('DNSP Inputs General'!E57="","",'DNSP Inputs General'!E57) -> 112.13 | D22: =IF(SUM('DNSP Inputs General'!$O57:$U57)=0,"",IF('DNSP Inputs General'!$B57='DNSP Inputs General'!$A$41,D$6,IF('DNSP Inputs General'!$B57='DNSP Inputs General'!$A$42,D$7,D$8))*'DNSP Inputs General'!$D57) -> 181.4374064 | E22: =IF(SUM('DNSP Inputs General'!$O57:$U57)=0,"",IF('DNSP Inputs General'!$B57='DNSP Inputs General'!$A$41,E$6,IF('DNSP Inputs General'!$B57='DNSP Inputs General'!$A$42,E$7,E$8))*'DNSP Inputs General'!$D57) -> 177.9045332 | F22: =IF(SUM('DNSP Inputs General'!$O57:$U57)=0,"",IF('DNSP Inputs General'!$B57='DNSP Inputs General'!$A$41,F$6,IF('DNSP Inputs General'!$B57='DNSP Inputs General'!$A$42,F$7,F$8))*'DNSP Inputs General'!$D57) -> 175.0492906 | G22: =IF(SUM('DNSP Inputs General'!$O57:$U57)=0,"",IF('DNSP Inputs General'!$B57='DNSP Inputs General'!$A$41,G$6,IF('DNSP Inputs General'!$B57='DNSP Inputs General'!$A$42,G$7,G$8))*'DNSP Inputs General'!$D57) -> 180.5094551 | H22: =IF(SUM('DNSP Inputs General'!$O57:$U57)=0,"",IF('DNSP Inputs General'!$B57='DNSP Inputs General'!$A$41,H$6,IF('DNSP Inputs General'!$B57='DNSP Inputs General'!$A$42,H$7,H$8))*'DNSP Inputs General'!$D57) -> 184.6728876 | J22: 0.6180986925 | K22: -0.01947158107 | L22: -0.01604929658 | M22: 0.03119215417 | N22: 0.02306490022 | P22: =IF(C22="","",(D22/'Charges Summary'!D$4)/(C22/'Charges Summary'!C$4)-1) -> 0.5805710567 | Q22: =IF(D22="","",(E22/'Charges Summary'!E$4)/(D22/'Charges Summary'!D$4)-1) -> -0.04221241483 | R22: =IF(E22="","",(F22/'Charges Summary'!F$4)/(E22/'Charges Summary'!E$4)-1) -> -0.03886950143 | S22: =IF(F22="","",(G22/'Charges Summary'!G$4)/(F22/'Charges Summary'!F$4)-1) -> 0.007276305428 | T22: =IF(G22="","",(H22/'Charges Summary'!H$4)/(G22/'Charges Summary'!G$4)-1) -> -0.00066245778 | V22: =SUM('DNSP Inputs General'!Q57:U57)/5 -> 4.58984375 | W22: 3.688090156e-05 | Y22: 181.4374064 | Z22: 177.5048828 | AA22: 174.2403647 | AB22: 179.3205335 | AC22: 183.2580427 | AE22: 0 | AF22: 0.3996503835 | AG22: 0.8089258534 | AH22: 1.188921522 | AI22: 1.414844974
A23: ='DNSP Inputs General'!A58 -> Metal Halide 400 watt | C23: =IF('DNSP Inputs General'!E58="","",'DNSP Inputs General'!E58) -> 112.13 | D23: =IF(SUM('DNSP Inputs General'!$O58:$U58)=0,"",IF('DNSP Inputs General'!$B58='DNSP Inputs General'!$A$41,D$6,IF('DNSP Inputs General'!$B58='DNSP Inputs General'!$A$42,D$7,D$8))*'DNSP Inputs General'!$D58) -> 181.4374064 | E23: =IF(SUM('DNSP Inputs General'!$O58:$U58)=0,"",IF('DNSP Inputs General'!$B58='DNSP Inputs General'!$A$41,E$6,IF('DNSP Inputs General'!$B58='DNSP Inputs General'!$A$42,E$7,E$8))*'DNSP Inputs General'!$D58) -> 177.9045332 | F23: =IF(SUM('DNSP Inputs General'!$O58:$U58)=0,"",IF('DNSP Inputs General'!$B58='DNSP Inputs General'!$A$41,F$6,IF('DNSP Inputs General'!$B58='DNSP Inputs General'!$A$42,F$7,F$8))*'DNSP Inputs General'!$D58) -> 175.0492906 | G23: =IF(SUM('DNSP Inputs General'!$O58:$U58)=0,"",IF('DNSP Inputs General'!$B58='DNSP Inputs General'!$A$41,G$6,IF('DNSP Inputs General'!$B58='DNSP Inputs General'!$A$42,G$7,G$8))*'DNSP Inputs General'!$D58) -> 180.5094551 | H23: =IF(SUM('DNSP Inputs General'!$O58:$U58)=0,"",IF('DNSP Inputs General'!$B58='DNSP Inputs General'!$A$41,H$6,IF('DNSP Inputs General'!$B58='DNSP Inputs General'!$A$42,H$7,H$8))*'DNSP Inputs General'!$D58) -> 184.6728876 | J23: 0.6180986925 | K23: -0.01947158107 | L23: -0.01604929658 | M23: 0.03119215417 | N23: 0.02306490022 | P23: =IF(C23="","",(D23/'Charges Summary'!D$4)/(C23/'Charges Summary'!C$4)-1) -> 0.5805710567 | Q23: =IF(D23="","",(E23/'Charges Summary'!E$4)/(D23/'Charges Summary'!D$4)-1) -> -0.04221241483 | R23: =IF(E23="","",(F23/'Charges Summary'!F$4)/(E23/'Charges Summary'!E$4)-1) -> -0.03886950143 | S23: =IF(F23="","",(G23/'Charges Summary'!G$4)/(F23/'Charges Summary'!F$4)-1) -> 0.007276305428 | T23: =IF(G23="","",(H23/'Charges Summary'!H$4)/(G23/'Charges Summary'!G$4)-1) -> -0.00066245778 | V23: =SUM('DNSP Inputs General'!Q58:U58)/5 -> 4.3328125 | W23: 3.481557107e-05 | Y23: 181.4374064 | Z23: 177.5048828 | AA23: 174.2403647 | AB23: 179.3205335 | AC23: 183.2580427 | AE23: 0 | AF23: 0.3996503835 | AG23: 0.8089258534 | AH23: 1.188921522 | AI23: 1.414844974
A30: ='DNSP Inputs General'!A$67 -> Energy Efficient Lights
A31: ='DNSP Inputs General'!A68 -> T5 2X14W | C31: =IF('DNSP Inputs General'!E68="","",'DNSP Inputs General'!E68) -> 30.59 | D31: ='Charges Summary'!D$103 -> 41.3348995 | E31: ='Charges Summary'!E$103 -> 43.87271291 | F31: ='Charges Summary'!F$103 -> 46.44902503 | G31: ='Charges Summary'!G$103 -> 49.21730787 | H31: ='Charges Summary'!H$103 -> 52.17174021 | J31: =IF(C31="","",D31/C31-1) -> 0.3512552957 | K31: 0.06139638527 | L31: 0.0587224255 | M31: 0.05959829811 | N31: 0.06002832066 | P31: =IF(C31="","",(D31/'Charges Summary'!D$4)/(C31/'Charges Summary'!C$4)-1) -> 0.319916406 | Q31: =IF(D31="","",(E31/'Charges Summary'!E$4)/(D31/'Charges Summary'!D$4)-1) -> 0.0367800271 | R31: =IF(E31="","",(F31/'Charges Summary'!F$4)/(E31/'Charges Summary'!E$4)-1) -> 0.03416808296 | S31: =IF(F31="","",(G31/'Charges Summary'!G$4)/(F31/'Charges Summary'!F$4)-1) -> 0.03502364196 | T31: =IF(G31="","",(H31/'Charges Summary'!H$4)/(G31/'Charges Summary'!G$4)-1) -> 0.03544369123 | V31: =SUM('DNSP Inputs General'!Q68:U68)/5 -> 18967.93515 | W31: 0.1524135868 | Y31: 41.3348995 | Z31: 43.75245056 | AA31: 46.20278454 | AB31: 48.85107377 | AC31: 51.72919238 | AE31: =D31-Y31 -> 0 | AF31: =E31-Z31 -> 0.1202623549 | AG31: =F31-AA31 -> 0.2462404875 | AH31: =G31-AB31 -> 0.3662341002 | AI31: =H31-AC31 -> 0.4425478215
A32: ='DNSP Inputs General'!A69 -> Twin 24w Fluorescent | C32: =IF('DNSP Inputs General'!E69="","",'DNSP Inputs General'!E69) -> 30.59 | D32: ='DNSP Inputs General'!$D69*D31 -> 41.3348995 | E32: ='DNSP Inputs General'!$D69*E31 -> 43.87271291 | F32: ='DNSP Inputs General'!$D69*F31 -> 46.44902503 | G32: ='DNSP Inputs General'!$D69*G31 -> 49.21730787 | H32: ='DNSP Inputs General'!$D69*H31 -> 52.17174021 | J32: 0.3512552957 | K32: 0.06139638527 | L32: 0.0587224255 | M32: 0.05959829811 | N32: 0.06002832066 | P32: =IF(C32="","",(D32/'Charges Summary'!D$4)/(C32/'Charges Summary'!C$4)-1) -> 0.319916406 | Q32: =IF(D32="","",(E32/'Charges Summary'!E$4)/(D32/'Charges Summary'!D$4)-1) -> 0.0367800271 | R32: =IF(E32="","",(F32/'Charges Summary'!F$4)/(E32/'Charges Summary'!E$4)-1) -> 0.03416808296 | S32: =IF(F32="","",(G32/'Charges Summary'!G$4)/(F32/'Charges Summary'!F$4)-1) -> 0.03502364196 | T32: =IF(G32="","",(H32/'Charges Summary'!H$4)/(G32/'Charges Summary'!G$4)-1) -> 0.03544369123 | V32: =SUM('DNSP Inputs General'!Q69:U69)/5 -> 204.7743067 | W32: 0.001645428789 | Y32: 41.3348995 | Z32: 43.75245056 | AA32: 46.20278454 | AB32: 48.85107377 | AC32: 51.72919238 | AE32: 0 | AF32: 0.1202623549 | AG32: 0.2462404875 | AH32: 0.3662341002 | AI32: 0.4425478215
A33: ='DNSP Inputs General'!A70 -> 32W Compact Fluorescent | C33: =IF('DNSP Inputs General'!E70="","",'DNSP Inputs General'!E70) -> 30.59 | D33: ='DNSP Inputs General'!$D70*D31 -> 41.3348995 | E33: ='DNSP Inputs General'!$D70*E31 -> 43.87271291 | F33: ='DNSP Inputs General'!$D70*F31 -> 46.44902503 | G33: ='DNSP Inputs General'!$D70*G31 -> 49.21730787 | H33: ='DNSP Inputs General'!$D70*H31 -> 52.17174021 | J33: 0.3512552957 | K33: 0.06139638527 | L33: 0.0587224255 | M33: 0.05959829811 | N33: 0.06002832066 | P33: =IF(C33="","",(D33/'Charges Summary'!D$4)/(C33/'Charges Summary'!C$4)-1) -> 0.319916406 | Q33: =IF(D33="","",(E33/'Charges Summary'!E$4)/(D33/'Charges Summary'!D$4)-1) -> 0.0367800271 | R33: =IF(E33="","",(F33/'Charges Summary'!F$4)/(E33/'Charges Summary'!E$4)-1) -> 0.03416808296 | S33: =IF(F33="","",(G33/'Charges Summary'!G$4)/(F33/'Charges Summary'!F$4)-1) -> 0.03502364196 | T33: =IF(G33="","",(H33/'Charges Summary'!H$4)/(G33/'Charges Summary'!G$4)-1) -> 0.03544369123 | V33: =SUM('DNSP Inputs General'!Q70:U70)/5 -> 1002.707708 | W33: 0.008057085664 | Y33: 41.3348995 | Z33: 43.75245056 | AA33: 46.20278454 | AB33: 48.85107377 | AC33: 51.72919238 | AE33: 0 | AF33: 0.1202623549 | AG33: 0.2462404875 | AH33: 0.3662341002 | AI33: 0.4425478215
A34: ='DNSP Inputs General'!A71 -> 42w Compact Fluorescent | C34: =IF('DNSP Inputs General'!E71="","",'DNSP Inputs General'!E71) -> 30.59 | D34: ='DNSP Inputs General'!$D71*D31 -> 41.3348995 | E34: ='DNSP Inputs General'!$D71*E31 -> 43.87271291 | F34: ='DNSP Inputs General'!$D71*F31 -> 46.44902503 | G34: ='DNSP Inputs General'!$D71*G31 -> 49.21730787 | H34: ='DNSP Inputs General'!$D71*H31 -> 52.17174021 | J34: 0.3512552957 | K34: 0.06139638527 | L34: 0.0587224255 | M34: 0.05959829811 | N34: 0.06002832066 | P34: =IF(C34="","",(D34/'Charges Summary'!D$4)/(C34/'Charges Summary'!C$4)-1) -> 0.319916406 | Q34: =IF(D34="","",(E34/'Charges Summary'!E$4)/(D34/'Charges Summary'!D$4)-1) -> 0.0367800271 | R34: =IF(E34="","",(F34/'Charges Summary'!F$4)/(E34/'Charges Summary'!E$4)-1) -> 0.03416808296 | S34: =IF(F34="","",(G34/'Charges Summary'!G$4)/(F34/'Charges Summary'!F$4)-1) -> 0.03502364196 | T34: =IF(G34="","",(H34/'Charges Summary'!H$4)/(G34/'Charges Summary'!G$4)-1) -> 0.03544369123 | V34: =SUM('DNSP Inputs General'!Q71:U71)/5 -> 236.8060418 | W34: 0.001902814298 | Y34: 41.3348995 | Z34: 43.75245056 | AA34: 46.20278454 | AB34: 48.85107377 | AC34: 51.72919238 | AE34: 0 | AF34: 0.1202623549 | AG34: 0.2462404875 | AH34: 0.3662341002 | AI34: 0.4425478215
A35: ='DNSP Inputs General'!A72 -> Category P LED 18 Watt | C35: =IF('DNSP Inputs General'!E72="","",'DNSP Inputs General'!E72) -> 20.54 | D35: ='Charges Summary'!D$120 -> 21.42462833 | E35: ='Charges Summary'!E$120 -> 23.43676786 | F35: ='Charges Summary'!F$120 -> 25.45636225 | G35: ='Charges Summary'!G$120 -> 27.61381929 | H35: ='Charges Summary'!H$120 -> 29.90237303 | J35: 0.04306856506 | K35: 0.09391712685 | L35: 0.0861720525 | M35: 0.08475119186 | N35: 0.08287711697 | P35: =IF(C35="","",(D35/'Charges Summary'!D$4)/(C35/'Charges Summary'!C$4)-1) -> 0.01887727353 | Q35: =IF(D35="","",(E35/'Charges Summary'!E$4)/(D35/'Charges Summary'!D$4)-1) -> 0.06854653376 | R35: =IF(E35="","",(F35/'Charges Summary'!F$4)/(E35/'Charges Summary'!E$4)-1) -> 0.06098108649 | S35: =IF(F35="","",(G35/'Charges Summary'!G$4)/(F35/'Charges Summary'!F$4)-1) -> 0.05959317905 | T35: =IF(G35="","",(H35/'Charges Summary'!H$4)/(G35/'Charges Summary'!G$4)-1) -> 0.05776256851 | V35: =SUM('DNSP Inputs General'!Q72:U72)/5 -> 62375.08628 | W35: 0.5012042985 | Y35: 21.42462833 | Z35: 23.3961039 | AA35: 25.37103072 | AB35: 27.48376332 | AC35: 29.7403927 | AE35: 0 | AF35: 0.04066396647 | AG35: 0.08533153099 | AH35: 0.130055974 | AI35: 0.1619803257
A36: Category P LED High Output | C36: =IF('DNSP Inputs General'!E73="","",'DNSP Inputs General'!E73) -> 20.54 | D36: ='DNSP Inputs General'!$D73*D35 -> 21.42462833 | E36: ='DNSP Inputs General'!$D73*E35 -> 23.43676786 | F36: ='DNSP Inputs General'!$D73*F35 -> 25.45636225 | G36: ='DNSP Inputs General'!$D73*G35 -> 27.61381929 | H36: ='DNSP Inputs General'!$D73*H35 -> 29.90237303 | J36: 0.04306856506 | K36: 0.09391712685 | L36: 0.0861720525 | M36: 0.08475119186 | N36: 0.08287711697 | P36: =IF(C36="","",(D36/'Charges Summary'!D$4)/(C36/'Charges Summary'!C$4)-1) -> 0.01887727353 | Q36: =IF(D36="","",(E36/'Charges Summary'!E$4)/(D36/'Charges Summary'!D$4)-1) -> 0.06854653376 | R36: =IF(E36="","",(F36/'Charges Summary'!F$4)/(E36/'Charges Summary'!E$4)-1) -> 0.06098108649 | S36: =IF(F36="","",(G36/'Charges Summary'!G$4)/(F36/'Charges Summary'!F$4)-1) -> 0.05959317905 | T36: =IF(G36="","",(H36/'Charges Summary'!H$4)/(G36/'Charges Summary'!G$4)-1) -> 0.05776256851 | V36: =SUM('DNSP Inputs General'!Q73:U73)/5 -> 2954.171864 | W36: 0.02373774089 | Y36: 21.42462833 | Z36: 23.3961039 | AA36: 25.37103072 | AB36: 27.48376332 | AC36: 29.7403927 | AE36: 0 | AF36: 0.04066396647 | AG36: 0.08533153099 | AH36: 0.130055974 | AI36: 0.1619803257
A37: Category V LED L1 Standard Output | C37: =IF('DNSP Inputs General'!E74="","",'DNSP Inputs General'!E74) -> 47.70898376 | D37: ='Charges Summary'!D$138 -> 43.88246461 | E37: ='Charges Summary'!E$138 -> 47.06473415 | F37: ='Charges Summary'!F$138 -> 50.27504126 | G37: ='Charges Summary'!G$138 -> 53.71839854 | H37: ='Charges Summary'!H$138 -> 57.41837091 | J37: -0.08020542139 | K37: 0.07251802204 | L37: 0.06821045883 | M37: 0.06849039186 | N37: 0.06887719054 | P37: =IF(C37="","",(D37/'Charges Summary'!D$4)/(C37/'Charges Summary'!C$4)-1) -> -0.10153769 | Q37: =IF(D37="","",(E37/'Charges Summary'!E$4)/(D37/'Charges Summary'!D$4)-1) -> 0.04764372612 | R37: =IF(E37="","",(F37/'Charges Summary'!F$4)/(E37/'Charges Summary'!E$4)-1) -> 0.04343606576 | S37: =IF(F37="","",(G37/'Charges Summary'!G$4)/(F37/'Charges Summary'!F$4)-1) -> 0.04370950647 | T37: =IF(G37="","",(H37/'Charges Summary'!H$4)/(G37/'Charges Summary'!G$4)-1) -> 0.04408733434 | V37: =SUM('DNSP Inputs General'!Q74:U74)/5 -> 11143.83192 | W37: 0.08954434846 | Y37: 43.88246461 | Z37: 46.94376797 | AA37: 50.02510332 | AB37: 53.34325583 | AC37: 56.95980778 | AE37: 0 | AF37: 0.1209661751 | AG37: 0.2499379392 | AH37: 0.3751427082 | AI37: 0.4585631277
A38: Category V LED L2 Medium Output | C38: =IF('DNSP Inputs General'!E75="","",'DNSP Inputs General'!E75) -> 59.95185723 | D38: ='DNSP Inputs General'!$D75*D37 -> 55.14339326 | E38: ='DNSP Inputs General'!$D75*E37 -> 59.14228307 | F38: ='DNSP Inputs General'!$D75*F37 -> 63.17640533 | G38: ='DNSP Inputs General'!$D75*G37 -> 67.50338209 | H38: ='DNSP Inputs General'!$D75*H37 -> 72.1528254 | J38: -0.08020542139 | K38: 0.07251802204 | L38: 0.06821045883 | M38: 0.06849039186 | N38: 0.06887719054 | P38: =IF(C38="","",(D38/'Charges Summary'!D$4)/(C38/'Charges Summary'!C$4)-1) -> -0.10153769 | Q38: =IF(D38="","",(E38/'Charges Summary'!E$4)/(D38/'Charges Summary'!D$4)-1) -> 0.04764372612 | R38: =IF(E38="","",(F38/'Charges Summary'!F$4)/(E38/'Charges Summary'!E$4)-1) -> 0.04343606576 | S38: =IF(F38="","",(G38/'Charges Summary'!G$4)/(F38/'Charges Summary'!F$4)-1) -> 0.04370950647 | T38: =IF(G38="","",(H38/'Charges Summary'!H$4)/(G38/'Charges Summary'!G$4)-1) -> 0.04408733434 | V38: =SUM('DNSP Inputs General'!Q75:U75)/5 -> 865.9965772 | W38: 0.006958566838 | Y38: 55.14339326 | Z38: 58.99027507 | AA38: 62.8623294 | AB38: 67.03197188 | AC38: 71.57658778 | AE38: 0 | AF38: 0.1520079928 | AG38: 0.3140759343 | AH38: 0.4714102106 | AI38: 0.5762376181
A39: Category V LED L4 High Output | C39: =IF('DNSP Inputs General'!E76="","",'DNSP Inputs General'!E76) -> 63.18341986 | D39: ='DNSP Inputs General'!$D76*D37 -> 58.11576705 | E39: ='DNSP Inputs General'!$D76*E37 -> 62.33020752 | F39: ='DNSP Inputs General'!$D76*F37 -> 66.58177958 | G39: ='DNSP Inputs General'!$D76*G37 -> 71.14199175 | H39: ='DNSP Inputs General'!$D76*H37 -> 76.04205227 | J39: -0.08020542139 | K39: 0.07251802204 | L39: 0.06821045883 | M39: 0.06849039186 | N39: 0.06887719054 | P39: =IF(C39="","",(D39/'Charges Summary'!D$4)/(C39/'Charges Summary'!C$4)-1) -> -0.10153769 | Q39: =IF(D39="","",(E39/'Charges Summary'!E$4)/(D39/'Charges Summary'!D$4)-1) -> 0.04764372612 | R39: =IF(E39="","",(F39/'Charges Summary'!F$4)/(E39/'Charges Summary'!E$4)-1) -> 0.04343606576 | S39: =IF(F39="","",(G39/'Charges Summary'!G$4)/(F39/'Charges Summary'!F$4)-1) -> 0.04370950647 | T39: =IF(G39="","",(H39/'Charges Summary'!H$4)/(G39/'Charges Summary'!G$4)-1) -> 0.04408733434 | V39: =SUM('DNSP Inputs General'!Q76:U76)/5 -> 463.2074715 | W39: 0.003722024123 | Y39: 58.11576705 | Z39: 62.1700059 | AA39: 66.25077412 | AB39: 70.64517129 | AC39: 75.43475393 | AE39: 0 | AF39: 0.1602016231 | AG39: 0.3310054524 | AH39: 0.4968204596 | AI39: 0.6072983398
V41: =SUM(V6:V40) -> 124450.4217 | W41: 1
A42: Revenue - Nominal ($,000) | D42: ='Cashflow Summary'!D42/10^3 -> 6626.888269 | E42: ='Cashflow Summary'!E42/10^3 -> 6593.190246 | F42: ='Cashflow Summary'!F42/10^3 -> 6634.867445 | G42: ='Cashflow Summary'!G42/10^3 -> 6811.69271 | H42: ='Cashflow Summary'!H42/10^3 -> 7050.074209 | Y42: 6626.888269 | Z42: 6578.374869 | AA42: 6605.409574 | AB42: 6769.190397 | AC42: 6999.550313 | AE42: =D42-Y42 -> 0 | AF42: =E42-Z42 -> 14.81537673 | AG42: =F42-AA42 -> 29.45787103 | AH42: =G42-AB42 -> 42.50231322 | AI42: =H42-AC42 -> 50.52389632
AI44: =SUM(AE42:AI42)/SUM(Y42:AC42) -> 0.004088798562
A45: Written down value (WDV) | D45: =AVERAGE('Charges Summary'!D58,'Charges Summary'!D81) -> 250.8644026 | E45: =AVERAGE('Charges Summary'!E58,'Charges Summary'!E81) -> 233.8986278 | F45: =AVERAGE('Charges Summary'!F58,'Charges Summary'!F81) -> 211.7016931 | G45: =AVERAGE('Charges Summary'!G58,'Charges Summary'!G81) -> 191.0083742 | H45: =AVERAGE('Charges Summary'!H58,'Charges Summary'!H81) -> 167.3259461 | K45: =IF(D45="","",E45/D45-1) -> -0.06762926367 | L45: =IF(E45="","",F45/E45-1) -> -0.09489980728 | M45: =IF(F45="","",G45/F45-1) -> -0.09774753628 | N45: =IF(G45="","",H45/G45-1) -> -0.1239863341 | P45: =IF(C45="","",(D45/'Charges Summary'!D$4)/C45-1) ->  | Q45: =IF(D45="","",(E45/'Charges Summary'!E$4)/(D45/'Charges Summary'!D$4)-1) -> -0.08925320389 | R45: =IF(E45="","",(F45/'Charges Summary'!F$4)/(E45/'Charges Summary'!E$4)-1) -> -0.1158912774 | S45: =IF(F45="","",(G45/'Charges Summary'!G$4)/(F45/'Charges Summary'!F$4)-1) -> -0.1186729607 | T45: =IF(G45="","",(H45/'Charges Summary'!H$4)/(G45/'Charges Summary'!G$4)-1) -> -0.144303217
A47: Avoided cost | D47: =AVERAGE('Charges Summary'!D63,'Charges Summary'!D86) -> -27.41288699 | E47: =AVERAGE('Charges Summary'!E63,'Charges Summary'!E86) -> -28.15591065 | F47: =AVERAGE('Charges Summary'!F63,'Charges Summary'!F86) -> -28.94293546 | G47: =AVERAGE('Charges Summary'!G63,'Charges Summary'!G86) -> -29.8024522 | H47: =AVERAGE('Charges Summary'!H63,'Charges Summary'!H86) -> -30.73485807 | J47: =IF(C47="","",D47/C47-1) ->  | K47: =IF(D47="","",E47/D47-1) -> 0.02710490344 | L47: 0.0279523836 | M47: 0.02969694421 | N47: 0.0312862129 | P47: =IF(C47="","",(D47/'Charges Summary'!D$4)/C47-1) ->  | Q47: =IF(D47="","",(E47/'Charges Summary'!E$4)/(D47/'Charges Summary'!D$4)-1) -> 0.003283847961 | R47: =IF(E47="","",(F47/'Charges Summary'!F$4)/(E47/'Charges Summary'!E$4)-1) -> 0.004111672998 | S47: =IF(F47="","",(G47/'Charges Summary'!G$4)/(F47/'Charges Summary'!F$4)-1) -> 0.005815773013 | T47: =IF(G47="","",(H47/'Charges Summary'!H$4)/(G47/'Charges Summary'!G$4)-1) -> 0.007368182706

Sheet PL Tariff Components
A1: ='DNSP Inputs O & M'!$A$3 -> United Energy | E1: Global Check | F1: =IF(SUM('Total RAB'!F1,'Depn & WACC Post 2004'!F1,'Cashflow Summary'!F1,W1)<1,"Ok","Error") -> Ok | V1: Check | W1: =SUM(V6:Z34) -> 8.597567103e-13
A3: Public Lighting Tariffs | C3: Total Tariff | J3: Operations, maintenance and repair Tariff | P3: Replacement Tariff | V3: Check
C4: Actual
A5: ='DNSP Inputs General'!A$40 -> Existing Lights | C5: 2020 | D5: ='DNSP Inputs General'!Q$2 -> 2021/22 | E5: ='DNSP Inputs General'!R$2 -> 2022/23 | F5: ='DNSP Inputs General'!S$2 -> 2023/24 | G5: ='DNSP Inputs General'!T$2 -> 2024/25 | H5: ='DNSP Inputs General'!U$2 -> 2025/26 | J5: =D5 -> 2021/22 | K5: =E5 -> 2022/23 | L5: 2023/24 | M5: 2024/25 | N5: 2025/26 | P5: =J5 -> 2021/22 | Q5: =K5 -> 2022/23 | R5: 2023/24 | S5: 2024/25 | T5: 2025/26 | V5: =P5 -> 2021/22 | W5: =Q5 -> 2022/23 | X5: =R5 -> 2023/24 | Y5: =S5 -> 2024/25 | Z5: =T5 -> 2025/26
A6: ='DNSP Inputs General'!A41 -> Mercury Vapour 80 watt | C6: ='DNSP Inputs General'!E41*(1+'DNSP Inputs General'!$D$31) -> 64.19892897 | D6: ='Charges Summary'!D$31 -> 95.25729964 | E6: ='Charges Summary'!E$31 -> 91.77144507 | F6: ='Charges Summary'!F$31 -> 83.16046647 | G6: ='Charges Summary'!G$31 -> 85.89234222 | H6: ='Charges Summary'!H$31 -> 87.75290075 | J6: =SUM('Charges Summary'!D25,'Charges Summary'!D8) -> 36.6457535 | K6: =SUM('Charges Summary'!E25,'Charges Summary'!E8) -> 37.62248109 | L6: =SUM('Charges Summary'!F25,'Charges Summary'!F8) -> 38.65626637 | M6: =SUM('Charges Summary'!G25,'Charges Summary'!G8) -> 39.79571486 | N6: =SUM('Charges Summary'!H25,'Charges Summary'!H8) -> 41.03682216 | P6: =SUM('Charges Summary'!D27,'Charges Summary'!D11) -> 58.61154614 | Q6: =SUM('Charges Summary'!E27,'Charges Summary'!E11) -> 54.14896398 | R6: =SUM('Charges Summary'!F27,'Charges Summary'!F11) -> 44.50420009 | S6: =SUM('Charges Summary'!G27,'Charges Summary'!G11) -> 46.09662736 | T6: =SUM('Charges Summary'!H27,'Charges Summary'!H11) -> 46.71607858 | V6: =ABS(D6-J6-P6) -> 0 | W6: =ABS(E6-K6-Q6) -> 7.105427358e-15 | X6: =ABS(F6-L6-R6) -> 0 | Y6: =ABS(G6-M6-S6) -> 7.105427358e-15 | Z6: =ABS(H6-N6-T6) -> 0
A7: ='DNSP Inputs General'!A42 -> Sodium High Pressure 150 watt | C7: ='DNSP Inputs General'!E42*(1+'DNSP Inputs General'!$D$31) -> 83.14841351 | D7: ='Charges Summary'!D$55 -> 131.6372472 | E7: ='Charges Summary'!E$55 -> 129.2887083 | F7: ='Charges Summary'!F$55 -> 128.8654524 | G7: ='Charges Summary'!G$55 -> 132.8954156 | H7: ='Charges Summary'!H$55 -> 135.9823329 | J7: =SUM('Charges Summary'!D49,'Charges Summary'!D8) -> 73.94702019 | K7: =SUM('Charges Summary'!E49,'Charges Summary'!E8) -> 75.96410545 | L7: =SUM('Charges Summary'!F49,'Charges Summary'!F8) -> 78.10250536 | M7: =SUM('Charges Summary'!G49,'Charges Summary'!G8) -> 80.44941876 | N7: =SUM('Charges Summary'!H49,'Charges Summary'!H8) -> 83.00048299 | P7: =SUM('Charges Summary'!D51,'Charges Summary'!D11) -> 57.69022697 | Q7: =SUM('Charges Summary'!E51,'Charges Summary'!E11) -> 53.32460282 | R7: =SUM('Charges Summary'!F51,'Charges Summary'!F11) -> 50.76294706 | S7: =SUM('Charges Summary'!G51,'Charges Summary'!G11) -> 52.4459968 | T7: =SUM('Charges Summary'!H51,'Charges Summary'!H11) -> 52.98184992 | V7: =ABS(D7-J7-P7) -> 0 | W7: 1.421085472e-14 | X7: 7.105427358e-15 | Y7: 7.105427358e-15 | Z7: 0
A8: ='DNSP Inputs General'!A43 -> Sodium High Pressure 250 watt | C8: ='DNSP Inputs General'!E43*(1+'DNSP Inputs General'!$D$31) -> 85.03210079 | D8: ='Charges Summary'!D$78 -> 134.3980788 | E8: ='Charges Summary'!E$78 -> 131.7811357 | F8: ='Charges Summary'!F$78 -> 129.6661412 | G8: ='Charges Summary'!G$78 -> 133.7107075 | H8: ='Charges Summary'!H$78 -> 136.7947316 | J8: =SUM('Charges Summary'!D72,'Charges Summary'!D8) -> 74.1079792 | K8: =SUM('Charges Summary'!E72,'Charges Summary'!E8) -> 76.13026628 | L8: =SUM('Charges Summary'!F72,'Charges Summary'!F8) -> 78.27409011 | M8: =SUM('Charges Summary'!G72,'Charges Summary'!G8) -> 80.62649763 | N8: =SUM('Charges Summary'!H72,'Charges Summary'!H8) -> 83.18307158 | P8: =SUM('Charges Summary'!D74,'Charges Summary'!D11) -> 60.29009961 | Q8: =SUM('Charges Summary'!E74,'Charges Summary'!E11) -> 55.65086944 | R8: =SUM('Charges Summary'!F74,'Charges Summary'!F11) -> 51.39205108 | S8: =SUM('Charges Summary'!G74,'Charges Summary'!G11) -> 53.08420982 | T8: =SUM('Charges Summary'!H74,'Charges Summary'!H11) -> 53.61166 | V8: 0 | W8: 0 | X8: 1.421085472e-14 | Y8: 1.421085472e-14 | Z8: 7.105427358e-15
A9: ='DNSP Inputs General'!A44 -> Fluorescent 2x20 watt | C9: ='DNSP Inputs General'!E44*(1+'DNSP Inputs General'!$D$31) -> 82.81057829 | D9: =IF('DNSP Inputs General'!$B44='DNSP Inputs General'!$A$41,D$6,IF('DNSP Inputs General'!$B44='DNSP Inputs General'!$A$42,D$7,D$8))*'DNSP Inputs General'!$D44 -> 122.8819165 | E9: =IF('DNSP Inputs General'!$B44='DNSP Inputs General'!$A$41,E$6,IF('DNSP Inputs General'!$B44='DNSP Inputs General'!$A$42,E$7,E$8))*'DNSP Inputs General'!$D44 -> 118.3851641 | F9: =IF('DNSP Inputs General'!$B44='DNSP Inputs General'!$A$41,F$6,IF('DNSP Inputs General'!$B44='DNSP Inputs General'!$A$42,F$7,F$8))*'DNSP Inputs General'!$D44 -> 107.2770017 | G9: =IF('DNSP Inputs General'!$B44='DNSP Inputs General'!$A$41,G$6,IF('DNSP Inputs General'!$B44='DNSP Inputs General'!$A$42,G$7,G$8))*'DNSP Inputs General'!$D44 -> 110.8011215 | H9: =IF('DNSP Inputs General'!$B44='DNSP Inputs General'!$A$41,H$6,IF('DNSP Inputs General'!$B44='DNSP Inputs General'!$A$42,H$7,H$8))*'DNSP Inputs General'!$D44 -> 113.201242 | J9: =IF('DNSP Inputs General'!$B44='DNSP Inputs General'!$A$41,J$6,IF('DNSP Inputs General'!$B44='DNSP Inputs General'!$A$42,J$7,J$8))*'DNSP Inputs General'!$D44 -> 47.27302202 | K9: =IF('DNSP Inputs General'!$B44='DNSP Inputs General'!$A$41,K$6,IF('DNSP Inputs General'!$B44='DNSP Inputs General'!$A$42,K$7,K$8))*'DNSP Inputs General'!$D44 -> 48.5330006 | L9: =IF('DNSP Inputs General'!$B44='DNSP Inputs General'!$A$41,L$6,IF('DNSP Inputs General'!$B44='DNSP Inputs General'!$A$42,L$7,L$8))*'DNSP Inputs General'!$D44 -> 49.86658362 | M9: =IF('DNSP Inputs General'!$B44='DNSP Inputs General'!$A$41,M$6,IF('DNSP Inputs General'!$B44='DNSP Inputs General'!$A$42,M$7,M$8))*'DNSP Inputs General'!$D44 -> 51.33647217 | N9: =IF('DNSP Inputs General'!$B44='DNSP Inputs General'!$A$41,N$6,IF('DNSP Inputs General'!$B44='DNSP Inputs General'!$A$42,N$7,N$8))*'DNSP Inputs General'!$D44 -> 52.93750059 | P9: =IF('DNSP Inputs General'!$B44='DNSP Inputs General'!$A$41,P$6,IF('DNSP Inputs General'!$B44='DNSP Inputs General'!$A$42,P$7,P$8))*'DNSP Inputs General'!$D44 -> 75.60889452 | Q9: =IF('DNSP Inputs General'!$B44='DNSP Inputs General'!$A$41,Q$6,IF('DNSP Inputs General'!$B44='DNSP Inputs General'!$A$42,Q$7,Q$8))*'DNSP Inputs General'!$D44 -> 69.85216353 | R9: =IF('DNSP Inputs General'!$B44='DNSP Inputs General'!$A$41,R$6,IF('DNSP Inputs General'!$B44='DNSP Inputs General'!$A$42,R$7,R$8))*'DNSP Inputs General'!$D44 -> 57.41041812 | S9: =IF('DNSP Inputs General'!$B44='DNSP Inputs General'!$A$41,S$6,IF('DNSP Inputs General'!$B44='DNSP Inputs General'!$A$42,S$7,S$8))*'DNSP Inputs General'!$D44 -> 59.46464929 | T9: =IF('DNSP Inputs General'!$B44='DNSP Inputs General'!$A$41,T$6,IF('DNSP Inputs General'!$B44='DNSP Inputs General'!$A$42,T$7,T$8))*'DNSP Inputs General'!$D44 -> 60.26374137 | V9: 0 | W9: 1.421085472e-14 | X9: 0 | Y9: 0 | Z9: 7.105427358e-15
A10: ='DNSP Inputs General'!A45 -> Fluorescent 3x20 watt | C10: ='DNSP Inputs General'!E45*(1+'DNSP Inputs General'!$D$31) -> 82.81057829 | D10: =IF('DNSP Inputs General'!$B45='DNSP Inputs General'!$A$41,D$6,IF('DNSP Inputs General'!$B45='DNSP Inputs General'!$A$42,D$7,D$8))*'DNSP Inputs General'!$D45 -> 122.8819165 | E10: =IF('DNSP Inputs General'!$B45='DNSP Inputs General'!$A$41,E$6,IF('DNSP Inputs General'!$B45='DNSP Inputs General'!$A$42,E$7,E$8))*'DNSP Inputs General'!$D45 -> 118.3851641 | F10: =IF('DNSP Inputs General'!$B45='DNSP Inputs General'!$A$41,F$6,IF('DNSP Inputs General'!$B45='DNSP Inputs General'!$A$42,F$7,F$8))*'DNSP Inputs General'!$D45 -> 107.2770017 | G10: =IF('DNSP Inputs General'!$B45='DNSP Inputs General'!$A$41,G$6,IF('DNSP Inputs General'!$B45='DNSP Inputs General'!$A$42,G$7,G$8))*'DNSP Inputs General'!$D45 -> 110.8011215 | H10: =IF('DNSP Inputs General'!$B45='DNSP Inputs General'!$A$41,H$6,IF('DNSP Inputs General'!$B45='DNSP Inputs General'!$A$42,H$7,H$8))*'DNSP Inputs General'!$D45 -> 113.201242 | J10: =IF('DNSP Inputs General'!$B45='DNSP Inputs General'!$A$41,J$6,IF('DNSP Inputs General'!$B45='DNSP Inputs General'!$A$42,J$7,J$8))*'DNSP Inputs General'!$D45 -> 47.27302202 | K10: =IF('DNSP Inputs General'!$B45='DNSP Inputs General'!$A$41,K$6,IF('DNSP Inputs General'!$B45='DNSP Inputs General'!$A$42,K$7,K$8))*'DNSP Inputs General'!$D45 -> 48.5330006 | L10: =IF('DNSP Inputs General'!$B45='DNSP Inputs General'!$A$41,L$6,IF('DNSP Inputs General'!$B45='DNSP Inputs General'!$A$42,L$7,L$8))*'DNSP Inputs General'!$D45 -> 49.86658362 | M10: =IF('DNSP Inputs General'!$B45='DNSP Inputs General'!$A$41,M$6,IF('DNSP Inputs General'!$B45='DNSP Inputs General'!$A$42,M$7,M$8))*'DNSP Inputs General'!$D45 -> 51.33647217 | N10: =IF('DNSP Inputs General'!$B45='DNSP Inputs General'!$A$41,N$6,IF('DNSP Inputs General'!$B45='DNSP Inputs General'!$A$42,N$7,N$8))*'DNSP Inputs General'!$D45 -> 52.93750059 | P10: =IF('DNSP Inputs General'!$B45='DNSP Inputs General'!$A$41,P$6,IF('DNSP Inputs General'!$B45='DNSP Inputs General'!$A$42,P$7,P$8))*'DNSP Inputs General'!$D45 -> 75.60889452 | Q10: =IF('DNSP Inputs General'!$B45='DNSP Inputs General'!$A$41,Q$6,IF('DNSP Inputs General'!$B45='DNSP Inputs General'!$A$42,Q$7,Q$8))*'DNSP Inputs General'!$D45 -> 69.85216353 | R10: =IF('DNSP Inputs General'!$B45='DNSP Inputs General'!$A$41,R$6,IF('DNSP Inputs General'!$B45='DNSP Inputs General'!$A$42,R$7,R$8))*'DNSP Inputs General'!$D45 -> 57.41041812 | S10: =IF('DNSP Inputs General'!$B45='DNSP Inputs General'!$A$41,S$6,IF('DNSP Inputs General'!$B45='DNSP Inputs General'!$A$42,S$7,S$8))*'DNSP Inputs General'!$D45 -> 59.46464929 | T10: =IF('DNSP Inputs General'!$B45='DNSP Inputs General'!$A$41,T$6,IF('DNSP Inputs General'!$B45='DNSP Inputs General'!$A$42,T$7,T$8))*'DNSP Inputs General'!$D45 -> 60.26374137 | V10: 0 | W10: 1.421085472e-14 | X10: 0 | Y10: 0 | Z10: 7.105427358e-15
A11: ='DNSP Inputs General'!A46 -> Mercury Vapour 50 watt | C11: ='DNSP Inputs General'!E46*(1+'DNSP Inputs General'!$D$31) -> 95.01359588 | D11: =IF('DNSP Inputs General'!$B46='DNSP Inputs General'!$A$41,D$6,IF('DNSP Inputs General'!$B46='DNSP Inputs General'!$A$42,D$7,D$8))*'DNSP Inputs General'!$D46 -> 140.9808035 | E11: =IF('DNSP Inputs General'!$B46='DNSP Inputs General'!$A$41,E$6,IF('DNSP Inputs General'!$B46='DNSP Inputs General'!$A$42,E$7,E$8))*'DNSP Inputs General'!$D46 -> 135.8217387 | F11: =IF('DNSP Inputs General'!$B46='DNSP Inputs General'!$A$41,F$6,IF('DNSP Inputs General'!$B46='DNSP Inputs General'!$A$42,F$7,F$8))*'DNSP Inputs General'!$D46 -> 123.0774904 | G11: =IF('DNSP Inputs General'!$B46='DNSP Inputs General'!$A$41,G$6,IF('DNSP Inputs General'!$B46='DNSP Inputs General'!$A$42,G$7,G$8))*'DNSP Inputs General'!$D46 -> 127.1206665 | H11: =IF('DNSP Inputs General'!$B46='DNSP Inputs General'!$A$41,H$6,IF('DNSP Inputs General'!$B46='DNSP Inputs General'!$A$42,H$7,H$8))*'DNSP Inputs General'!$D46 -> 129.8742931 | J11: =IF('DNSP Inputs General'!$B46='DNSP Inputs General'!$A$41,J$6,IF('DNSP Inputs General'!$B46='DNSP Inputs General'!$A$42,J$7,J$8))*'DNSP Inputs General'!$D46 -> 54.23571518 | K11: =IF('DNSP Inputs General'!$B46='DNSP Inputs General'!$A$41,K$6,IF('DNSP Inputs General'!$B46='DNSP Inputs General'!$A$42,K$7,K$8))*'DNSP Inputs General'!$D46 -> 55.68127201 | L11: =IF('DNSP Inputs General'!$B46='DNSP Inputs General'!$A$41,L$6,IF('DNSP Inputs General'!$B46='DNSP Inputs General'!$A$42,L$7,L$8))*'DNSP Inputs General'!$D46 -> 57.21127423 | M11: =IF('DNSP Inputs General'!$B46='DNSP Inputs General'!$A$41,M$6,IF('DNSP Inputs General'!$B46='DNSP Inputs General'!$A$42,M$7,M$8))*'DNSP Inputs General'!$D46 -> 58.89765799 | N11: =IF('DNSP Inputs General'!$B46='DNSP Inputs General'!$A$41,N$6,IF('DNSP Inputs General'!$B46='DNSP Inputs General'!$A$42,N$7,N$8))*'DNSP Inputs General'!$D46 -> 60.7344968 | P11: =IF('DNSP Inputs General'!$B46='DNSP Inputs General'!$A$41,P$6,IF('DNSP Inputs General'!$B46='DNSP Inputs General'!$A$42,P$7,P$8))*'DNSP Inputs General'!$D46 -> 86.74508828 | Q11: =IF('DNSP Inputs General'!$B46='DNSP Inputs General'!$A$41,Q$6,IF('DNSP Inputs General'!$B46='DNSP Inputs General'!$A$42,Q$7,Q$8))*'DNSP Inputs General'!$D46 -> 80.14046669 | R11: =IF('DNSP Inputs General'!$B46='DNSP Inputs General'!$A$41,R$6,IF('DNSP Inputs General'!$B46='DNSP Inputs General'!$A$42,R$7,R$8))*'DNSP Inputs General'!$D46 -> 65.86621614 | S11: =IF('DNSP Inputs General'!$B46='DNSP Inputs General'!$A$41,S$6,IF('DNSP Inputs General'!$B46='DNSP Inputs General'!$A$42,S$7,S$8))*'DNSP Inputs General'!$D46 -> 68.22300849 | T11: =IF('DNSP Inputs General'!$B46='DNSP Inputs General'!$A$41,T$6,IF('DNSP Inputs General'!$B46='DNSP Inputs General'!$A$42,T$7,T$8))*'DNSP Inputs General'!$D46 -> 69.1397963 | V11: 0 | W11: 2.842170943e-14 | X11: 0 | Y11: 1.421085472e-14 | Z11: 1.421085472e-14
A12: ='DNSP Inputs General'!A47 -> Mercury Vapour 125 watt | C12: ='DNSP Inputs General'!E47*(1+'DNSP Inputs General'!$D$31) -> 95.01359588 | D12: =IF('DNSP Inputs General'!$B47='DNSP Inputs General'!$A$41,D$6,IF('DNSP Inputs General'!$B47='DNSP Inputs General'!$A$42,D$7,D$8))*'DNSP Inputs General'!$D47 -> 140.9808035 | E12: =IF('DNSP Inputs General'!$B47='DNSP Inputs General'!$A$41,E$6,IF('DNSP Inputs General'!$B47='DNSP Inputs General'!$A$42,E$7,E$8))*'DNSP Inputs General'!$D47 -> 135.8217387 | F12: =IF('DNSP Inputs General'!$B47='DNSP Inputs General'!$A$41,F$6,IF('DNSP Inputs General'!$B47='DNSP Inputs General'!$A$42,F$7,F$8))*'DNSP Inputs General'!$D47 -> 123.0774904 | G12: =IF('DNSP Inputs General'!$B47='DNSP Inputs General'!$A$41,G$6,IF('DNSP Inputs General'!$B47='DNSP Inputs General'!$A$42,G$7,G$8))*'DNSP Inputs General'!$D47 -> 127.1206665 | H12: =IF('DNSP Inputs General'!$B47='DNSP Inputs General'!$A$41,H$6,IF('DNSP Inputs General'!$B47='DNSP Inputs General'!$A$42,H$7,H$8))*'DNSP Inputs General'!$D47 -> 129.8742931 | J12: =IF('DNSP Inputs General'!$B47='DNSP Inputs General'!$A$41,J$6,IF('DNSP Inputs General'!$B47='DNSP Inputs General'!$A$42,J$7,J$8))*'DNSP Inputs General'!$D47 -> 54.23571518 | K12: =IF('DNSP Inputs General'!$B47='DNSP Inputs General'!$A$41,K$6,IF('DNSP Inputs General'!$B47='DNSP Inputs General'!$A$42,K$7,K$8))*'DNSP Inputs General'!$D47 -> 55.68127201 | L12: =IF('DNSP Inputs General'!$B47='DNSP Inputs General'!$A$41,L$6,IF('DNSP Inputs General'!$B47='DNSP Inputs General'!$A$42,L$7,L$8))*'DNSP Inputs General'!$D47 -> 57.21127423 | M12: =IF('DNSP Inputs General'!$B47='DNSP Inputs General'!$A$41,M$6,IF('DNSP Inputs General'!$B47='DNSP Inputs General'!$A$42,M$7,M$8))*'DNSP Inputs General'!$D47 -> 58.89765799 | N12: =IF('DNSP Inputs General'!$B47='DNSP Inputs General'!$A$41,N$6,IF('DNSP Inputs General'!$B47='DNSP Inputs General'!$A$42,N$7,N$8))*'DNSP Inputs General'!$D47 -> 60.7344968 | P12: =IF('DNSP Inputs General'!$B47='DNSP Inputs General'!$A$41,P$6,IF('DNSP Inputs General'!$B47='DNSP Inputs General'!$A$42,P$7,P$8))*'DNSP Inputs General'!$D47 -> 86.74508828 | Q12: =IF('DNSP Inputs General'!$B47='DNSP Inputs General'!$A$41,Q$6,IF('DNSP Inputs General'!$B47='DNSP Inputs General'!$A$42,Q$7,Q$8))*'DNSP Inputs General'!$D47 -> 80.14046669 | R12: =IF('DNSP Inputs General'!$B47='DNSP Inputs General'!$A$41,R$6,IF('DNSP Inputs General'!$B47='DNSP Inputs General'!$A$42,R$7,R$8))*'DNSP Inputs General'!$D47 -> 65.86621614 | S12: =IF('DNSP Inputs General'!$B47='DNSP Inputs General'!$A$41,S$6,IF('DNSP Inputs General'!$B47='DNSP Inputs General'!$A$42,S$7,S$8))*'DNSP Inputs General'!$D47 -> 68.22300849 | T12: =IF('DNSP Inputs General'!$B47='DNSP Inputs General'!$A$41,T$6,IF('DNSP Inputs General'!$B47='DNSP Inputs General'!$A$42,T$7,T$8))*'DNSP Inputs General'!$D47 -> 69.1397963 | V12: 0 | W12: 2.842170943e-14 | X12: 0 | Y12: 1.421085472e-14 | Z12: 1.421085472e-14
A13: ='DNSP Inputs General'!A48 -> Mercury Vapour 250 watt | C13: ='DNSP Inputs General'!E48*(1+'DNSP Inputs General'!$D$31) -> 77.3745025 | D13: =IF('DNSP Inputs General'!$B48='DNSP Inputs General'!$A$41,D$6,IF('DNSP Inputs General'!$B48='DNSP Inputs General'!$A$42,D$7,D$8))*'DNSP Inputs General'!$D48 -> 122.3022517 | E13: =IF('DNSP Inputs General'!$B48='DNSP Inputs General'!$A$41,E$6,IF('DNSP Inputs General'!$B48='DNSP Inputs General'!$A$42,E$7,E$8))*'DNSP Inputs General'!$D48 -> 119.9208335 | F13: =IF('DNSP Inputs General'!$B48='DNSP Inputs General'!$A$41,F$6,IF('DNSP Inputs General'!$B48='DNSP Inputs General'!$A$42,F$7,F$8))*'DNSP Inputs General'!$D48 -> 117.9961885 | G13: =IF('DNSP Inputs General'!$B48='DNSP Inputs General'!$A$41,G$6,IF('DNSP Inputs General'!$B48='DNSP Inputs General'!$A$42,G$7,G$8))*'DNSP Inputs General'!$D48 -> 121.6767438 | H13: =IF('DNSP Inputs General'!$B48='DNSP Inputs General'!$A$41,H$6,IF('DNSP Inputs General'!$B48='DNSP Inputs General'!$A$42,H$7,H$8))*'DNSP Inputs General'!$D48 -> 124.4832057 | J13: =IF('DNSP Inputs General'!$B48='DNSP Inputs General'!$A$41,J$6,IF('DNSP Inputs General'!$B48='DNSP Inputs General'!$A$42,J$7,J$8))*'DNSP Inputs General'!$D48 -> 67.43826107 | K13: =IF('DNSP Inputs General'!$B48='DNSP Inputs General'!$A$41,K$6,IF('DNSP Inputs General'!$B48='DNSP Inputs General'!$A$42,K$7,K$8))*'DNSP Inputs General'!$D48 -> 69.27854232 | L13: =IF('DNSP Inputs General'!$B48='DNSP Inputs General'!$A$41,L$6,IF('DNSP Inputs General'!$B48='DNSP Inputs General'!$A$42,L$7,L$8))*'DNSP Inputs General'!$D48 -> 71.229422 | M13: =IF('DNSP Inputs General'!$B48='DNSP Inputs General'!$A$41,M$6,IF('DNSP Inputs General'!$B48='DNSP Inputs General'!$A$42,M$7,M$8))*'DNSP Inputs General'!$D48 -> 73.37011284 | N13: =IF('DNSP Inputs General'!$B48='DNSP Inputs General'!$A$41,N$6,IF('DNSP Inputs General'!$B48='DNSP Inputs General'!$A$42,N$7,N$8))*'DNSP Inputs General'!$D48 -> 75.69659513 | P13: =IF('DNSP Inputs General'!$B48='DNSP Inputs General'!$A$41,P$6,IF('DNSP Inputs General'!$B48='DNSP Inputs General'!$A$42,P$7,P$8))*'DNSP Inputs General'!$D48 -> 54.86399064 | Q13: =IF('DNSP Inputs General'!$B48='DNSP Inputs General'!$A$41,Q$6,IF('DNSP Inputs General'!$B48='DNSP Inputs General'!$A$42,Q$7,Q$8))*'DNSP Inputs General'!$D48 -> 50.64229119 | R13: =IF('DNSP Inputs General'!$B48='DNSP Inputs General'!$A$41,R$6,IF('DNSP Inputs General'!$B48='DNSP Inputs General'!$A$42,R$7,R$8))*'DNSP Inputs General'!$D48 -> 46.76676648 | S13: =IF('DNSP Inputs General'!$B48='DNSP Inputs General'!$A$41,S$6,IF('DNSP Inputs General'!$B48='DNSP Inputs General'!$A$42,S$7,S$8))*'DNSP Inputs General'!$D48 -> 48.30663094 | T13: =IF('DNSP Inputs General'!$B48='DNSP Inputs General'!$A$41,T$6,IF('DNSP Inputs General'!$B48='DNSP Inputs General'!$A$42,T$7,T$8))*'DNSP Inputs General'!$D48 -> 48.7866106 | V13: 7.105427358e-15 | W13: 7.105427358e-15 | X13: 7.105427358e-15 | Y13: 7.105427358e-15 | Z13: 7.105427358e-15
A14: ='DNSP Inputs General'!A49 -> Mercury Vapour 400 watt | C14: ='DNSP Inputs General'!E49*(1+'DNSP Inputs General'!$D$31) -> 107.134714 | D14: =IF('DNSP Inputs General'!$B49='DNSP Inputs General'!$A$41,D$6,IF('DNSP Inputs General'!$B49='DNSP Inputs General'!$A$42,D$7,D$8))*'DNSP Inputs General'!$D49 -> 169.3415793 | E14: =IF('DNSP Inputs General'!$B49='DNSP Inputs General'!$A$41,E$6,IF('DNSP Inputs General'!$B49='DNSP Inputs General'!$A$42,E$7,E$8))*'DNSP Inputs General'!$D49 -> 166.044231 | F14: =IF('DNSP Inputs General'!$B49='DNSP Inputs General'!$A$41,F$6,IF('DNSP Inputs General'!$B49='DNSP Inputs General'!$A$42,F$7,F$8))*'DNSP Inputs General'!$D49 -> 163.3793379 | G14: =IF('DNSP Inputs General'!$B49='DNSP Inputs General'!$A$41,G$6,IF('DNSP Inputs General'!$B49='DNSP Inputs General'!$A$42,G$7,G$8))*'DNSP Inputs General'!$D49 -> 168.4754914 | H14: =IF('DNSP Inputs General'!$B49='DNSP Inputs General'!$A$41,H$6,IF('DNSP Inputs General'!$B49='DNSP Inputs General'!$A$42,H$7,H$8))*'DNSP Inputs General'!$D49 -> 172.3613618 | J14: =IF('DNSP Inputs General'!$B49='DNSP Inputs General'!$A$41,J$6,IF('DNSP Inputs General'!$B49='DNSP Inputs General'!$A$42,J$7,J$8))*'DNSP Inputs General'!$D49 -> 93.37605379 | K14: =IF('DNSP Inputs General'!$B49='DNSP Inputs General'!$A$41,K$6,IF('DNSP Inputs General'!$B49='DNSP Inputs General'!$A$42,K$7,K$8))*'DNSP Inputs General'!$D49 -> 95.92413552 | L14: =IF('DNSP Inputs General'!$B49='DNSP Inputs General'!$A$41,L$6,IF('DNSP Inputs General'!$B49='DNSP Inputs General'!$A$42,L$7,L$8))*'DNSP Inputs General'!$D49 -> 98.62535354 | M14: =IF('DNSP Inputs General'!$B49='DNSP Inputs General'!$A$41,M$6,IF('DNSP Inputs General'!$B49='DNSP Inputs General'!$A$42,M$7,M$8))*'DNSP Inputs General'!$D49 -> 101.589387 | N14: =IF('DNSP Inputs General'!$B49='DNSP Inputs General'!$A$41,N$6,IF('DNSP Inputs General'!$B49='DNSP Inputs General'!$A$42,N$7,N$8))*'DNSP Inputs General'!$D49 -> 104.8106702 | P14: =IF('DNSP Inputs General'!$B49='DNSP Inputs General'!$A$41,P$6,IF('DNSP Inputs General'!$B49='DNSP Inputs General'!$A$42,P$7,P$8))*'DNSP Inputs General'!$D49 -> 75.96552551 | Q14: =IF('DNSP Inputs General'!$B49='DNSP Inputs General'!$A$41,Q$6,IF('DNSP Inputs General'!$B49='DNSP Inputs General'!$A$42,Q$7,Q$8))*'DNSP Inputs General'!$D49 -> 70.12009549 | R14: =IF('DNSP Inputs General'!$B49='DNSP Inputs General'!$A$41,R$6,IF('DNSP Inputs General'!$B49='DNSP Inputs General'!$A$42,R$7,R$8))*'DNSP Inputs General'!$D49 -> 64.75398436 | S14: =IF('DNSP Inputs General'!$B49='DNSP Inputs General'!$A$41,S$6,IF('DNSP Inputs General'!$B49='DNSP Inputs General'!$A$42,S$7,S$8))*'DNSP Inputs General'!$D49 -> 66.88610438 | T14: =IF('DNSP Inputs General'!$B49='DNSP Inputs General'!$A$41,T$6,IF('DNSP Inputs General'!$B49='DNSP Inputs General'!$A$42,T$7,T$8))*'DNSP Inputs General'!$D49 -> 67.5506916 | V14: 1.421085472e-14 | W14: 0 | X14: 1.421085472e-14 | Y14: 1.421085472e-14 | Z14: 0
A15: ='DNSP Inputs General'!A50 -> Mercury Vapour 700 watt | C15: ='DNSP Inputs General'!E50*(1+'DNSP Inputs General'!$D$31) -> 107.134714 | D15: =IF('DNSP Inputs General'!$B50='DNSP Inputs General'!$A$41,D$6,IF('DNSP Inputs General'!$B50='DNSP Inputs General'!$A$42,D$7,D$8))*'DNSP Inputs General'!$D50 -> 169.3415793 | E15: =IF('DNSP Inputs General'!$B50='DNSP Inputs General'!$A$41,E$6,IF('DNSP Inputs General'!$B50='DNSP Inputs General'!$A$42,E$7,E$8))*'DNSP Inputs General'!$D50 -> 166.044231 | F15: =IF('DNSP Inputs General'!$B50='DNSP Inputs General'!$A$41,F$6,IF('DNSP Inputs General'!$B50='DNSP Inputs General'!$A$42,F$7,F$8))*'DNSP Inputs General'!$D50 -> 163.3793379 | G15: =IF('DNSP Inputs General'!$B50='DNSP Inputs General'!$A$41,G$6,IF('DNSP Inputs General'!$B50='DNSP Inputs General'!$A$42,G$7,G$8))*'DNSP Inputs General'!$D50 -> 168.4754914 | H15: =IF('DNSP Inputs General'!$B50='DNSP Inputs General'!$A$41,H$6,IF('DNSP Inputs General'!$B50='DNSP Inputs General'!$A$42,H$7,H$8))*'DNSP Inputs General'!$D50 -> 172.3613618 | J15: =IF('DNSP Inputs General'!$B50='DNSP Inputs General'!$A$41,J$6,IF('DNSP Inputs General'!$B50='DNSP Inputs General'!$A$42,J$7,J$8))*'DNSP Inputs General'!$D50 -> 93.37605379 | K15: =IF('DNSP Inputs General'!$B50='DNSP Inputs General'!$A$41,K$6,IF('DNSP Inputs General'!$B50='DNSP Inputs General'!$A$42,K$7,K$8))*'DNSP Inputs General'!$D50 -> 95.92413552 | L15: =IF('DNSP Inputs General'!$B50='DNSP Inputs General'!$A$41,L$6,IF('DNSP Inputs General'!$B50='DNSP Inputs General'!$A$42,L$7,L$8))*'DNSP Inputs General'!$D50 -> 98.62535354 | M15: =IF('DNSP Inputs General'!$B50='DNSP Inputs General'!$A$41,M$6,IF('DNSP Inputs General'!$B50='DNSP Inputs General'!$A$42,M$7,M$8))*'DNSP Inputs General'!$D50 -> 101.589387 | N15: =IF('DNSP Inputs General'!$B50='DNSP Inputs General'!$A$41,N$6,IF('DNSP Inputs General'!$B50='DNSP Inputs General'!$A$42,N$7,N$8))*'DNSP Inputs General'!$D50 -> 104.8106702 | P15: =IF('DNSP Inputs General'!$B50='DNSP Inputs General'!$A$41,P$6,IF('DNSP Inputs General'!$B50='DNSP Inputs General'!$A$42,P$7,P$8))*'DNSP Inputs General'!$D50 -> 75.96552551 | Q15: =IF('DNSP Inputs General'!$B50='DNSP Inputs General'!$A$41,Q$6,IF('DNSP Inputs General'!$B50='DNSP Inputs General'!$A$42,Q$7,Q$8))*'DNSP Inputs General'!$D50 -> 70.12009549 | R15: =IF('DNSP Inputs General'!$B50='DNSP Inputs General'!$A$41,R$6,IF('DNSP Inputs General'!$B50='DNSP Inputs General'!$A$42,R$7,R$8))*'DNSP Inputs General'!$D50 -> 64.75398436 | S15: =IF('DNSP Inputs General'!$B50='DNSP Inputs General'!$A$41,S$6,IF('DNSP Inputs General'!$B50='DNSP Inputs General'!$A$42,S$7,S$8))*'DNSP Inputs General'!$D50 -> 66.88610438 | T15: =IF('DNSP Inputs General'!$B50='DNSP Inputs General'!$A$41,T$6,IF('DNSP Inputs General'!$B50='DNSP Inputs General'!$A$42,T$7,T$8))*'DNSP Inputs General'!$D50 -> 67.5506916 | V15: 1.421085472e-14 | W15: 0 | X15: 1.421085472e-14 | Y15: 1.421085472e-14 | Z15: 0
A16: ='DNSP Inputs General'!A51 -> Sodium High Pressure 70 watt | C16: ='DNSP Inputs General'!E51*(1+'DNSP Inputs General'!$D$31) -> 140.5906381 | D16: =IF('DNSP Inputs General'!$B51='DNSP Inputs General'!$A$41,D$6,IF('DNSP Inputs General'!$B51='DNSP Inputs General'!$A$42,D$7,D$8))*'DNSP Inputs General'!$D51 -> 208.6134862 | E16: =IF('DNSP Inputs General'!$B51='DNSP Inputs General'!$A$41,E$6,IF('DNSP Inputs General'!$B51='DNSP Inputs General'!$A$42,E$7,E$8))*'DNSP Inputs General'!$D51 -> 200.9794647 | F16: =IF('DNSP Inputs General'!$B51='DNSP Inputs General'!$A$41,F$6,IF('DNSP Inputs General'!$B51='DNSP Inputs General'!$A$42,F$7,F$8))*'DNSP Inputs General'!$D51 -> 182.1214216 | G16: =IF('DNSP Inputs General'!$B51='DNSP Inputs General'!$A$41,G$6,IF('DNSP Inputs General'!$B51='DNSP Inputs General'!$A$42,G$7,G$8))*'DNSP Inputs General'!$D51 -> 188.1042295 | H16: =IF('DNSP Inputs General'!$B51='DNSP Inputs General'!$A$41,H$6,IF('DNSP Inputs General'!$B51='DNSP Inputs General'!$A$42,H$7,H$8))*'DNSP Inputs General'!$D51 -> 192.1788526 | J16: =IF('DNSP Inputs General'!$B51='DNSP Inputs General'!$A$41,J$6,IF('DNSP Inputs General'!$B51='DNSP Inputs General'!$A$42,J$7,J$8))*'DNSP Inputs General'!$D51 -> 80.25420017 | K16: =IF('DNSP Inputs General'!$B51='DNSP Inputs General'!$A$41,K$6,IF('DNSP Inputs General'!$B51='DNSP Inputs General'!$A$42,K$7,K$8))*'DNSP Inputs General'!$D51 -> 82.39323358 | L16: =IF('DNSP Inputs General'!$B51='DNSP Inputs General'!$A$41,L$6,IF('DNSP Inputs General'!$B51='DNSP Inputs General'!$A$42,L$7,L$8))*'DNSP Inputs General'!$D51 -> 84.65722336 | M16: =IF('DNSP Inputs General'!$B51='DNSP Inputs General'!$A$41,M$6,IF('DNSP Inputs General'!$B51='DNSP Inputs General'!$A$42,M$7,M$8))*'DNSP Inputs General'!$D51 -> 87.15261554 | N16: =IF('DNSP Inputs General'!$B51='DNSP Inputs General'!$A$41,N$6,IF('DNSP Inputs General'!$B51='DNSP Inputs General'!$A$42,N$7,N$8))*'DNSP Inputs General'!$D51 -> 89.87064054 | P16: =IF('DNSP Inputs General'!$B51='DNSP Inputs General'!$A$41,P$6,IF('DNSP Inputs General'!$B51='DNSP Inputs General'!$A$42,P$7,P$8))*'DNSP Inputs General'!$D51 -> 128.359286 | Q16: =IF('DNSP Inputs General'!$B51='DNSP Inputs General'!$A$41,Q$6,IF('DNSP Inputs General'!$B51='DNSP Inputs General'!$A$42,Q$7,Q$8))*'DNSP Inputs General'!$D51 -> 118.5862311 | R16: =IF('DNSP Inputs General'!$B51='DNSP Inputs General'!$A$41,R$6,IF('DNSP Inputs General'!$B51='DNSP Inputs General'!$A$42,R$7,R$8))*'DNSP Inputs General'!$D51 -> 97.4641982 | S16: =IF('DNSP Inputs General'!$B51='DNSP Inputs General'!$A$41,S$6,IF('DNSP Inputs General'!$B51='DNSP Inputs General'!$A$42,S$7,S$8))*'DNSP Inputs General'!$D51 -> 100.9516139 | T16: =IF('DNSP Inputs General'!$B51='DNSP Inputs General'!$A$41,T$6,IF('DNSP Inputs General'!$B51='DNSP Inputs General'!$A$42,T$7,T$8))*'DNSP Inputs General'!$D51 -> 102.3082121 | V16: 0 | W16: 1.421085472e-14 | X16: 1.421085472e-14 | Y16: 1.421085472e-14 | Z16: 1.421085472e-14
A17: ='DNSP Inputs General'!A52 -> Sodium High Pressure 100 watt | C17: ='DNSP Inputs General'!E52*(1+'DNSP Inputs General'!$D$31) -> 91.46120737 | D17: =IF('DNSP Inputs General'!$B52='DNSP Inputs General'!$A$41,D$6,IF('DNSP Inputs General'!$B52='DNSP Inputs General'!$A$42,D$7,D$8))*'DNSP Inputs General'!$D52 -> 144.8009719 | E17: =IF('DNSP Inputs General'!$B52='DNSP Inputs General'!$A$41,E$6,IF('DNSP Inputs General'!$B52='DNSP Inputs General'!$A$42,E$7,E$8))*'DNSP Inputs General'!$D52 -> 142.2175791 | F17: =IF('DNSP Inputs General'!$B52='DNSP Inputs General'!$A$41,F$6,IF('DNSP Inputs General'!$B52='DNSP Inputs General'!$A$42,F$7,F$8))*'DNSP Inputs General'!$D52 -> 141.7519977 | G17: =IF('DNSP Inputs General'!$B52='DNSP Inputs General'!$A$41,G$6,IF('DNSP Inputs General'!$B52='DNSP Inputs General'!$A$42,G$7,G$8))*'DNSP Inputs General'!$D52 -> 146.1849571 | H17: =IF('DNSP Inputs General'!$B52='DNSP Inputs General'!$A$41,H$6,IF('DNSP Inputs General'!$B52='DNSP Inputs General'!$A$42,H$7,H$8))*'DNSP Inputs General'!$D52 -> 149.5805662 | J17: =IF('DNSP Inputs General'!$B52='DNSP Inputs General'!$A$41,J$6,IF('DNSP Inputs General'!$B52='DNSP Inputs General'!$A$42,J$7,J$8))*'DNSP Inputs General'!$D52 -> 81.34172221 | K17: =IF('DNSP Inputs General'!$B52='DNSP Inputs General'!$A$41,K$6,IF('DNSP Inputs General'!$B52='DNSP Inputs General'!$A$42,K$7,K$8))*'DNSP Inputs General'!$D52 -> 83.56051599 | L17: =IF('DNSP Inputs General'!$B52='DNSP Inputs General'!$A$41,L$6,IF('DNSP Inputs General'!$B52='DNSP Inputs General'!$A$42,L$7,L$8))*'DNSP Inputs General'!$D52 -> 85.91275589 | M17: =IF('DNSP Inputs General'!$B52='DNSP Inputs General'!$A$41,M$6,IF('DNSP Inputs General'!$B52='DNSP Inputs General'!$A$42,M$7,M$8))*'DNSP Inputs General'!$D52 -> 88.49436064 | N17: =IF('DNSP Inputs General'!$B52='DNSP Inputs General'!$A$41,N$6,IF('DNSP Inputs General'!$B52='DNSP Inputs General'!$A$42,N$7,N$8))*'DNSP Inputs General'!$D52 -> 91.30053129 | P17: =IF('DNSP Inputs General'!$B52='DNSP Inputs General'!$A$41,P$6,IF('DNSP Inputs General'!$B52='DNSP Inputs General'!$A$42,P$7,P$8))*'DNSP Inputs General'!$D52 -> 63.45924967 | Q17: =IF('DNSP Inputs General'!$B52='DNSP Inputs General'!$A$41,Q$6,IF('DNSP Inputs General'!$B52='DNSP Inputs General'!$A$42,Q$7,Q$8))*'DNSP Inputs General'!$D52 -> 58.6570631 | R17: =IF('DNSP Inputs General'!$B52='DNSP Inputs General'!$A$41,R$6,IF('DNSP Inputs General'!$B52='DNSP Inputs General'!$A$42,R$7,R$8))*'DNSP Inputs General'!$D52 -> 55.83924176 | S17: =IF('DNSP Inputs General'!$B52='DNSP Inputs General'!$A$41,S$6,IF('DNSP Inputs General'!$B52='DNSP Inputs General'!$A$42,S$7,S$8))*'DNSP Inputs General'!$D52 -> 57.69059648 | T17: =IF('DNSP Inputs General'!$B52='DNSP Inputs General'!$A$41,T$6,IF('DNSP Inputs General'!$B52='DNSP Inputs General'!$A$42,T$7,T$8))*'DNSP Inputs General'!$D52 -> 58.28003491 | V17: 1.421085472e-14 | W17: 0 | X17: 0 | Y17: 2.131628207e-14 | Z17: 7.105427358e-15
A18: ='DNSP Inputs General'!A53 -> Sodium High Pressure 400 watt | C18: ='DNSP Inputs General'!E53*(1+'DNSP Inputs General'!$D$31) -> 107.134714 | D18: =IF('DNSP Inputs General'!$B53='DNSP Inputs General'!$A$41,D$6,IF('DNSP Inputs General'!$B53='DNSP Inputs General'!$A$42,D$7,D$8))*'DNSP Inputs General'!$D53 -> 169.3415793 | E18: =IF('DNSP Inputs General'!$B53='DNSP Inputs General'!$A$41,E$6,IF('DNSP Inputs General'!$B53='DNSP Inputs General'!$A$42,E$7,E$8))*'DNSP Inputs General'!$D53 -> 166.044231 | F18: =IF('DNSP Inputs General'!$B53='DNSP Inputs General'!$A$41,F$6,IF('DNSP Inputs General'!$B53='DNSP Inputs General'!$A$42,F$7,F$8))*'DNSP Inputs General'!$D53 -> 163.3793379 | G18: =IF('DNSP Inputs General'!$B53='DNSP Inputs General'!$A$41,G$6,IF('DNSP Inputs General'!$B53='DNSP Inputs General'!$A$42,G$7,G$8))*'DNSP Inputs General'!$D53 -> 168.4754914 | H18: =IF('DNSP Inputs General'!$B53='DNSP Inputs General'!$A$41,H$6,IF('DNSP Inputs General'!$B53='DNSP Inputs General'!$A$42,H$7,H$8))*'DNSP Inputs General'!$D53 -> 172.3613618 | J18: =IF('DNSP Inputs General'!$B53='DNSP Inputs General'!$A$41,J$6,IF('DNSP Inputs General'!$B53='DNSP Inputs General'!$A$42,J$7,J$8))*'DNSP Inputs General'!$D53 -> 93.37605379 | K18: =IF('DNSP Inputs General'!$B53='DNSP Inputs General'!$A$41,K$6,IF('DNSP Inputs General'!$B53='DNSP Inputs General'!$A$42,K$7,K$8))*'DNSP Inputs General'!$D53 -> 95.92413552 | L18: =IF('DNSP Inputs General'!$B53='DNSP Inputs General'!$A$41,L$6,IF('DNSP Inputs General'!$B53='DNSP Inputs General'!$A$42,L$7,L$8))*'DNSP Inputs General'!$D53 -> 98.62535354 | M18: =IF('DNSP Inputs General'!$B53='DNSP Inputs General'!$A$41,M$6,IF('DNSP Inputs General'!$B53='DNSP Inputs General'!$A$42,M$7,M$8))*'DNSP Inputs General'!$D53 -> 101.589387 | N18: =IF('DNSP Inputs General'!$B53='DNSP Inputs General'!$A$41,N$6,IF('DNSP Inputs General'!$B53='DNSP Inputs General'!$A$42,N$7,N$8))*'DNSP Inputs General'!$D53 -> 104.8106702 | P18: =IF('DNSP Inputs General'!$B53='DNSP Inputs General'!$A$41,P$6,IF('DNSP Inputs General'!$B53='DNSP Inputs General'!$A$42,P$7,P$8))*'DNSP Inputs General'!$D53 -> 75.96552551 | Q18: =IF('DNSP Inputs General'!$B53='DNSP Inputs General'!$A$41,Q$6,IF('DNSP Inputs General'!$B53='DNSP Inputs General'!$A$42,Q$7,Q$8))*'DNSP Inputs General'!$D53 -> 70.12009549 | R18: =IF('DNSP Inputs General'!$B53='DNSP Inputs General'!$A$41,R$6,IF('DNSP Inputs General'!$B53='DNSP Inputs General'!$A$42,R$7,R$8))*'DNSP Inputs General'!$D53 -> 64.75398436 | S18: =IF('DNSP Inputs General'!$B53='DNSP Inputs General'!$A$41,S$6,IF('DNSP Inputs General'!$B53='DNSP Inputs General'!$A$42,S$7,S$8))*'DNSP Inputs General'!$D53 -> 66.88610438 | T18: =IF('DNSP Inputs General'!$B53='DNSP Inputs General'!$A$41,T$6,IF('DNSP Inputs General'!$B53='DNSP Inputs General'!$A$42,T$7,T$8))*'DNSP Inputs General'!$D53 -> 67.5506916 | V18: 1.421085472e-14 | W18: 0 | X18: 1.421085472e-14 | Y18: 1.421085472e-14 | Z18: 0
A19: ='DNSP Inputs General'!A54 -> Metal Halide 70 watt | C19: ='DNSP Inputs General'!E54*(1+'DNSP Inputs General'!$D$31) -> 112.2534295 | D19: =IF('DNSP Inputs General'!$B54='DNSP Inputs General'!$A$41,D$6,IF('DNSP Inputs General'!$B54='DNSP Inputs General'!$A$42,D$7,D$8))*'DNSP Inputs General'!$D54 -> 177.7102837 | E19: =IF('DNSP Inputs General'!$B54='DNSP Inputs General'!$A$41,E$6,IF('DNSP Inputs General'!$B54='DNSP Inputs General'!$A$42,E$7,E$8))*'DNSP Inputs General'!$D54 -> 174.5397562 | F19: =IF('DNSP Inputs General'!$B54='DNSP Inputs General'!$A$41,F$6,IF('DNSP Inputs General'!$B54='DNSP Inputs General'!$A$42,F$7,F$8))*'DNSP Inputs General'!$D54 -> 173.9683608 | G19: =IF('DNSP Inputs General'!$B54='DNSP Inputs General'!$A$41,G$6,IF('DNSP Inputs General'!$B54='DNSP Inputs General'!$A$42,G$7,G$8))*'DNSP Inputs General'!$D54 -> 179.408811 | H19: =IF('DNSP Inputs General'!$B54='DNSP Inputs General'!$A$41,H$6,IF('DNSP Inputs General'!$B54='DNSP Inputs General'!$A$42,H$7,H$8))*'DNSP Inputs General'!$D54 -> 183.5761494 | J19: =IF('DNSP Inputs General'!$B54='DNSP Inputs General'!$A$41,J$6,IF('DNSP Inputs General'!$B54='DNSP Inputs General'!$A$42,J$7,J$8))*'DNSP Inputs General'!$D54 -> 99.82847726 | K19: =IF('DNSP Inputs General'!$B54='DNSP Inputs General'!$A$41,K$6,IF('DNSP Inputs General'!$B54='DNSP Inputs General'!$A$42,K$7,K$8))*'DNSP Inputs General'!$D54 -> 102.5515424 | L19: =IF('DNSP Inputs General'!$B54='DNSP Inputs General'!$A$41,L$6,IF('DNSP Inputs General'!$B54='DNSP Inputs General'!$A$42,L$7,L$8))*'DNSP Inputs General'!$D54 -> 105.4383822 | M19: =IF('DNSP Inputs General'!$B54='DNSP Inputs General'!$A$41,M$6,IF('DNSP Inputs General'!$B54='DNSP Inputs General'!$A$42,M$7,M$8))*'DNSP Inputs General'!$D54 -> 108.6067153 | N19: =IF('DNSP Inputs General'!$B54='DNSP Inputs General'!$A$41,N$6,IF('DNSP Inputs General'!$B54='DNSP Inputs General'!$A$42,N$7,N$8))*'DNSP Inputs General'!$D54 -> 112.050652 | P19: =IF('DNSP Inputs General'!$B54='DNSP Inputs General'!$A$41,P$6,IF('DNSP Inputs General'!$B54='DNSP Inputs General'!$A$42,P$7,P$8))*'DNSP Inputs General'!$D54 -> 77.88180641 | Q19: =IF('DNSP Inputs General'!$B54='DNSP Inputs General'!$A$41,Q$6,IF('DNSP Inputs General'!$B54='DNSP Inputs General'!$A$42,Q$7,Q$8))*'DNSP Inputs General'!$D54 -> 71.98821381 | R19: =IF('DNSP Inputs General'!$B54='DNSP Inputs General'!$A$41,R$6,IF('DNSP Inputs General'!$B54='DNSP Inputs General'!$A$42,R$7,R$8))*'DNSP Inputs General'!$D54 -> 68.52997853 | S19: =IF('DNSP Inputs General'!$B54='DNSP Inputs General'!$A$41,S$6,IF('DNSP Inputs General'!$B54='DNSP Inputs General'!$A$42,S$7,S$8))*'DNSP Inputs General'!$D54 -> 70.80209568 | T19: =IF('DNSP Inputs General'!$B54='DNSP Inputs General'!$A$41,T$6,IF('DNSP Inputs General'!$B54='DNSP Inputs General'!$A$42,T$7,T$8))*'DNSP Inputs General'!$D54 -> 71.5254974 | V19: 1.421085472e-14 | W19: 1.421085472e-14 | X19: 0 | Y19: 0 | Z19: 1.421085472e-14
A20: ='DNSP Inputs General'!A55 -> Metal Halide 100 watt | C20: ='DNSP Inputs General'!E55*(1+'DNSP Inputs General'!$D$31) -> 112.2534295 | D20: =IF('DNSP Inputs General'!$B55='DNSP Inputs General'!$A$41,D$6,IF('DNSP Inputs General'!$B55='DNSP Inputs General'!$A$42,D$7,D$8))*'DNSP Inputs General'!$D55 -> 177.7102837 | E20: =IF('DNSP Inputs General'!$B55='DNSP Inputs General'!$A$41,E$6,IF('DNSP Inputs General'!$B55='DNSP Inputs General'!$A$42,E$7,E$8))*'DNSP Inputs General'!$D55 -> 174.5397562 | F20: =IF('DNSP Inputs General'!$B55='DNSP Inputs General'!$A$41,F$6,IF('DNSP Inputs General'!$B55='DNSP Inputs General'!$A$42,F$7,F$8))*'DNSP Inputs General'!$D55 -> 173.9683608 | G20: =IF('DNSP Inputs General'!$B55='DNSP Inputs General'!$A$41,G$6,IF('DNSP Inputs General'!$B55='DNSP Inputs General'!$A$42,G$7,G$8))*'DNSP Inputs General'!$D55 -> 179.408811 | H20: =IF('DNSP Inputs General'!$B55='DNSP Inputs General'!$A$41,H$6,IF('DNSP Inputs General'!$B55='DNSP Inputs General'!$A$42,H$7,H$8))*'DNSP Inputs General'!$D55 -> 183.5761494 | J20: =IF('DNSP Inputs General'!$B55='DNSP Inputs General'!$A$41,J$6,IF('DNSP Inputs General'!$B55='DNSP Inputs General'!$A$42,J$7,J$8))*'DNSP Inputs General'!$D55 -> 99.82847726 | K20: =IF('DNSP Inputs General'!$B55='DNSP Inputs General'!$A$41,K$6,IF('DNSP Inputs General'!$B55='DNSP Inputs General'!$A$42,K$7,K$8))*'DNSP Inputs General'!$D55 -> 102.5515424 | L20: =IF('DNSP Inputs General'!$B55='DNSP Inputs General'!$A$41,L$6,IF('DNSP Inputs General'!$B55='DNSP Inputs General'!$A$42,L$7,L$8))*'DNSP Inputs General'!$D55 -> 105.4383822 | M20: =IF('DNSP Inputs General'!$B55='DNSP Inputs General'!$A$41,M$6,IF('DNSP Inputs General'!$B55='DNSP Inputs General'!$A$42,M$7,M$8))*'DNSP Inputs General'!$D55 -> 108.6067153 | N20: =IF('DNSP Inputs General'!$B55='DNSP Inputs General'!$A$41,N$6,IF('DNSP Inputs General'!$B55='DNSP Inputs General'!$A$42,N$7,N$8))*'DNSP Inputs General'!$D55 -> 112.050652 | P20: =IF('DNSP Inputs General'!$B55='DNSP Inputs General'!$A$41,P$6,IF('DNSP Inputs General'!$B55='DNSP Inputs General'!$A$42,P$7,P$8))*'DNSP Inputs General'!$D55 -> 77.88180641 | Q20: =IF('DNSP Inputs General'!$B55='DNSP Inputs General'!$A$41,Q$6,IF('DNSP Inputs General'!$B55='DNSP Inputs General'!$A$42,Q$7,Q$8))*'DNSP Inputs General'!$D55 -> 71.98821381 | R20: =IF('DNSP Inputs General'!$B55='DNSP Inputs General'!$A$41,R$6,IF('DNSP Inputs General'!$B55='DNSP Inputs General'!$A$42,R$7,R$8))*'DNSP Inputs General'!$D55 -> 68.52997853 | S20: =IF('DNSP Inputs General'!$B55='DNSP Inputs General'!$A$41,S$6,IF('DNSP Inputs General'!$B55='DNSP Inputs General'!$A$42,S$7,S$8))*'DNSP Inputs General'!$D55 -> 70.80209568 | T20: =IF('DNSP Inputs General'!$B55='DNSP Inputs General'!$A$41,T$6,IF('DNSP Inputs General'!$B55='DNSP Inputs General'!$A$42,T$7,T$8))*'DNSP Inputs General'!$D55 -> 71.5254974 | V20: 1.421085472e-14 | W20: 1.421085472e-14 | X20: 0 | Y20: 0 | Z20: 1.421085472e-14
A21: ='DNSP Inputs General'!A56 -> Metal Halide 150 watt | C21: ='DNSP Inputs General'!E56*(1+'DNSP Inputs General'!$D$31) -> 112.2534295 | D21: =IF('DNSP Inputs General'!$B56='DNSP Inputs General'!$A$41,D$6,IF('DNSP Inputs General'!$B56='DNSP Inputs General'!$A$42,D$7,D$8))*'DNSP Inputs General'!$D56 -> 177.7102837 | E21: =IF('DNSP Inputs General'!$B56='DNSP Inputs General'!$A$41,E$6,IF('DNSP Inputs General'!$B56='DNSP Inputs General'!$A$42,E$7,E$8))*'DNSP Inputs General'!$D56 -> 174.5397562 | F21: =IF('DNSP Inputs General'!$B56='DNSP Inputs General'!$A$41,F$6,IF('DNSP Inputs General'!$B56='DNSP Inputs General'!$A$42,F$7,F$8))*'DNSP Inputs General'!$D56 -> 173.9683608 | G21: =IF('DNSP Inputs General'!$B56='DNSP Inputs General'!$A$41,G$6,IF('DNSP Inputs General'!$B56='DNSP Inputs General'!$A$42,G$7,G$8))*'DNSP Inputs General'!$D56 -> 179.408811 | H21: =IF('DNSP Inputs General'!$B56='DNSP Inputs General'!$A$41,H$6,IF('DNSP Inputs General'!$B56='DNSP Inputs General'!$A$42,H$7,H$8))*'DNSP Inputs General'!$D56 -> 183.5761494 | J21: =IF('DNSP Inputs General'!$B56='DNSP Inputs General'!$A$41,J$6,IF('DNSP Inputs General'!$B56='DNSP Inputs General'!$A$42,J$7,J$8))*'DNSP Inputs General'!$D56 -> 99.82847726 | K21: =IF('DNSP Inputs General'!$B56='DNSP Inputs General'!$A$41,K$6,IF('DNSP Inputs General'!$B56='DNSP Inputs General'!$A$42,K$7,K$8))*'DNSP Inputs General'!$D56 -> 102.5515424 | L21: =IF('DNSP Inputs General'!$B56='DNSP Inputs General'!$A$41,L$6,IF('DNSP Inputs General'!$B56='DNSP Inputs General'!$A$42,L$7,L$8))*'DNSP Inputs General'!$D56 -> 105.4383822 | M21: =IF('DNSP Inputs General'!$B56='DNSP Inputs General'!$A$41,M$6,IF('DNSP Inputs General'!$B56='DNSP Inputs General'!$A$42,M$7,M$8))*'DNSP Inputs General'!$D56 -> 108.6067153 | N21: =IF('DNSP Inputs General'!$B56='DNSP Inputs General'!$A$41,N$6,IF('DNSP Inputs General'!$B56='DNSP Inputs General'!$A$42,N$7,N$8))*'DNSP Inputs General'!$D56 -> 112.050652 | P21: =IF('DNSP Inputs General'!$B56='DNSP Inputs General'!$A$41,P$6,IF('DNSP Inputs General'!$B56='DNSP Inputs General'!$A$42,P$7,P$8))*'DNSP Inputs General'!$D56 -> 77.88180641 | Q21: =IF('DNSP Inputs General'!$B56='DNSP Inputs General'!$A$41,Q$6,IF('DNSP Inputs General'!$B56='DNSP Inputs General'!$A$42,Q$7,Q$8))*'DNSP Inputs General'!$D56 -> 71.98821381 | R21: =IF('DNSP Inputs General'!$B56='DNSP Inputs General'!$A$41,R$6,IF('DNSP Inputs General'!$B56='DNSP Inputs General'!$A$42,R$7,R$8))*'DNSP Inputs General'!$D56 -> 68.52997853 | S21: =IF('DNSP Inputs General'!$B56='DNSP Inputs General'!$A$41,S$6,IF('DNSP Inputs General'!$B56='DNSP Inputs General'!$A$42,S$7,S$8))*'DNSP Inputs General'!$D56 -> 70.80209568 | T21: =IF('DNSP Inputs General'!$B56='DNSP Inputs General'!$A$41,T$6,IF('DNSP Inputs General'!$B56='DNSP Inputs General'!$A$42,T$7,T$8))*'DNSP Inputs General'!$D56 -> 71.5254974 | V21: 1.421085472e-14 | W21: 1.421085472e-14 | X21: 0 | Y21: 0 | Z21: 1.421085472e-14
A22: ='DNSP Inputs General'!A57 -> Metal Halide 250 watt | C22: ='DNSP Inputs General'!E57*(1+'DNSP Inputs General'!$D$31) -> 114.7923123 | D22: =IF('DNSP Inputs General'!$B57='DNSP Inputs General'!$A$41,D$6,IF('DNSP Inputs General'!$B57='DNSP Inputs General'!$A$42,D$7,D$8))*'DNSP Inputs General'!$D57 -> 181.4374064 | E22: =IF('DNSP Inputs General'!$B57='DNSP Inputs General'!$A$41,E$6,IF('DNSP Inputs General'!$B57='DNSP Inputs General'!$A$42,E$7,E$8))*'DNSP Inputs General'!$D57 -> 177.9045332 | F22: =IF('DNSP Inputs General'!$B57='DNSP Inputs General'!$A$41,F$6,IF('DNSP Inputs General'!$B57='DNSP Inputs General'!$A$42,F$7,F$8))*'DNSP Inputs General'!$D57 -> 175.0492906 | G22: =IF('DNSP Inputs General'!$B57='DNSP Inputs General'!$A$41,G$6,IF('DNSP Inputs General'!$B57='DNSP Inputs General'!$A$42,G$7,G$8))*'DNSP Inputs General'!$D57 -> 180.5094551 | H22: =IF('DNSP Inputs General'!$B57='DNSP Inputs General'!$A$41,H$6,IF('DNSP Inputs General'!$B57='DNSP Inputs General'!$A$42,H$7,H$8))*'DNSP Inputs General'!$D57 -> 184.6728876 | J22: =IF('DNSP Inputs General'!$B57='DNSP Inputs General'!$A$41,J$6,IF('DNSP Inputs General'!$B57='DNSP Inputs General'!$A$42,J$7,J$8))*'DNSP Inputs General'!$D57 -> 100.0457719 | K22: =IF('DNSP Inputs General'!$B57='DNSP Inputs General'!$A$41,K$6,IF('DNSP Inputs General'!$B57='DNSP Inputs General'!$A$42,K$7,K$8))*'DNSP Inputs General'!$D57 -> 102.7758595 | L22: =IF('DNSP Inputs General'!$B57='DNSP Inputs General'!$A$41,L$6,IF('DNSP Inputs General'!$B57='DNSP Inputs General'!$A$42,L$7,L$8))*'DNSP Inputs General'!$D57 -> 105.6700216 | M22: =IF('DNSP Inputs General'!$B57='DNSP Inputs General'!$A$41,M$6,IF('DNSP Inputs General'!$B57='DNSP Inputs General'!$A$42,M$7,M$8))*'DNSP Inputs General'!$D57 -> 108.8457718 | N22: =IF('DNSP Inputs General'!$B57='DNSP Inputs General'!$A$41,N$6,IF('DNSP Inputs General'!$B57='DNSP Inputs General'!$A$42,N$7,N$8))*'DNSP Inputs General'!$D57 -> 112.2971466 | P22: =IF('DNSP Inputs General'!$B57='DNSP Inputs General'!$A$41,P$6,IF('DNSP Inputs General'!$B57='DNSP Inputs General'!$A$42,P$7,P$8))*'DNSP Inputs General'!$D57 -> 81.39163447 | Q22: =IF('DNSP Inputs General'!$B57='DNSP Inputs General'!$A$41,Q$6,IF('DNSP Inputs General'!$B57='DNSP Inputs General'!$A$42,Q$7,Q$8))*'DNSP Inputs General'!$D57 -> 75.12867374 | R22: =IF('DNSP Inputs General'!$B57='DNSP Inputs General'!$A$41,R$6,IF('DNSP Inputs General'!$B57='DNSP Inputs General'!$A$42,R$7,R$8))*'DNSP Inputs General'!$D57 -> 69.37926896 | S22: =IF('DNSP Inputs General'!$B57='DNSP Inputs General'!$A$41,S$6,IF('DNSP Inputs General'!$B57='DNSP Inputs General'!$A$42,S$7,S$8))*'DNSP Inputs General'!$D57 -> 71.66368326 | T22: =IF('DNSP Inputs General'!$B57='DNSP Inputs General'!$A$41,T$6,IF('DNSP Inputs General'!$B57='DNSP Inputs General'!$A$42,T$7,T$8))*'DNSP Inputs General'!$D57 -> 72.375741 | V22: 1.421085472e-14 | W22: 1.421085472e-14 | X22: 2.842170943e-14 | Y22: 1.421085472e-14 | Z22: 1.421085472e-14
A23: ='DNSP Inputs General'!A58 -> Metal Halide 400 watt | C23: ='DNSP Inputs General'!E58*(1+'DNSP Inputs General'!$D$31) -> 114.7923123 | D23: =IF('DNSP Inputs General'!$B58='DNSP Inputs General'!$A$41,D$6,IF('DNSP Inputs General'!$B58='DNSP Inputs General'!$A$42,D$7,D$8))*'DNSP Inputs General'!$D58 -> 181.4374064 | E23: =IF('DNSP Inputs General'!$B58='DNSP Inputs General'!$A$41,E$6,IF('DNSP Inputs General'!$B58='DNSP Inputs General'!$A$42,E$7,E$8))*'DNSP Inputs General'!$D58 -> 177.9045332 | F23: =IF('DNSP Inputs General'!$B58='DNSP Inputs General'!$A$41,F$6,IF('DNSP Inputs General'!$B58='DNSP Inputs General'!$A$42,F$7,F$8))*'DNSP Inputs General'!$D58 -> 175.0492906 | G23: =IF('DNSP Inputs General'!$B58='DNSP Inputs General'!$A$41,G$6,IF('DNSP Inputs General'!$B58='DNSP Inputs General'!$A$42,G$7,G$8))*'DNSP Inputs General'!$D58 -> 180.5094551 | H23: =IF('DNSP Inputs General'!$B58='DNSP Inputs General'!$A$41,H$6,IF('DNSP Inputs General'!$B58='DNSP Inputs General'!$A$42,H$7,H$8))*'DNSP Inputs General'!$D58 -> 184.6728876 | J23: =IF('DNSP Inputs General'!$B58='DNSP Inputs General'!$A$41,J$6,IF('DNSP Inputs General'!$B58='DNSP Inputs General'!$A$42,J$7,J$8))*'DNSP Inputs General'!$D58 -> 100.0457719 | K23: =IF('DNSP Inputs General'!$B58='DNSP Inputs General'!$A$41,K$6,IF('DNSP Inputs General'!$B58='DNSP Inputs General'!$A$42,K$7,K$8))*'DNSP Inputs General'!$D58 -> 102.7758595 | L23: =IF('DNSP Inputs General'!$B58='DNSP Inputs General'!$A$41,L$6,IF('DNSP Inputs General'!$B58='DNSP Inputs General'!$A$42,L$7,L$8))*'DNSP Inputs General'!$D58 -> 105.6700216 | M23: =IF('DNSP Inputs General'!$B58='DNSP Inputs General'!$A$41,M$6,IF('DNSP Inputs General'!$B58='DNSP Inputs General'!$A$42,M$7,M$8))*'DNSP Inputs General'!$D58 -> 108.8457718 | N23: =IF('DNSP Inputs General'!$B58='DNSP Inputs General'!$A$41,N$6,IF('DNSP Inputs General'!$B58='DNSP Inputs General'!$A$42,N$7,N$8))*'DNSP Inputs General'!$D58 -> 112.2971466 | P23: =IF('DNSP Inputs General'!$B58='DNSP Inputs General'!$A$41,P$6,IF('DNSP Inputs General'!$B58='DNSP Inputs General'!$A$42,P$7,P$8))*'DNSP Inputs General'!$D58 -> 81.39163447 | Q23: =IF('DNSP Inputs General'!$B58='DNSP Inputs General'!$A$41,Q$6,IF('DNSP Inputs General'!$B58='DNSP Inputs General'!$A$42,Q$7,Q$8))*'DNSP Inputs General'!$D58 -> 75.12867374 | R23: =IF('DNSP Inputs General'!$B58='DNSP Inputs General'!$A$41,R$6,IF('DNSP Inputs General'!$B58='DNSP Inputs General'!$A$42,R$7,R$8))*'DNSP Inputs General'!$D58 -> 69.37926896 | S23: =IF('DNSP Inputs General'!$B58='DNSP Inputs General'!$A$41,S$6,IF('DNSP Inputs General'!$B58='DNSP Inputs General'!$A$42,S$7,S$8))*'DNSP Inputs General'!$D58 -> 71.66368326 | T23: =IF('DNSP Inputs General'!$B58='DNSP Inputs General'!$A$41,T$6,IF('DNSP Inputs General'!$B58='DNSP Inputs General'!$A$42,T$7,T$8))*'DNSP Inputs General'!$D58 -> 72.375741 | V23: 1.421085472e-14 | W23: 1.421085472e-14 | X23: 2.842170943e-14 | Y23: 1.421085472e-14 | Z23: 1.421085472e-14
A30: ='DNSP Inputs General'!A$67 -> Energy Efficient Lights
A31: ='DNSP Inputs General'!A68 -> T5 2X14W | C31: ='DNSP Inputs General'!E68*(1+'DNSP Inputs General'!$D$31) -> 31.31630102 | D31: ='Charges Summary'!D$103 -> 41.3348995 | E31: ='Charges Summary'!E$103 -> 43.87271291 | F31: ='Charges Summary'!F$103 -> 46.44902503 | G31: ='Charges Summary'!G$103 -> 49.21730787 | H31: ='Charges Summary'!H$103 -> 52.17174021 | J31: =SUM('Charges Summary'!D97,'Charges Summary'!D8) -> 30.95165533 | K31: =SUM('Charges Summary'!E97,'Charges Summary'!E8) -> 31.77755069 | L31: =SUM('Charges Summary'!F97,'Charges Summary'!F8) -> 32.65143995 | M31: =SUM('Charges Summary'!G97,'Charges Summary'!G8) -> 33.61511903 | N31: =SUM('Charges Summary'!H97,'Charges Summary'!H8) -> 34.66430707 | P31: =SUM('Charges Summary'!D99,'Charges Summary'!D11) -> 10.38324416 | Q31: =SUM('Charges Summary'!E99,'Charges Summary'!E11) -> 12.09516222 | R31: =SUM('Charges Summary'!F99,'Charges Summary'!F11) -> 13.79758507 | S31: =SUM('Charges Summary'!G99,'Charges Summary'!G11) -> 15.60218884 | T31: =SUM('Charges Summary'!H99,'Charges Summary'!H11) -> 17.50743314 | V31: =ABS(D31-J31-P31) -> 3.552713679e-15 | W31: =ABS(E31-K31-Q31) -> 3.552713679e-15 | X31: =ABS(F31-L31-R31) -> 0 | Y31: =ABS(G31-M31-S31) -> 5.329070518e-15 | Z31: =ABS(H31-N31-T31) -> 3.552713679e-15
A32: ='DNSP Inputs General'!A69 -> Twin 24w Fluorescent | C32: ='DNSP Inputs General'!E69*(1+'DNSP Inputs General'!$D$31) -> 31.31630102 | D32: =D$31*'DNSP Inputs General'!$D69 -> 41.3348995 | E32: =E$31*'DNSP Inputs General'!$D69 -> 43.87271291 | F32: =F$31*'DNSP Inputs General'!$D69 -> 46.44902503 | G32: =G$31*'DNSP Inputs General'!$D69 -> 49.21730787 | H32: =H$31*'DNSP Inputs General'!$D69 -> 52.17174021 | J32: =J$31*'DNSP Inputs General'!$D69 -> 30.95165533 | K32: =K$31*'DNSP Inputs General'!$D69 -> 31.77755069 | L32: =L$31*'DNSP Inputs General'!$D69 -> 32.65143995 | M32: =M$31*'DNSP Inputs General'!$D69 -> 33.61511903 | N32: =N$31*'DNSP Inputs General'!$D69 -> 34.66430707 | P32: =P$31*'DNSP Inputs General'!$D69 -> 10.38324416 | Q32: =Q$31*'DNSP Inputs General'!$D69 -> 12.09516222 | R32: =R$31*'DNSP Inputs General'!$D69 -> 13.79758507 | S32: =S$31*'DNSP Inputs General'!$D69 -> 15.60218884 | T32: =T$31*'DNSP Inputs General'!$D69 -> 17.50743314 | V32: 3.552713679e-15 | W32: 3.552713679e-15 | X32: 0 | Y32: 5.329070518e-15 | Z32: 3.552713679e-15
A33: ='DNSP Inputs General'!A70 -> 32W Compact Fluorescent | C33: ='DNSP Inputs General'!E70*(1+'DNSP Inputs General'!$D$31) -> 31.31630102 | D33: =D$31*'DNSP Inputs General'!$D70 -> 41.3348995 | E33: =E$31*'DNSP Inputs General'!$D70 -> 43.87271291 | F33: =F$31*'DNSP Inputs General'!$D70 -> 46.44902503 | G33: =G$31*'DNSP Inputs General'!$D70 -> 49.21730787 | H33: =H$31*'DNSP Inputs General'!$D70 -> 52.17174021 | J33: =J$31*'DNSP Inputs General'!$D70 -> 30.95165533 | K33: =K$31*'DNSP Inputs General'!$D70 -> 31.77755069 | L33: =L$31*'DNSP Inputs General'!$D70 -> 32.65143995 | M33: =M$31*'DNSP Inputs General'!$D70 -> 33.61511903 | N33: =N$31*'DNSP Inputs General'!$D70 -> 34.66430707 | P33: =P$31*'DNSP Inputs General'!$D70 -> 10.38324416 | Q33: =Q$31*'DNSP Inputs General'!$D70 -> 12.09516222 | R33: =R$31*'DNSP Inputs General'!$D70 -> 13.79758507 | S33: =S$31*'DNSP Inputs General'!$D70 -> 15.60218884 | T33: =T$31*'DNSP Inputs General'!$D70 -> 17.50743314 | V33: 3.552713679e-15 | W33: 3.552713679e-15 | X33: 0 | Y33: 5.329070518e-15 | Z33: 3.552713679e-15
A34: ='DNSP Inputs General'!A71 -> 42w Compact Fluorescent | C34: ='DNSP Inputs General'!E71*(1+'DNSP Inputs General'!$D$31) -> 31.31630102 | D34: =D$31*'DNSP Inputs General'!$D71 -> 41.3348995 | E34: =E$31*'DNSP Inputs General'!$D71 -> 43.87271291 | F34: =F$31*'DNSP Inputs General'!$D71 -> 46.44902503 | G34: =G$31*'DNSP Inputs General'!$D71 -> 49.21730787 | H34: =H$31*'DNSP Inputs General'!$D71 -> 52.17174021 | J34: =J$31*'DNSP Inputs General'!$D71 -> 30.95165533 | K34: =K$31*'DNSP Inputs General'!$D71 -> 31.77755069 | L34: =L$31*'DNSP Inputs General'!$D71 -> 32.65143995 | M34: =M$31*'DNSP Inputs General'!$D71 -> 33.61511903 | N34: =N$31*'DNSP Inputs General'!$D71 -> 34.66430707 | P34: =P$31*'DNSP Inputs General'!$D71 -> 10.38324416 | Q34: =Q$31*'DNSP Inputs General'!$D71 -> 12.09516222 | R34: =R$31*'DNSP Inputs General'!$D71 -> 13.79758507 | S34: =S$31*'DNSP Inputs General'!$D71 -> 15.60218884 | T34: =T$31*'DNSP Inputs General'!$D71 -> 17.50743314 | V34: 3.552713679e-15 | W34: 3.552713679e-15 | X34: 0 | Y34: 5.329070518e-15 | Z34: 3.552713679e-15
A35: ='DNSP Inputs General'!A72 -> Category P LED 18 Watt | C35: ='DNSP Inputs General'!E72*(1+'DNSP Inputs General'!$D$31) -> 21.027683 | D35: ='Charges Summary'!D$120 -> 21.42462833 | E35: ='Charges Summary'!E$120 -> 23.43676786 | F35: ='Charges Summary'!F$120 -> 25.45636225 | G35: ='Charges Summary'!G$120 -> 27.61381929 | H35: ='Charges Summary'!H$120 -> 29.90237303 | J35: =SUM('Charges Summary'!D114,'Charges Summary'!D$8) -> 11.04138416 | K35: =SUM('Charges Summary'!E114,'Charges Summary'!E$8) -> 11.34160564 | L35: =SUM('Charges Summary'!F114,'Charges Summary'!F$8) -> 11.65877718 | M35: =SUM('Charges Summary'!G114,'Charges Summary'!G$8) -> 12.01163046 | N35: =SUM('Charges Summary'!H114,'Charges Summary'!H$8) -> 12.39493989 | P35: =SUM('Charges Summary'!D116,'Charges Summary'!D$11) -> 10.38324416 | Q35: =SUM('Charges Summary'!E116,'Charges Summary'!E$11) -> 12.09516222 | R35: =SUM('Charges Summary'!F116,'Charges Summary'!F$11) -> 13.79758507 | S35: =SUM('Charges Summary'!G116,'Charges Summary'!G$11) -> 15.60218884 | T35: =SUM('Charges Summary'!H116,'Charges Summary'!H$11) -> 17.50743314 | V35: =ABS(D35-J35-P35) -> 1.776356839e-15 | W35: =ABS(E35-K35-Q35) -> 1.776356839e-15 | X35: =ABS(F35-L35-R35) -> 1.776356839e-15 | Y35: =ABS(G35-M35-S35) -> 0 | Z35: =ABS(H35-N35-T35) -> 3.552713679e-15
A36: ='DNSP Inputs General'!A73 -> Category P LED 47 Watt | C36: ='DNSP Inputs General'!E73*(1+'DNSP Inputs General'!$D$31) -> 21.027683 | D36: =D$35*'DNSP Inputs General'!$D73 -> 21.42462833 | E36: =E$35*'DNSP Inputs General'!$D73 -> 23.43676786 | F36: =F$35*'DNSP Inputs General'!$D73 -> 25.45636225 | G36: =G$35*'DNSP Inputs General'!$D73 -> 27.61381929 | H36: =H$35*'DNSP Inputs General'!$D73 -> 29.90237303 | J36: =J$35*'DNSP Inputs General'!$D73 -> 11.04138416 | K36: =K$35*'DNSP Inputs General'!$D73 -> 11.34160564 | L36: =L$35*'DNSP Inputs General'!$D73 -> 11.65877718 | M36: =M$35*'DNSP Inputs General'!$D73 -> 12.01163046 | N36: =N$35*'DNSP Inputs General'!$D73 -> 12.39493989 | P36: =P$35*'DNSP Inputs General'!$D73 -> 10.38324416 | Q36: =Q$35*'DNSP Inputs General'!$D73 -> 12.09516222 | R36: =R$35*'DNSP Inputs General'!$D73 -> 13.79758507 | S36: =S$35*'DNSP Inputs General'!$D73 -> 15.60218884 | T36: =T$35*'DNSP Inputs General'!$D73 -> 17.50743314 | V36: =ABS(D36-J36-P36) -> 1.776356839e-15 | W36: =ABS(E36-K36-Q36) -> 1.776356839e-15 | X36: =ABS(F36-L36-R36) -> 1.776356839e-15 | Y36: =ABS(G36-M36-S36) -> 0 | Z36: =ABS(H36-N36-T36) -> 3.552713679e-15
A37: ='DNSP Inputs General'!A74 -> Category V LED L1 Standard Output | C37: ='DNSP Inputs General'!E74*(1+'DNSP Inputs General'!$D$31) -> 48.8417423 | D37: ='Charges Summary'!D$138 -> 43.88246461 | E37: ='Charges Summary'!E$138 -> 47.06473415 | F37: ='Charges Summary'!F$138 -> 50.27504126 | G37: ='Charges Summary'!G$138 -> 53.71839854 | H37: ='Charges Summary'!H$138 -> 57.41837091 | J37: =SUM('Charges Summary'!D132,'Charges Summary'!D$8) -> 29.84089678 | K37: =SUM('Charges Summary'!E132,'Charges Summary'!E$8) -> 30.64009458 | L37: =SUM('Charges Summary'!F132,'Charges Summary'!F$8) -> 31.48653854 | M37: =SUM('Charges Summary'!G132,'Charges Summary'!G$8) -> 32.42186989 | N37: =SUM('Charges Summary'!H132,'Charges Summary'!H$8) -> 33.44178842 | P37: =SUM('Charges Summary'!D134,'Charges Summary'!D$11) -> 14.04156783 | Q37: =SUM('Charges Summary'!E134,'Charges Summary'!E$11) -> 16.42463957 | R37: =SUM('Charges Summary'!F134,'Charges Summary'!F$11) -> 18.78850272 | S37: =SUM('Charges Summary'!G134,'Charges Summary'!G$11) -> 21.29652865 | T37: =SUM('Charges Summary'!H134,'Charges Summary'!H$11) -> 23.97658249 | V37: 0 | W37: 0 | X37: 0 | Y37: 3.552713679e-15 | Z37: 0
A38: ='DNSP Inputs General'!A75 -> Category V LED L2 Medium Output | C38: ='DNSP Inputs General'!E75*(1+'DNSP Inputs General'!$D$31) -> 61.37529938 | D38: =D$37*'DNSP Inputs General'!$D75 -> 55.14339326 | E38: =E$37*'DNSP Inputs General'!$D75 -> 59.14228307 | F38: =F$37*'DNSP Inputs General'!$D75 -> 63.17640533 | G38: =G$37*'DNSP Inputs General'!$D75 -> 67.50338209 | H38: =H$37*'DNSP Inputs General'!$D75 -> 72.1528254 | J38: =J$37*'DNSP Inputs General'!$D75 -> 37.49853891 | K38: =K$37*'DNSP Inputs General'!$D75 -> 38.50282339 | L38: =L$37*'DNSP Inputs General'!$D75 -> 39.56647815 | M38: =M$37*'DNSP Inputs General'!$D75 -> 40.74183019 | N38: =N$37*'DNSP Inputs General'!$D75 -> 42.02347581 | P38: =P$37*'DNSP Inputs General'!$D75 -> 17.64485435 | Q38: =Q$37*'DNSP Inputs General'!$D75 -> 20.63945968 | R38: =R$37*'DNSP Inputs General'!$D75 -> 23.60992718 | S38: =S$37*'DNSP Inputs General'!$D75 -> 26.7615519 | T38: =T$37*'DNSP Inputs General'!$D75 -> 30.12934959 | V38: 3.552713679e-15 | W38: 0 | X38: 0 | Y38: 0 | Z38: 0
A39: ='DNSP Inputs General'!A76 -> Category V L4 LED High Output | C39: ='DNSP Inputs General'!E76*(1+'DNSP Inputs General'!$D$31) -> 64.68358928 | D39: =D$37*'DNSP Inputs General'!$D76 -> 58.11576705 | E39: =E$37*'DNSP Inputs General'!$D76 -> 62.33020752 | F39: =F$37*'DNSP Inputs General'!$D76 -> 66.58177958 | G39: =G$37*'DNSP Inputs General'!$D76 -> 71.14199175 | H39: =H$37*'DNSP Inputs General'!$D76 -> 76.04205227 | J39: =J$37*'DNSP Inputs General'!$D76 -> 39.51980868 | K39: =K$37*'DNSP Inputs General'!$D76 -> 40.57822673 | L39: =L$37*'DNSP Inputs General'!$D76 -> 41.69921528 | M39: =M$37*'DNSP Inputs General'!$D76 -> 42.93792189 | N39: =N$37*'DNSP Inputs General'!$D76 -> 44.28865157 | P39: =P$37*'DNSP Inputs General'!$D76 -> 18.59595836 | Q39: =Q$37*'DNSP Inputs General'!$D76 -> 21.75198079 | R39: =R$37*'DNSP Inputs General'!$D76 -> 24.88256429 | S39: =S$37*'DNSP Inputs General'!$D76 -> 28.20406986 | T39: =T$37*'DNSP Inputs General'!$D76 -> 31.7534007 | V39: 0 | W39: 3.552713679e-15 | X39: 7.105427358e-15 | Y39: 1.065814104e-14 | Z39: 7.105427358e-15

Sheet Cashflow Summary
A1: ='DNSP Inputs O & M'!$A$3 -> United Energy | E1: Check | F1: =SUM(C135,C141,C164) -> 0.0002068690956
C2: ='DNSP Inputs General'!E38 -> 2020 | D2: ='DNSP Inputs General'!Q$2 -> 2021/22 | E2: ='DNSP Inputs General'!R$2 -> 2022/23 | F2: ='DNSP Inputs General'!S$2 -> 2023/24 | G2: ='DNSP Inputs General'!T$2 -> 2024/25 | H2: ='DNSP Inputs General'!U$2 -> 2025/26 | J2: =C2 -> 2020 | K2: =D2 -> 2021/22 | L2: 2022/23 | M2: 2023/24 | N2: 2024/25 | O2: 2025/26
A4: Public Lighting - Revenue | C4: Revenue - Nominal | J4: Revenue - Real 2021 $
C5: =C$2 -> 2020 | D5: =D$2 -> 2021/22 | E5: 2022/23 | F5: 2023/24 | G5: 2024/25 | H5: 2025/26 | J5: =J$2 -> 2020 | K5: 2021/22 | L5: 2022/23 | M5: 2023/24 | N5: 2024/25 | O5: 2025/26
A6: ='DNSP Inputs General'!A$40 -> Existing Lights
A7: ='DNSP Inputs General'!A41 -> Mercury Vapour 80 watt | C7: =IF('PL Tariffs'!C6="","",'DNSP Inputs General'!O41*'PL Tariffs'!C6) -> 259493.98 | D7: =IF('PL Tariffs'!D6="","",'DNSP Inputs General'!Q41*'PL Tariffs'!D6) -> 0 | E7: =IF('PL Tariffs'!E6="","",'DNSP Inputs General'!R41*'PL Tariffs'!E6) -> 0 | F7: =IF('PL Tariffs'!F6="","",'DNSP Inputs General'!S41*'PL Tariffs'!F6) -> 0 | G7: =IF('PL Tariffs'!G6="","",'DNSP Inputs General'!T41*'PL Tariffs'!G6) -> 0 | H7: =IF('PL Tariffs'!H6="","",'DNSP Inputs General'!U41*'PL Tariffs'!H6) -> 0 | J7: =C7 -> 259493.98 | K7: =IF(D7="","",D7/'Charges Summary'!D$4) -> 0 | L7: =IF(E7="","",E7/'Charges Summary'!E$4) -> 0 | M7: =IF(F7="","",F7/'Charges Summary'!F$4) -> 0 | N7: =IF(G7="","",G7/'Charges Summary'!G$4) -> 0 | O7: =IF(H7="","",H7/'Charges Summary'!H$4) -> 0
A8: ='DNSP Inputs General'!A42 -> Sodium High Pressure 150 watt | C8: =IF('PL Tariffs'!C7="","",'DNSP Inputs General'!O42*'PL Tariffs'!C7) -> 1762743.65 | D8: =IF('PL Tariffs'!D7="","",'DNSP Inputs General'!Q42*'PL Tariffs'!D7) -> 2646264.108 | E8: =IF('PL Tariffs'!E7="","",'DNSP Inputs General'!R42*'PL Tariffs'!E7) -> 2469099.528 | F8: =IF('PL Tariffs'!F7="","",'DNSP Inputs General'!S42*'PL Tariffs'!F7) -> 2337965.554 | G8: =IF('PL Tariffs'!G7="","",'DNSP Inputs General'!T42*'PL Tariffs'!G7) -> 2290525.917 | H8: =IF('PL Tariffs'!H7="","",'DNSP Inputs General'!U42*'PL Tariffs'!H7) -> 2283634.986 | J8: =C8 -> 1762743.65 | K8: =IF(D8="","",D8/'Charges Summary'!D$4) -> 2584890.821 | L8: =IF(E8="","",E8/'Charges Summary'!E$4) -> 2355898.808 | M8: =IF(F8="","",F8/'Charges Summary'!F$4) -> 2179039.797 | N8: =IF(G8="","",G8/'Charges Summary'!G$4) -> 2085313.151 | O8: =IF(H8="","",H8/'Charges Summary'!H$4) -> 2030821.618
A9: ='DNSP Inputs General'!A43 -> Sodium High Pressure 250 watt | C9: =IF('PL Tariffs'!C8="","",'DNSP Inputs General'!O43*'PL Tariffs'!C8) -> 775253.3843 | D9: =IF('PL Tariffs'!D8="","",'DNSP Inputs General'!Q43*'PL Tariffs'!D8) -> 1161911.434 | E9: =IF('PL Tariffs'!E8="","",'DNSP Inputs General'!R43*'PL Tariffs'!E8) -> 1082322.823 | F9: =IF('PL Tariffs'!F8="","",'DNSP Inputs General'!S43*'PL Tariffs'!F8) -> 1011704.687 | G9: =IF('PL Tariffs'!G8="","",'DNSP Inputs General'!T43*'PL Tariffs'!G8) -> 991098.8392 | H9: =IF('PL Tariffs'!H8="","",'DNSP Inputs General'!U43*'PL Tariffs'!H8) -> 987959.5008 | J9: 775253.3843 | K9: =IF(D9="","",D9/'Charges Summary'!D$4) -> 1134963.888 | L9: =IF(E9="","",E9/'Charges Summary'!E$4) -> 1032701.606 | M9: =IF(F9="","",F9/'Charges Summary'!F$4) -> 942932.9587 | N9: =IF(G9="","",G9/'Charges Summary'!G$4) -> 902304.3256 | O9: =IF(H9="","",H9/'Charges Summary'!H$4) -> 878585.9053
A10: ='DNSP Inputs General'!A44 -> Fluorescent 2x20 watt | C10: =IF('PL Tariffs'!C9="","",'DNSP Inputs General'!O44*'PL Tariffs'!C9) -> 950.4575 | D10: =IF('PL Tariffs'!D9="","",'DNSP Inputs General'!Q44*'PL Tariffs'!D9) -> 541.4484447 | E10: =IF('PL Tariffs'!E9="","",'DNSP Inputs General'!R44*'PL Tariffs'!E9) -> 260.8173147 | F10: =IF('PL Tariffs'!F9="","",'DNSP Inputs General'!S44*'PL Tariffs'!F9) -> 118.1723222 | G10: =IF('PL Tariffs'!G9="","",'DNSP Inputs General'!T44*'PL Tariffs'!G9) -> 40.68478679 | H10: =IF('PL Tariffs'!H9="","",'DNSP Inputs General'!U44*'PL Tariffs'!H9) -> 0 | J10: 950.4575 | K10: =IF(D10="","",D10/'Charges Summary'!D$4) -> 528.8909412 | L10: =IF(E10="","",E10/'Charges Summary'!E$4) -> 248.8596324 | M10: =IF(F10="","",F10/'Charges Summary'!F$4) -> 110.1394298 | N10: =IF(G10="","",G10/'Charges Summary'!G$4) -> 37.03975592 | O10: =IF(H10="","",H10/'Charges Summary'!H$4) -> 0
A11: ='DNSP Inputs General'!A45 -> Fluorescent 3x20 watt | C11: =IF('PL Tariffs'!C10="","",'DNSP Inputs General'!O45*'PL Tariffs'!C10) -> 60.6675 | D11: =IF('PL Tariffs'!D10="","",'DNSP Inputs General'!Q45*'PL Tariffs'!D10) -> 0 | E11: =IF('PL Tariffs'!E10="","",'DNSP Inputs General'!R45*'PL Tariffs'!E10) -> 0 | F11: =IF('PL Tariffs'!F10="","",'DNSP Inputs General'!S45*'PL Tariffs'!F10) -> 0 | G11: =IF('PL Tariffs'!G10="","",'DNSP Inputs General'!T45*'PL Tariffs'!G10) -> 0 | H11: =IF('PL Tariffs'!H10="","",'DNSP Inputs General'!U45*'PL Tariffs'!H10) -> 0 | J11: 60.6675 | K11: =IF(D11="","",D11/'Charges Summary'!D$4) -> 0 | L11: =IF(E11="","",E11/'Charges Summary'!E$4) -> 0 | M11: =IF(F11="","",F11/'Charges Summary'!F$4) -> 0 | N11: =IF(G11="","",G11/'Charges Summary'!G$4) -> 0 | O11: =IF(H11="","",H11/'Charges Summary'!H$4) -> 0
A12: ='DNSP Inputs General'!A46 -> Mercury Vapour 50 watt | C12: =IF('PL Tariffs'!C11="","",'DNSP Inputs General'!O46*'PL Tariffs'!C11) -> 371.24 | D12: =IF('PL Tariffs'!D11="","",'DNSP Inputs General'!Q46*'PL Tariffs'!D11) -> 211.4712052 | E12: =IF('PL Tariffs'!E11="","",'DNSP Inputs General'!R46*'PL Tariffs'!E11) -> 101.866304 | F12: =IF('PL Tariffs'!F11="","",'DNSP Inputs General'!S46*'PL Tariffs'!F11) -> 30.76937259 | G12: =IF('PL Tariffs'!G11="","",'DNSP Inputs General'!T46*'PL Tariffs'!G11) -> 0 | H12: =IF('PL Tariffs'!H11="","",'DNSP Inputs General'!U46*'PL Tariffs'!H11) -> 0 | J12: 371.24 | K12: =IF(D12="","",D12/'Charges Summary'!D$4) -> 206.5666747 | L12: =IF(E12="","",E12/'Charges Summary'!E$4) -> 97.19604312 | M12: =IF(F12="","",F12/'Charges Summary'!F$4) -> 28.67779096 | N12: =IF(G12="","",G12/'Charges Summary'!G$4) -> 0 | O12: =IF(H12="","",H12/'Charges Summary'!H$4) -> 0
A13: ='DNSP Inputs General'!A47 -> Mercury Vapour 125 watt | C13: =IF('PL Tariffs'!C12="","",'DNSP Inputs General'!O47*'PL Tariffs'!C12) -> 14014.31 | D13: =IF('PL Tariffs'!D12="","",'DNSP Inputs General'!Q47*'PL Tariffs'!D12) -> 7983.037996 | E13: =IF('PL Tariffs'!E12="","",'DNSP Inputs General'!R47*'PL Tariffs'!E12) -> 3845.452977 | F13: =IF('PL Tariffs'!F12="","",'DNSP Inputs General'!S47*'PL Tariffs'!F12) -> 1742.315723 | G13: =IF('PL Tariffs'!G12="","",'DNSP Inputs General'!T47*'PL Tariffs'!G12) -> 899.7759675 | H13: =IF('PL Tariffs'!H12="","",'DNSP Inputs General'!U47*'PL Tariffs'!H12) -> 612.8443206 | J13: 14014.31 | K13: =IF(D13="","",D13/'Charges Summary'!D$4) -> 7797.89197 | L13: =IF(E13="","",E13/'Charges Summary'!E$4) -> 3669.150628 | M13: =IF(F13="","",F13/'Charges Summary'!F$4) -> 1623.879913 | N13: =IF(G13="","",G13/'Charges Summary'!G$4) -> 819.1632512 | O13: =IF(H13="","",H13/'Charges Summary'!H$4) -> 544.9984354
A14: ='DNSP Inputs General'!A48 -> Mercury Vapour 250 watt | C14: =IF('PL Tariffs'!C13="","",'DNSP Inputs General'!O48*'PL Tariffs'!C13) -> 2135.135 | D14: =IF('PL Tariffs'!D13="","",'DNSP Inputs General'!Q48*'PL Tariffs'!D13) -> 1295.639479 | E14: =IF('PL Tariffs'!E13="","",'DNSP Inputs General'!R48*'PL Tariffs'!E13) -> 635.205665 | F14: =IF('PL Tariffs'!F13="","",'DNSP Inputs General'!S48*'PL Tariffs'!F13) -> 312.5055304 | G14: =IF('PL Tariffs'!G13="","",'DNSP Inputs General'!T48*'PL Tariffs'!G13) -> 161.1266256 | H14: =IF('PL Tariffs'!H13="","",'DNSP Inputs General'!U48*'PL Tariffs'!H13) -> 109.8953301 | J14: 2135.135 | K14: =IF(D14="","",D14/'Charges Summary'!D$4) -> 1265.590455 | L14: =IF(E14="","",E14/'Charges Summary'!E$4) -> 606.0834129 | M14: =IF(F14="","",F14/'Charges Summary'!F$4) -> 291.2626264 | N14: =IF(G14="","",G14/'Charges Summary'!G$4) -> 146.6909711 | O14: =IF(H14="","",H14/'Charges Summary'!H$4) -> 97.72919636
A15: ='DNSP Inputs General'!A49 -> Mercury Vapour 400 watt | C15: =IF('PL Tariffs'!C14="","",'DNSP Inputs General'!O49*'PL Tariffs'!C14) -> 156.975 | D15: =IF('PL Tariffs'!D14="","",'DNSP Inputs General'!Q49*'PL Tariffs'!D14) -> 63.50309224 | E15: =IF('PL Tariffs'!E14="","",'DNSP Inputs General'!R49*'PL Tariffs'!E14) -> 0 | F15: =IF('PL Tariffs'!F14="","",'DNSP Inputs General'!S49*'PL Tariffs'!F14) -> 0 | G15: =IF('PL Tariffs'!G14="","",'DNSP Inputs General'!T49*'PL Tariffs'!G14) -> 0 | H15: =IF('PL Tariffs'!H14="","",'DNSP Inputs General'!U49*'PL Tariffs'!H14) -> 0 | J15: 156.975 | K15: =IF(D15="","",D15/'Charges Summary'!D$4) -> 62.03030141 | L15: =IF(E15="","",E15/'Charges Summary'!E$4) -> 0 | M15: =IF(F15="","",F15/'Charges Summary'!F$4) -> 0 | N15: =IF(G15="","",G15/'Charges Summary'!G$4) -> 0 | O15: =IF(H15="","",H15/'Charges Summary'!H$4) -> 0
A16: ='DNSP Inputs General'!A50 -> Mercury Vapour 700 watt | C16: =IF('PL Tariffs'!C15="","",'DNSP Inputs General'!O50*'PL Tariffs'!C15) -> 78.4875 | D16: =IF('PL Tariffs'!D15="","",'DNSP Inputs General'!Q50*'PL Tariffs'!D15) -> 0 | E16: =IF('PL Tariffs'!E15="","",'DNSP Inputs General'!R50*'PL Tariffs'!E15) -> 0 | F16: =IF('PL Tariffs'!F15="","",'DNSP Inputs General'!S50*'PL Tariffs'!F15) -> 0 | G16: =IF('PL Tariffs'!G15="","",'DNSP Inputs General'!T50*'PL Tariffs'!G15) -> 0 | H16: =IF('PL Tariffs'!H15="","",'DNSP Inputs General'!U50*'PL Tariffs'!H15) -> 0 | J16: 78.4875 | K16: =IF(D16="","",D16/'Charges Summary'!D$4) -> 0 | L16: =IF(E16="","",E16/'Charges Summary'!E$4) -> 0 | M16: =IF(F16="","",F16/'Charges Summary'!F$4) -> 0 | N16: =IF(G16="","",G16/'Charges Summary'!G$4) -> 0 | O16: =IF(H16="","",H16/'Charges Summary'!H$4) -> 0
A17: ='DNSP Inputs General'!A51 -> Sodium High Pressure 70 watt | C17: =IF('PL Tariffs'!C16="","",'DNSP Inputs General'!O51*'PL Tariffs'!C16) -> 9544.435 | D17: =IF('PL Tariffs'!D16="","",'DNSP Inputs General'!Q51*'PL Tariffs'!D16) -> 5436.988984 | E17: =IF('PL Tariffs'!E16="","",'DNSP Inputs General'!R51*'PL Tariffs'!E16) -> 2619.013649 | F17: =IF('PL Tariffs'!F16="","",'DNSP Inputs General'!S51*'PL Tariffs'!F16) -> 1186.634887 | G17: =IF('PL Tariffs'!G16="","",'DNSP Inputs General'!T51*'PL Tariffs'!G16) -> 612.80831 | H17: =IF('PL Tariffs'!H16="","",'DNSP Inputs General'!U51*'PL Tariffs'!H16) -> 417.3884456 | J17: 9544.435 | K17: =IF(D17="","",D17/'Charges Summary'!D$4) -> 5310.892014 | L17: =IF(E17="","",E17/'Charges Summary'!E$4) -> 2498.939821 | M17: =IF(F17="","",F17/'Charges Summary'!F$4) -> 1105.972088 | N17: =IF(G17="","",G17/'Charges Summary'!G$4) -> 557.9055963 | O17: =IF(H17="","",H17/'Charges Summary'!H$4) -> 371.1808075
A18: ='DNSP Inputs General'!A52 -> Sodium High Pressure 100 watt | C18: =IF('PL Tariffs'!C17="","",'DNSP Inputs General'!O52*'PL Tariffs'!C17) -> 23072.055 | D18: =IF('PL Tariffs'!D17="","",'DNSP Inputs General'!Q52*'PL Tariffs'!D17) -> 14023.06912 | E18: =IF('PL Tariffs'!E17="","",'DNSP Inputs General'!R52*'PL Tariffs'!E17) -> 6886.441838 | F18: =IF('PL Tariffs'!F17="","",'DNSP Inputs General'!S52*'PL Tariffs'!F17) -> 3431.948756 | G18: =IF('PL Tariffs'!G17="","",'DNSP Inputs General'!T52*'PL Tariffs'!G17) -> 1769.63743 | H18: =IF('PL Tariffs'!H17="","",'DNSP Inputs General'!U52*'PL Tariffs'!H17) -> 1207.161913 | J18: 23072.055 | K18: =IF(D18="","",D18/'Charges Summary'!D$4) -> 13697.84011 | L18: =IF(E18="","",E18/'Charges Summary'!E$4) -> 6570.719378 | M18: =IF(F18="","",F18/'Charges Summary'!F$4) -> 3198.658299 | N18: =IF(G18="","",G18/'Charges Summary'!G$4) -> 1611.092098 | O18: =IF(H18="","",H18/'Charges Summary'!H$4) -> 1073.521173
A19: ='DNSP Inputs General'!A53 -> Sodium High Pressure 400 watt | C19: =IF('PL Tariffs'!C18="","",'DNSP Inputs General'!O53*'PL Tariffs'!C18) -> 8293.5125 | D19: =IF('PL Tariffs'!D18="","",'DNSP Inputs General'!Q53*'PL Tariffs'!D18) -> 5032.62006 | E19: =IF('PL Tariffs'!E18="","",'DNSP Inputs General'!R53*'PL Tariffs'!E18) -> 2467.313495 | F19: =IF('PL Tariffs'!F18="","",'DNSP Inputs General'!S53*'PL Tariffs'!F18) -> 1213.857425 | G19: =IF('PL Tariffs'!G18="","",'DNSP Inputs General'!T53*'PL Tariffs'!G18) -> 625.8601262 | H19: =IF('PL Tariffs'!H18="","",'DNSP Inputs General'!U53*'PL Tariffs'!H18) -> 426.8636851 | J19: 8293.5125 | K19: =IF(D19="","",D19/'Charges Summary'!D$4) -> 4915.901386 | L19: =IF(E19="","",E19/'Charges Summary'!E$4) -> 2354.194659 | M19: =IF(F19="","",F19/'Charges Summary'!F$4) -> 1131.344143 | N19: =IF(G19="","",G19/'Charges Summary'!G$4) -> 569.7880743 | O19: =IF(H19="","",H19/'Charges Summary'!H$4) -> 379.6070759
A20: ='DNSP Inputs General'!A54 -> Metal Halide 70 watt | C20: =IF('PL Tariffs'!C19="","",'DNSP Inputs General'!O54*'PL Tariffs'!C19) -> 246.7125 | D20: =IF('PL Tariffs'!D19="","",'DNSP Inputs General'!Q54*'PL Tariffs'!D19) -> 149.9430518 | E20: =IF('PL Tariffs'!E19="","",'DNSP Inputs General'!R54*'PL Tariffs'!E19) -> 49.08930642 | F20: =IF('PL Tariffs'!F19="","",'DNSP Inputs General'!S54*'PL Tariffs'!F19) -> 0 | G20: =IF('PL Tariffs'!G19="","",'DNSP Inputs General'!T54*'PL Tariffs'!G19) -> 0 | H20: =IF('PL Tariffs'!H19="","",'DNSP Inputs General'!U54*'PL Tariffs'!H19) -> 0 | J20: 246.7125 | K20: =IF(D20="","",D20/'Charges Summary'!D$4) -> 146.4655086 | L20: =IF(E20="","",E20/'Charges Summary'!E$4) -> 46.83871069 | M20: =IF(F20="","",F20/'Charges Summary'!F$4) -> 0 | N20: =IF(G20="","",G20/'Charges Summary'!G$4) -> 0 | O20: =IF(H20="","",H20/'Charges Summary'!H$4) -> 0
A21: ='DNSP Inputs General'!A55 -> Metal Halide 100 watt | C21: =IF('PL Tariffs'!C20="","",'DNSP Inputs General'!O55*'PL Tariffs'!C20) -> 2604.1875 | D21: =IF('PL Tariffs'!D20="","",'DNSP Inputs General'!Q55*'PL Tariffs'!D20) -> 1582.732214 | E21: =IF('PL Tariffs'!E20="","",'DNSP Inputs General'!R55*'PL Tariffs'!E20) -> 777.2473517 | F21: =IF('PL Tariffs'!F20="","",'DNSP Inputs General'!S55*'PL Tariffs'!F20) -> 387.3514283 | G21: =IF('PL Tariffs'!G20="","",'DNSP Inputs General'!T55*'PL Tariffs'!G20) -> 199.7324654 | H21: =IF('PL Tariffs'!H20="","",'DNSP Inputs General'!U55*'PL Tariffs'!H20) -> 136.2479234 | J21: 2604.1875 | K21: =IF(D21="","",D21/'Charges Summary'!D$4) -> 1546.024813 | L21: =IF(E21="","",E21/'Charges Summary'!E$4) -> 741.6129193 | M21: =IF(F21="","",F21/'Charges Summary'!F$4) -> 361.0207928 | N21: =IF(G21="","",G21/'Charges Summary'!G$4) -> 181.8380371 | O21: =IF(H21="","",H21/'Charges Summary'!H$4) -> 121.1643848
A22: ='DNSP Inputs General'!A56 -> Metal Halide 150 watt | C22: =IF('PL Tariffs'!C21="","",'DNSP Inputs General'!O56*'PL Tariffs'!C21) -> 1206.15 | D22: =IF('PL Tariffs'!D21="","",'DNSP Inputs General'!Q56*'PL Tariffs'!D21) -> 733.0549202 | E22: =IF('PL Tariffs'!E21="","",'DNSP Inputs General'!R56*'PL Tariffs'!E21) -> 359.9882471 | F22: =IF('PL Tariffs'!F21="","",'DNSP Inputs General'!S56*'PL Tariffs'!F21) -> 179.404872 | G22: =IF('PL Tariffs'!G21="","",'DNSP Inputs General'!T56*'PL Tariffs'!G21) -> 61.67177878 | H22: =IF('PL Tariffs'!H21="","",'DNSP Inputs General'!U56*'PL Tariffs'!H21) -> 0 | J22: 1206.15 | K22: =IF(D22="","",D22/'Charges Summary'!D$4) -> 716.0535974 | L22: =IF(E22="","",E22/'Charges Summary'!E$4) -> 343.4838784 | M22: =IF(F22="","",F22/'Charges Summary'!F$4) -> 167.2096303 | N22: =IF(G22="","",G22/'Charges Summary'!G$4) -> 56.14648162 | O22: =IF(H22="","",H22/'Charges Summary'!H$4) -> 0
A23: ='DNSP Inputs General'!A57 -> Metal Halide 250 watt | C23: =IF('PL Tariffs'!C22="","",'DNSP Inputs General'!O57*'PL Tariffs'!C22) -> 3504.0625 | D23: =IF('PL Tariffs'!D22="","",'DNSP Inputs General'!Q57*'PL Tariffs'!D22) -> 2126.219606 | E23: =IF('PL Tariffs'!E22="","",'DNSP Inputs General'!R57*'PL Tariffs'!E22) -> 1042.409374 | F23: =IF('PL Tariffs'!F22="","",'DNSP Inputs General'!S57*'PL Tariffs'!F22) -> 512.8397186 | G23: =IF('PL Tariffs'!G22="","",'DNSP Inputs General'!T57*'PL Tariffs'!G22) -> 264.4181471 | H23: =IF('PL Tariffs'!H22="","",'DNSP Inputs General'!U57*'PL Tariffs'!H22) -> 180.3446168 | J23: 3504.0625 | K23: =IF(D23="","",D23/'Charges Summary'!D$4) -> 2076.907413 | L23: =IF(E23="","",E23/'Charges Summary'!E$4) -> 994.6180679 | M23: =IF(F23="","",F23/'Charges Summary'!F$4) -> 477.9788798 | N23: =IF(G23="","",G23/'Charges Summary'!G$4) -> 240.7284 | O23: =IF(H23="","",H23/'Charges Summary'!H$4) -> 160.3792851
A24: ='DNSP Inputs General'!A58 -> Metal Halide 400 watt | C24: =IF('PL Tariffs'!C23="","",'DNSP Inputs General'!O58*'PL Tariffs'!C23) -> 3307.835 | D24: =IF('PL Tariffs'!D23="","",'DNSP Inputs General'!Q58*'PL Tariffs'!D23) -> 2007.151308 | E24: =IF('PL Tariffs'!E23="","",'DNSP Inputs General'!R58*'PL Tariffs'!E23) -> 984.0344494 | F24: =IF('PL Tariffs'!F23="","",'DNSP Inputs General'!S58*'PL Tariffs'!F23) -> 484.1206943 | G24: =IF('PL Tariffs'!G23="","",'DNSP Inputs General'!T58*'PL Tariffs'!G23) -> 249.6107308 | H24: =IF('PL Tariffs'!H23="","",'DNSP Inputs General'!U58*'PL Tariffs'!H23) -> 170.2453183 | J24: 3307.835 | K24: =IF(D24="","",D24/'Charges Summary'!D$4) -> 1960.600598 | L24: =IF(E24="","",E24/'Charges Summary'!E$4) -> 938.9194561 | M24: =IF(F24="","",F24/'Charges Summary'!F$4) -> 451.2120625 | N24: =IF(G24="","",G24/'Charges Summary'!G$4) -> 227.2476096 | O24: =IF(H24="","",H24/'Charges Summary'!H$4) -> 151.3980451
A31: ='DNSP Inputs General'!A$67 -> Energy Efficient Lights
A32: ='DNSP Inputs General'!B68 -> T5 2X14W | C32: =IF('PL Tariffs'!C31="","",'DNSP Inputs General'!M68*'PL Tariffs'!C31) -> 1014394.99 | D32: =IF('PL Tariffs'!D31="","",'DNSP Inputs General'!Q68*'PL Tariffs'!D31) -> 949282.8574 | E32: =IF('PL Tariffs'!E31="","",'DNSP Inputs General'!R68*'PL Tariffs'!E31) -> 906808.8541 | F32: =IF('PL Tariffs'!F31="","",'DNSP Inputs General'!S68*'PL Tariffs'!F31) -> 864052.9825 | G32: =IF('PL Tariffs'!G31="","",'DNSP Inputs General'!T68*'PL Tariffs'!G31) -> 823994.1628 | H32: =IF('PL Tariffs'!H31="","",'DNSP Inputs General'!U68*'PL Tariffs'!H31) -> 827485.7197 | J32: =C32 -> 1014394.99 | K32: =IF(D32="","",D32/'Charges Summary'!D$4) -> 927266.684 | L32: =IF(E32="","",E32/'Charges Summary'!E$4) -> 865234.42 | M32: =IF(F32="","",F32/'Charges Summary'!F$4) -> 805318.0393 | N32: =IF(G32="","",G32/'Charges Summary'!G$4) -> 750170.889 | O32: =IF(H32="","",H32/'Charges Summary'!H$4) -> 735877.6241
A33: ='DNSP Inputs General'!B69 -> T5 2X14W | C33: =IF('PL Tariffs'!C32="","",'DNSP Inputs General'!M69*'PL Tariffs'!C32) -> 10951.22 | D33: =IF('PL Tariffs'!D32="","",'DNSP Inputs General'!Q69*'PL Tariffs'!D32) -> 10248.2815 | E33: =IF('PL Tariffs'!E32="","",'DNSP Inputs General'!R69*'PL Tariffs'!E32) -> 9789.740049 | F33: =IF('PL Tariffs'!F32="","",'DNSP Inputs General'!S69*'PL Tariffs'!F32) -> 9328.155596 | G33: =IF('PL Tariffs'!G32="","",'DNSP Inputs General'!T69*'PL Tariffs'!G32) -> 8895.688015 | H33: =IF('PL Tariffs'!H32="","",'DNSP Inputs General'!U69*'PL Tariffs'!H32) -> 8933.382216 | J33: =C33 -> 10951.22 | K33: =IF(D33="","",D33/'Charges Summary'!D$4) -> 10010.59898 | L33: =IF(E33="","",E33/'Charges Summary'!E$4) -> 9340.910176 | M33: =IF(F33="","",F33/'Charges Summary'!F$4) -> 8694.064053 | N33: =IF(G33="","",G33/'Charges Summary'!G$4) -> 8098.705656 | O33: =IF(H33="","",H33/'Charges Summary'!H$4) -> 7944.398222
A34: ='DNSP Inputs General'!B70 -> T5 2X14W | C34: =IF('PL Tariffs'!C33="","",'DNSP Inputs General'!M70*'PL Tariffs'!C33) -> 53624.27 | D34: =IF('PL Tariffs'!D33="","",'DNSP Inputs General'!Q70*'PL Tariffs'!D33) -> 50182.22759 | E34: =IF('PL Tariffs'!E33="","",'DNSP Inputs General'!R70*'PL Tariffs'!E33) -> 47936.91147 | F34: =IF('PL Tariffs'!F33="","",'DNSP Inputs General'!S70*'PL Tariffs'!F33) -> 45676.69486 | G34: =IF('PL Tariffs'!G33="","",'DNSP Inputs General'!T70*'PL Tariffs'!G33) -> 43559.05333 | H34: =IF('PL Tariffs'!H33="","",'DNSP Inputs General'!U70*'PL Tariffs'!H33) -> 43743.62856 | J34: 53624.27 | K34: =IF(D34="","",D34/'Charges Summary'!D$4) -> 49018.37994 | L34: =IF(E34="","",E34/'Charges Summary'!E$4) -> 45739.14955 | M34: =IF(F34="","",F34/'Charges Summary'!F$4) -> 42571.77175 | N34: =IF(G34="","",G34/'Charges Summary'!G$4) -> 39656.51121 | O34: =IF(H34="","",H34/'Charges Summary'!H$4) -> 38900.92202
A35: ='DNSP Inputs General'!B71 -> T5 2X14W | C35: =IF('PL Tariffs'!C34="","",'DNSP Inputs General'!M71*'PL Tariffs'!C34) -> 12664.26 | D35: =IF('PL Tariffs'!D34="","",'DNSP Inputs General'!Q71*'PL Tariffs'!D34) -> 11851.36464 | E35: =IF('PL Tariffs'!E34="","",'DNSP Inputs General'!R71*'PL Tariffs'!E34) -> 11321.09603 | F35: =IF('PL Tariffs'!F34="","",'DNSP Inputs General'!S71*'PL Tariffs'!F34) -> 10787.30843 | G35: =IF('PL Tariffs'!G34="","",'DNSP Inputs General'!T71*'PL Tariffs'!G34) -> 10287.19229 | H35: =IF('PL Tariffs'!H34="","",'DNSP Inputs General'!U71*'PL Tariffs'!H34) -> 10330.78279 | J35: 12664.26 | K35: =IF(D35="","",D35/'Charges Summary'!D$4) -> 11576.50273 | L35: =IF(E35="","",E35/'Charges Summary'!E$4) -> 10802.05814 | M35: =IF(F35="","",F35/'Charges Summary'!F$4) -> 10054.02938 | N35: =IF(G35="","",G35/'Charges Summary'!G$4) -> 9365.542295 | O35: =IF(H35="","",H35/'Charges Summary'!H$4) -> 9187.097385
A36: ='DNSP Inputs General'!B72 -> Category P LED 18 Watt | C36: =IF('PL Tariffs'!C35="","",'DNSP Inputs General'!M72*'PL Tariffs'!C35) -> 588318.5078 | D36: =IF('PL Tariffs'!D35="","",'DNSP Inputs General'!Q72*'PL Tariffs'!D35) -> 1244223.217 | E36: =IF('PL Tariffs'!E35="","",'DNSP Inputs General'!R72*'PL Tariffs'!E35) -> 1421630.055 | F36: =IF('PL Tariffs'!F35="","",'DNSP Inputs General'!S72*'PL Tariffs'!F35) -> 1604074.078 | G36: =IF('PL Tariffs'!G35="","",'DNSP Inputs General'!T72*'PL Tariffs'!G35) -> 1788151.842 | H36: =IF('PL Tariffs'!H35="","",'DNSP Inputs General'!U72*'PL Tariffs'!H35) -> 1954852.651 | J36: 588318.5078 | K36: =IF(D36="","",D36/'Charges Summary'!D$4) -> 1215366.661 | L36: =IF(E36="","",E36/'Charges Summary'!E$4) -> 1356452.631 | M36: =IF(F36="","",F36/'Charges Summary'!F$4) -> 1495035.395 | N36: =IF(G36="","",G36/'Charges Summary'!G$4) -> 1627947.767 | O36: =IF(H36="","",H36/'Charges Summary'!H$4) -> 1738437.643
A37: ='DNSP Inputs General'!B73 -> Category P LED 18 Watt | C37: =IF('PL Tariffs'!C36="","",'DNSP Inputs General'!M73*'PL Tariffs'!C36) -> 0 | D37: =IF('PL Tariffs'!D36="","",'DNSP Inputs General'!Q73*'PL Tariffs'!D36) -> 58928.16251 | E37: =IF('PL Tariffs'!E36="","",'DNSP Inputs General'!R73*'PL Tariffs'!E36) -> 67330.40001 | F37: =IF('PL Tariffs'!F36="","",'DNSP Inputs General'!S73*'PL Tariffs'!F36) -> 75971.20568 | G37: =IF('PL Tariffs'!G36="","",'DNSP Inputs General'!T73*'PL Tariffs'!G36) -> 84689.38762 | H37: =IF('PL Tariffs'!H36="","",'DNSP Inputs General'!U73*'PL Tariffs'!H36) -> 92584.5725 | J37: 0 | K37: =IF(D37="","",D37/'Charges Summary'!D$4) -> 57561.4754 | L37: =IF(E37="","",E37/'Charges Summary'!E$4) -> 64243.50549 | M37: =IF(F37="","",F37/'Charges Summary'!F$4) -> 70806.98017 | N37: =IF(G37="","",G37/'Charges Summary'!G$4) -> 77101.89716 | O37: =IF(H37="","",H37/'Charges Summary'!H$4) -> 82334.85318
A38: ='DNSP Inputs General'!B74 -> Category V LED L1 Standard Output | C38: =IF('PL Tariffs'!C37="","",'DNSP Inputs General'!M74*'PL Tariffs'!C37) -> 156219.449 | D38: =IF('PL Tariffs'!D37="","",'DNSP Inputs General'!Q74*'PL Tariffs'!D37) -> 392824.9797 | E38: =IF('PL Tariffs'!E37="","",'DNSP Inputs General'!R74*'PL Tariffs'!E37) -> 483145.2146 | F38: =IF('PL Tariffs'!F37="","",'DNSP Inputs General'!S74*'PL Tariffs'!F37) -> 577519.1264 | G38: =IF('PL Tariffs'!G37="","",'DNSP Inputs General'!T74*'PL Tariffs'!G37) -> 664183.7906 | H38: =IF('PL Tariffs'!H37="","",'DNSP Inputs General'!U74*'PL Tariffs'!H37) -> 726370.5118 | J38: 156219.449 | K38: =IF(D38="","",D38/'Charges Summary'!D$4) -> 383714.415 | L38: =IF(E38="","",E38/'Charges Summary'!E$4) -> 460994.4727 | M38: =IF(F38="","",F38/'Charges Summary'!F$4) -> 538261.6343 | N38: =IF(G38="","",G38/'Charges Summary'!G$4) -> 604678.2455 | O38: =IF(H38="","",H38/'Charges Summary'!H$4) -> 645956.5328
A39: ='DNSP Inputs General'!B75 -> Category V LED L1 Standard Output | C39: =IF('PL Tariffs'!C38="","",'DNSP Inputs General'!M75*'PL Tariffs'!C38) -> 0 | D39: =IF('PL Tariffs'!D38="","",'DNSP Inputs General'!Q75*'PL Tariffs'!D38) -> 38360.40597 | E39: =IF('PL Tariffs'!E38="","",'DNSP Inputs General'!R75*'PL Tariffs'!E38) -> 47180.41757 | F39: =IF('PL Tariffs'!F38="","",'DNSP Inputs General'!S75*'PL Tariffs'!F38) -> 56396.28152 | G39: =IF('PL Tariffs'!G38="","",'DNSP Inputs General'!T75*'PL Tariffs'!G38) -> 64859.31691 | H39: =IF('PL Tariffs'!H38="","",'DNSP Inputs General'!U75*'PL Tariffs'!H38) -> 70932.01593 | J39: 0 | K39: =IF(D39="","",D39/'Charges Summary'!D$4) -> 37470.73505 | L39: =IF(E39="","",E39/'Charges Summary'!E$4) -> 45017.33861 | M39: =IF(F39="","",F39/'Charges Summary'!F$4) -> 52562.68282 | N39: =IF(G39="","",G39/'Charges Summary'!G$4) -> 59048.44187 | O39: =IF(H39="","",H39/'Charges Summary'!H$4) -> 63079.37661
A40: ='DNSP Inputs General'!B76 -> Category V LED L1 Standard Output | C40: =IF('PL Tariffs'!C39="","",'DNSP Inputs General'!M76*'PL Tariffs'!C39) -> 0 | D40: =IF('PL Tariffs'!D39="","",'DNSP Inputs General'!Q76*'PL Tariffs'!D39) -> 21624.35002 | E40: =IF('PL Tariffs'!E39="","",'DNSP Inputs General'!R76*'PL Tariffs'!E39) -> 26596.32602 | F40: =IF('PL Tariffs'!F39="","",'DNSP Inputs General'!S76*'PL Tariffs'!F39) -> 31791.45008 | G40: =IF('PL Tariffs'!G39="","",'DNSP Inputs General'!T76*'PL Tariffs'!G39) -> 36562.19311 | H40: =IF('PL Tariffs'!H39="","",'DNSP Inputs General'!U76*'PL Tariffs'!H39) -> 39985.46682 | J40: 0 | K40: =IF(D40="","",D40/'Charges Summary'!D$4) -> 21122.82886 | L40: =IF(E40="","",E40/'Charges Summary'!E$4) -> 25376.96519 | M40: =IF(F40="","",F40/'Charges Summary'!F$4) -> 29630.39161 | N40: =IF(G40="","",G40/'Charges Summary'!G$4) -> 33286.5136 | O40: =IF(H40="","",H40/'Charges Summary'!H$4) -> 35558.81343
A42: Total Revenue | C42: =IF(SUM(C7:C41)=0,"",SUM(C7:C41)) -> 4703209.934 | D42: =SUM(D7:D41) -> 6626888.269 | E42: =SUM(E7:E41) -> 6593190.246 | F42: =SUM(F7:F41) -> 6634867.445 | G42: =SUM(G7:G41) -> 6811692.71 | H42: =SUM(H7:H41) -> 7050074.209 | J42: =IF(SUM(J7:J41)=0,"",SUM(J7:J41)) -> 4703209.934 | K42: =SUM(K7:K41) -> 6473194.647 | L42: =SUM(L7:L41) -> 6290912.482 | M42: =SUM(M7:M41) -> 6183855.099 | N42: =SUM(N7:N41) -> 6201419.629 | O42: =SUM(O7:O41) -> 6269584.762
A43: % Increase \ (Decrease) in Total Revenue | D43: =D42/C42-1 -> 0.4090139207 | E43: =E42/D42-1 -> -0.00508504467 | F43: 0.006321249273 | G43: 0.02665091146 | H43: 0.0349959268 | K43: =K42/J42-1 -> 0.3763354682 | L43: -0.02815953713 | M43: -0.01701778282 | N43: 0.002840385159 | O43: 0.01099185934
A45: Public Lighting - O & M | D45: Forecast O & M - Nominal | K45: Forecast O & M - Real 2021 $
D46: =D$2 -> 2021/22 | E46: 2022/23 | F46: 2023/24 | G46: 2024/25 | H46: 2025/26 | K46: =K$2 -> 2021/22 | L46: 2022/23 | M46: 2023/24 | N46: 2024/25 | O46: 2025/26
A48: Unit cost
A49: ='DNSP Inputs General'!A$41 -> Mercury Vapour 80 watt | D49: =SUM('Charges Summary'!D25,'Charges Summary'!D8) -> 36.6457535 | E49: =SUM('Charges Summary'!E25,'Charges Summary'!E8) -> 37.62248109 | F49: =SUM('Charges Summary'!F25,'Charges Summary'!F8) -> 38.65626637 | G49: =SUM('Charges Summary'!G25,'Charges Summary'!G8) -> 39.79571486 | H49: =SUM('Charges Summary'!H25,'Charges Summary'!H8) -> 41.03682216
A50: ='DNSP Inputs General'!A$42 -> Sodium High Pressure 150 watt | D50: =SUM('Charges Summary'!D49,'Charges Summary'!D8) -> 73.94702019 | E50: =SUM('Charges Summary'!E49,'Charges Summary'!E8) -> 75.96410545 | F50: =SUM('Charges Summary'!F49,'Charges Summary'!F8) -> 78.10250536 | G50: =SUM('Charges Summary'!G49,'Charges Summary'!G8) -> 80.44941876 | H50: =SUM('Charges Summary'!H49,'Charges Summary'!H8) -> 83.00048299
A51: ='DNSP Inputs General'!A$43 -> Sodium High Pressure 250 watt | D51: =SUM('Charges Summary'!D72,'Charges Summary'!D8) -> 74.1079792 | E51: =SUM('Charges Summary'!E72,'Charges Summary'!E8) -> 76.13026628 | F51: =SUM('Charges Summary'!F72,'Charges Summary'!F8) -> 78.27409011 | G51: =SUM('Charges Summary'!G72,'Charges Summary'!G8) -> 80.62649763 | H51: =SUM('Charges Summary'!H72,'Charges Summary'!H8) -> 83.18307158
A53: ='DNSP Inputs General'!A$40 -> Existing Lights
A54: ='DNSP Inputs General'!A$41 -> Mercury Vapour 80 watt | D54: =D49*'DNSP Inputs General'!Q41 -> 0 | E54: =E49*'DNSP Inputs General'!R41 -> 0 | F54: =F49*'DNSP Inputs General'!S41 -> 0 | G54: =G49*'DNSP Inputs General'!T41 -> 0 | H54: =H49*'DNSP Inputs General'!U41 -> 0 | K54: =D54/'Charges Summary'!D$4 -> 0 | L54: =E54/'Charges Summary'!E$4 -> 0 | M54: =F54/'Charges Summary'!F$4 -> 0 | N54: =G54/'Charges Summary'!G$4 -> 0 | O54: =H54/'Charges Summary'!H$4 -> 0
A55: ='DNSP Inputs General'!A$42 -> Sodium High Pressure 150 watt | D55: =D50*'DNSP Inputs General'!Q42 -> 1486534.774 | E55: =E50*'DNSP Inputs General'!R42 -> 1450729.452 | F55: =F50*'DNSP Inputs General'!S42 -> 1416989.3 | G55: =G50*'DNSP Inputs General'!T42 -> 1386590.184 | H55: =H50*'DNSP Inputs General'!U42 -> 1393878.181 | K55: =D55/'Charges Summary'!D$4 -> 1452058.425 | L55: =E55/'Charges Summary'!E$4 -> 1384217.909 | M55: =F55/'Charges Summary'!F$4 -> 1320667.908 | N55: =G55/'Charges Summary'!G$4 -> 1262362.815 | O55: =H55/'Charges Summary'!H$4 -> 1239566.725
A56: ='DNSP Inputs General'!A$43 -> Sodium High Pressure 250 watt | D56: =D51*'DNSP Inputs General'!Q43 -> 640685.5602 | E56: =E51*'DNSP Inputs General'!R43 -> 625260.3928 | F56: =F51*'DNSP Inputs General'!S43 -> 610724.3043 | G56: =G51*'DNSP Inputs General'!T43 -> 597624.7507 | H56: =H51*'DNSP Inputs General'!U43 -> 600765.1386 | K56: =D56/'Charges Summary'!D$4 -> 625826.5071 | L56: =E56/'Charges Summary'!E$4 -> 596594.1013 | M56: =F56/'Charges Summary'!F$4 -> 569209.6541 | N56: =G56/'Charges Summary'!G$4 -> 544082.3622 | O56: =H56/'Charges Summary'!H$4 -> 534256.4981
A57: ='DNSP Inputs General'!A$44 -> Fluorescent 2x20 watt | D57: =IF('DNSP Inputs General'!$B44='DNSP Inputs General'!$A$41,D$49,IF('DNSP Inputs General'!$B44='DNSP Inputs General'!$A$42,D$50,D$51))*'DNSP Inputs General'!$D44*'DNSP Inputs General'!Q44 -> 208.2967533 | E57: =IF('DNSP Inputs General'!$B44='DNSP Inputs General'!$A$41,E$49,IF('DNSP Inputs General'!$B44='DNSP Inputs General'!$A$42,E$50,E$51))*'DNSP Inputs General'!$D44*'DNSP Inputs General'!R44 -> 106.924267 | F57: =IF('DNSP Inputs General'!$B44='DNSP Inputs General'!$A$41,F$49,IF('DNSP Inputs General'!$B44='DNSP Inputs General'!$A$42,F$50,F$51))*'DNSP Inputs General'!$D44*'DNSP Inputs General'!S44 -> 54.93115852 | G57: =IF('DNSP Inputs General'!$B44='DNSP Inputs General'!$A$41,G$49,IF('DNSP Inputs General'!$B44='DNSP Inputs General'!$A$42,G$50,G$51))*'DNSP Inputs General'!$D44*'DNSP Inputs General'!T44 -> 18.85011087 | H57: =IF('DNSP Inputs General'!$B44='DNSP Inputs General'!$A$41,H$49,IF('DNSP Inputs General'!$B44='DNSP Inputs General'!$A$42,H$50,H$51))*'DNSP Inputs General'!$D44*'DNSP Inputs General'!U44 -> 0 | K57: =D57/'Charges Summary'!D$4 -> 203.465846 | L57: =E57/'Charges Summary'!E$4 -> 102.0221138 | M57: =F57/'Charges Summary'!F$4 -> 51.19715315 | N57: =G57/'Charges Summary'!G$4 -> 17.161292 | O57: =H57/'Charges Summary'!H$4 -> 0
A58: ='DNSP Inputs General'!A$45 -> Fluorescent 3x20 watt | D58: =IF('DNSP Inputs General'!$B45='DNSP Inputs General'!$A$41,D$49,IF('DNSP Inputs General'!$B45='DNSP Inputs General'!$A$42,D$50,D$51))*'DNSP Inputs General'!$D45*'DNSP Inputs General'!Q45 -> 0 | E58: =IF('DNSP Inputs General'!$B45='DNSP Inputs General'!$A$41,E$49,IF('DNSP Inputs General'!$B45='DNSP Inputs General'!$A$42,E$50,E$51))*'DNSP Inputs General'!$D45*'DNSP Inputs General'!R45 -> 0 | F58: =IF('DNSP Inputs General'!$B45='DNSP Inputs General'!$A$41,F$49,IF('DNSP Inputs General'!$B45='DNSP Inputs General'!$A$42,F$50,F$51))*'DNSP Inputs General'!$D45*'DNSP Inputs General'!S45 -> 0 | G58: =IF('DNSP Inputs General'!$B45='DNSP Inputs General'!$A$41,G$49,IF('DNSP Inputs General'!$B45='DNSP Inputs General'!$A$42,G$50,G$51))*'DNSP Inputs General'!$D45*'DNSP Inputs General'!T45 -> 0 | H58: =IF('DNSP Inputs General'!$B45='DNSP Inputs General'!$A$41,H$49,IF('DNSP Inputs General'!$B45='DNSP Inputs General'!$A$42,H$50,H$51))*'DNSP Inputs General'!$D45*'DNSP Inputs General'!U45 -> 0 | K58: =D58/'Charges Summary'!D$4 -> 0 | L58: =E58/'Charges Summary'!E$4 -> 0 | M58: =F58/'Charges Summary'!F$4 -> 0 | N58: =G58/'Charges Summary'!G$4 -> 0 | O58: =H58/'Charges Summary'!H$4 -> 0
A59: ='DNSP Inputs General'!A$46 -> Mercury Vapour 50 watt | D59: =IF('DNSP Inputs General'!$B46='DNSP Inputs General'!$A$41,D$49,IF('DNSP Inputs General'!$B46='DNSP Inputs General'!$A$42,D$50,D$51))*'DNSP Inputs General'!$D46*'DNSP Inputs General'!Q46 -> 81.35357277 | E59: =IF('DNSP Inputs General'!$B46='DNSP Inputs General'!$A$41,E$49,IF('DNSP Inputs General'!$B46='DNSP Inputs General'!$A$42,E$50,E$51))*'DNSP Inputs General'!$D46*'DNSP Inputs General'!R46 -> 41.76095401 | F59: =IF('DNSP Inputs General'!$B46='DNSP Inputs General'!$A$41,F$49,IF('DNSP Inputs General'!$B46='DNSP Inputs General'!$A$42,F$50,F$51))*'DNSP Inputs General'!$D46*'DNSP Inputs General'!S46 -> 14.30281856 | G59: =IF('DNSP Inputs General'!$B46='DNSP Inputs General'!$A$41,G$49,IF('DNSP Inputs General'!$B46='DNSP Inputs General'!$A$42,G$50,G$51))*'DNSP Inputs General'!$D46*'DNSP Inputs General'!T46 -> 0 | H59: =IF('DNSP Inputs General'!$B46='DNSP Inputs General'!$A$41,H$49,IF('DNSP Inputs General'!$B46='DNSP Inputs General'!$A$42,H$50,H$51))*'DNSP Inputs General'!$D46*'DNSP Inputs General'!U46 -> 0 | K59: =D59/'Charges Summary'!D$4 -> 79.46678598 | L59: =E59/'Charges Summary'!E$4 -> 39.846341 | M59: =F59/'Charges Summary'!F$4 -> 13.33056888 | N59: =G59/'Charges Summary'!G$4 -> 0 | O59: =H59/'Charges Summary'!H$4 -> 0
A60: ='DNSP Inputs General'!A$47 -> Mercury Vapour 125 watt | D60: =IF('DNSP Inputs General'!$B47='DNSP Inputs General'!$A$41,D$49,IF('DNSP Inputs General'!$B47='DNSP Inputs General'!$A$42,D$50,D$51))*'DNSP Inputs General'!$D47*'DNSP Inputs General'!Q47 -> 3071.097372 | E60: =IF('DNSP Inputs General'!$B47='DNSP Inputs General'!$A$41,E$49,IF('DNSP Inputs General'!$B47='DNSP Inputs General'!$A$42,E$50,E$51))*'DNSP Inputs General'!$D47*'DNSP Inputs General'!R47 -> 1576.476014 | F60: =IF('DNSP Inputs General'!$B47='DNSP Inputs General'!$A$41,F$49,IF('DNSP Inputs General'!$B47='DNSP Inputs General'!$A$42,F$50,F$51))*'DNSP Inputs General'!$D47*'DNSP Inputs General'!S47 -> 809.8971009 | G60: =IF('DNSP Inputs General'!$B47='DNSP Inputs General'!$A$41,G$49,IF('DNSP Inputs General'!$B47='DNSP Inputs General'!$A$42,G$50,G$51))*'DNSP Inputs General'!$D47*'DNSP Inputs General'!T47 -> 416.8849855 | H60: =IF('DNSP Inputs General'!$B47='DNSP Inputs General'!$A$41,H$49,IF('DNSP Inputs General'!$B47='DNSP Inputs General'!$A$42,H$50,H$51))*'DNSP Inputs General'!$D47*'DNSP Inputs General'!U47 -> 286.5909068 | K60: =D60/'Charges Summary'!D$4 -> 2999.871171 | L60: =E60/'Charges Summary'!E$4 -> 1504.199373 | M60: =F60/'Charges Summary'!F$4 -> 754.8434627 | N60: =G60/'Charges Summary'!G$4 -> 379.5354315 | O60: =H60/'Charges Summary'!H$4 -> 254.863414
A61: ='DNSP Inputs General'!A$48 -> Mercury Vapour 250 watt | D61: =IF('DNSP Inputs General'!$B48='DNSP Inputs General'!$A$41,D$49,IF('DNSP Inputs General'!$B48='DNSP Inputs General'!$A$42,D$50,D$51))*'DNSP Inputs General'!$D48*'DNSP Inputs General'!Q48 -> 714.4240782 | E61: =IF('DNSP Inputs General'!$B48='DNSP Inputs General'!$A$41,E$49,IF('DNSP Inputs General'!$B48='DNSP Inputs General'!$A$42,E$50,E$51))*'DNSP Inputs General'!$D48*'DNSP Inputs General'!R48 -> 366.9597788 | F61: =IF('DNSP Inputs General'!$B48='DNSP Inputs General'!$A$41,F$49,IF('DNSP Inputs General'!$B48='DNSP Inputs General'!$A$42,F$50,F$51))*'DNSP Inputs General'!$D48*'DNSP Inputs General'!S48 -> 188.6466723 | G61: =IF('DNSP Inputs General'!$B48='DNSP Inputs General'!$A$41,G$49,IF('DNSP Inputs General'!$B48='DNSP Inputs General'!$A$42,G$50,G$51))*'DNSP Inputs General'!$D48*'DNSP Inputs General'!T48 -> 97.15807912 | H61: =IF('DNSP Inputs General'!$B48='DNSP Inputs General'!$A$41,H$49,IF('DNSP Inputs General'!$B48='DNSP Inputs General'!$A$42,H$50,H$51))*'DNSP Inputs General'!$D48*'DNSP Inputs General'!U48 -> 66.82590039 | K61: =D61/'Charges Summary'!D$4 -> 697.8548499 | L61: =E61/'Charges Summary'!E$4 -> 350.1357866 | M61: =F61/'Charges Summary'!F$4 -> 175.8232092 | N61: =G61/'Charges Summary'!G$4 -> 88.45349382 | O61: =H61/'Charges Summary'!H$4 -> 59.42783499
A62: ='DNSP Inputs General'!A$49 -> Mercury Vapour 400 watt | D62: =IF('DNSP Inputs General'!$B49='DNSP Inputs General'!$A$41,D$49,IF('DNSP Inputs General'!$B49='DNSP Inputs General'!$A$42,D$50,D$51))*'DNSP Inputs General'!$D49*'DNSP Inputs General'!Q49 -> 35.01602017 | E62: =IF('DNSP Inputs General'!$B49='DNSP Inputs General'!$A$41,E$49,IF('DNSP Inputs General'!$B49='DNSP Inputs General'!$A$42,E$50,E$51))*'DNSP Inputs General'!$D49*'DNSP Inputs General'!R49 -> 0 | F62: =IF('DNSP Inputs General'!$B49='DNSP Inputs General'!$A$41,F$49,IF('DNSP Inputs General'!$B49='DNSP Inputs General'!$A$42,F$50,F$51))*'DNSP Inputs General'!$D49*'DNSP Inputs General'!S49 -> 0 | G62: =IF('DNSP Inputs General'!$B49='DNSP Inputs General'!$A$41,G$49,IF('DNSP Inputs General'!$B49='DNSP Inputs General'!$A$42,G$50,G$51))*'DNSP Inputs General'!$D49*'DNSP Inputs General'!T49 -> 0 | H62: =IF('DNSP Inputs General'!$B49='DNSP Inputs General'!$A$41,H$49,IF('DNSP Inputs General'!$B49='DNSP Inputs General'!$A$42,H$50,H$51))*'DNSP Inputs General'!$D49*'DNSP Inputs General'!U49 -> 0 | K62: =D62/'Charges Summary'!D$4 -> 34.20391368 | L62: =E62/'Charges Summary'!E$4 -> 0 | M62: =F62/'Charges Summary'!F$4 -> 0 | N62: =G62/'Charges Summary'!G$4 -> 0 | O62: =H62/'Charges Summary'!H$4 -> 0
A63: ='DNSP Inputs General'!A$50 -> Mercury Vapour 700 watt | D63: =IF('DNSP Inputs General'!$B50='DNSP Inputs General'!$A$41,D$49,IF('DNSP Inputs General'!$B50='DNSP Inputs General'!$A$42,D$50,D$51))*'DNSP Inputs General'!$D50*'DNSP Inputs General'!Q50 -> 0 | E63: =IF('DNSP Inputs General'!$B50='DNSP Inputs General'!$A$41,E$49,IF('DNSP Inputs General'!$B50='DNSP Inputs General'!$A$42,E$50,E$51))*'DNSP Inputs General'!$D50*'DNSP Inputs General'!R50 -> 0 | F63: =IF('DNSP Inputs General'!$B50='DNSP Inputs General'!$A$41,F$49,IF('DNSP Inputs General'!$B50='DNSP Inputs General'!$A$42,F$50,F$51))*'DNSP Inputs General'!$D50*'DNSP Inputs General'!S50 -> 0 | G63: =IF('DNSP Inputs General'!$B50='DNSP Inputs General'!$A$41,G$49,IF('DNSP Inputs General'!$B50='DNSP Inputs General'!$A$42,G$50,G$51))*'DNSP Inputs General'!$D50*'DNSP Inputs General'!T50 -> 0 | H63: =IF('DNSP Inputs General'!$B50='DNSP Inputs General'!$A$41,H$49,IF('DNSP Inputs General'!$B50='DNSP Inputs General'!$A$42,H$50,H$51))*'DNSP Inputs General'!$D50*'DNSP Inputs General'!U50 -> 0 | K63: =D63/'Charges Summary'!D$4 -> 0 | L63: =E63/'Charges Summary'!E$4 -> 0 | M63: =F63/'Charges Summary'!F$4 -> 0 | N63: =G63/'Charges Summary'!G$4 -> 0 | O63: =H63/'Charges Summary'!H$4 -> 0
A64: ='DNSP Inputs General'!A$51 -> Sodium High Pressure 70 watt | D64: =IF('DNSP Inputs General'!$B51='DNSP Inputs General'!$A$41,D$49,IF('DNSP Inputs General'!$B51='DNSP Inputs General'!$A$42,D$50,D$51))*'DNSP Inputs General'!$D51*'DNSP Inputs General'!Q51 -> 2091.625092 | E64: =IF('DNSP Inputs General'!$B51='DNSP Inputs General'!$A$41,E$49,IF('DNSP Inputs General'!$B51='DNSP Inputs General'!$A$42,E$50,E$51))*'DNSP Inputs General'!$D51*'DNSP Inputs General'!R51 -> 1073.686825 | F64: =IF('DNSP Inputs General'!$B51='DNSP Inputs General'!$A$41,F$49,IF('DNSP Inputs General'!$B51='DNSP Inputs General'!$A$42,F$50,F$51))*'DNSP Inputs General'!$D51*'DNSP Inputs General'!S51 -> 551.5947209 | G64: =IF('DNSP Inputs General'!$B51='DNSP Inputs General'!$A$41,G$49,IF('DNSP Inputs General'!$B51='DNSP Inputs General'!$A$42,G$50,G$51))*'DNSP Inputs General'!$D51*'DNSP Inputs General'!T51 -> 283.9268803 | H64: =IF('DNSP Inputs General'!$B51='DNSP Inputs General'!$A$41,H$49,IF('DNSP Inputs General'!$B51='DNSP Inputs General'!$A$42,H$50,H$51))*'DNSP Inputs General'!$D51*'DNSP Inputs General'!U51 -> 195.1877974 | K64: =D64/'Charges Summary'!D$4 -> 2043.11523 | L64: =E64/'Charges Summary'!E$4 -> 1024.461543 | M64: =F64/'Charges Summary'!F$4 -> 514.0994686 | N64: =G64/'Charges Summary'!G$4 -> 258.4893071 | O64: =H64/'Charges Summary'!H$4 -> 173.5792283
A65: ='DNSP Inputs General'!A$52 -> Sodium High Pressure 100 watt | D65: =IF('DNSP Inputs General'!$B52='DNSP Inputs General'!$A$41,D$49,IF('DNSP Inputs General'!$B52='DNSP Inputs General'!$A$42,D$50,D$51))*'DNSP Inputs General'!$D52*'DNSP Inputs General'!Q52 -> 7877.43741 | E65: =IF('DNSP Inputs General'!$B52='DNSP Inputs General'!$A$41,E$49,IF('DNSP Inputs General'!$B52='DNSP Inputs General'!$A$42,E$50,E$51))*'DNSP Inputs General'!$D52*'DNSP Inputs General'!R52 -> 4046.15686 | F65: =IF('DNSP Inputs General'!$B52='DNSP Inputs General'!$A$41,F$49,IF('DNSP Inputs General'!$B52='DNSP Inputs General'!$A$42,F$50,F$51))*'DNSP Inputs General'!$D52*'DNSP Inputs General'!S52 -> 2080.028363 | G65: =IF('DNSP Inputs General'!$B52='DNSP Inputs General'!$A$41,G$49,IF('DNSP Inputs General'!$B52='DNSP Inputs General'!$A$42,G$50,G$51))*'DNSP Inputs General'!$D52*'DNSP Inputs General'!T52 -> 1071.265717 | H65: =IF('DNSP Inputs General'!$B52='DNSP Inputs General'!$A$41,H$49,IF('DNSP Inputs General'!$B52='DNSP Inputs General'!$A$42,H$50,H$51))*'DNSP Inputs General'!$D52*'DNSP Inputs General'!U52 -> 736.8238189 | K65: =D65/'Charges Summary'!D$4 -> 7694.740519 | L65: =E65/'Charges Summary'!E$4 -> 3860.652847 | M65: =F65/'Charges Summary'!F$4 -> 1938.636168 | N65: =G65/'Charges Summary'!G$4 -> 975.2888937 | O65: =H65/'Charges Summary'!H$4 -> 655.2525902
A66: ='DNSP Inputs General'!A$53 -> Sodium High Pressure 400 watt | D66: =IF('DNSP Inputs General'!$B53='DNSP Inputs General'!$A$41,D$49,IF('DNSP Inputs General'!$B53='DNSP Inputs General'!$A$42,D$50,D$51))*'DNSP Inputs General'!$D53*'DNSP Inputs General'!Q53 -> 2775.019598 | E66: =IF('DNSP Inputs General'!$B53='DNSP Inputs General'!$A$41,E$49,IF('DNSP Inputs General'!$B53='DNSP Inputs General'!$A$42,E$50,E$51))*'DNSP Inputs General'!$D53*'DNSP Inputs General'!R53 -> 1425.372701 | F66: =IF('DNSP Inputs General'!$B53='DNSP Inputs General'!$A$41,F$49,IF('DNSP Inputs General'!$B53='DNSP Inputs General'!$A$42,F$50,F$51))*'DNSP Inputs General'!$D53*'DNSP Inputs General'!S53 -> 732.7555564 | G66: =IF('DNSP Inputs General'!$B53='DNSP Inputs General'!$A$41,G$49,IF('DNSP Inputs General'!$B53='DNSP Inputs General'!$A$42,G$50,G$51))*'DNSP Inputs General'!$D53*'DNSP Inputs General'!T53 -> 377.3886994 | H66: =IF('DNSP Inputs General'!$B53='DNSP Inputs General'!$A$41,H$49,IF('DNSP Inputs General'!$B53='DNSP Inputs General'!$A$42,H$50,H$51))*'DNSP Inputs General'!$D53*'DNSP Inputs General'!U53 -> 259.5701754 | K66: =D66/'Charges Summary'!D$4 -> 2710.660159 | L66: =E66/'Charges Summary'!E$4 -> 1360.023688 | M66: =F66/'Charges Summary'!F$4 -> 682.9456988 | N66: =G66/'Charges Summary'!G$4 -> 343.5776962 | O66: =H66/'Charges Summary'!H$4 -> 230.8340548
A67: ='DNSP Inputs General'!A$54 -> Metal Halide 70 watt | D67: =IF('DNSP Inputs General'!$B54='DNSP Inputs General'!$A$41,D$49,IF('DNSP Inputs General'!$B54='DNSP Inputs General'!$A$42,D$50,D$51))*'DNSP Inputs General'!$D54*'DNSP Inputs General'!Q54 -> 84.23027769 | E67: =IF('DNSP Inputs General'!$B54='DNSP Inputs General'!$A$41,E$49,IF('DNSP Inputs General'!$B54='DNSP Inputs General'!$A$42,E$50,E$51))*'DNSP Inputs General'!$D54*'DNSP Inputs General'!R54 -> 28.84262129 | F67: =IF('DNSP Inputs General'!$B54='DNSP Inputs General'!$A$41,F$49,IF('DNSP Inputs General'!$B54='DNSP Inputs General'!$A$42,F$50,F$51))*'DNSP Inputs General'!$D54*'DNSP Inputs General'!S54 -> 0 | G67: =IF('DNSP Inputs General'!$B54='DNSP Inputs General'!$A$41,G$49,IF('DNSP Inputs General'!$B54='DNSP Inputs General'!$A$42,G$50,G$51))*'DNSP Inputs General'!$D54*'DNSP Inputs General'!T54 -> 0 | H67: =IF('DNSP Inputs General'!$B54='DNSP Inputs General'!$A$41,H$49,IF('DNSP Inputs General'!$B54='DNSP Inputs General'!$A$42,H$50,H$51))*'DNSP Inputs General'!$D54*'DNSP Inputs General'!U54 -> 0 | K67: =D67/'Charges Summary'!D$4 -> 82.27677312 | L67: =E67/'Charges Summary'!E$4 -> 27.52027463 | M67: =F67/'Charges Summary'!F$4 -> 0 | N67: =G67/'Charges Summary'!G$4 -> 0 | O67: =H67/'Charges Summary'!H$4 -> 0
A68: ='DNSP Inputs General'!A$55 -> Metal Halide 100 watt | D68: =IF('DNSP Inputs General'!$B55='DNSP Inputs General'!$A$41,D$49,IF('DNSP Inputs General'!$B55='DNSP Inputs General'!$A$42,D$50,D$51))*'DNSP Inputs General'!$D55*'DNSP Inputs General'!Q55 -> 889.0973756 | E68: =IF('DNSP Inputs General'!$B55='DNSP Inputs General'!$A$41,E$49,IF('DNSP Inputs General'!$B55='DNSP Inputs General'!$A$42,E$50,E$51))*'DNSP Inputs General'!$D55*'DNSP Inputs General'!R55 -> 456.674837 | F68: =IF('DNSP Inputs General'!$B55='DNSP Inputs General'!$A$41,F$49,IF('DNSP Inputs General'!$B55='DNSP Inputs General'!$A$42,F$50,F$51))*'DNSP Inputs General'!$D55*'DNSP Inputs General'!S55 -> 234.7651479 | G68: =IF('DNSP Inputs General'!$B55='DNSP Inputs General'!$A$41,G$49,IF('DNSP Inputs General'!$B55='DNSP Inputs General'!$A$42,G$50,G$51))*'DNSP Inputs General'!$D55*'DNSP Inputs General'!T55 -> 120.9098198 | H68: =IF('DNSP Inputs General'!$B55='DNSP Inputs General'!$A$41,H$49,IF('DNSP Inputs General'!$B55='DNSP Inputs General'!$A$42,H$50,H$51))*'DNSP Inputs General'!$D55*'DNSP Inputs General'!U55 -> 83.16259331 | K68: =D68/'Charges Summary'!D$4 -> 868.4770496 | L68: =E68/'Charges Summary'!E$4 -> 435.7376816 | M68: =F68/'Charges Summary'!F$4 -> 218.8067311 | N68: =G68/'Charges Summary'!G$4 -> 110.0772689 | O68: =H68/'Charges Summary'!H$4 -> 73.95594887
A69: ='DNSP Inputs General'!A$56 -> Metal Halide 150 watt | D69: =IF('DNSP Inputs General'!$B56='DNSP Inputs General'!$A$41,D$49,IF('DNSP Inputs General'!$B56='DNSP Inputs General'!$A$42,D$50,D$51))*'DNSP Inputs General'!$D56*'DNSP Inputs General'!Q56 -> 411.7924687 | E69: =IF('DNSP Inputs General'!$B56='DNSP Inputs General'!$A$41,E$49,IF('DNSP Inputs General'!$B56='DNSP Inputs General'!$A$42,E$50,E$51))*'DNSP Inputs General'!$D56*'DNSP Inputs General'!R56 -> 211.5125561 | F69: =IF('DNSP Inputs General'!$B56='DNSP Inputs General'!$A$41,F$49,IF('DNSP Inputs General'!$B56='DNSP Inputs General'!$A$42,F$50,F$51))*'DNSP Inputs General'!$D56*'DNSP Inputs General'!S56 -> 108.7333317 | G69: =IF('DNSP Inputs General'!$B56='DNSP Inputs General'!$A$41,G$49,IF('DNSP Inputs General'!$B56='DNSP Inputs General'!$A$42,G$50,G$51))*'DNSP Inputs General'!$D56*'DNSP Inputs General'!T56 -> 37.33355839 | H69: =IF('DNSP Inputs General'!$B56='DNSP Inputs General'!$A$41,H$49,IF('DNSP Inputs General'!$B56='DNSP Inputs General'!$A$42,H$50,H$51))*'DNSP Inputs General'!$D56*'DNSP Inputs General'!U56 -> 0 | K69: =D69/'Charges Summary'!D$4 -> 402.2420019 | L69: =E69/'Charges Summary'!E$4 -> 201.8153473 | M69: =F69/'Charges Summary'!F$4 -> 101.342065 | N69: =G69/'Charges Summary'!G$4 -> 33.98877074 | O69: =H69/'Charges Summary'!H$4 -> 0
A70: ='DNSP Inputs General'!A$57 -> Metal Halide 250 watt | D70: =IF('DNSP Inputs General'!$B57='DNSP Inputs General'!$A$41,D$49,IF('DNSP Inputs General'!$B57='DNSP Inputs General'!$A$42,D$50,D$51))*'DNSP Inputs General'!$D57*'DNSP Inputs General'!Q57 -> 1172.41139 | E70: =IF('DNSP Inputs General'!$B57='DNSP Inputs General'!$A$41,E$49,IF('DNSP Inputs General'!$B57='DNSP Inputs General'!$A$42,E$50,E$51))*'DNSP Inputs General'!$D57*'DNSP Inputs General'!R57 -> 602.2023017 | F70: =IF('DNSP Inputs General'!$B57='DNSP Inputs General'!$A$41,F$49,IF('DNSP Inputs General'!$B57='DNSP Inputs General'!$A$42,F$50,F$51))*'DNSP Inputs General'!$D57*'DNSP Inputs General'!S57 -> 309.5801415 | G70: =IF('DNSP Inputs General'!$B57='DNSP Inputs General'!$A$41,G$49,IF('DNSP Inputs General'!$B57='DNSP Inputs General'!$A$42,G$50,G$51))*'DNSP Inputs General'!$D57*'DNSP Inputs General'!T57 -> 159.4420485 | H70: =IF('DNSP Inputs General'!$B57='DNSP Inputs General'!$A$41,H$49,IF('DNSP Inputs General'!$B57='DNSP Inputs General'!$A$42,H$50,H$51))*'DNSP Inputs General'!$D57*'DNSP Inputs General'!U57 -> 109.6651823 | K70: =D70/'Charges Summary'!D$4 -> 1145.220324 | L70: =E70/'Charges Summary'!E$4 -> 574.5931536 | M70: =F70/'Charges Summary'!F$4 -> 288.536094 | N70: =G70/'Charges Summary'!G$4 -> 145.1573187 | O70: =H70/'Charges Summary'!H$4 -> 97.52452742
A71: ='DNSP Inputs General'!A$58 -> Metal Halide 400 watt | D71: =IF('DNSP Inputs General'!$B58='DNSP Inputs General'!$A$41,D$49,IF('DNSP Inputs General'!$B58='DNSP Inputs General'!$A$42,D$50,D$51))*'DNSP Inputs General'!$D58*'DNSP Inputs General'!Q58 -> 1106.756352 | E71: =IF('DNSP Inputs General'!$B58='DNSP Inputs General'!$A$41,E$49,IF('DNSP Inputs General'!$B58='DNSP Inputs General'!$A$42,E$50,E$51))*'DNSP Inputs General'!$D58*'DNSP Inputs General'!R58 -> 568.4789728 | F71: =IF('DNSP Inputs General'!$B58='DNSP Inputs General'!$A$41,F$49,IF('DNSP Inputs General'!$B58='DNSP Inputs General'!$A$42,F$50,F$51))*'DNSP Inputs General'!$D58*'DNSP Inputs General'!S58 -> 292.2436536 | G71: =IF('DNSP Inputs General'!$B58='DNSP Inputs General'!$A$41,G$49,IF('DNSP Inputs General'!$B58='DNSP Inputs General'!$A$42,G$50,G$51))*'DNSP Inputs General'!$D58*'DNSP Inputs General'!T58 -> 150.5132938 | H71: =IF('DNSP Inputs General'!$B58='DNSP Inputs General'!$A$41,H$49,IF('DNSP Inputs General'!$B58='DNSP Inputs General'!$A$42,H$50,H$51))*'DNSP Inputs General'!$D58*'DNSP Inputs General'!U58 -> 103.523932 | K71: =D71/'Charges Summary'!D$4 -> 1081.087986 | L71: =E71/'Charges Summary'!E$4 -> 542.415937 | M71: =F71/'Charges Summary'!F$4 -> 272.3780728 | N71: =G71/'Charges Summary'!G$4 -> 137.0285088 | O71: =H71/'Charges Summary'!H$4 -> 92.06315389
A74: ='DNSP Inputs General'!A$67 -> Energy Efficient Lights
A75: ='DNSP Inputs General'!A$68 -> T5 2X14W | D75: =SUM('Charges Summary'!D$97,'Charges Summary'!D$8)*'DNSP Inputs General'!$D68*'DNSP Inputs General'!Q68 -> 710824.9004 | E75: =SUM('Charges Summary'!E$97,'Charges Summary'!E$8)*'DNSP Inputs General'!$D68*'DNSP Inputs General'!R68 -> 656812.912 | F75: =SUM('Charges Summary'!F$97,'Charges Summary'!F$8)*'DNSP Inputs General'!$D68*'DNSP Inputs General'!S68 -> 607387.8635 | G75: =SUM('Charges Summary'!G$97,'Charges Summary'!G$8)*'DNSP Inputs General'!$D68*'DNSP Inputs General'!T68 -> 562782.953 | H75: =SUM('Charges Summary'!H$97,'Charges Summary'!H$8)*'DNSP Inputs General'!$D68*'DNSP Inputs General'!U68 -> 549803.7629 | K75: =D75/'Charges Summary'!D$4 -> 694339.1458 | L75: =E75/'Charges Summary'!E$4 -> 626700.0332 | M75: =F75/'Charges Summary'!F$4 -> 566100.0115 | N75: =G75/'Charges Summary'!G$4 -> 512362.1104 | O75: =H75/'Charges Summary'!H$4 -> 488936.8809
A76: ='DNSP Inputs General'!A$69 -> Twin 24w Fluorescent | D76: =SUM('Charges Summary'!D$97,'Charges Summary'!D$8)*'DNSP Inputs General'!$D69*'DNSP Inputs General'!Q69 -> 7673.933667 | E76: =SUM('Charges Summary'!E$97,'Charges Summary'!E$8)*'DNSP Inputs General'!$D69*'DNSP Inputs General'!R69 -> 7090.830267 | F76: =SUM('Charges Summary'!F$97,'Charges Summary'!F$8)*'DNSP Inputs General'!$D69*'DNSP Inputs General'!S69 -> 6557.246619 | G76: =SUM('Charges Summary'!G$97,'Charges Summary'!G$8)*'DNSP Inputs General'!$D69*'DNSP Inputs General'!T69 -> 6075.700286 | H76: =SUM('Charges Summary'!H$97,'Charges Summary'!H$8)*'DNSP Inputs General'!$D69*'DNSP Inputs General'!U69 -> 5935.579359 | K76: =D76/'Charges Summary'!D$4 -> 7495.956521 | L76: =E76/'Charges Summary'!E$4 -> 6765.737218 | M76: =F76/'Charges Summary'!F$4 -> 6111.510634 | N76: =G76/'Charges Summary'!G$4 -> 5531.366229 | O76: =H76/'Charges Summary'!H$4 -> 5278.4718
A77: ='DNSP Inputs General'!A$70 -> 32W Compact Fluorescent | D77: =SUM('Charges Summary'!D$97,'Charges Summary'!D$8)*'DNSP Inputs General'!$D70*'DNSP Inputs General'!Q70 -> 37576.55229 | E77: =SUM('Charges Summary'!E$97,'Charges Summary'!E$8)*'DNSP Inputs General'!$D70*'DNSP Inputs General'!R70 -> 34721.30016 | F77: =SUM('Charges Summary'!F$97,'Charges Summary'!F$8)*'DNSP Inputs General'!$D70*'DNSP Inputs General'!S70 -> 32108.52884 | G77: =SUM('Charges Summary'!G$97,'Charges Summary'!G$8)*'DNSP Inputs General'!$D70*'DNSP Inputs General'!T70 -> 29750.56593 | H77: =SUM('Charges Summary'!H$97,'Charges Summary'!H$8)*'DNSP Inputs General'!$D70*'DNSP Inputs General'!U70 -> 29064.44306 | K77: =D77/'Charges Summary'!D$4 -> 36705.06084 | L77: =E77/'Charges Summary'!E$4 -> 33129.43392 | M77: =F77/'Charges Summary'!F$4 -> 29925.91659 | N77: =G77/'Charges Summary'!G$4 -> 27085.15363 | O77: =H77/'Charges Summary'!H$4 -> 25846.81862
A78: ='DNSP Inputs General'!A$71 -> 42w Compact Fluorescent | D78: =SUM('Charges Summary'!D$97,'Charges Summary'!D$8)*'DNSP Inputs General'!$D71*'DNSP Inputs General'!Q71 -> 8874.325526 | E78: =SUM('Charges Summary'!E$97,'Charges Summary'!E$8)*'DNSP Inputs General'!$D71*'DNSP Inputs General'!R71 -> 8200.010421 | F78: =SUM('Charges Summary'!F$97,'Charges Summary'!F$8)*'DNSP Inputs General'!$D71*'DNSP Inputs General'!S71 -> 7582.961174 | G78: =SUM('Charges Summary'!G$97,'Charges Summary'!G$8)*'DNSP Inputs General'!$D71*'DNSP Inputs General'!T71 -> 7026.089157 | H78: =SUM('Charges Summary'!H$97,'Charges Summary'!H$8)*'DNSP Inputs General'!$D71*'DNSP Inputs General'!U71 -> 6864.049873 | K78: =D78/'Charges Summary'!D$4 -> 8668.508379 | L78: =E78/'Charges Summary'!E$4 -> 7824.064828 | M78: =F78/'Charges Summary'!F$4 -> 7067.501124 | N78: =G78/'Charges Summary'!G$4 -> 6396.607873 | O78: =H78/'Charges Summary'!H$4 -> 6104.154539
A79: ='DNSP Inputs General'!A72 -> Category P LED 18 Watt | D79: =SUM('Charges Summary'!D$114,'Charges Summary'!D$8)*'DNSP Inputs General'!$D72*'DNSP Inputs General'!Q72 -> 641222.1636 | E79: =SUM('Charges Summary'!E$114,'Charges Summary'!E$8)*'DNSP Inputs General'!$D72*'DNSP Inputs General'!R72 -> 687960.3683 | F79: =SUM('Charges Summary'!F$114,'Charges Summary'!F$8)*'DNSP Inputs General'!$D72*'DNSP Inputs General'!S72 -> 734651.0107 | G79: =SUM('Charges Summary'!G$114,'Charges Summary'!G$8)*'DNSP Inputs General'!$D72*'DNSP Inputs General'!T72 -> 777821.3836 | H79: =SUM('Charges Summary'!H$114,'Charges Summary'!H$8)*'DNSP Inputs General'!$D72*'DNSP Inputs General'!U72 -> 810312.9832 | K79: =D79/'Charges Summary'!D$4 -> 626350.6654 | L79: =E79/'Charges Summary'!E$4 -> 656419.4732 | M79: =F79/'Charges Summary'!F$4 -> 684712.3075 | N79: =G79/'Charges Summary'!G$4 -> 708134.8208 | O79: =H79/'Charges Summary'!H$4 -> 720606.0221
A80: ='DNSP Inputs General'!A73 -> Category P LED 47 Watt | D80: =SUM('Charges Summary'!D$114,'Charges Summary'!D$8)*'DNSP Inputs General'!$D73*'DNSP Inputs General'!Q73 -> 30369.18403 | E80: =SUM('Charges Summary'!E$114,'Charges Summary'!E$8)*'DNSP Inputs General'!$D73*'DNSP Inputs General'!R73 -> 32582.77118 | F80: =SUM('Charges Summary'!F$114,'Charges Summary'!F$8)*'DNSP Inputs General'!$D73*'DNSP Inputs General'!S73 -> 34794.1057 | G80: =SUM('Charges Summary'!G$114,'Charges Summary'!G$8)*'DNSP Inputs General'!$D73*'DNSP Inputs General'!T73 -> 36838.71532 | H80: =SUM('Charges Summary'!H$114,'Charges Summary'!H$8)*'DNSP Inputs General'!$D73*'DNSP Inputs General'!U73 -> 38377.5632 | K80: =D80/'Charges Summary'!D$4 -> 29664.84895 | L80: =E80/'Charges Summary'!E$4 -> 31088.95 | M80: =F80/'Charges Summary'!F$4 -> 32428.93845 | N80: =G80/'Charges Summary'!G$4 -> 33538.26164 | O80: =H80/'Charges Summary'!H$4 -> 34128.91528
A81: ='DNSP Inputs General'!A74 -> Category V LED L1 Standard Output | D81: =SUM('Charges Summary'!D$132,'Charges Summary'!D$8)*'DNSP Inputs General'!$D74*'DNSP Inputs General'!Q74 -> 267128.3342 | E81: =SUM('Charges Summary'!E$132,'Charges Summary'!E$8)*'DNSP Inputs General'!$D74*'DNSP Inputs General'!R74 -> 314537.3141 | F81: =SUM('Charges Summary'!F$132,'Charges Summary'!F$8)*'DNSP Inputs General'!$D74*'DNSP Inputs General'!S74 -> 361691.9604 | G81: =SUM('Charges Summary'!G$132,'Charges Summary'!G$8)*'DNSP Inputs General'!$D74*'DNSP Inputs General'!T74 -> 400869.7398 | H81: =SUM('Charges Summary'!H$132,'Charges Summary'!H$8)*'DNSP Inputs General'!$D74*'DNSP Inputs General'!U74 -> 423055.0011 | K81: =D81/'Charges Summary'!D$4 -> 260932.9798 | L81: =E81/'Charges Summary'!E$4 -> 300116.7328 | M81: =F81/'Charges Summary'!F$4 -> 337105.5552 | N81: =G81/'Charges Summary'!G$4 -> 364955.0235 | O81: =H81/'Charges Summary'!H$4 -> 376220.0382
A82: ='DNSP Inputs General'!A75 -> Category V LED L2 Medium Output | D82: =SUM('Charges Summary'!D$132,'Charges Summary'!D$8)*'DNSP Inputs General'!$D75*'DNSP Inputs General'!Q75 -> 26085.79361 | E82: =SUM('Charges Summary'!E$132,'Charges Summary'!E$8)*'DNSP Inputs General'!$D75*'DNSP Inputs General'!R75 -> 30715.40683 | F82: =SUM('Charges Summary'!F$132,'Charges Summary'!F$8)*'DNSP Inputs General'!$D75*'DNSP Inputs General'!S75 -> 35320.18368 | G82: =SUM('Charges Summary'!G$132,'Charges Summary'!G$8)*'DNSP Inputs General'!$D75*'DNSP Inputs General'!T75 -> 39145.99823 | H82: =SUM('Charges Summary'!H$132,'Charges Summary'!H$8)*'DNSP Inputs General'!$D75*'DNSP Inputs General'!U75 -> 41312.44811 | K82: =D82/'Charges Summary'!D$4 -> 25480.80075 | L82: =E82/'Charges Summary'!E$4 -> 29307.19864 | M82: =F82/'Charges Summary'!F$4 -> 32919.2557 | N82: =G82/'Charges Summary'!G$4 -> 35638.83049 | O82: =H82/'Charges Summary'!H$4 -> 36738.88919
A83: ='DNSP Inputs General'!A76 -> Category V L4 LED High Output | D83: =SUM('Charges Summary'!D$132,'Charges Summary'!D$8)*'DNSP Inputs General'!$D76*'DNSP Inputs General'!Q76 -> 14704.96251 | E83: =SUM('Charges Summary'!E$132,'Charges Summary'!E$8)*'DNSP Inputs General'!$D76*'DNSP Inputs General'!R76 -> 17314.74658 | F83: =SUM('Charges Summary'!F$132,'Charges Summary'!F$8)*'DNSP Inputs General'!$D76*'DNSP Inputs General'!S76 -> 19910.53002 | G83: =SUM('Charges Summary'!G$132,'Charges Summary'!G$8)*'DNSP Inputs General'!$D76*'DNSP Inputs General'!T76 -> 22067.20044 | H83: =SUM('Charges Summary'!H$132,'Charges Summary'!H$8)*'DNSP Inputs General'!$D76*'DNSP Inputs General'!U76 -> 23288.46151 | K83: =D83/'Charges Summary'!D$4 -> 14363.91874 | L83: =E83/'Charges Summary'!E$4 -> 16520.918 | M83: =F83/'Charges Summary'!F$4 -> 18557.09004 | N83: =G83/'Charges Summary'!G$4 -> 20090.15612 | O83: =H83/'Charges Summary'!H$4 -> 20710.27611
A85: Total O & M | D85: =SUM(D54:D84) -> 3892199.042 | E85: =SUM(E54:E84) -> 3876430.554 | F85: =SUM(F54:F84) -> 3873095.473 | G85: =SUM(G54:G84) -> 3869326.954 | H85: =SUM(H54:H84) -> 3924498.962 | K85: =SUM(K54:K84) -> 3801929.5 | L85: =SUM(L54:L84) -> 3698707.977 | M85: =SUM(M54:M84) -> 3609817.587 | N85: =SUM(N54:N84) -> 3522666.266 | O85: =SUM(O54:O84) -> 3490031.191
A88: Public Lighting - Capital Charge | D88: Capital Charge - Nominal | K88: Capital Charge - Real 2021 $
D89: =D$2 -> 2021/22 | E89: 2022/23 | F89: 2023/24 | G89: 2024/25 | H89: 2025/26 | K89: =K$2 -> 2021/22 | L89: 2022/23 | M89: 2023/24 | N89: 2024/25 | O89: 2025/26
A91: Unit cost
A92: ='DNSP Inputs General'!A$41 -> Mercury Vapour 80 watt | D92: =SUM('Charges Summary'!D27,'Charges Summary'!D11) -> 58.61154614 | E92: =SUM('Charges Summary'!E27,'Charges Summary'!E11) -> 54.14896398 | F92: =SUM('Charges Summary'!F27,'Charges Summary'!F11) -> 44.50420009 | G92: =SUM('Charges Summary'!G27,'Charges Summary'!G11) -> 46.09662736 | H92: =SUM('Charges Summary'!H27,'Charges Summary'!H11) -> 46.71607858
A93: ='DNSP Inputs General'!A$42 -> Sodium High Pressure 150 watt | D93: =SUM('Charges Summary'!D51,'Charges Summary'!D11) -> 57.69022697 | E93: =SUM('Charges Summary'!E51,'Charges Summary'!E11) -> 53.32460282 | F93: =SUM('Charges Summary'!F51,'Charges Summary'!F11) -> 50.76294706 | G93: =SUM('Charges Summary'!G51,'Charges Summary'!G11) -> 52.4459968 | H93: =SUM('Charges Summary'!H51,'Charges Summary'!H11) -> 52.98184992
A94: ='DNSP Inputs General'!A$43 -> Sodium High Pressure 250 watt | D94: =SUM('Charges Summary'!D74,'Charges Summary'!D11) -> 60.29009961 | E94: =SUM('Charges Summary'!E74,'Charges Summary'!E11) -> 55.65086944 | F94: =SUM('Charges Summary'!F74,'Charges Summary'!F11) -> 51.39205108 | G94: =SUM('Charges Summary'!G74,'Charges Summary'!G11) -> 53.08420982 | H94: =SUM('Charges Summary'!H74,'Charges Summary'!H11) -> 53.61166
A96: ='DNSP Inputs General'!A$40 -> Existing Lights
A97: ='DNSP Inputs General'!A$41 -> Mercury Vapour 80 watt | D97: =D92*'DNSP Inputs General'!Q41 -> 0 | E97: =E92*'DNSP Inputs General'!R41 -> 0 | F97: =F92*'DNSP Inputs General'!S41 -> 0 | G97: =G92*'DNSP Inputs General'!T41 -> 0 | H97: =H92*'DNSP Inputs General'!U41 -> 0 | K97: =D97/'Charges Summary'!D$4 -> 0 | L97: =E97/'Charges Summary'!E$4 -> 0 | M97: =F97/'Charges Summary'!F$4 -> 0 | N97: =G97/'Charges Summary'!G$4 -> 0 | O97: =H97/'Charges Summary'!H$4 -> 0
A98: ='DNSP Inputs General'!A$42 -> Sodium High Pressure 150 watt | D98: =D93*'DNSP Inputs General'!Q42 -> 1159729.334 | E98: =E93*'DNSP Inputs General'!R42 -> 1018370.076 | F98: =F93*'DNSP Inputs General'!S42 -> 920976.2539 | G98: =G93*'DNSP Inputs General'!T42 -> 903935.7334 | H98: =H93*'DNSP Inputs General'!U42 -> 889756.8053 | K98: =D98/'Charges Summary'!D$4 -> 1132832.397 | L98: =E98/'Charges Summary'!E$4 -> 971680.8986 | M98: =F98/'Charges Summary'!F$4 -> 858371.8893 | N98: =G98/'Charges Summary'!G$4 -> 822950.3355 | O98: =H98/'Charges Summary'!H$4 -> 791254.8921
A99: ='DNSP Inputs General'!A$43 -> Sodium High Pressure 250 watt | D99: =D94*'DNSP Inputs General'!Q43 -> 521225.8742 | E99: =E94*'DNSP Inputs General'!R43 -> 457062.4297 | F99: =F94*'DNSP Inputs General'!S43 -> 400980.3831 | G99: =G94*'DNSP Inputs General'!T43 -> 393474.0885 | H99: =H94*'DNSP Inputs General'!U43 -> 387194.3623 | K99: =D99/'Charges Summary'!D$4 -> 509137.3812 | L99: =E99/'Charges Summary'!E$4 -> 436107.5044 | M99: =F99/'Charges Summary'!F$4 -> 373723.3046 | N99: =G99/'Charges Summary'!G$4 -> 358221.9633 | O99: =H99/'Charges Summary'!H$4 -> 344329.4072
A100: ='DNSP Inputs General'!A$44 -> Fluorescent 2x20 watt | D100: =IF('DNSP Inputs General'!$B44='DNSP Inputs General'!$A$41,D$92,IF('DNSP Inputs General'!$B44='DNSP Inputs General'!$A$42,D$93,D$94))*'DNSP Inputs General'!$D44*'DNSP Inputs General'!Q44 -> 333.1516915 | E100: =IF('DNSP Inputs General'!$B44='DNSP Inputs General'!$A$41,E$92,IF('DNSP Inputs General'!$B44='DNSP Inputs General'!$A$42,E$93,E$94))*'DNSP Inputs General'!$D44*'DNSP Inputs General'!R44 -> 153.8930478 | F100: =IF('DNSP Inputs General'!$B44='DNSP Inputs General'!$A$41,F$92,IF('DNSP Inputs General'!$B44='DNSP Inputs General'!$A$42,F$93,F$94))*'DNSP Inputs General'!$D44*'DNSP Inputs General'!S44 -> 63.24116371 | G100: =IF('DNSP Inputs General'!$B44='DNSP Inputs General'!$A$41,G$92,IF('DNSP Inputs General'!$B44='DNSP Inputs General'!$A$42,G$93,G$94))*'DNSP Inputs General'!$D44*'DNSP Inputs General'!T44 -> 21.83467591 | H100: =IF('DNSP Inputs General'!$B44='DNSP Inputs General'!$A$41,H$92,IF('DNSP Inputs General'!$B44='DNSP Inputs General'!$A$42,H$93,H$94))*'DNSP Inputs General'!$D44*'DNSP Inputs General'!U44 -> 0 | K100: =D100/'Charges Summary'!D$4 -> 325.4250952 | L100: =E100/'Charges Summary'!E$4 -> 146.8375186 | M100: =F100/'Charges Summary'!F$4 -> 58.94227668 | N100: =G100/'Charges Summary'!G$4 -> 19.87846393 | O100: =H100/'Charges Summary'!H$4 -> 0
A101: ='DNSP Inputs General'!A$45 -> Fluorescent 3x20 watt | D101: =IF('DNSP Inputs General'!$B45='DNSP Inputs General'!$A$41,D$92,IF('DNSP Inputs General'!$B45='DNSP Inputs General'!$A$42,D$93,D$94))*'DNSP Inputs General'!$D45*'DNSP Inputs General'!Q45 -> 0 | E101: =IF('DNSP Inputs General'!$B45='DNSP Inputs General'!$A$41,E$92,IF('DNSP Inputs General'!$B45='DNSP Inputs General'!$A$42,E$93,E$94))*'DNSP Inputs General'!$D45*'DNSP Inputs General'!R45 -> 0 | F101: =IF('DNSP Inputs General'!$B45='DNSP Inputs General'!$A$41,F$92,IF('DNSP Inputs General'!$B45='DNSP Inputs General'!$A$42,F$93,F$94))*'DNSP Inputs General'!$D45*'DNSP Inputs General'!S45 -> 0 | G101: =IF('DNSP Inputs General'!$B45='DNSP Inputs General'!$A$41,G$92,IF('DNSP Inputs General'!$B45='DNSP Inputs General'!$A$42,G$93,G$94))*'DNSP Inputs General'!$D45*'DNSP Inputs General'!T45 -> 0 | H101: =IF('DNSP Inputs General'!$B45='DNSP Inputs General'!$A$41,H$92,IF('DNSP Inputs General'!$B45='DNSP Inputs General'!$A$42,H$93,H$94))*'DNSP Inputs General'!$D45*'DNSP Inputs General'!U45 -> 0 | K101: =D101/'Charges Summary'!D$4 -> 0 | L101: =E101/'Charges Summary'!E$4 -> 0 | M101: =F101/'Charges Summary'!F$4 -> 0 | N101: =G101/'Charges Summary'!G$4 -> 0 | O101: =H101/'Charges Summary'!H$4 -> 0
A102: ='DNSP Inputs General'!A$46 -> Mercury Vapour 50 watt | D102: =IF('DNSP Inputs General'!$B46='DNSP Inputs General'!$A$41,D$92,IF('DNSP Inputs General'!$B46='DNSP Inputs General'!$A$42,D$93,D$94))*'DNSP Inputs General'!$D46*'DNSP Inputs General'!Q46 -> 130.1176324 | E102: =IF('DNSP Inputs General'!$B46='DNSP Inputs General'!$A$41,E$92,IF('DNSP Inputs General'!$B46='DNSP Inputs General'!$A$42,E$93,E$94))*'DNSP Inputs General'!$D46*'DNSP Inputs General'!R46 -> 60.10535002 | F102: =IF('DNSP Inputs General'!$B46='DNSP Inputs General'!$A$41,F$92,IF('DNSP Inputs General'!$B46='DNSP Inputs General'!$A$42,F$93,F$94))*'DNSP Inputs General'!$D46*'DNSP Inputs General'!S46 -> 16.46655403 | G102: =IF('DNSP Inputs General'!$B46='DNSP Inputs General'!$A$41,G$92,IF('DNSP Inputs General'!$B46='DNSP Inputs General'!$A$42,G$93,G$94))*'DNSP Inputs General'!$D46*'DNSP Inputs General'!T46 -> 0 | H102: =IF('DNSP Inputs General'!$B46='DNSP Inputs General'!$A$41,H$92,IF('DNSP Inputs General'!$B46='DNSP Inputs General'!$A$42,H$93,H$94))*'DNSP Inputs General'!$D46*'DNSP Inputs General'!U46 -> 0 | K102: =D102/'Charges Summary'!D$4 -> 127.0998887 | L102: =E102/'Charges Summary'!E$4 -> 57.34970212 | M102: =F102/'Charges Summary'!F$4 -> 15.34722208 | N102: =G102/'Charges Summary'!G$4 -> 0 | O102: =H102/'Charges Summary'!H$4 -> 0
A103: ='DNSP Inputs General'!A$47 -> Mercury Vapour 125 watt | D103: =IF('DNSP Inputs General'!$B47='DNSP Inputs General'!$A$41,D$92,IF('DNSP Inputs General'!$B47='DNSP Inputs General'!$A$42,D$93,D$94))*'DNSP Inputs General'!$D47*'DNSP Inputs General'!Q47 -> 4911.940624 | E103: =IF('DNSP Inputs General'!$B47='DNSP Inputs General'!$A$41,E$92,IF('DNSP Inputs General'!$B47='DNSP Inputs General'!$A$42,E$93,E$94))*'DNSP Inputs General'!$D47*'DNSP Inputs General'!R47 -> 2268.976963 | F103: =IF('DNSP Inputs General'!$B47='DNSP Inputs General'!$A$41,F$92,IF('DNSP Inputs General'!$B47='DNSP Inputs General'!$A$42,F$93,F$94))*'DNSP Inputs General'!$D47*'DNSP Inputs General'!S47 -> 932.4186222 | G103: =IF('DNSP Inputs General'!$B47='DNSP Inputs General'!$A$41,G$92,IF('DNSP Inputs General'!$B47='DNSP Inputs General'!$A$42,G$93,G$94))*'DNSP Inputs General'!$D47*'DNSP Inputs General'!T47 -> 482.890982 | H103: =IF('DNSP Inputs General'!$B47='DNSP Inputs General'!$A$41,H$92,IF('DNSP Inputs General'!$B47='DNSP Inputs General'!$A$42,H$93,H$94))*'DNSP Inputs General'!$D47*'DNSP Inputs General'!U47 -> 326.2534138 | K103: =D103/'Charges Summary'!D$4 -> 4798.0208 | L103: =E103/'Charges Summary'!E$4 -> 2164.951255 | M103: =F103/'Charges Summary'!F$4 -> 869.0364501 | N103: =G103/'Charges Summary'!G$4 -> 439.6278197 | O103: =H103/'Charges Summary'!H$4 -> 290.1350214
A104: ='DNSP Inputs General'!A$48 -> Mercury Vapour 250 watt | D104: =IF('DNSP Inputs General'!$B48='DNSP Inputs General'!$A$41,D$92,IF('DNSP Inputs General'!$B48='DNSP Inputs General'!$A$42,D$93,D$94))*'DNSP Inputs General'!$D48*'DNSP Inputs General'!Q48 -> 581.2154009 | E104: =IF('DNSP Inputs General'!$B48='DNSP Inputs General'!$A$41,E$92,IF('DNSP Inputs General'!$B48='DNSP Inputs General'!$A$42,E$93,E$94))*'DNSP Inputs General'!$D48*'DNSP Inputs General'!R48 -> 268.2458861 | F104: =IF('DNSP Inputs General'!$B48='DNSP Inputs General'!$A$41,F$92,IF('DNSP Inputs General'!$B48='DNSP Inputs General'!$A$42,F$93,F$94))*'DNSP Inputs General'!$D48*'DNSP Inputs General'!S48 -> 123.8588581 | G104: =IF('DNSP Inputs General'!$B48='DNSP Inputs General'!$A$41,G$92,IF('DNSP Inputs General'!$B48='DNSP Inputs General'!$A$42,G$93,G$94))*'DNSP Inputs General'!$D48*'DNSP Inputs General'!T48 -> 63.96854644 | H104: =IF('DNSP Inputs General'!$B48='DNSP Inputs General'!$A$41,H$92,IF('DNSP Inputs General'!$B48='DNSP Inputs General'!$A$42,H$93,H$94))*'DNSP Inputs General'!$D48*'DNSP Inputs General'!U48 -> 43.06942967 | K104: =D104/'Charges Summary'!D$4 -> 567.7356051 | L104: =E104/'Charges Summary'!E$4 -> 255.9476263 | M104: =F104/'Charges Summary'!F$4 -> 115.4394172 | N104: =G104/'Charges Summary'!G$4 -> 58.2374773 | O104: =H104/'Charges Summary'!H$4 -> 38.30136137
A105: ='DNSP Inputs General'!A$49 -> Mercury Vapour 400 watt | D105: =IF('DNSP Inputs General'!$B49='DNSP Inputs General'!$A$41,D$92,IF('DNSP Inputs General'!$B49='DNSP Inputs General'!$A$42,D$93,D$94))*'DNSP Inputs General'!$D49*'DNSP Inputs General'!Q49 -> 28.48707207 | E105: =IF('DNSP Inputs General'!$B49='DNSP Inputs General'!$A$41,E$92,IF('DNSP Inputs General'!$B49='DNSP Inputs General'!$A$42,E$93,E$94))*'DNSP Inputs General'!$D49*'DNSP Inputs General'!R49 -> 0 | F105: =IF('DNSP Inputs General'!$B49='DNSP Inputs General'!$A$41,F$92,IF('DNSP Inputs General'!$B49='DNSP Inputs General'!$A$42,F$93,F$94))*'DNSP Inputs General'!$D49*'DNSP Inputs General'!S49 -> 0 | G105: =IF('DNSP Inputs General'!$B49='DNSP Inputs General'!$A$41,G$92,IF('DNSP Inputs General'!$B49='DNSP Inputs General'!$A$42,G$93,G$94))*'DNSP Inputs General'!$D49*'DNSP Inputs General'!T49 -> 0 | H105: =IF('DNSP Inputs General'!$B49='DNSP Inputs General'!$A$41,H$92,IF('DNSP Inputs General'!$B49='DNSP Inputs General'!$A$42,H$93,H$94))*'DNSP Inputs General'!$D49*'DNSP Inputs General'!U49 -> 0 | K105: =D105/'Charges Summary'!D$4 -> 27.82638773 | L105: =E105/'Charges Summary'!E$4 -> 0 | M105: =F105/'Charges Summary'!F$4 -> 0 | N105: =G105/'Charges Summary'!G$4 -> 0 | O105: =H105/'Charges Summary'!H$4 -> 0
A106: ='DNSP Inputs General'!A$50 -> Mercury Vapour 700 watt | D106: =IF('DNSP Inputs General'!$B50='DNSP Inputs General'!$A$41,D$92,IF('DNSP Inputs General'!$B50='DNSP Inputs General'!$A$42,D$93,D$94))*'DNSP Inputs General'!$D50*'DNSP Inputs General'!Q50 -> 0 | E106: =IF('DNSP Inputs General'!$B50='DNSP Inputs General'!$A$41,E$92,IF('DNSP Inputs General'!$B50='DNSP Inputs General'!$A$42,E$93,E$94))*'DNSP Inputs General'!$D50*'DNSP Inputs General'!R50 -> 0 | F106: =IF('DNSP Inputs General'!$B50='DNSP Inputs General'!$A$41,F$92,IF('DNSP Inputs General'!$B50='DNSP Inputs General'!$A$42,F$93,F$94))*'DNSP Inputs General'!$D50*'DNSP Inputs General'!S50 -> 0 | G106: =IF('DNSP Inputs General'!$B50='DNSP Inputs General'!$A$41,G$92,IF('DNSP Inputs General'!$B50='DNSP Inputs General'!$A$42,G$93,G$94))*'DNSP Inputs General'!$D50*'DNSP Inputs General'!T50 -> 0 | H106: =IF('DNSP Inputs General'!$B50='DNSP Inputs General'!$A$41,H$92,IF('DNSP Inputs General'!$B50='DNSP Inputs General'!$A$42,H$93,H$94))*'DNSP Inputs General'!$D50*'DNSP Inputs General'!U50 -> 0 | K106: =D106/'Charges Summary'!D$4 -> 0 | L106: =E106/'Charges Summary'!E$4 -> 0 | M106: =F106/'Charges Summary'!F$4 -> 0 | N106: =G106/'Charges Summary'!G$4 -> 0 | O106: =H106/'Charges Summary'!H$4 -> 0
A107: ='DNSP Inputs General'!A$51 -> Sodium High Pressure 70 watt | D107: =IF('DNSP Inputs General'!$B51='DNSP Inputs General'!$A$41,D$92,IF('DNSP Inputs General'!$B51='DNSP Inputs General'!$A$42,D$93,D$94))*'DNSP Inputs General'!$D51*'DNSP Inputs General'!Q51 -> 3345.363892 | E107: =IF('DNSP Inputs General'!$B51='DNSP Inputs General'!$A$41,E$92,IF('DNSP Inputs General'!$B51='DNSP Inputs General'!$A$42,E$93,E$94))*'DNSP Inputs General'!$D51*'DNSP Inputs General'!R51 -> 1545.326824 | F107: =IF('DNSP Inputs General'!$B51='DNSP Inputs General'!$A$41,F$92,IF('DNSP Inputs General'!$B51='DNSP Inputs General'!$A$42,F$93,F$94))*'DNSP Inputs General'!$D51*'DNSP Inputs General'!S51 -> 635.0401664 | G107: =IF('DNSP Inputs General'!$B51='DNSP Inputs General'!$A$41,G$92,IF('DNSP Inputs General'!$B51='DNSP Inputs General'!$A$42,G$93,G$94))*'DNSP Inputs General'!$D51*'DNSP Inputs General'!T51 -> 328.8814297 | H107: =IF('DNSP Inputs General'!$B51='DNSP Inputs General'!$A$41,H$92,IF('DNSP Inputs General'!$B51='DNSP Inputs General'!$A$42,H$93,H$94))*'DNSP Inputs General'!$D51*'DNSP Inputs General'!U51 -> 222.2006481 | K107: =D107/'Charges Summary'!D$4 -> 3267.776785 | L107: =E107/'Charges Summary'!E$4 -> 1474.478279 | M107: =F107/'Charges Summary'!F$4 -> 591.872619 | N107: =G107/'Charges Summary'!G$4 -> 299.4162892 | O107: =H107/'Charges Summary'!H$4 -> 197.6015793
A108: ='DNSP Inputs General'!A$52 -> Sodium High Pressure 100 watt | D108: =IF('DNSP Inputs General'!$B52='DNSP Inputs General'!$A$41,D$92,IF('DNSP Inputs General'!$B52='DNSP Inputs General'!$A$42,D$93,D$94))*'DNSP Inputs General'!$D52*'DNSP Inputs General'!Q52 -> 6145.63171 | E108: =IF('DNSP Inputs General'!$B52='DNSP Inputs General'!$A$41,E$92,IF('DNSP Inputs General'!$B52='DNSP Inputs General'!$A$42,E$93,E$94))*'DNSP Inputs General'!$D52*'DNSP Inputs General'!R52 -> 2840.284978 | F108: =IF('DNSP Inputs General'!$B52='DNSP Inputs General'!$A$41,F$92,IF('DNSP Inputs General'!$B52='DNSP Inputs General'!$A$42,F$93,F$94))*'DNSP Inputs General'!$D52*'DNSP Inputs General'!S52 -> 1351.920392 | G108: =IF('DNSP Inputs General'!$B52='DNSP Inputs General'!$A$41,G$92,IF('DNSP Inputs General'!$B52='DNSP Inputs General'!$A$42,G$93,G$94))*'DNSP Inputs General'!$D52*'DNSP Inputs General'!T52 -> 698.3717128 | H108: =IF('DNSP Inputs General'!$B52='DNSP Inputs General'!$A$41,H$92,IF('DNSP Inputs General'!$B52='DNSP Inputs General'!$A$42,H$93,H$94))*'DNSP Inputs General'!$D52*'DNSP Inputs General'!U52 -> 470.3380943 | K108: =D108/'Charges Summary'!D$4 -> 6003.099596 | L108: =E108/'Charges Summary'!E$4 -> 2710.066531 | M108: =F108/'Charges Summary'!F$4 -> 1260.02213 | N108: =G108/'Charges Summary'!G$4 -> 635.8032039 | O108: =H108/'Charges Summary'!H$4 -> 418.2685829
A109: ='DNSP Inputs General'!A$53 -> Sodium High Pressure 400 watt | D109: =IF('DNSP Inputs General'!$B53='DNSP Inputs General'!$A$41,D$92,IF('DNSP Inputs General'!$B53='DNSP Inputs General'!$A$42,D$93,D$94))*'DNSP Inputs General'!$D53*'DNSP Inputs General'!Q53 -> 2257.600461 | E109: =IF('DNSP Inputs General'!$B53='DNSP Inputs General'!$A$41,E$92,IF('DNSP Inputs General'!$B53='DNSP Inputs General'!$A$42,E$93,E$94))*'DNSP Inputs General'!$D53*'DNSP Inputs General'!R53 -> 1041.940794 | F109: =IF('DNSP Inputs General'!$B53='DNSP Inputs General'!$A$41,F$92,IF('DNSP Inputs General'!$B53='DNSP Inputs General'!$A$42,F$93,F$94))*'DNSP Inputs General'!$D53*'DNSP Inputs General'!S53 -> 481.1018682 | G109: =IF('DNSP Inputs General'!$B53='DNSP Inputs General'!$A$41,G$92,IF('DNSP Inputs General'!$B53='DNSP Inputs General'!$A$42,G$93,G$94))*'DNSP Inputs General'!$D53*'DNSP Inputs General'!T53 -> 248.4714268 | H109: =IF('DNSP Inputs General'!$B53='DNSP Inputs General'!$A$41,H$92,IF('DNSP Inputs General'!$B53='DNSP Inputs General'!$A$42,H$93,H$94))*'DNSP Inputs General'!$D53*'DNSP Inputs General'!U53 -> 167.2935097 | K109: =D109/'Charges Summary'!D$4 -> 2205.241227 | L109: =E109/'Charges Summary'!E$4 -> 994.1709705 | M109: =F109/'Charges Summary'!F$4 -> 448.3984443 | N109: =G109/'Charges Summary'!G$4 -> 226.2103781 | O109: =H109/'Charges Summary'!H$4 -> 148.7730211
A110: ='DNSP Inputs General'!A$54 -> Metal Halide 70 watt | D110: =IF('DNSP Inputs General'!$B54='DNSP Inputs General'!$A$41,D$92,IF('DNSP Inputs General'!$B54='DNSP Inputs General'!$A$42,D$93,D$94))*'DNSP Inputs General'!$D54*'DNSP Inputs General'!Q54 -> 65.71277416 | E110: =IF('DNSP Inputs General'!$B54='DNSP Inputs General'!$A$41,E$92,IF('DNSP Inputs General'!$B54='DNSP Inputs General'!$A$42,E$93,E$94))*'DNSP Inputs General'!$D54*'DNSP Inputs General'!R54 -> 20.24668513 | F110: =IF('DNSP Inputs General'!$B54='DNSP Inputs General'!$A$41,F$92,IF('DNSP Inputs General'!$B54='DNSP Inputs General'!$A$42,F$93,F$94))*'DNSP Inputs General'!$D54*'DNSP Inputs General'!S54 -> 0 | G110: =IF('DNSP Inputs General'!$B54='DNSP Inputs General'!$A$41,G$92,IF('DNSP Inputs General'!$B54='DNSP Inputs General'!$A$42,G$93,G$94))*'DNSP Inputs General'!$D54*'DNSP Inputs General'!T54 -> 0 | H110: =IF('DNSP Inputs General'!$B54='DNSP Inputs General'!$A$41,H$92,IF('DNSP Inputs General'!$B54='DNSP Inputs General'!$A$42,H$93,H$94))*'DNSP Inputs General'!$D54*'DNSP Inputs General'!U54 -> 0 | K110: =D110/'Charges Summary'!D$4 -> 64.18873544 | L110: =E110/'Charges Summary'!E$4 -> 19.31843606 | M110: =F110/'Charges Summary'!F$4 -> 0 | N110: =G110/'Charges Summary'!G$4 -> 0 | O110: =H110/'Charges Summary'!H$4 -> 0
A111: ='DNSP Inputs General'!A$55 -> Metal Halide 100 watt | D111: =IF('DNSP Inputs General'!$B55='DNSP Inputs General'!$A$41,D$92,IF('DNSP Inputs General'!$B55='DNSP Inputs General'!$A$42,D$93,D$94))*'DNSP Inputs General'!$D55*'DNSP Inputs General'!Q55 -> 693.6348384 | E111: =IF('DNSP Inputs General'!$B55='DNSP Inputs General'!$A$41,E$92,IF('DNSP Inputs General'!$B55='DNSP Inputs General'!$A$42,E$93,E$94))*'DNSP Inputs General'!$D55*'DNSP Inputs General'!R55 -> 320.5725146 | F111: =IF('DNSP Inputs General'!$B55='DNSP Inputs General'!$A$41,F$92,IF('DNSP Inputs General'!$B55='DNSP Inputs General'!$A$42,F$93,F$94))*'DNSP Inputs General'!$D55*'DNSP Inputs General'!S55 -> 152.5862803 | G111: =IF('DNSP Inputs General'!$B55='DNSP Inputs General'!$A$41,G$92,IF('DNSP Inputs General'!$B55='DNSP Inputs General'!$A$42,G$93,G$94))*'DNSP Inputs General'!$D55*'DNSP Inputs General'!T55 -> 78.82264558 | H111: =IF('DNSP Inputs General'!$B55='DNSP Inputs General'!$A$41,H$92,IF('DNSP Inputs General'!$B55='DNSP Inputs General'!$A$42,H$93,H$94))*'DNSP Inputs General'!$D55*'DNSP Inputs General'!U55 -> 53.0853301 | K111: =D111/'Charges Summary'!D$4 -> 677.547763 | L111: =E111/'Charges Summary'!E$4 -> 305.8752377 | M111: =F111/'Charges Summary'!F$4 -> 142.2140616 | N111: =G111/'Charges Summary'!G$4 -> 71.76076819 | O111: =H111/'Charges Summary'!H$4 -> 47.20843594
A112: ='DNSP Inputs General'!A$56 -> Metal Halide 150 watt | D112: =IF('DNSP Inputs General'!$B56='DNSP Inputs General'!$A$41,D$92,IF('DNSP Inputs General'!$B56='DNSP Inputs General'!$A$42,D$93,D$94))*'DNSP Inputs General'!$D56*'DNSP Inputs General'!Q56 -> 321.2624515 | E112: =IF('DNSP Inputs General'!$B56='DNSP Inputs General'!$A$41,E$92,IF('DNSP Inputs General'!$B56='DNSP Inputs General'!$A$42,E$93,E$94))*'DNSP Inputs General'!$D56*'DNSP Inputs General'!R56 -> 148.475691 | F112: =IF('DNSP Inputs General'!$B56='DNSP Inputs General'!$A$41,F$92,IF('DNSP Inputs General'!$B56='DNSP Inputs General'!$A$42,F$93,F$94))*'DNSP Inputs General'!$D56*'DNSP Inputs General'!S56 -> 70.67154036 | G112: =IF('DNSP Inputs General'!$B56='DNSP Inputs General'!$A$41,G$92,IF('DNSP Inputs General'!$B56='DNSP Inputs General'!$A$42,G$93,G$94))*'DNSP Inputs General'!$D56*'DNSP Inputs General'!T56 -> 24.33822039 | H112: =IF('DNSP Inputs General'!$B56='DNSP Inputs General'!$A$41,H$92,IF('DNSP Inputs General'!$B56='DNSP Inputs General'!$A$42,H$93,H$94))*'DNSP Inputs General'!$D56*'DNSP Inputs General'!U56 -> 0 | K112: =D112/'Charges Summary'!D$4 -> 313.8115955 | L112: =E112/'Charges Summary'!E$4 -> 141.6685311 | M112: =F112/'Charges Summary'!F$4 -> 65.86756538 | N112: =G112/'Charges Summary'!G$4 -> 22.15771088 | O112: =H112/'Charges Summary'!H$4 -> 0
A113: ='DNSP Inputs General'!A$57 -> Metal Halide 250 watt | D113: =IF('DNSP Inputs General'!$B57='DNSP Inputs General'!$A$41,D$92,IF('DNSP Inputs General'!$B57='DNSP Inputs General'!$A$42,D$93,D$94))*'DNSP Inputs General'!$D57*'DNSP Inputs General'!Q57 -> 953.8082165 | E113: =IF('DNSP Inputs General'!$B57='DNSP Inputs General'!$A$41,E$92,IF('DNSP Inputs General'!$B57='DNSP Inputs General'!$A$42,E$93,E$94))*'DNSP Inputs General'!$D57*'DNSP Inputs General'!R57 -> 440.2070727 | F113: =IF('DNSP Inputs General'!$B57='DNSP Inputs General'!$A$41,F$92,IF('DNSP Inputs General'!$B57='DNSP Inputs General'!$A$42,F$93,F$94))*'DNSP Inputs General'!$D57*'DNSP Inputs General'!S57 -> 203.259577 | G113: =IF('DNSP Inputs General'!$B57='DNSP Inputs General'!$A$41,G$92,IF('DNSP Inputs General'!$B57='DNSP Inputs General'!$A$42,G$93,G$94))*'DNSP Inputs General'!$D57*'DNSP Inputs General'!T57 -> 104.9760985 | H113: =IF('DNSP Inputs General'!$B57='DNSP Inputs General'!$A$41,H$92,IF('DNSP Inputs General'!$B57='DNSP Inputs General'!$A$42,H$93,H$94))*'DNSP Inputs General'!$D57*'DNSP Inputs General'!U57 -> 70.67943457 | K113: =D113/'Charges Summary'!D$4 -> 931.6870891 | L113: =E113/'Charges Summary'!E$4 -> 420.0249143 | M113: =F113/'Charges Summary'!F$4 -> 189.4427857 | N113: =G113/'Charges Summary'!G$4 -> 95.57108134 | O113: =H113/'Charges Summary'!H$4 -> 62.85475767
A114: ='DNSP Inputs General'!A$58 -> Metal Halide 400 watt | D114: =IF('DNSP Inputs General'!$B58='DNSP Inputs General'!$A$41,D$92,IF('DNSP Inputs General'!$B58='DNSP Inputs General'!$A$42,D$93,D$94))*'DNSP Inputs General'!$D58*'DNSP Inputs General'!Q58 -> 900.3949564 | E114: =IF('DNSP Inputs General'!$B58='DNSP Inputs General'!$A$41,E$92,IF('DNSP Inputs General'!$B58='DNSP Inputs General'!$A$42,E$93,E$94))*'DNSP Inputs General'!$D58*'DNSP Inputs General'!R58 -> 415.5554766 | F114: =IF('DNSP Inputs General'!$B58='DNSP Inputs General'!$A$41,F$92,IF('DNSP Inputs General'!$B58='DNSP Inputs General'!$A$42,F$93,F$94))*'DNSP Inputs General'!$D58*'DNSP Inputs General'!S58 -> 191.8770407 | G114: =IF('DNSP Inputs General'!$B58='DNSP Inputs General'!$A$41,G$92,IF('DNSP Inputs General'!$B58='DNSP Inputs General'!$A$42,G$93,G$94))*'DNSP Inputs General'!$D58*'DNSP Inputs General'!T58 -> 99.09743701 | H114: =IF('DNSP Inputs General'!$B58='DNSP Inputs General'!$A$41,H$92,IF('DNSP Inputs General'!$B58='DNSP Inputs General'!$A$42,H$93,H$94))*'DNSP Inputs General'!$D58*'DNSP Inputs General'!U58 -> 66.72138624 | K114: =D114/'Charges Summary'!D$4 -> 879.5126121 | L114: =E114/'Charges Summary'!E$4 -> 396.5035191 | M114: =F114/'Charges Summary'!F$4 -> 178.8339897 | N114: =G114/'Charges Summary'!G$4 -> 90.21910079 | O114: =H114/'Charges Summary'!H$4 -> 59.33489124
A121: ='DNSP Inputs General'!A$67 -> Energy Efficient Lights
A122: ='DNSP Inputs General'!A$68 -> T5 2X14W | D122: =SUM('Charges Summary'!D$99,'Charges Summary'!D$11)*'DNSP Inputs General'!$D68*'DNSP Inputs General'!Q68 -> 238457.957 | E122: =SUM('Charges Summary'!E$99,'Charges Summary'!E$11)*'DNSP Inputs General'!$D68*'DNSP Inputs General'!R68 -> 249995.9421 | F122: =SUM('Charges Summary'!F$99,'Charges Summary'!F$11)*'DNSP Inputs General'!$D68*'DNSP Inputs General'!S68 -> 256665.119 | G122: =SUM('Charges Summary'!G$99,'Charges Summary'!G$11)*'DNSP Inputs General'!$D68*'DNSP Inputs General'!T68 -> 261211.2097 | H122: =SUM('Charges Summary'!H$99,'Charges Summary'!H$11)*'DNSP Inputs General'!$D68*'DNSP Inputs General'!U68 -> 277681.9568 | K122: =D122/'Charges Summary'!D$4 -> 232927.5382 | L122: =E122/'Charges Summary'!E$4 -> 238534.3868 | M122: =F122/'Charges Summary'!F$4 -> 239218.0278 | N122: =G122/'Charges Summary'!G$4 -> 237808.7786 | O122: =H122/'Charges Summary'!H$4 -> 246940.7432
A123: ='DNSP Inputs General'!A$69 -> Twin 24w Fluorescent | D123: =SUM('Charges Summary'!D$99,'Charges Summary'!D$11)*'DNSP Inputs General'!$D69*'DNSP Inputs General'!Q69 -> 2574.347836 | E123: =SUM('Charges Summary'!E$99,'Charges Summary'!E$11)*'DNSP Inputs General'!$D69*'DNSP Inputs General'!R69 -> 2698.909781 | F123: =SUM('Charges Summary'!F$99,'Charges Summary'!F$11)*'DNSP Inputs General'!$D69*'DNSP Inputs General'!S69 -> 2770.908977 | G123: =SUM('Charges Summary'!G$99,'Charges Summary'!G$11)*'DNSP Inputs General'!$D69*'DNSP Inputs General'!T69 -> 2819.987729 | H123: =SUM('Charges Summary'!H$99,'Charges Summary'!H$11)*'DNSP Inputs General'!$D69*'DNSP Inputs General'!U69 -> 2997.802857 | K123: =D123/'Charges Summary'!D$4 -> 2514.642462 | L123: =E123/'Charges Summary'!E$4 -> 2575.172958 | M123: =F123/'Charges Summary'!F$4 -> 2582.553419 | N123: =G123/'Charges Summary'!G$4 -> 2567.339427 | O123: =H123/'Charges Summary'!H$4 -> 2665.926422
A124: ='DNSP Inputs General'!A$70 -> 32W Compact Fluorescent | D124: =SUM('Charges Summary'!D$99,'Charges Summary'!D$11)*'DNSP Inputs General'!$D70*'DNSP Inputs General'!Q70 -> 12605.6753 | E124: =SUM('Charges Summary'!E$99,'Charges Summary'!E$11)*'DNSP Inputs General'!$D70*'DNSP Inputs General'!R70 -> 13215.6113 | F124: =SUM('Charges Summary'!F$99,'Charges Summary'!F$11)*'DNSP Inputs General'!$D70*'DNSP Inputs General'!S70 -> 13568.16603 | G124: =SUM('Charges Summary'!G$99,'Charges Summary'!G$11)*'DNSP Inputs General'!$D70*'DNSP Inputs General'!T70 -> 13808.4874 | H124: =SUM('Charges Summary'!H$99,'Charges Summary'!H$11)*'DNSP Inputs General'!$D70*'DNSP Inputs General'!U70 -> 14679.1855 | K124: =D124/'Charges Summary'!D$4 -> 12313.3191 | L124: =E124/'Charges Summary'!E$4 -> 12609.71563 | M124: =F124/'Charges Summary'!F$4 -> 12645.85515 | N124: =G124/'Charges Summary'!G$4 -> 12571.35759 | O124: =H124/'Charges Summary'!H$4 -> 13054.1034
A125: ='DNSP Inputs General'!A$71 -> 42w Compact Fluorescent | D125: =SUM('Charges Summary'!D$99,'Charges Summary'!D$11)*'DNSP Inputs General'!$D71*'DNSP Inputs General'!Q71 -> 2977.039118 | E125: =SUM('Charges Summary'!E$99,'Charges Summary'!E$11)*'DNSP Inputs General'!$D71*'DNSP Inputs General'!R71 -> 3121.085613 | F125: =SUM('Charges Summary'!F$99,'Charges Summary'!F$11)*'DNSP Inputs General'!$D71*'DNSP Inputs General'!S71 -> 3204.347253 | G125: =SUM('Charges Summary'!G$99,'Charges Summary'!G$11)*'DNSP Inputs General'!$D71*'DNSP Inputs General'!T71 -> 3261.103128 | H125: =SUM('Charges Summary'!H$99,'Charges Summary'!H$11)*'DNSP Inputs General'!$D71*'DNSP Inputs General'!U71 -> 3466.732913 | K125: =D125/'Charges Summary'!D$4 -> 2907.994356 | L125: =E125/'Charges Summary'!E$4 -> 2977.993309 | M125: =F125/'Charges Summary'!F$4 -> 2986.528256 | N125: =G125/'Charges Summary'!G$4 -> 2968.934421 | O125: =H125/'Charges Summary'!H$4 -> 3082.942846
A126: ='DNSP Inputs General'!A72 -> Category P LED 18 Watt | D126: =SUM('Charges Summary'!D$116,'Charges Summary'!D$11)*'DNSP Inputs General'!$D72*'DNSP Inputs General'!Q72 -> 603001.0538 | E126: =SUM('Charges Summary'!E$116,'Charges Summary'!E$11)*'DNSP Inputs General'!$D72*'DNSP Inputs General'!R72 -> 733669.6869 | F126: =SUM('Charges Summary'!F$116,'Charges Summary'!F$11)*'DNSP Inputs General'!$D72*'DNSP Inputs General'!S72 -> 869423.0676 | G126: =SUM('Charges Summary'!G$116,'Charges Summary'!G$11)*'DNSP Inputs General'!$D72*'DNSP Inputs General'!T72 -> 1010330.459 | H126: =SUM('Charges Summary'!H$116,'Charges Summary'!H$11)*'DNSP Inputs General'!$D72*'DNSP Inputs General'!U72 -> 1144539.667 | K126: =D126/'Charges Summary'!D$4 -> 589015.9959 | L126: =E126/'Charges Summary'!E$4 -> 700033.1582 | M126: =F126/'Charges Summary'!F$4 -> 810323.087 | N126: =G126/'Charges Summary'!G$4 -> 919812.9459 | O126: =H126/'Charges Summary'!H$4 -> 1017831.621
A127: ='DNSP Inputs General'!A73 -> Category P LED 47 Watt | D127: =SUM('Charges Summary'!D$116,'Charges Summary'!D$11)*'DNSP Inputs General'!$D73*'DNSP Inputs General'!Q73 -> 28558.97848 | E127: =SUM('Charges Summary'!E$116,'Charges Summary'!E$11)*'DNSP Inputs General'!$D73*'DNSP Inputs General'!R73 -> 34747.62883 | F127: =SUM('Charges Summary'!F$116,'Charges Summary'!F$11)*'DNSP Inputs General'!$D73*'DNSP Inputs General'!S73 -> 41177.09998 | G127: =SUM('Charges Summary'!G$116,'Charges Summary'!G$11)*'DNSP Inputs General'!$D73*'DNSP Inputs General'!T73 -> 47850.6723 | H127: =SUM('Charges Summary'!H$116,'Charges Summary'!H$11)*'DNSP Inputs General'!$D73*'DNSP Inputs General'!U73 -> 54207.0093 | K127: =D127/'Charges Summary'!D$4 -> 27896.62646 | L127: =E127/'Charges Summary'!E$4 -> 33154.5555 | M127: =F127/'Charges Summary'!F$4 -> 38378.04173 | N127: =G127/'Charges Summary'!G$4 -> 43563.63552 | O127: =H127/'Charges Summary'!H$4 -> 48205.93789
A128: ='DNSP Inputs General'!A74 -> Category V LED L1 Standard Output | D128: =SUM('Charges Summary'!D$134,'Charges Summary'!D$11)*'DNSP Inputs General'!$D74*'DNSP Inputs General'!Q74 -> 125696.6455 | E128: =SUM('Charges Summary'!E$134,'Charges Summary'!E$11)*'DNSP Inputs General'!$D74*'DNSP Inputs General'!R74 -> 168607.9005 | F128: =SUM('Charges Summary'!F$134,'Charges Summary'!F$11)*'DNSP Inputs General'!$D74*'DNSP Inputs General'!S74 -> 215827.166 | G128: =SUM('Charges Summary'!G$134,'Charges Summary'!G$11)*'DNSP Inputs General'!$D74*'DNSP Inputs General'!T74 -> 263314.0508 | H128: =SUM('Charges Summary'!H$134,'Charges Summary'!H$11)*'DNSP Inputs General'!$D74*'DNSP Inputs General'!U74 -> 303315.5107 | K128: =D128/'Charges Summary'!D$4 -> 122781.4352 | L128: =E128/'Charges Summary'!E$4 -> 160877.7399 | M128: =F128/'Charges Summary'!F$4 -> 201156.0791 | N128: =G128/'Charges Summary'!G$4 -> 239723.222 | O128: =H128/'Charges Summary'!H$4 -> 269736.4946
A129: ='DNSP Inputs General'!A75 -> Category V LED L2 Medium Output | D129: =SUM('Charges Summary'!D$134,'Charges Summary'!D$11)*'DNSP Inputs General'!$D75*'DNSP Inputs General'!Q75 -> 12274.61236 | E129: =SUM('Charges Summary'!E$134,'Charges Summary'!E$11)*'DNSP Inputs General'!$D75*'DNSP Inputs General'!R75 -> 16465.01075 | F129: =SUM('Charges Summary'!F$134,'Charges Summary'!F$11)*'DNSP Inputs General'!$D75*'DNSP Inputs General'!S75 -> 21076.09784 | G129: =SUM('Charges Summary'!G$134,'Charges Summary'!G$11)*'DNSP Inputs General'!$D75*'DNSP Inputs General'!T75 -> 25713.31868 | H129: =SUM('Charges Summary'!H$134,'Charges Summary'!H$11)*'DNSP Inputs General'!$D75*'DNSP Inputs General'!U75 -> 29619.56782 | K129: =D129/'Charges Summary'!D$4 -> 11989.9343 | L129: =E129/'Charges Summary'!E$4 -> 15710.13997 | M129: =F129/'Charges Summary'!F$4 -> 19643.42712 | N129: =G129/'Charges Summary'!G$4 -> 23409.61138 | O129: =H129/'Charges Summary'!H$4 -> 26340.48742
A130: ='DNSP Inputs General'!A76 -> Category V L4 LED High Output | D130: =SUM('Charges Summary'!D$134,'Charges Summary'!D$11)*'DNSP Inputs General'!$D76*'DNSP Inputs General'!Q76 -> 6919.387509 | E130: =SUM('Charges Summary'!E$134,'Charges Summary'!E$11)*'DNSP Inputs General'!$D76*'DNSP Inputs General'!R76 -> 9281.579441 | F130: =SUM('Charges Summary'!F$134,'Charges Summary'!F$11)*'DNSP Inputs General'!$D76*'DNSP Inputs General'!S76 -> 11880.92006 | G130: =SUM('Charges Summary'!G$134,'Charges Summary'!G$11)*'DNSP Inputs General'!$D76*'DNSP Inputs General'!T76 -> 14494.99267 | H130: =SUM('Charges Summary'!H$134,'Charges Summary'!H$11)*'DNSP Inputs General'!$D76*'DNSP Inputs General'!U76 -> 16697.0053 | K130: =D130/'Charges Summary'!D$4 -> 6758.91012 | L130: =E130/'Charges Summary'!E$4 -> 8856.047191 | M130: =F130/'Charges Summary'!F$4 -> 11073.30157 | N130: =G130/'Charges Summary'!G$4 -> 13196.35748 | O130: =H130/'Charges Summary'!H$4 -> 14848.53732
A133: Total Capital Charge | D133: =SUM(D97:D132) -> 2734689.227 | E133: =SUM(E97:E132) -> 2716759.692 | F133: =SUM(F97:F132) -> 2761771.972 | G133: =SUM(G97:G132) -> 2942365.756 | H133: =SUM(H97:H132) -> 3125575.247 | K133: =SUM(K97:K132) -> 2671265.147 | L133: =SUM(L97:L132) -> 2592204.505 | M133: =SUM(M97:M132) -> 2574037.512 | N133: =SUM(N97:N132) -> 2678753.363 | O133: =SUM(O97:O132) -> 2779553.571
A135: Check | C135: =SUM(D135:O135) -> 8.381903172e-09 | D135: =ABS(D42-SUM(D85,D133)) -> 0 | E135: =ABS(E42-SUM(E85,E133)) -> 1.862645149e-09 | F135: =ABS(F42-SUM(F85,F133)) -> 9.313225746e-10 | G135: =ABS(G42-SUM(G85,G133)) -> 0 | H135: =ABS(H42-SUM(H85,H133)) -> 1.862645149e-09 | K135: =ABS(K42-SUM(K85,K133)) -> 1.862645149e-09 | L135: =ABS(L42-SUM(L85,L133)) -> 0 | M135: =ABS(M42-SUM(M85,M133)) -> 9.313225746e-10 | N135: =ABS(N42-SUM(N85,N133)) -> 9.313225746e-10 | O135: =ABS(O42-SUM(O85,O133)) -> 0
A137: Public Lighting - Capital Expenditure | D137: Forecast Capital Expenditure - Nominal | K137: Forecast Capital Expenditure - Real 2021 $
D138: =D$2 -> 2021/22 | E138: 2022/23 | F138: 2023/24 | G138: 2024/25 | H138: 2025/26 | K138: =K$2 -> 2021/22 | L138: 2022/23 | M138: 2023/24 | N138: 2024/25 | O138: 2025/26
A140: Total Capital Expenditure | D140: =K140*'Charges Summary'!D$4 -> 1788334.892 | E140: =L140*'Charges Summary'!E$4 -> 2939026.258 | F140: =M140*'Charges Summary'!F$4 -> 3040206.563 | G140: =N140*'Charges Summary'!G$4 -> 3137268.585 | H140: =O140*'Charges Summary'!H$4 -> 3227025.911 | K140: ='DNSP Inputs General'!Q14 -> 1746859.066 | L140: ='DNSP Inputs General'!R14 -> 2804280.823 | M140: ='DNSP Inputs General'!S14 -> 2833545.209 | N140: ='DNSP Inputs General'!T14 -> 2856194.46 | O140: ='DNSP Inputs General'!U14 -> 2869772.981
A141: Check | C141: =SUM(D141:H141) -> 4.656612873e-10 | D141: =ABS(D140-D148) -> 0 | E141: =ABS(E140-E148) -> 0 | F141: =ABS(F140-F148) -> 0 | G141: =ABS(G140-G148) -> 4.656612873e-10 | H141: =ABS(H140-H148) -> 0
A144: Public Lighting - RAB | D144: RAB - Historical Cost ($)
D145: =D$2 -> 2021/22 | E145: 2022/23 | F145: 2023/24 | G145: 2024/25 | H145: 2025/26
A147: Opening RAB | D147: ='Total RAB'!T157 -> 20733257.12 | E147: =D150 -> 20810498.82 | F147: =E150 -> 22089784.9 | G147: 23491291 | H147: 24877963.23
A148: Capex | D148: ='Total RAB'!T158 -> 1788334.892 | E148: ='Total RAB'!U158 -> 2939026.258 | F148: ='Total RAB'!V158 -> 3040206.563 | G148: ='Total RAB'!W158 -> 3137268.585 | H148: ='Total RAB'!X158 -> 3227025.911
A149: Depreciation | D149: ='Total RAB'!T159 -> 1711093.188 | E149: ='Total RAB'!U159 -> 1659740.184 | F149: ='Total RAB'!V159 -> 1638700.461 | G149: ='Total RAB'!W159 -> 1750596.358 | H149: ='Total RAB'!X159 -> 1866108.013
A150: Closing RAB | D150: =D147+D148-D149 -> 20810498.82 | E150: =E147+E148-E149 -> 22089784.9 | F150: =F147+F148-F149 -> 23491291 | G150: =G147+G148-G149 -> 24877963.23 | H150: =H147+H148-H149 -> 26238881.13
A152: Average RAB | D152: =SUM(D147,D150)/2 -> 20771877.97 | E152: =SUM(E147,E150)/2 -> 21450141.86 | F152: =SUM(F147,F150)/2 -> 22790537.95 | G152: =SUM(G147,G150)/2 -> 24184627.11 | H152: =SUM(H147,H150)/2 -> 25558422.18
A154: =WACC!A$8 -> Nominal Pre Tax WACC | D154: =WACC!E$8 -> 0.04927797286 | E154: =WACC!F$8 -> 0.04927797286 | F154: =WACC!G$8 -> 0.04927797286 | G154: =WACC!H$8 -> 0.04927797286 | H154: =WACC!I$8 -> 0.04927797286
A156: Capital Charge | D156: Capital Charge - Nominal
D157: =D$2 -> 2021/22 | E157: 2022/23 | F157: 2023/24 | G157: 2024/25 | H157: 2025/26
A159: Depreciation | D159: =D149 -> 1711093.188 | E159: =E149 -> 1659740.184 | F159: =F149 -> 1638700.461 | G159: =G149 -> 1750596.358 | H159: =H149 -> 1866108.013
A160: Return | D160: =D154*D152 -> 1023596.039 | E160: =E154*E152 -> 1057019.509 | F160: =F154*F152 -> 1123071.511 | G160: =G154*G152 -> 1191769.399 | H160: =H154*H152 -> 1259467.234
D162: =SUM(D159:D161) -> 2734689.227 | E162: =SUM(E159:E161) -> 2716759.692 | F162: =SUM(F159:F161) -> 2761771.972 | G162: =SUM(G159:G161) -> 2942365.756 | H162: =SUM(H159:H161) -> 3125575.247
A164: Check | C164: =SUM(D164:H164) -> 0.000206860248 | D164: =ABS(D133-D162)*IF('DNSP Inputs General'!Q80=0,0,1) -> 5.203671753e-05 | E164: =ABS(E133-E162)*IF('DNSP Inputs General'!R80=0,0,1) -> 4.65605408e-05 | F164: =ABS(F133-F162)*IF('DNSP Inputs General'!S80=0,0,1) -> 3.590108827e-05 | G164: =ABS(G133-G162)*IF('DNSP Inputs General'!T80=0,0,1) -> 3.64203006e-05 | H164: =ABS(H133-H162)*IF('DNSP Inputs General'!U80=0,0,1) -> 3.59416008e-05

Sheet Charges Summary
A1: ='DNSP Inputs O & M'!$A$3 -> United Energy | D1: ='DNSP Inputs General'!Q$2 -> 2021/22 | E1: ='DNSP Inputs General'!R$2 -> 2022/23 | F1: ='DNSP Inputs General'!S$2 -> 2023/24 | G1: ='DNSP Inputs General'!T$2 -> 2024/25 | H1: ='DNSP Inputs General'!U$2 -> 2025/26
A2: Nominal $
A4: ='Total RAB'!A20 -> CPI Index | C4: 1 | D4: =(1+WACC!E6) -> 1.023743087 | E4: =D4*(1+WACC!F6) -> 1.048049908 | F4: =E4*(1+WACC!G6) -> 1.072933848 | G4: =F4*(1+WACC!H6) -> 1.098408609 | H4: =G4*(1+WACC!I6) -> 1.12448822
A6: ='DNSP Inputs General'!$A$6 -> Poles and Brackets | D6: =D1 -> 2021/22 | E6: =E1 -> 2022/23 | F6: =F1 -> 2023/24 | G6: =G1 -> 2024/25 | H6: =H1 -> 2025/26
A7: O & M
A8: ='O & M 2021-2025'!A$10 -> Dedicated poles - inspection | D8: ='O & M 2021-2025'!$B$10*D$4 -> 0.9554727695 | E8: ='O & M 2021-2025'!$Q$10*E$4 -> 0.9825512678 | F8: ='O & M 2021-2025'!$AF$10*F$4 -> 1.011812835 | G8: ='O & M 2021-2025'!$AU$10*G$4 -> 1.04516178 | H8: ='O & M 2021-2025'!$BJ$10*H$4 -> 1.082666942
A10: Capital Charge
A11: Depreciation and Return | D11: ='Depn & WACC Post 2004'!H$85 -> 6.576359128 | E11: ='Depn & WACC Post 2004'!H$138 -> 7.589868536 | F11: ='Depn & WACC Post 2004'!H$192 -> 8.603990575 | G11: ='Depn & WACC Post 2004'!H$246 -> 9.676606803 | H11: ='Depn & WACC Post 2004'!H$300 -> 10.77557722
A13: Total Charge | D13: =SUM(D8,D11) -> 7.531831898 | E13: =SUM(E8,E11) -> 8.572419804 | F13: =SUM(F8,F11) -> 9.61580341 | G13: =SUM(G8,G11) -> 10.72176858 | H13: =SUM(H8,H11) -> 11.85824416
A18: ='DNSP Inputs General'!$A$8 -> Existing Lights
A20: ='O & M 2021-2025'!$A$8 -> MV80 | D20: =D$1 -> 2021/22 | E20: =E$1 -> 2022/23 | F20: 2023/24 | G20: 2024/25 | H20: 2025/26
A22: O & M Charge
A23: ='O & M 2021-2025'!A$9 -> Bulk change & repairs | D23: ='O & M 2021-2025'!$B$9*D$4 -> 34.253111 | E23: ='O & M 2021-2025'!$Q$9*E$4 -> 35.15653722 | F23: ='O & M 2021-2025'!$AF$9*F$4 -> 36.11302254 | G23: ='O & M 2021-2025'!$AU$9*G$4 -> 37.16184583 | H23: ='O & M 2021-2025'!$BJ$9*H$4 -> 38.30462059
A24: ='O & M 2021-2025'!A$11 -> Other costs | D24: ='O & M 2021-2025'!$B$11*D$4 -> 1.437169735 | E24: ='O & M 2021-2025'!$Q$11*E$4 -> 1.4833926 | F24: ='O & M 2021-2025'!$AF$11*F$4 -> 1.531431003 | G24: ='O & M 2021-2025'!$AU$11*G$4 -> 1.588707252 | H24: ='O & M 2021-2025'!$BJ$11*H$4 -> 1.649534629
D25: =SUM(D23:D24) -> 35.69028073 | E25: =SUM(E23:E24) -> 36.63992982 | F25: =SUM(F23:F24) -> 37.64445354 | G25: =SUM(G23:G24) -> 38.75055308 | H25: =SUM(H23:H24) -> 39.95415522
A26: Capital Charge
A27: Depreciation and Return | D27: ='Depn & WACC Post 2004'!H$40 -> 52.03518701 | E27: ='Depn & WACC Post 2004'!H$94 -> 46.55909544 | F27: ='Depn & WACC Post 2004'!H$147 -> 35.90020952 | G27: ='Depn & WACC Post 2004'!H$201 -> 36.42002056 | H27: ='Depn & WACC Post 2004'!H$255 -> 35.94050136
A29: Poles & Brackets Charge | D29: =D$13 -> 7.531831898 | E29: =E$13 -> 8.572419804 | F29: =F$13 -> 9.61580341 | G29: =G$13 -> 10.72176858 | H29: =H$13 -> 11.85824416
A31: Total Charge | D31: =SUM(D25,D27,D29) -> 95.25729964 | E31: =SUM(E25,E27,E29) -> 91.77144507 | F31: =SUM(F25,F27,F29) -> 83.16046647 | G31: =SUM(G25,G27,G29) -> 85.89234222 | H31: =SUM(H25,H27,H29) -> 87.75290075
A33: WDV RAB - MV 80 Luminaire
A34: RAB WDV | D34: ='Depn & WACC Post 2004'!$I$8 -> 249.0522547 | E34: ='Depn & WACC Post 2004'!I$40 -> 233.8986278 | F34: ='Depn & WACC Post 2004'!I$94 -> 211.7016931 | G34: ='Depn & WACC Post 2004'!I$147 -> 191.0083742 | H34: ='Depn & WACC Post 2004'!I$201 -> 167.3259461
A36: Avoided Costs - MV 80 O & M
A37: Materials & labour - bulk lamp change | D37: ='O & M 2021-2025'!$G$9*D$4 -> -23.24116183 | E37: ='O & M 2021-2025'!$V$9*E$4 -> -23.85522464 | F37: ='O & M 2021-2025'!$AK$9*F$4 -> -24.50569184 | G37: ='O & M 2021-2025'!$AZ$9*G$4 -> -25.21967837 | H37: ='O & M 2021-2025'!$BO$9*H$4 -> -25.99829267
A38: Materials & Labour - repair of faults | D38: ='O & M 2021-2025'!$G$10*D$4 -> -7.890953941 | E38: ='O & M 2021-2025'!$V$10*E$4 -> -8.098808729 | F38: ='O & M 2021-2025'!$AK$10*F$4 -> -8.318786054 | G38: ='O & M 2021-2025'!$AZ$10*G$4 -> -8.559818738 | H38: ='O & M 2021-2025'!$BO$10*H$4 -> -8.822275068
D39: =SUM(D37:D38) -> -31.13211577 | E39: =SUM(E37:E38) -> -31.95403337 | F39: =SUM(F37:F38) -> -32.8244779 | G39: =SUM(G37:G38) -> -33.77949711 | H39: =SUM(H37:H38) -> -34.82056774
A44: ='O & M 2021-2025'!$A$14 -> S-HP 150 | D44: =D$1 -> 2021/22 | E44: =E$1 -> 2022/23 | F44: 2023/24 | G44: 2024/25 | H44: 2025/26
A46: O & M Charge
A47: ='O & M 2021-2025'!A$15 -> Patrols and repairs | D47: ='O & M 2021-2025'!$B$15*D$4 -> 71.55437769 | E47: ='O & M 2021-2025'!$Q$15*E$4 -> 73.49816158 | F47: ='O & M 2021-2025'!$AF$15*F$4 -> 75.55926152 | G47: ='O & M 2021-2025'!$AU$15*G$4 -> 77.81554973 | H47: ='O & M 2021-2025'!$BJ$15*H$4 -> 80.26828142
A48: ='O & M 2021-2025'!A$17 -> Other costs | D48: ='O & M 2021-2025'!$B$17*D$4 -> 1.437169735 | E48: ='O & M 2021-2025'!$Q$17*E$4 -> 1.4833926 | F48: ='O & M 2021-2025'!$AF$17*F$4 -> 1.531431003 | G48: ='O & M 2021-2025'!$AU$17*G$4 -> 1.588707252 | H48: ='O & M 2021-2025'!$BJ$17*H$4 -> 1.649534629
D49: =SUM(D47:D48) -> 72.99154742 | E49: =SUM(E47:E48) -> 74.98155418 | F49: =SUM(F47:F48) -> 77.09069252 | G49: =SUM(G47:G48) -> 79.40425698 | H49: =SUM(H47:H48) -> 81.91781605
A50: Capital Charge
A51: Depreciation and Return | D51: ='Depn & WACC Post 2004'!H$41 -> 51.11386784 | E51: ='Depn & WACC Post 2004'!H$95 -> 45.73473429 | F51: ='Depn & WACC Post 2004'!H$148 -> 42.15895648 | G51: ='Depn & WACC Post 2004'!H$202 -> 42.76939 | H51: ='Depn & WACC Post 2004'!H$256 -> 42.2062727
A53: Poles & Brackets Charge | D53: =D$13 -> 7.531831898 | E53: =E$13 -> 8.572419804 | F53: =F$13 -> 9.61580341 | G53: =G$13 -> 10.72176858 | H53: =H$13 -> 11.85824416
A55: Total Charge | D55: =SUM(D49,D51,D53) -> 131.6372472 | E55: =SUM(E49,E51,E53) -> 129.2887083 | F55: =SUM(F49,F51,F53) -> 128.8654524 | G55: =SUM(G49,G51,G53) -> 132.8954156 | H55: =SUM(H49,H51,H53) -> 135.9823329
A57: WDV RAB - S-HP 150 Luminaire
A58: RAB WDV | D58: ='Depn & WACC Post 2004'!$I$9 -> 244.6426114 | E58: ='Depn & WACC Post 2004'!I$41 -> 233.8986278 | F58: ='Depn & WACC Post 2004'!I$95 -> 211.7016931 | G58: ='Depn & WACC Post 2004'!I$148 -> 191.0083742 | H58: ='Depn & WACC Post 2004'!I$202 -> 167.3259461
A60: Avoided Costs - S-HP 150 O & M
A61: Materials & labour - bulk lamp change | D61: ='O & M 2021-2025'!G14*D$4 -> 0 | E61: ='O & M 2021-2025'!V14*E$4 -> 0 | F61: ='O & M 2021-2025'!AK14*F$4 -> 0 | G61: ='O & M 2021-2025'!AZ14*G$4 -> 0 | H61: ='O & M 2021-2025'!BO14*H$4 -> 0
A62: Materials & Labour - repair of faults | D62: ='O & M 2021-2025'!G16*D$4 -> -27.38069519 | E62: ='O & M 2021-2025'!V16*E$4 -> -28.12267848 | F62: ='O & M 2021-2025'!AK16*F$4 -> -28.90861851 | G62: ='O & M 2021-2025'!AZ16*G$4 -> -29.76703643 | H62: ='O & M 2021-2025'!BO16*H$4 -> -30.69834035
D63: =SUM(D61:D62) -> -27.38069519 | E63: =SUM(E61:E62) -> -28.12267848 | F63: =SUM(F61:F62) -> -28.90861851 | G63: =SUM(G61:G62) -> -29.76703643 | H63: =SUM(H61:H62) -> -30.69834035
A67: ='O & M 2021-2025'!$A$20 -> S-HP 250 | D67: =D$1 -> 2021/22 | E67: =E$1 -> 2022/23 | F67: 2023/24 | G67: 2024/25 | H67: 2025/26
A69: O & M Charge
A70: ='O & M 2021-2025'!A$21 -> Patrols and repairs | D70: ='O & M 2021-2025'!$B$21*D$4 -> 71.71533669 | E70: ='O & M 2021-2025'!$Q$21*E$4 -> 73.66432242 | F70: ='O & M 2021-2025'!$AF$21*F$4 -> 75.73084627 | G70: ='O & M 2021-2025'!$AU$21*G$4 -> 77.9926286 | H70: ='O & M 2021-2025'!$BJ$21*H$4 -> 80.45087
A71: ='O & M 2021-2025'!A$23 -> Other costs | D71: ='O & M 2021-2025'!$B$23*D$4 -> 1.437169735 | E71: ='O & M 2021-2025'!$Q$23*E$4 -> 1.4833926 | F71: ='O & M 2021-2025'!$AF$23*F$4 -> 1.531431003 | G71: ='O & M 2021-2025'!$AU$23*G$4 -> 1.588707252 | H71: ='O & M 2021-2025'!$BJ$23*H$4 -> 1.649534629
D72: =SUM(D70:D71) -> 73.15250643 | E72: =SUM(E70:E71) -> 75.14771502 | F72: =SUM(F70:F71) -> 77.26227727 | G72: =SUM(G70:G71) -> 79.58133585 | H72: =SUM(H70:H71) -> 82.10040463
A73: Capital Charge
A74: Depreciation and Return | D74: ='Depn & WACC Post 2004'!H$42 -> 53.71374048 | E74: ='Depn & WACC Post 2004'!H$96 -> 48.0610009 | F74: ='Depn & WACC Post 2004'!H$149 -> 42.7880605 | G74: ='Depn & WACC Post 2004'!H$203 -> 43.40760302 | H74: ='Depn & WACC Post 2004'!H$257 -> 42.83608279
A76: Poles & Brackets Charge | D76: =D$13 -> 7.531831898 | E76: =E$13 -> 8.572419804 | F76: =F$13 -> 9.61580341 | G76: =G$13 -> 10.72176858 | H76: =H$13 -> 11.85824416
A78: Total Charge | D78: =SUM(D72,D74,D76) -> 134.3980788 | E78: =SUM(E72,E74,E76) -> 131.7811357 | F78: =SUM(F72,F74,F76) -> 129.6661412 | G78: =SUM(G72,G74,G76) -> 133.7107075 | H78: =SUM(H72,H74,H76) -> 136.7947316
A80: WDV RAB - S-HP 250 Luminaire
A81: RAB WDV | D81: ='Depn & WACC Post 2004'!$I$10 -> 257.0861939 | E81: ='Depn & WACC Post 2004'!I$42 -> 233.8986278 | F81: ='Depn & WACC Post 2004'!I$96 -> 211.7016931 | G81: ='Depn & WACC Post 2004'!I$149 -> 191.0083742 | H81: ='Depn & WACC Post 2004'!I$203 -> 167.3259461
A83: Avoided Costs - S-HP 250 O & M
A84: Materials & labour - bulk lamp change | D84: ='O & M 2021-2025'!G21*D$4 -> 0 | E84: ='O & M 2021-2025'!V21*E$4 -> 0 | F84: ='O & M 2021-2025'!AK21*F$4 -> 0 | G84: ='O & M 2021-2025'!AZ21*G$4 -> 0 | H84: ='O & M 2021-2025'!BO21*H$4 -> 0
A85: Materials & Labour - repair of faults | D85: ='O & M 2021-2025'!G22*D$4 -> -27.44507879 | E85: ='O & M 2021-2025'!V22*E$4 -> -28.18914282 | F85: ='O & M 2021-2025'!AK22*F$4 -> -28.97725241 | G85: ='O & M 2021-2025'!AZ22*G$4 -> -29.83786798 | H85: ='O & M 2021-2025'!BO22*H$4 -> -30.77137579
D86: =SUM(D84:D85) -> -27.44507879 | E86: =SUM(E84:E85) -> -28.18914282 | F86: =SUM(F84:F85) -> -28.97725241 | G86: =SUM(G84:G85) -> -29.83786798 | H86: =SUM(H84:H85) -> -30.77137579
A90: ='DNSP Inputs General'!$A$11 -> Energy Efficient Lights
A92: ='O & M 2021-2025'!$A$26 -> T5 (2 X 14W) | D92: =D$1 -> 2021/22 | E92: =E$1 -> 2022/23 | F92: 2023/24 | G92: 2024/25 | H92: 2025/26
A94: O & M Charge
A95: ='O & M 2021-2025'!A$27 -> Bulk change & repairs | D95: ='O & M 2021-2025'!$B$27*D$4 -> 28.55901283 | E95: ='O & M 2021-2025'!$Q$27*E$4 -> 29.31160682 | F95: ='O & M 2021-2025'!$AF$27*F$4 -> 30.10819611 | G95: ='O & M 2021-2025'!$AU$27*G$4 -> 30.98125 | H95: ='O & M 2021-2025'!$BJ$27*H$4 -> 31.93210549
A96: ='O & M 2021-2025'!A$29 -> Other costs | D96: ='O & M 2021-2025'!$B$29*D$4 -> 1.437169735 | E96: ='O & M 2021-2025'!$Q$29*E$4 -> 1.4833926 | F96: ='O & M 2021-2025'!$AF$29*F$4 -> 1.531431003 | G96: ='O & M 2021-2025'!$AU$29*G$4 -> 1.588707252 | H96: ='O & M 2021-2025'!$BJ$29*H$4 -> 1.649534629
D97: =SUM(D95:D96) -> 29.99618257 | E97: =SUM(E95:E96) -> 30.79499942 | F97: =SUM(F95:F96) -> 31.63962712 | G97: =SUM(G95:G96) -> 32.56995725 | H97: =SUM(H95:H96) -> 33.58164012
A98: Capital Charge
A99: Depreciation and Return | D99: ='Depn & WACC Post 2004'!$H$69 -> 3.806885034 | E99: ='Depn & WACC Post 2004'!$H$123 -> 4.505293687 | F99: ='Depn & WACC Post 2004'!$H$176 -> 5.193594499 | G99: ='Depn & WACC Post 2004'!$H$230 -> 5.925582035 | H99: ='Depn & WACC Post 2004'!$H$284 -> 6.731855922
A101: Poles & Brackets Charge | D101: =D$13 -> 7.531831898 | E101: =E$13 -> 8.572419804 | F101: =F$13 -> 9.61580341 | G101: =G$13 -> 10.72176858 | H101: =H$13 -> 11.85824416
A103: Total Charge | D103: =SUM(D97,D99,D101) -> 41.3348995 | E103: =SUM(E97,E99,E101) -> 43.87271291 | F103: =SUM(F97,F99,F101) -> 46.44902503 | G103: =SUM(G97,G99,G101) -> 49.21730787 | H103: =SUM(H97,H99,H101) -> 52.17174021
A107: ='DNSP Inputs General'!$A$67 -> Energy Efficient Lights
A109: ='DNSP Inputs General'!A72 -> Category P LED 18 Watt | D109: =D$1 -> 2021/22 | E109: =E$1 -> 2022/23 | F109: 2023/24 | G109: 2024/25 | H109: 2025/26
A111: O & M Charge
A112: ='O & M 2021-2025'!A220 -> Bulk change & repairs | D112: ='O & M 2021-2025'!B33*D$4 -> 8.64874166 | E112: ='O & M 2021-2025'!Q33*E$4 -> 8.875661772 | F112: ='O & M 2021-2025'!AF33*F$4 -> 9.115533341 | G112: ='O & M 2021-2025'!AU33*G$4 -> 9.377761425 | H112: ='O & M 2021-2025'!BJ33*H$4 -> 9.662738315
A113: =A96 -> Other costs | D113: ='O & M 2021-2025'!B35*D$4 -> 1.437169735 | E113: ='O & M 2021-2025'!Q35*E$4 -> 1.4833926 | F113: ='O & M 2021-2025'!AF35*F$4 -> 1.531431003 | G113: ='O & M 2021-2025'!AU35*G$4 -> 1.588707252 | H113: ='O & M 2021-2025'!BJ35*H$4 -> 1.649534629
D114: =SUM(D112:D113) -> 10.0859114 | E114: =SUM(E112:E113) -> 10.35905437 | F114: =SUM(F112:F113) -> 10.64696434 | G114: =SUM(G112:G113) -> 10.96646868 | H114: =SUM(H112:H113) -> 11.31227294
A115: Capital Charge
A116: Depreciation and Return | D116: ='Depn & WACC Post 2004'!H73 -> 3.806885034 | E116: ='Depn & WACC Post 2004'!H127 -> 4.505293687 | F116: ='Depn & WACC Post 2004'!H180 -> 5.193594499 | G116: ='Depn & WACC Post 2004'!H234 -> 5.925582035 | H116: ='Depn & WACC Post 2004'!H288 -> 6.731855922
A118: Poles & Brackets Charge | D118: =D$13 -> 7.531831898 | E118: =E$13 -> 8.572419804 | F118: =F$13 -> 9.61580341 | G118: =G$13 -> 10.72176858 | H118: =H$13 -> 11.85824416
A120: Total Charge | D120: =SUM(D114,D116,D118) -> 21.42462833 | E120: =SUM(E114,E116,E118) -> 23.43676786 | F120: =SUM(F114,F116,F118) -> 25.45636225 | G120: =SUM(G114,G116,G118) -> 27.61381929 | H120: =SUM(H114,H116,H118) -> 29.90237303
A125: ='DNSP Inputs General'!$A$67 -> Energy Efficient Lights
A127: ='DNSP Inputs General'!A75 -> Category V LED L2 Medium Output | D127: =D$1 -> 2021/22 | E127: =E$1 -> 2022/23 | F127: 2023/24 | G127: 2024/25 | H127: 2025/26
A129: O & M Charge
A130: ='O & M 2021-2025'!A254 -> Patrols & repairs | D130: ='O & M 2021-2025'!B38*D$4 -> 27.44825428 | E130: ='O & M 2021-2025'!Q38*E$4 -> 28.17415071 | F130: ='O & M 2021-2025'!AF38*F$4 -> 28.94329471 | G130: ='O & M 2021-2025'!AU38*G$4 -> 29.78800086 | H130: ='O & M 2021-2025'!BJ38*H$4 -> 30.70958685
A131: =A113 -> Other costs | D131: ='O & M 2021-2025'!B40*D$4 -> 1.437169735 | E131: ='O & M 2021-2025'!Q40*E$4 -> 1.4833926 | F131: ='O & M 2021-2025'!AF40*F$4 -> 1.531431003 | G131: ='O & M 2021-2025'!AU40*G$4 -> 1.588707252 | H131: ='O & M 2021-2025'!BJ40*H$4 -> 1.649534629
D132: =SUM(D130:D131) -> 28.88542401 | E132: =SUM(E130:E131) -> 29.65754331 | F132: =SUM(F130:F131) -> 30.47472571 | G132: =SUM(G130:G131) -> 31.37670811 | H132: =SUM(H130:H131) -> 32.35912148
A133: Capital Charge
A134: Depreciation and Return | D134: ='Depn & WACC Post 2004'!H75 -> 7.4652087 | E134: ='Depn & WACC Post 2004'!H129 -> 8.834771035 | F134: ='Depn & WACC Post 2004'!H182 -> 10.18451214 | G134: ='Depn & WACC Post 2004'!H236 -> 11.61992184 | H134: ='Depn & WACC Post 2004'!H290 -> 13.20100527
A136: Poles & Brackets Charge | D136: =D$13 -> 7.531831898 | E136: =E$13 -> 8.572419804 | F136: =F$13 -> 9.61580341 | G136: =G$13 -> 10.72176858 | H136: =H$13 -> 11.85824416
A138: Total Charge | D138: =SUM(D132,D134,D136) -> 43.88246461 | E138: =SUM(E132,E134,E136) -> 47.06473415 | F138: =SUM(F132,F134,F136) -> 50.27504126 | G138: =SUM(G132,G134,G136) -> 53.71839854 | H138: =SUM(H132,H134,H136) -> 57.41837091

Sheet O & M 2021-2025
A1: ='DNSP Inputs O & M'!$A$3 -> United Energy
A3: Public Lighting O & M Costs | B3: Year | C3: ='DNSP Inputs General'!$Q2 -> 2021/22 | Q3: Year | R3: ='DNSP Inputs General'!$R2 -> 2022/23 | AF3: Year | AG3: ='DNSP Inputs General'!$S2 -> 2023/24 | AU3: Year | AV3: ='DNSP Inputs General'!$T2 -> 2024/25 | BJ3: Year | BK3: ='DNSP Inputs General'!$U2 -> 2025/26
A4: ='DNSP Inputs O & M'!C5 -> Real 2021 $
A6: Summary
A8: =$A$74 -> MV80 | D8: Avoided Costs - MV 80 O & M | S8: Avoided Costs - MV 80 O & M | AH8: Avoided Costs - MV 80 O & M | AW8: Avoided Costs - MV 80 O & M | BL8: Avoided Costs - MV 80 O & M
A9: =$A$75 -> Bulk change & repairs | B9: =G95*C44+N95*C45 -> 33.45869822 | D9: Materials & labour - bulk lamp change | G9: =-((G77+G86)*C44+(N77+N86)*C45)*2 -> -22.70214288 | Q9: =V95*R44+AC95*R45 -> 33.54471668 | S9: Materials & labour - bulk lamp change | V9: =-((V77+V86)*R44+(AC77+AC86)*R45)*2 -> -22.76153498 | AF9: =AK95*AG44+AR95*AG45 -> 33.65820047 | AH9: Materials & labour - bulk lamp change | AK9: =-((AK77+AK86)*AG44+(AR77+AR86)*AG45)*2 -> -22.83989073 | AU9: =AZ95*AV44+BG95*AV45 -> 33.83244224 | AW9: Materials & labour - bulk lamp change | AZ9: =-((AZ77+AZ86)*AV44+(BG77+BG86)*AV45)*2 -> -22.96019729 | BJ9: =BO95*BK44+BV95*BK45 -> 34.0640479 | BL9: Materials & labour - bulk lamp change | BO9: =-((BO77+BO86)*BK44+(BV77+BV86)*BK45)*2 -> -23.12011118
A10: =A97 -> Dedicated poles - inspection | B10: =(G98*C44+N98*C45)*C47 -> 0.933313037 | D10: Materials & Labour - repair of faults | G10: =-((G81+G89+G91)*C44+(N81+N89+N91)*C45)/2 -> -7.707943568 | Q10: =(V98*R44+AC98*R45)*R47 -> 0.9375042739 | S10: Materials & Labour - repair of faults | V10: =-((V81+V89+V91)*R44+(AC81+AC89+AC91)*R45)/2 -> -7.727502926 | AF10: =(AK98*AG44+AR98*AG45)*AG47 -> 0.9430337551 | AH10: Materials & Labour - repair of faults | AK10: =-((AK81+AK89+AK91)*AG44+(AR81+AR89+AR91)*AG45)/2 -> -7.753307505 | AU10: =(AZ98*AV44+BG98*AV45)*AV47 -> 0.9515236601 | AW10: Materials & Labour - repair of faults | AZ10: =-((AZ81+AZ89+AZ91)*AV44+(BG81+BG89+BG91)*AV45)/2 -> -7.792927574 | BJ10: =(BO98*BK44+BV98*BK45)*BK47 -> 0.9628086121 | BL10: Materials & Labour - repair of faults | BO10: =-((BO81+BO89+BO91)*BK44+(BV81+BV89+BV91)*BK45)/2 -> -7.845591364
A11: Other costs | B11: =IF(C56=0,0,C54/C56) -> 1.403838281 | G11: =SUM(G9:G10) -> -30.41008645 | Q11: =IF(R56=0,0,R54/R56) -> 1.415383551 | V11: =SUM(V9:V10) -> -30.48903791 | AF11: =IF(AG56=0,0,AG54/AG56) -> 1.427330311 | AK11: =SUM(AK9:AK10) -> -30.59319824 | AU11: =IF(AV56=0,0,AV54/AV56) -> 1.446371814 | AZ11: =SUM(AZ9:AZ10) -> -30.75312486 | BJ11: =IF(BK56=0,0,BK54/BK56) -> 1.466920329 | BO11: =SUM(BO9:BO10) -> -30.96570255
A14: =$A$115 -> S-HP 150 | D14: Avoided Costs - S-HP 150 O & M | S14: Avoided Costs - S-HP 150 O & M | AH14: Avoided Costs - S-HP 150 O & M | AW14: Avoided Costs - S-HP 150 O & M | BL14: Avoided Costs - S-HP 150 O & M
A15: =$A$116 -> Patrols and repairs | B15: =G132*E44+N132*E45 -> 69.89485801 | D15: Materials & labour - bulk lamp change | Q15: =V132*T44+AC132*T45 -> 70.12849391 | S15: Materials & labour - bulk lamp change | AF15: =AK132*AI44+AR132*AI45 -> 70.42303837 | AH15: Materials & labour - bulk lamp change | AU15: =AZ132*AX44+BG132*AX45 -> 70.84390006 | AW15: Materials & labour - bulk lamp change | BJ15: =BO132*BM44+BV132*BM45 -> 71.38205628 | BL15: Materials & labour - bulk lamp change
A16: =$A$10 -> Dedicated poles - inspection | B16: =B10 -> 0.933313037 | D16: Materials & Labour - repair of faults | G16: =-((G118+G125+G128)*E44+(N118+N125+N128)*E45)/2 -> -26.74567042 | I16: The cost of patroling not included as we would still need to patrol. | Q16: =Q10 -> 0.9375042739 | S16: Materials & Labour - repair of faults | V16: =-((V118+V125+V128)*T44+(AC118+AC125+AC128)*T45)/2 -> -26.83333902 | X16: The cost of patroling not included as we would still need to patrol. | AF16: =AF10 -> 0.9430337551 | AH16: Materials & Labour - repair of faults | AK16: =-((AK118+AK125+AK128)*AI44+(AR118+AR125+AR128)*AI45)/2 -> -26.94352366 | AM16: The cost of patroling not included as we would still need to patrol. | AU16: =AU10 -> 0.9515236601 | AW16: Materials & Labour - repair of faults | AZ16: =-((AZ118+AZ125+AZ128)*AX44+(BG118+BG125+BG128)*AX45)/2 -> -27.10014851 | BB16: The cost of patroling not included as we would still need to patrol. | BJ16: =BJ10 -> 0.9628086121 | BL16: Materials & Labour - repair of faults | BO16: =-((BO118+BO125+BO128)*BM44+(BV118+BV125+BV128)*BM45)/2 -> -27.29983276 | BQ16: The cost of patroling not included as we would still need to patrol.
A17: =$A$11 -> Other costs | B17: =B11 -> 1.403838281 | G17: =SUM(G15:G16) -> -26.74567042 | Q17: =Q11 -> 1.415383551 | V17: =SUM(V15:V16) -> -26.83333902 | AF17: =AF11 -> 1.427330311 | AK17: =SUM(AK15:AK16) -> -26.94352366 | AU17: =AU11 -> 1.446371814 | AZ17: =SUM(AZ15:AZ16) -> -27.10014851 | BJ17: =BJ11 -> 1.466920329 | BO17: =SUM(BO15:BO16) -> -27.29983276
A20: =$A$147 -> S-HP 250 | D20: Avoided Costs - MV 80 O & M | S20: Avoided Costs - MV 80 O & M | AH20: Avoided Costs - MV 80 O & M | AW20: Avoided Costs - MV 80 O & M | BL20: Avoided Costs - MV 80 O & M
A21: =$A$148 -> Patrols and repairs | B21: =G164*G44+N164*G45 -> 70.05208398 | D21: Materials & labour - bulk lamp change | Q21: =V164*V44+AC164*V45 -> 70.28703678 | S21: Materials & labour - bulk lamp change | AF21: =AK164*AK44+AR164*AK45 -> 70.58295946 | AH21: Materials & labour - bulk lamp change | AU21: =AZ164*AZ44+BG164*AZ45 -> 71.00511408 | AW21: Materials & labour - bulk lamp change | BJ21: =BO164*BO44+BV164*BO45 -> 71.54443112 | BL21: Materials & labour - bulk lamp change
A22: =$A$10 -> Dedicated poles - inspection | B22: =B10 -> 0.933313037 | D22: Materials & Labour - repair of faults | G22: =-((G150+G157+G160)*G44+(N150+N157+N160)*G45)/2 -> -26.80856081 | I22: The cost of patroling not included as we would still need to patrol. | Q22: =Q10 -> 0.9375042739 | S22: Materials & Labour - repair of faults | V22: =-((V150+V157+V160)*V44+(AC150+AC157+AC160)*V45)/2 -> -26.89675616 | X22: The cost of patroling not included as we would still need to patrol. | AF22: =AF10 -> 0.9430337551 | AH22: Materials & Labour - repair of faults | AK22: =-((AK150+AK157+AK160)*AK44+(AR150+AR157+AR160)*AK45)/2 -> -27.0074921 | AM22: The cost of patroling not included as we would still need to patrol. | AU22: =AU10 -> 0.9515236601 | AW22: Materials & Labour - repair of faults | AZ22: =-((AZ150+AZ157+AZ160)*AZ44+(BG150+BG157+BG160)*AZ45)/2 -> -27.16463412 | BB22: The cost of patroling not included as we would still need to patrol. | BJ22: =BJ10 -> 0.9628086121 | BL22: Materials & Labour - repair of faults | BO22: =-((BO150+BO157+BO160)*BO44+(BV150+BV157+BV160)*BO45)/2 -> -27.3647827 | BQ22: The cost of patroling not included as we would still need to patrol.
A23: =$A$11 -> Other costs | B23: =B11 -> 1.403838281 | G23: =SUM(G21:G22) -> -26.80856081 | Q23: =Q11 -> 1.415383551 | V23: =SUM(V21:V22) -> -26.89675616 | AF23: =AF11 -> 1.427330311 | AK23: =SUM(AK21:AK22) -> -27.0074921 | AU23: =AU11 -> 1.446371814 | AZ23: =SUM(AZ21:AZ22) -> -27.16463412 | BJ23: =BJ11 -> 1.466920329 | BO23: =SUM(BO21:BO22) -> -27.3647827
A26: =$A$181 -> T5 (2 X 14W)
A27: =$A$182 -> Bulk change & repairs | B27: =$G$202*$I$44+$N$202*$I$45 -> 27.89666001 | Q27: =$V$202*$X$44+$AC$202*$X$45 -> 27.9677586 | AF27: =$AK$202*$AM$44+$AR$202*$AM$45 -> 28.06155867 | AU27: =$AZ$202*$BB$44+$BG$202*$BB$45 -> 28.20557827 | BJ27: =$BO$202*$BQ$44+$BV$202*$BQ$45 -> 28.39701201
A28: =$A$10 -> Dedicated poles - inspection | B28: =B10 -> 0.933313037 | Q28: =Q10 -> 0.9375042739 | AF28: =AF10 -> 0.9430337551 | AU28: =AU10 -> 0.9515236601 | BJ28: =BJ10 -> 0.9628086121
A29: =$A$11 -> Other costs | B29: =B11 -> 1.403838281 | Q29: =Q11 -> 1.415383551 | AF29: =AF11 -> 1.427330311 | AU29: =AU11 -> 1.446371814 | BJ29: =BJ11 -> 1.466920329
A32: ='DNSP Inputs General'!A72 -> Category P LED 18 Watt
A33: =A220 -> Bulk change & repairs | B33: =G238*K44+N238*K45 -> 8.448156351 | Q33: =V238*Z44+AC238*Z45 -> 8.468739614 | AF33: =AK238*AO44+AR238*AO45 -> 8.495895027 | AU33: =AZ238*BD44+BG238*BD45 -> 8.537589152 | BJ33: =BO238*BS44+BV238*BS45 -> 8.593009818
A34: =$A$10 -> Dedicated poles - inspection | B34: =B16 -> 0.933313037 | Q34: =Q16 -> 0.9375042739 | AF34: =AF16 -> 0.9430337551 | AU34: =AU16 -> 0.9515236601 | BJ34: =BJ16 -> 0.9628086121
A35: =$A$11 -> Other costs | B35: =B17 -> 1.403838281 | Q35: =Q17 -> 1.415383551 | AF35: =AF17 -> 1.427330311 | AU35: =AU17 -> 1.446371814 | BJ35: =BJ17 -> 1.466920329
A37: ='DNSP Inputs General'!A75 -> Category V LED L2 Medium Output
A38: =A254 -> Patrols & repairs | B38: =G268*M44+N268*M45 -> 26.81166265 | Q38: =V268*AB44+AC268*AB45 -> 26.8824514 | AF38: =AK268*AQ44+AR268*AQ45 -> 26.9758427 | AU38: =AZ268*BF44+BG268*BF45 -> 27.11923469 | BJ38: =BO268*BU44+BV268*BU45 -> 27.3098342
A39: =$A$10 -> Dedicated poles - inspection | B39: =B16 -> 0.933313037 | Q39: =Q16 -> 0.9375042739 | AF39: =AF16 -> 0.9430337551 | AU39: =AU16 -> 0.9515236601 | BJ39: =BJ16 -> 0.9628086121
A40: =$A$11 -> Other costs | B40: =B17 -> 1.403838281 | Q40: =Q17 -> 1.415383551 | AF40: =AF17 -> 1.427330311 | AU40: =AU17 -> 1.446371814 | BJ40: =BJ17 -> 1.466920329
A43: ='DNSP Inputs O & M'!A52 -> Location of selected public lighting assets within distributors' areas (%) | C43: =$A$74 -> MV80 | E43: =$A$115 -> S-HP 150 | G43: =$A$147 -> S-HP 250 | I43: =$A$181 -> T5 (2 X 14W) | K43: =$A$32 -> Category P LED 18 Watt | M43: =$A$37 -> Category V LED L2 Medium Output | R43: =$A$74 -> MV80 | T43: =$A$115 -> S-HP 150 | V43: =$A$147 -> S-HP 250 | X43: =$A$181 -> T5 (2 X 14W) | Z43: =$A$32 -> Category P LED 18 Watt | AB43: =$A$37 -> Category V LED L2 Medium Output | AG43: =$A$74 -> MV80 | AI43: =$A$115 -> S-HP 150 | AK43: =$A$147 -> S-HP 250 | AM43: =$A$181 -> T5 (2 X 14W) | AO43: =$A$32 -> Category P LED 18 Watt | AQ43: =$A$37 -> Category V LED L2 Medium Output | AV43: =$A$74 -> MV80 | AX43: =$A$115 -> S-HP 150 | AZ43: =$A$147 -> S-HP 250 | BB43: =$A$181 -> T5 (2 X 14W) | BD43: =$A$32 -> Category P LED 18 Watt | BF43: =$A$37 -> Category V LED L2 Medium Output | BK43: =$A$74 -> MV80 | BM43: =$A$115 -> S-HP 150 | BO43: =$A$147 -> S-HP 250 | BQ43: =$A$181 -> T5 (2 X 14W) | BS43: =$A$32 -> Category P LED 18 Watt | BU43: =$A$37 -> Category V LED L2 Medium Output
A44: ='DNSP Inputs O & M'!A53 -> Urban | C44: ='DNSP Inputs O & M'!$D$53 -> 0.92 | E44: ='DNSP Inputs O & M'!$D$82 -> 0.92 | G44: ='DNSP Inputs O & M'!$D$111 -> 0.92 | I44: ='DNSP Inputs O & M'!$D$169 -> 0.92 | K44: ='DNSP Inputs O & M'!$D$198 -> 0.92 | M44: ='DNSP Inputs O & M'!$D$224 -> 0.92 | R44: ='DNSP Inputs O & M'!$E$53 -> 0.92 | T44: ='DNSP Inputs O & M'!$E$82 -> 0.92 | V44: ='DNSP Inputs O & M'!$E$111 -> 0.92 | X44: ='DNSP Inputs O & M'!$E$169 -> 0.92 | Z44: ='DNSP Inputs O & M'!$E$198 -> 0.92 | AB44: ='DNSP Inputs O & M'!$E$224 -> 0.92 | AG44: ='DNSP Inputs O & M'!$F$53 -> 0.92 | AI44: ='DNSP Inputs O & M'!$F$82 -> 0.92 | AK44: ='DNSP Inputs O & M'!$F$111 -> 0.92 | AM44: ='DNSP Inputs O & M'!$F$169 -> 0.92 | AO44: ='DNSP Inputs O & M'!$F$198 -> 0.92 | AQ44: ='DNSP Inputs O & M'!$F$224 -> 0.92 | AV44: ='DNSP Inputs O & M'!$G$53 -> 0.92 | AX44: ='DNSP Inputs O & M'!$G$82 -> 0.92 | AZ44: ='DNSP Inputs O & M'!$G$111 -> 0.92 | BB44: ='DNSP Inputs O & M'!$G$169 -> 0.92 | BD44: ='DNSP Inputs O & M'!$G$198 -> 0.92 | BF44: ='DNSP Inputs O & M'!$G$224 -> 0.92 | BK44: ='DNSP Inputs O & M'!$H$53 -> 0.92 | BM44: ='DNSP Inputs O & M'!$H$82 -> 0.92 | BO44: ='DNSP Inputs O & M'!$H$111 -> 0.92 | BQ44: ='DNSP Inputs O & M'!$H$169 -> 0.92 | BS44: ='DNSP Inputs O & M'!$H$198 -> 0.92 | BU44: ='DNSP Inputs O & M'!$H$224 -> 0.92
A45: ='DNSP Inputs O & M'!A54 -> Rural | C45: ='DNSP Inputs O & M'!$D$54 -> 0.08 | E45: ='DNSP Inputs O & M'!$D$83 -> 0.08 | G45: ='DNSP Inputs O & M'!$D$112 -> 0.08 | I45: ='DNSP Inputs O & M'!$D$170 -> 0.08 | K45: ='DNSP Inputs O & M'!$D$199 -> 0.08 | M45: ='DNSP Inputs O & M'!$D$225 -> 0.08 | R45: ='DNSP Inputs O & M'!$E$54 -> 0.08 | T45: ='DNSP Inputs O & M'!$E$83 -> 0.08 | V45: ='DNSP Inputs O & M'!$E$112 -> 0.08 | X45: ='DNSP Inputs O & M'!$E$170 -> 0.08 | Z45: ='DNSP Inputs O & M'!$E$199 -> 0.08 | AB45: ='DNSP Inputs O & M'!$E$225 -> 0.08 | AG45: ='DNSP Inputs O & M'!$F$54 -> 0.08 | AI45: ='DNSP Inputs O & M'!$F$83 -> 0.08 | AK45: ='DNSP Inputs O & M'!$F$112 -> 0.08 | AM45: ='DNSP Inputs O & M'!$F$170 -> 0.08 | AO45: ='DNSP Inputs O & M'!$F$199 -> 0.08 | AQ45: ='DNSP Inputs O & M'!$F$225 -> 0.08 | AV45: ='DNSP Inputs O & M'!$G$54 -> 0.08 | AX45: ='DNSP Inputs O & M'!$G$83 -> 0.08 | AZ45: ='DNSP Inputs O & M'!$G$112 -> 0.08 | BB45: ='DNSP Inputs O & M'!$G$170 -> 0.08 | BD45: ='DNSP Inputs O & M'!$G$199 -> 0.08 | BF45: ='DNSP Inputs O & M'!$G$225 -> 0.08 | BK45: ='DNSP Inputs O & M'!$H$54 -> 0.08 | BM45: ='DNSP Inputs O & M'!$H$83 -> 0.08 | BO45: ='DNSP Inputs O & M'!$H$112 -> 0.08 | BQ45: ='DNSP Inputs O & M'!$H$170 -> 0.08 | BS45: ='DNSP Inputs O & M'!$H$199 -> 0.08 | BU45: ='DNSP Inputs O & M'!$H$225 -> 0.08
A47: ='DNSP Inputs O & M'!A121 -> Proportion of lights on dedicated poles | C47: ='DNSP Inputs O & M'!$D$121 -> 0.3 | R47: ='DNSP Inputs O & M'!$E$121 -> 0.3 | AG47: ='DNSP Inputs O & M'!$F$121 -> 0.3 | AV47: ='DNSP Inputs O & M'!$G$121 -> 0.3 | BK47: ='DNSP Inputs O & M'!$H$121 -> 0.3
A49: ='DNSP Inputs O & M'!A125 -> Other direct costs
A50: ='DNSP Inputs O & M'!$A$126 -> Call centre | C50: ='DNSP Inputs O & M'!$D$129 -> 10198.77629 | R50: ='DNSP Inputs O & M'!$E$129 -> 9807.782642 | AG50: ='DNSP Inputs O & M'!$F$129 -> 9435.653738 | AV50: ='DNSP Inputs O & M'!$G$129 -> 9069.265401 | BK50: ='DNSP Inputs O & M'!$H$129 -> 8928.918845
A51: ='DNSP Inputs O & M'!$A$131 -> GIS and other | C51: ='DNSP Inputs O & M'!$D131 -> 126674.3881 | R51: ='DNSP Inputs O & M'!$E131 -> 128229.5083 | AG51: ='DNSP Inputs O & M'!$F131 -> 129857.0504 | AV51: ='DNSP Inputs O & M'!$G131 -> 131383.8684 | BK51: ='DNSP Inputs O & M'!$H131 -> 132754.6738
A52: ='DNSP Inputs O & M'!A132 -> Complaints handling | C52: ='DNSP Inputs O & M'!$D132 -> 38002.31643 | R52: ='DNSP Inputs O & M'!$E132 -> 38468.85248 | AG52: ='DNSP Inputs O & M'!$F132 -> 38957.11513 | AV52: ='DNSP Inputs O & M'!$G132 -> 39415.16053 | BK52: ='DNSP Inputs O & M'!$H132 -> 39826.40213
A53: ='DNSP Inputs O & M'!A133 -> Step change in pole testing/inspection | C53: ='DNSP Inputs O & M'!$D$133 -> 0 | R53: ='DNSP Inputs O & M'!$E$133 -> 0 | AG53: ='DNSP Inputs O & M'!$F$133 -> 0 | AV53: ='DNSP Inputs O & M'!$G$133 -> 0 | BK53: ='DNSP Inputs O & M'!$H$133 -> 0
C54: =SUM(C50:C53) -> 174875.4808 | R54: =SUM(R50:R53) -> 176506.1434 | AG54: =SUM(AG50:AG53) -> 178249.8193 | AV54: =SUM(AV50:AV53) -> 179868.2944 | BK54: =SUM(BK50:BK53) -> 181509.9948
A56: ='DNSP Inputs General'!A80 -> Total Number of Lights | C56: ='DNSP Inputs General'!$Q$80 -> 124569.5343 | R56: ='DNSP Inputs General'!$R$80 -> 124705.5212 | AG56: ='DNSP Inputs General'!$S$80 -> 124883.37 | AV56: ='DNSP Inputs General'!$T$80 -> 124358.2685 | BK56: ='DNSP Inputs General'!$U$80 -> 123735.4144
A62: Mercury Vapour 80 Watt Standard Light Type - Cost build-up
A64: Additional assumptions
A65: Proportion of lamps that will fail before bulk change | D65: ='DNSP Inputs O & M'!$D$29 -> 0.5324658987 | S65: ='DNSP Inputs O & M'!$E$29 -> 0.5324658987 | AH65: ='DNSP Inputs O & M'!$F$29 -> 0.5324658987 | AW65: ='DNSP Inputs O & M'!$G$29 -> 0.5324658987 | BL65: ='DNSP Inputs O & M'!$H$29 -> 0.5324658987
A66: Proportion of lamps that will fail before bulk change (per year) | D66: =D65/'DNSP Inputs O & M'!$D$27 -> 0.1331164747 | S66: =S65/'DNSP Inputs O & M'!$E$27 -> 0.1331164747 | AH66: =AH65/'DNSP Inputs O & M'!$F$27 -> 0.1331164747 | AW66: =AW65/'DNSP Inputs O & M'!$G$27 -> 0.1331164747 | BL66: =BL65/'DNSP Inputs O & M'!$H$27 -> 0.1331164747
A67: Overheads are applied to material and labour components
A68: All costs and charges are exclusive of GST
B70: Urban | I70: Rural | Q70: Urban | X70: Rural | AF70: Urban | AM70: Rural | AU70: Urban | BB70: Rural | BJ70: Urban | BQ70: Rural
B72: Unit rate | C72: Number | D72: Hours | E72: Cost | F72: Annualised | G72: Annualised | I72: Unit rate | J72: Number | K72: Hours | L72: Cost | M72: Annualised | N72: Annualised | Q72: Unit rate | R72: Number | S72: Hours | T72: Cost | U72: Annualised | V72: Annualised | X72: Unit rate | Y72: Number | Z72: Hours | AA72: Cost | AB72: Annualised | AC72: Annualised | AF72: Unit rate | AG72: Number | AH72: Hours | AI72: Cost | AJ72: Annualised | AK72: Annualised | AM72: Unit rate | AN72: Number | AO72: Hours | AP72: Cost | AQ72: Annualised | AR72: Annualised | AU72: Unit rate | AV72: Number | AW72: Hours | AX72: Cost | AY72: Annualised | AZ72: Annualised | BB72: Unit rate | BC72: Number | BD72: Hours | BE72: Cost | BF72: Annualised | BG72: Annualised | BJ72: Unit rate | BK72: Number | BL72: Hours | BM72: Cost | BN72: Annualised | BO72: Annualised | BQ72: Unit rate | BR72: Number | BS72: Hours | BT72: Cost | BU72: Annualised | BV72: Annualised
F73: cost | G73: unit cost | M73: cost | N73: unit cost | U73: cost | V73: unit cost | AB73: cost | AC73: unit cost | AJ73: cost | AK73: unit cost | AQ73: cost | AR73: unit cost | AY73: cost | AZ73: unit cost | BF73: cost | BG73: unit cost | BN73: cost | BO73: unit cost | BU73: cost | BV73: unit cost
A74: MV80
A75: Bulk change & repairs
A76: Materials - bulk lamp change
A77: Lamp | B77: ='DNSP Inputs O & M'!$D$30 -> 5.454281104 | C77: ='DNSP Inputs O & M'!$D$36 -> 86 | E77: =B77*C77 -> 469.068175 | F77: =E77/'DNSP Inputs O & M'!$D$27*0.8 -> 93.81363499 | G77: =(F77+F78+F79)/C77 -> 4.082057975 | I77: =('DNSP Inputs O & M'!$D$30)*(1+'DNSP Inputs O & M'!$D$11) -> 5.726995159 | J77: ='DNSP Inputs O & M'!$D$37 -> 72 | L77: =I77*J77 -> 412.3436515 | M77: =L77/'DNSP Inputs O & M'!$D$27*0.8 -> 82.4687303 | N77: =(M77+M78+M79)/J77 -> 4.286160874 | Q77: ='DNSP Inputs O & M'!$E$30 -> 5.454281104 | R77: ='DNSP Inputs O & M'!$E$36 -> 86 | T77: =Q77*R77 -> 469.068175 | U77: =T77/'DNSP Inputs O & M'!$E$27*0.8 -> 93.81363499 | V77: =(U77+U78+U79)/R77 -> 4.082057975 | X77: =('DNSP Inputs O & M'!$E$30*(1+'DNSP Inputs O & M'!$E$11)) -> 5.726995159 | Y77: ='DNSP Inputs O & M'!$E$37 -> 72 | AA77: =X77*Y77 -> 412.3436515 | AB77: =AA77/'DNSP Inputs O & M'!$E$27*0.8 -> 82.4687303 | AC77: =(AB77+AB78+AB79)/Y77 -> 4.286160874 | AF77: ='DNSP Inputs O & M'!$F$30 -> 5.454281104 | AG77: ='DNSP Inputs O & M'!$F$36 -> 86 | AI77: =AF77*AG77 -> 469.068175 | AJ77: =AI77/'DNSP Inputs O & M'!$F$27*0.8 -> 93.81363499 | AK77: =(AJ77+AJ78+AJ79)/AG77 -> 4.082057975 | AM77: =('DNSP Inputs O & M'!$F$30)*(1+'DNSP Inputs O & M'!$F$11) -> 5.726995159 | AN77: ='DNSP Inputs O & M'!$F$37 -> 72 | AP77: =AM77*AN77 -> 412.3436515 | AQ77: =AP77/'DNSP Inputs O & M'!$F$27*0.8 -> 82.4687303 | AR77: =(AQ77+AQ78+AQ79)/AN77 -> 4.286160874 | AU77: ='DNSP Inputs O & M'!$G$30 -> 5.454281104 | AV77: ='DNSP Inputs O & M'!$G$36 -> 86 | AX77: =AU77*AV77 -> 469.068175 | AY77: =AX77/'DNSP Inputs O & M'!$G$27*0.8 -> 93.81363499 | AZ77: =(AY77+AY78+AY79)/AV77 -> 4.082057975 | BB77: =('DNSP Inputs O & M'!$G$30)*(1+'DNSP Inputs O & M'!$G$11) -> 5.726995159 | BC77: ='DNSP Inputs O & M'!$G$37 -> 72 | BE77: =BB77*BC77 -> 412.3436515 | BF77: =BE77/'DNSP Inputs O & M'!$G$27*0.8 -> 82.4687303 | BG77: =(BF77+BF78+BF79)/BC77 -> 4.286160874 | BJ77: ='DNSP Inputs O & M'!$H$30 -> 5.454281104 | BK77: ='DNSP Inputs O & M'!$H$36 -> 86 | BM77: =BJ77*BK77 -> 469.068175 | BN77: =BM77/'DNSP Inputs O & M'!$H$27*0.8 -> 93.81363499 | BO77: =(BN77+BN78+BN79)/BK77 -> 4.082057975 | BQ77: =('DNSP Inputs O & M'!$H$30)*(1+'DNSP Inputs O & M'!$H$11) -> 5.726995159 | BR77: ='DNSP Inputs O & M'!$H$37 -> 72 | BT77: =BQ77*BR77 -> 412.3436515 | BU77: =BT77/'DNSP Inputs O & M'!$H$27*0.8 -> 82.4687303 | BV77: =(BU77+BU78+BU79)/BR77 -> 4.286160874
A78: PE cell | B78: ='DNSP Inputs O & M'!$D$31 -> 22.0200189 | C78: =C77*'DNSP Inputs O & M'!$D$27/'DNSP Inputs O & M'!$D$28 -> 43 | E78: =B78*C78 -> 946.8608127 | F78: =E78/'DNSP Inputs O & M'!$D$27 -> 236.7152032 | I78: ='DNSP Inputs O & M'!$D$31*(1+'DNSP Inputs O & M'!$D$11) -> 23.12101985 | J78: =J77*'DNSP Inputs O & M'!$D$27/'DNSP Inputs O & M'!$D$28 -> 36 | L78: =I78*J78 -> 832.3567144 | M78: =L78/'DNSP Inputs O & M'!$D$27 -> 208.0891786 | Q78: ='DNSP Inputs O & M'!$E$31 -> 22.0200189 | R78: =R77*'DNSP Inputs O & M'!$E$27/'DNSP Inputs O & M'!$E$28 -> 43 | T78: =Q78*R78 -> 946.8608127 | U78: =T78/'DNSP Inputs O & M'!$E$27 -> 236.7152032 | X78: ='DNSP Inputs O & M'!$E$31*(1+'DNSP Inputs O & M'!$E$11) -> 23.12101985 | Y78: =Y77*'DNSP Inputs O & M'!$E$27/'DNSP Inputs O & M'!$E$28 -> 36 | AA78: =X78*Y78 -> 832.3567144 | AB78: =AA78/'DNSP Inputs O & M'!$E$27 -> 208.0891786 | AF78: ='DNSP Inputs O & M'!$F$31 -> 22.0200189 | AG78: =AG77*'DNSP Inputs O & M'!$F$27/'DNSP Inputs O & M'!$F$28 -> 43 | AI78: =AF78*AG78 -> 946.8608127 | AJ78: =AI78/'DNSP Inputs O & M'!$F$27 -> 236.7152032 | AM78: ='DNSP Inputs O & M'!$F$31*(1+'DNSP Inputs O & M'!$F$11) -> 23.12101985 | AN78: =AN77*'DNSP Inputs O & M'!$F$27/'DNSP Inputs O & M'!$F$28 -> 36 | AP78: =AM78*AN78 -> 832.3567144 | AQ78: =AP78/'DNSP Inputs O & M'!$F$27 -> 208.0891786 | AU78: ='DNSP Inputs O & M'!$G$31 -> 22.0200189 | AV78: =AV77*'DNSP Inputs O & M'!$G$27/'DNSP Inputs O & M'!$G$28 -> 43 | AX78: =AU78*AV78 -> 946.8608127 | AY78: =AX78/'DNSP Inputs O & M'!$G$27 -> 236.7152032 | BB78: ='DNSP Inputs O & M'!$G$31*(1+'DNSP Inputs O & M'!$G$11) -> 23.12101985 | BC78: =BC77*'DNSP Inputs O & M'!$G$27/'DNSP Inputs O & M'!$G$28 -> 36 | BE78: =BB78*BC78 -> 832.3567144 | BF78: =BE78/'DNSP Inputs O & M'!$G$27 -> 208.0891786 | BJ78: ='DNSP Inputs O & M'!$H$31 -> 22.0200189 | BK78: =BK77*'DNSP Inputs O & M'!$H$27/'DNSP Inputs O & M'!$H$28 -> 43 | BM78: =BJ78*BK78 -> 946.8608127 | BN78: =BM78/'DNSP Inputs O & M'!$H$27 -> 236.7152032 | BQ78: ='DNSP Inputs O & M'!$H$31*(1+'DNSP Inputs O & M'!$H$11) -> 23.12101985 | BR78: =BR77*'DNSP Inputs O & M'!$H$27/'DNSP Inputs O & M'!$H$28 -> 36 | BT78: =BQ78*BR78 -> 832.3567144 | BU78: =BT78/'DNSP Inputs O & M'!$H$27 -> 208.0891786
A79: Miscellaneous | B79: ='DNSP Inputs O & M'!$D$33 -> 1.193496959 | C79: ='DNSP Inputs O & M'!$D$36 -> 86 | E79: =B79*C79 -> 102.6407385 | F79: =E79/'DNSP Inputs O & M'!$D$27*0.8 -> 20.5281477 | I79: ='DNSP Inputs O & M'!$D$33*(1+'DNSP Inputs O & M'!$D$11) -> 1.253171807 | J79: ='DNSP Inputs O & M'!$D$37 -> 72 | L79: =I79*J79 -> 90.22837013 | M79: =L79/'DNSP Inputs O & M'!$D$27*0.8 -> 18.04567403 | Q79: ='DNSP Inputs O & M'!$E$33 -> 1.193496959 | R79: ='DNSP Inputs O & M'!$E$36 -> 86 | T79: =Q79*R79 -> 102.6407385 | U79: =T79/'DNSP Inputs O & M'!$E$27*0.8 -> 20.5281477 | X79: ='DNSP Inputs O & M'!$E$33*(1+'DNSP Inputs O & M'!$E$11) -> 1.253171807 | Y79: ='DNSP Inputs O & M'!$E$37 -> 72 | AA79: =X79*Y79 -> 90.22837013 | AB79: =AA79/'DNSP Inputs O & M'!$E$27*0.8 -> 18.04567403 | AF79: ='DNSP Inputs O & M'!$F$33 -> 1.193496959 | AG79: ='DNSP Inputs O & M'!$F$36 -> 86 | AI79: =AF79*AG79 -> 102.6407385 | AJ79: =AI79/'DNSP Inputs O & M'!$F$27*0.8 -> 20.5281477 | AM79: ='DNSP Inputs O & M'!$F$33*(1+'DNSP Inputs O & M'!$F$11) -> 1.253171807 | AN79: ='DNSP Inputs O & M'!$F$37 -> 72 | AP79: =AM79*AN79 -> 90.22837013 | AQ79: =AP79/'DNSP Inputs O & M'!$F$27*0.8 -> 18.04567403 | AU79: ='DNSP Inputs O & M'!$G$33 -> 1.193496959 | AV79: ='DNSP Inputs O & M'!$G$36 -> 86 | AX79: =AU79*AV79 -> 102.6407385 | AY79: =AX79/'DNSP Inputs O & M'!$G$27*0.8 -> 20.5281477 | BB79: ='DNSP Inputs O & M'!$G$33*(1+'DNSP Inputs O & M'!$G$11) -> 1.253171807 | BC79: ='DNSP Inputs O & M'!$G$37 -> 72 | BE79: =BB79*BC79 -> 90.22837013 | BF79: =BE79/'DNSP Inputs O & M'!$G$27*0.8 -> 18.04567403 | BJ79: ='DNSP Inputs O & M'!$H$33 -> 1.193496959 | BK79: ='DNSP Inputs O & M'!$H$36 -> 86 | BM79: =BJ79*BK79 -> 102.6407385 | BN79: =BM79/'DNSP Inputs O & M'!$H$27*0.8 -> 20.5281477 | BQ79: ='DNSP Inputs O & M'!$H$33*(1+'DNSP Inputs O & M'!$H$11) -> 1.253171807 | BR79: ='DNSP Inputs O & M'!$H$37 -> 72 | BT79: =BQ79*BR79 -> 90.22837013 | BU79: =BT79/'DNSP Inputs O & M'!$H$27*0.8 -> 18.04567403
A80: Materials - repair of faults
